Workbook

Sheet São Gregório
A1: Ministério da Integração e do Desenvolvimento Regional
A2: Companhia de Desenvolvimento dos Vales do São Francisco e do Parnaíba
A4: PLANILHA ORÇAMENTÁRIA - ORÇAMENTO NÃO DESONERADO
A5: OBRA: | B5: Execução de manutenção e obras civis na barragem de São Gregório, localizada em Campo Azul no estado de Minas Gerais. | G5: BDI (serv.): | H5: ='BDI serv'!D23 -> 0.2321 | I5: Bancos de dados:
A6: LOCAL: | B6: Campo Azul - MG | G6: BDI (forn.): | H6: ='BDI forn'!D23 -> 0.1469 | I6: ABR/25 - SINAPI
A7: DATA BASE: | B7: 2025-06-01 | E7: Encargos sociais - Horistas: | H7: ='Encargos Sociais'!E49 -> 1.1679 | I7: MAR/25 - ORSE
A8: PRAZO: | B8: 120 dias | E8: Encargos sociais - Mensalista: | H8: ='Encargos Sociais'!F49 -> 0.7393 | I8: MAI/25 - SETOP
I9: JAN/25 - EMBASA
B10: São Gregório | G10: Desconto: | H10: 0 | I10: JAN/2025 - SICRO3
A11: ITEM | B11: REFERÊNCIA | D11: DESCRIÇÃO | E11: UNID. | F11: QUANT. | G11: CUSTO UNITÁRIO | H11: PREÇO UNITÁRIO | I11: PREÇO TOTAL
B12: FONTE | C12: CÓDIGO
A13: 1 | D13: ADMINISTRAÇÃO DA OBRA | I13: =SUM(I14) -> 154077.52
A14: 1.1 | D14: Administração da Obra | I14: =SUM(I15:I15) -> 154077.52
A15: 1.1.1 | B15: PRÓPRIA | C15: CPU.01 | D15: =(VLOOKUP(C15,CPU!B1:C265,2,0)) -> Administração Local | E15: =(VLOOKUP(C15,CPU!B2:D$380,3,0)) -> mês | F15: 4 | G15: =TRUNC((1-$H$10)*(SUMIFS(CPU!$G:$G,CPU!$A:$A,'São Gregório'!$C15,CPU!$H:$H,"ss")+SUMIFS(CPU!$G:$G,CPU!$A:$A,'São Gregório'!$C15,CPU!$H:$H,"mdo")+SUMIF('Comp SINAPI MG 04-2025 Onerado'!B:B,'São Gregório'!C15,'Comp SINAPI MG 04-2025 Onerado'!E:E)+SUMIF('Ins SINAPI MG 04-2025 Onerado'!B:B,'São Gregório'!C15,'Ins SINAPI MG 04-2025 Onerado'!F:F)),2) -> 31263.2 | H15: =TRUNC(G15*(1+$H$5),2) -> 38519.38 | I15: =TRUNC(F15*H15,2) -> 154077.52
A17: 2 | D17: SERVIÇOS PRELIMINARES | I17: =SUM(I18,I20,I22) -> 30718.09
A18: 2.1 | D18: Mobilização e desmobilização | I18: =SUM(I19) -> 4324.96
A19: 2.1.1 | B19: PRÓPRIA | C19: CPU.02 | D19: =(VLOOKUP(C19,CPU!B5:C269,2,0)) -> Mobilização e desmobilização de instalação do canteiro | E19: =(VLOOKUP(C19,CPU!B2:D$380,3,0)) -> un | F19: 1 | G19: =TRUNC((1-$H$10)*(SUMIFS(CPU!$G:$G,CPU!$A:$A,'São Gregório'!$C19,CPU!$H:$H,"ss")+SUMIFS(CPU!$G:$G,CPU!$A:$A,'São Gregório'!$C19,CPU!$H:$H,"mdo")+SUMIF('Comp SINAPI MG 04-2025 Onerado'!B:B,'São Gregório'!C19,'Comp SINAPI MG 04-2025 Onerado'!E:E)+SUMIF('Ins SINAPI MG 04-2025 Onerado'!B:B,'São Gregório'!C19,'Ins SINAPI MG 04-2025 Onerado'!F:F)),2) -> 3510.24 | H19: =TRUNC(G19*(1+$H$5),2) -> 4324.96 | I19: =TRUNC(F19*H19,2) -> 4324.96
A20: 2.2 | D20: Canteiro de obras | I20: =SUM(I21) -> 25147.83
A21: 2.2.1 | B21: PRÓPRIA | C21: CPU.03 | D21: =(VLOOKUP(C21,CPU!B7:C271,2,0)) -> Execução de canteiro de obras, inclusive, limpeza, refeitório, sanitários e central de formas | E21: =(VLOOKUP(C21,CPU!B2:D$380,3,0)) -> m2 | F21: 28.5 | G21: =TRUNC((1-$H$10)*(SUMIFS(CPU!$G:$G,CPU!$A:$A,'São Gregório'!$C21,CPU!$H:$H,"ss")+SUMIFS(CPU!$G:$G,CPU!$A:$A,'São Gregório'!$C21,CPU!$H:$H,"mdo")+SUMIF('Comp SINAPI MG 04-2025 Onerado'!B:B,'São Gregório'!C21,'Comp SINAPI MG 04-2025 Onerado'!E:E)+SUMIF('Ins SINAPI MG 04-2025 Onerado'!B:B,'São Gregório'!C21,'Ins SINAPI MG 04-2025 Onerado'!F:F)),2) -> 716.16 | H21: =TRUNC(G21*(1+$H$5),2) -> 882.38 | I21: =TRUNC(F21*H21,2) -> 25147.83
A22: 2.3 | D22: Sinalização | I22: =SUM(I23:I23) -> 1245.3
A23: 2.3.1 | B23: SINAPI | C23: 103689 | D23: =IF(J23="ca",VLOOKUP(C23,'Comp SINAPI MG 04-2025 Onerado'!$B$11:$C$9004,2,0),VLOOKUP(C23,'Ins SINAPI MG 04-2025 Onerado'!$B$10:$C$9004,2,0)) -> FORNECIMENTO E INSTALAÇÃO DE PLACA DE OBRA COM CHAPA GALVANIZADA E ESTRUTURA DE MADEIRA. AF_03/2022_PS | E23: =IF(J23="ca",VLOOKUP(C23,'Comp SINAPI MG 04-2025 Onerado'!$B$11:$D$9004,3,0),VLOOKUP(C23,'Ins SINAPI MG 04-2025 Onerado'!$B$11:$D$9004,3,0)) -> M2 | F23: 2 | G23: =TRUNC((1-$H$10)*(SUMIFS(CPU!$G:$G,CPU!$A:$A,'São Gregório'!$C23,CPU!$H:$H,"ss")+SUMIFS(CPU!$G:$G,CPU!$A:$A,'São Gregório'!$C23,CPU!$H:$H,"mdo")+SUMIF('Comp SINAPI MG 04-2025 Onerado'!B:B,'São Gregório'!C23,'Comp SINAPI MG 04-2025 Onerado'!E:E)+SUMIF('Ins SINAPI MG 04-2025 Onerado'!B:B,'São Gregório'!C23,'Ins SINAPI MG 04-2025 Onerado'!F:F)),2) -> 505.36 | H23: =TRUNC(G23*(1+$H$5),2) -> 622.65 | I23: =TRUNC(F23*H23,2) -> 1245.3 | J23: ca
A25: 3 | D25: CORTE DA VEGETAÇÃO E REMOÇÃO DAS RAIZES | I25: =SUM(I26) -> 243348.6
A26: 3.1 | D26: Remoção da vegetação | I26: =SUM(I27:I28) -> 243348.6
A27: 3.1.1 | B27: PRÓPRIA | C27: CPU.04 | D27: =(VLOOKUP(C27,CPU!B13:C277,2,0)) -> Limpeza de vegetação | E27: =(VLOOKUP(C27,CPU!B2:D$380,3,0)) -> m2 | F27: 22838 | G27: =TRUNC((1-$H$10)*(SUMIFS(CPU!$G:$G,CPU!$A:$A,'São Gregório'!$C27,CPU!$H:$H,"ss")+SUMIFS(CPU!$G:$G,CPU!$A:$A,'São Gregório'!$C27,CPU!$H:$H,"mdo")+SUMIF('Comp SINAPI MG 04-2025 Onerado'!B:B,'São Gregório'!C27,'Comp SINAPI MG 04-2025 Onerado'!E:E)+SUMIF('Ins SINAPI MG 04-2025 Onerado'!B:B,'São Gregório'!C27,'Ins SINAPI MG 04-2025 Onerado'!F:F)),2) -> 7.55 | H27: =TRUNC(G27*(1+$H$5),2) -> 9.3 | I27: =TRUNC(F27*H27,2) -> 212393.4
A28: 3.1.2 | B28: PRÓPRIA | C28: CPU.05 | D28: =(VLOOKUP(C28,CPU!B14:C278,2,0)) -> Corte de tronco e remoção de raiz | E28: =(VLOOKUP(C28,CPU!B3:D$380,3,0)) -> un | F28: 60 | G28: =TRUNC((1-$H$10)*(SUMIFS(CPU!$G:$G,CPU!$A:$A,'São Gregório'!$C28,CPU!$H:$H,"ss")+SUMIFS(CPU!$G:$G,CPU!$A:$A,'São Gregório'!$C28,CPU!$H:$H,"mdo")+SUMIF('Comp SINAPI MG 04-2025 Onerado'!B:B,'São Gregório'!C28,'Comp SINAPI MG 04-2025 Onerado'!E:E)+SUMIF('Ins SINAPI MG 04-2025 Onerado'!B:B,'São Gregório'!C28,'Ins SINAPI MG 04-2025 Onerado'!F:F)),2) -> 418.74 | H28: =TRUNC(G28*(1+$H$5),2) -> 515.92 | I28: =TRUNC(F28*H28,2) -> 30955.2
A30: 4 | D30: RECUPERAÇÃO DO MACIÇO | I30: =SUM(I31,I33) -> 45367.51
A31: 4.1 | D31: Recomposição das Erosões (erosões locais nas ombreiras e aterro), trincas e buracos | I31: =I32 -> 44737
A32: 4.1.1 | B32: PRÓPRIA | C32: CPU.13 | D32: =(VLOOKUP(C32,CPU!B18:C282,2,0)) -> Recomposição das erosões, inclusive, regularização da superfície e reaterro | E32: =(VLOOKUP(C32,CPU!B4:D$380,3,0)) -> m3 | F32: 98 | G32: =TRUNC((1-$H$10)*(SUMIFS(CPU!$G:$G,CPU!$A:$A,'São Gregório'!$C32,CPU!$H:$H,"ss")+SUMIFS(CPU!$G:$G,CPU!$A:$A,'São Gregório'!$C32,CPU!$H:$H,"mdo")+SUMIF('Comp SINAPI MG 04-2025 Onerado'!B:B,'São Gregório'!C32,'Comp SINAPI MG 04-2025 Onerado'!E:E)+SUMIF('Ins SINAPI MG 04-2025 Onerado'!B:B,'São Gregório'!C32,'Ins SINAPI MG 04-2025 Onerado'!F:F)),2) -> 370.51 | H32: =TRUNC(G32*(1+$H$5),2) -> 456.5 | I32: =TRUNC(F32*H32,2) -> 44737
A33: 4.2 | D33: Injeção de nata de cimento em buracos | I33: =SUM(I34:I34) -> 630.51
A34: 4.2.1 | B34: PRÓPRIA | C34: CPU.26 | D34: =(VLOOKUP(C34,CPU!B20:C284,2,0)) -> Injeção de nata de cimento em buracos | E34: =(VLOOKUP(C34,CPU!B6:D$380,3,0)) -> m3 | F34: 0.5 | G34: =TRUNC((1-$H$10)*(SUMIFS(CPU!$G:$G,CPU!$A:$A,'São Gregório'!$C34,CPU!$H:$H,"ss")+SUMIFS(CPU!$G:$G,CPU!$A:$A,'São Gregório'!$C34,CPU!$H:$H,"mdo")+SUMIF('Comp SINAPI MG 04-2025 Onerado'!B:B,'São Gregório'!C34,'Comp SINAPI MG 04-2025 Onerado'!E:E)+SUMIF('Ins SINAPI MG 04-2025 Onerado'!B:B,'São Gregório'!C34,'Ins SINAPI MG 04-2025 Onerado'!F:F)),2) -> 1023.48 | H34: =TRUNC(G34*(1+$H$5),2) -> 1261.02 | I34: =TRUNC(F34*H34,2) -> 630.51
A36: 5 | D36: MANUTENÇÃO NO TALUDE DE MONTANTE | I36: =SUM(I37) -> 130865.54
A37: 5.1 | D37: Enrocamento com pedra de mão para proteção do talude | I37: =SUM(I38:I38) -> 130865.54
A38: 5.1.1 | B38: PRÓPRIA | C38: CPU.07 | D38: =(VLOOKUP(C38,CPU!B24:C288,2,0)) -> Enrocamento c/ pedra de mão c/ fornecimento e assentamento | E38: =(VLOOKUP(C38,CPU!B24:D380,3,0)) -> m3 | F38: 247 | G38: =TRUNC((1-$H$10)*(SUMIFS(CPU!$G:$G,CPU!$A:$A,'São Gregório'!$C38,CPU!$H:$H,"ss")+SUMIFS(CPU!$G:$G,CPU!$A:$A,'São Gregório'!$C38,CPU!$H:$H,"mdo")+SUMIF('Comp SINAPI MG 04-2025 Onerado'!B:B,'São Gregório'!C38,'Comp SINAPI MG 04-2025 Onerado'!E:E)+SUMIF('Ins SINAPI MG 04-2025 Onerado'!B:B,'São Gregório'!C38,'Ins SINAPI MG 04-2025 Onerado'!F:F)),2) -> 430.02 | H38: =TRUNC(G38*(1+$H$5),2) -> 529.82 | I38: =TRUNC(F38*H38,2) -> 130865.54
A40: 6 | D40: REGULARIZAÇÃO E PAVIMENTAÇÃO DA CRISTA | I40: =SUM(I41,I43,I46) -> 179124.51
A41: 6.1 | D41: Limpeza e Regularização da Crista | I41: =SUM(I42:I42) -> 6105.09
A42: 6.1.1 | B42: PRÓPRIA | C42: CPU.14 | D42: =(VLOOKUP(C42,CPU!B10:C274,2,0)) -> Regularização e compactação da crista | E42: =(VLOOKUP(C42,CPU!B10:D274,3,0)) -> m2 | F42: 1861.31 | G42: =TRUNC((1-$H$10)*(SUMIFS(CPU!$G:$G,CPU!$A:$A,'São Gregório'!$C42,CPU!$H:$H,"ss")+SUMIFS(CPU!$G:$G,CPU!$A:$A,'São Gregório'!$C42,CPU!$H:$H,"mdo")+SUMIF('Comp SINAPI MG 04-2025 Onerado'!B:B,'São Gregório'!C42,'Comp SINAPI MG 04-2025 Onerado'!E:E)+SUMIF('Ins SINAPI MG 04-2025 Onerado'!B:B,'São Gregório'!C42,'Ins SINAPI MG 04-2025 Onerado'!F:F)),2) -> 2.67 | H42: =TRUNC(G42*(1+$H$5),2) -> 3.28 | I42: =TRUNC(F42*H42,2) -> 6105.09
A43: 6.2 | D43: Instalação de meio-fio e sarjeta em ambos os lados da crista | I43: =SUM(I44:I45) -> 48535.2
A44: 6.2.1 | B44: PRÓPRIA | C44: CPU.28 | D44: =(VLOOKUP(C44,CPU!B12:C276,2,0)) -> Recuperação do meio-fio com reaproveitamento | E44: =(VLOOKUP(C44,CPU!B12:D276,3,0)) -> m | F44: =360*2*0.9 -> 648 | G44: =TRUNC((1-$H$10)*(SUMIFS(CPU!$G:$G,CPU!$A:$A,'São Gregório'!$C44,CPU!$H:$H,"ss")+SUMIFS(CPU!$G:$G,CPU!$A:$A,'São Gregório'!$C44,CPU!$H:$H,"mdo")+SUMIF('Comp SINAPI MG 04-2025 Onerado'!B:B,'São Gregório'!C44,'Comp SINAPI MG 04-2025 Onerado'!E:E)+SUMIF('Ins SINAPI MG 04-2025 Onerado'!B:B,'São Gregório'!C44,'Ins SINAPI MG 04-2025 Onerado'!F:F)),2) -> 51.19 | H44: =TRUNC(G44*(1+$H$5),2) -> 63.07 | I44: =TRUNC(F44*H44,2) -> 40869.36
A45: 6.2.2 | B45: PRÓPRIA | C45: CPU.29 | D45: =(VLOOKUP(C45,CPU!B14:C278,2,0)) -> Fornecimento e Assentamento de Guia (meio-fio) Pré-fabricado, dimensões 100x15x20 cm (comprimento x base x altura) | E45: =(VLOOKUP(C45,CPU!B14:D278,3,0)) -> m | F45: =360*2*0.1 -> 72 | G45: =TRUNC((1-$H$10)*(SUMIFS(CPU!$G:$G,CPU!$A:$A,'São Gregório'!$C45,CPU!$H:$H,"ss")+SUMIFS(CPU!$G:$G,CPU!$A:$A,'São Gregório'!$C45,CPU!$H:$H,"mdo")+SUMIF('Comp SINAPI MG 04-2025 Onerado'!B:B,'São Gregório'!C45,'Comp SINAPI MG 04-2025 Onerado'!E:E)+SUMIF('Ins SINAPI MG 04-2025 Onerado'!B:B,'São Gregório'!C45,'Ins SINAPI MG 04-2025 Onerado'!F:F)),2) -> 86.42 | H45: =TRUNC(G45*(1+$H$5),2) -> 106.47 | I45: =TRUNC(F45*H45,2) -> 7665.84
A46: 6.3 | D46: Pavimentação da Crista | I46: =SUM(I47:I47) -> 124484.22
A47: 6.3.1 | B47: PRÓPRIA | C47: CPU.15 | D47: =(VLOOKUP(C47,CPU!B14:C278,2,0)) -> Execução de Revestimento com BGTC | E47: =(VLOOKUP(C47,CPU!B14:D278,3,0)) -> m3 | F47: 186 | G47: =TRUNC((1-$H$10)*(SUMIFS(CPU!$G:$G,CPU!$A:$A,'São Gregório'!$C47,CPU!$H:$H,"ss")+SUMIFS(CPU!$G:$G,CPU!$A:$A,'São Gregório'!$C47,CPU!$H:$H,"mdo")+SUMIF('Comp SINAPI MG 04-2025 Onerado'!B:B,'São Gregório'!C47,'Comp SINAPI MG 04-2025 Onerado'!E:E)+SUMIF('Ins SINAPI MG 04-2025 Onerado'!B:B,'São Gregório'!C47,'Ins SINAPI MG 04-2025 Onerado'!F:F)),2) -> 543.2 | H47: =TRUNC(G47*(1+$H$5),2) -> 669.27 | I47: =TRUNC(F47*H47,2) -> 124484.22
A49: 7 | D49: DRENAGEM SUPERFICIAL DO TALUDE DE JUSANTE | I49: =SUM(I50,I52) -> 59598.48
A50: 7.1 | D50: Canaleta para descida d'água | I50: =I51 -> 54814.32
A51: 7.1.1 | B51: PRÓPRIA | C51: CPU.08 | D51: =(VLOOKUP(C51,CPU!B18:C282,2,0)) -> Canaleta meia cana de concreto (D=30cm) - Fornecimento e instalação | E51: =(VLOOKUP(C51,CPU!B18:D282,3,0)) -> m | F51: 264 | G51: =TRUNC((1-$H$10)*(SUMIFS(CPU!$G:$G,CPU!$A:$A,'São Gregório'!$C51,CPU!$H:$H,"ss")+SUMIFS(CPU!$G:$G,CPU!$A:$A,'São Gregório'!$C51,CPU!$H:$H,"mdo")+SUMIF('Comp SINAPI MG 04-2025 Onerado'!B:B,'São Gregório'!C51,'Comp SINAPI MG 04-2025 Onerado'!E:E)+SUMIF('Ins SINAPI MG 04-2025 Onerado'!B:B,'São Gregório'!C51,'Ins SINAPI MG 04-2025 Onerado'!F:F)),2) -> 168.52 | H51: =TRUNC(G51*(1+$H$5),2) -> 207.63 | I51: =TRUNC(F51*H51,2) -> 54814.32
A52: 7.2 | D52: Entrada para descida d'água | I52: =I53 -> 4784.16
A53: 7.2.1 | B53: PRÓPRIA | C53: CPU.09 | D53: =(VLOOKUP(C53,CPU!B20:C284,2,0)) -> Entrada para descida d'água | E53: =(VLOOKUP(C53,CPU!B20:D380,3,0)) -> un | F53: 24 | G53: =TRUNC((1-$H$10)*(SUMIFS(CPU!$G:$G,CPU!$A:$A,'São Gregório'!$C53,CPU!$H:$H,"ss")+SUMIFS(CPU!$G:$G,CPU!$A:$A,'São Gregório'!$C53,CPU!$H:$H,"mdo")+SUMIF('Comp SINAPI MG 04-2025 Onerado'!B:B,'São Gregório'!C53,'Comp SINAPI MG 04-2025 Onerado'!E:E)+SUMIF('Ins SINAPI MG 04-2025 Onerado'!B:B,'São Gregório'!C53,'Ins SINAPI MG 04-2025 Onerado'!F:F)),2) -> 161.79 | H53: =TRUNC(G53*(1+$H$5),2) -> 199.34 | I53: =TRUNC(F53*H53,2) -> 4784.16
A55: 8 | D55: PROTEÇÃO SUPERFICIAL DO TALUDE DE JUSANTE | I55: =SUM(I56) -> 151469.1
A56: 8.1 | D56: Proteção vegetal | I56: =SUM(I57:I57) -> 151469.1
A57: 8.1.1 | B57: PRÓPRIA | C57: CPU.10 | D57: =(VLOOKUP(C57,CPU!B28:C292,2,0)) -> Plantio de vegetação para proteção de talude com hidrossemeadura, inclusive adubação e transporte | E57: =(VLOOKUP(C57,CPU!B28:D380,3,0)) -> m2 | F57: 9455 | G57: =TRUNC((1-$H$10)*(SUMIFS(CPU!$G:$G,CPU!$A:$A,'São Gregório'!$C57,CPU!$H:$H,"ss")+SUMIFS(CPU!$G:$G,CPU!$A:$A,'São Gregório'!$C57,CPU!$H:$H,"mdo")+SUMIF('Comp SINAPI MG 04-2025 Onerado'!B:B,'São Gregório'!C57,'Comp SINAPI MG 04-2025 Onerado'!E:E)+SUMIF('Ins SINAPI MG 04-2025 Onerado'!B:B,'São Gregório'!C57,'Ins SINAPI MG 04-2025 Onerado'!F:F)),2) -> 13.01 | H57: =TRUNC(G57*(1+$H$5),2) -> 16.02 | I57: =TRUNC(F57*H57,2) -> 151469.1
A59: 9 | D59: RESTAURAÇÃO DO MURO LATERAL | I59: =SUM(I60) -> 1170.65
A60: 9.1 | D60: Restauração do muro lateral | I60: =SUM(I61:I62) -> 1170.65
A61: 9.1.1 | B61: PRÓPRIA | C61: CPU.24 | D61: =(VLOOKUP(C61,CPU!B36:C300,2,0)) -> Limpeza da superfície | E61: =(VLOOKUP(C61,CPU!B35:D395,3,0)) -> m2 | F61: 12 | G61: =TRUNC((1-$H$10)*(SUMIFS(CPU!$G:$G,CPU!$A:$A,'São Gregório'!$C61,CPU!$H:$H,"ss")+SUMIFS(CPU!$G:$G,CPU!$A:$A,'São Gregório'!$C61,CPU!$H:$H,"mdo")+SUMIF('Comp SINAPI MG 04-2025 Onerado'!B:B,'São Gregório'!C61,'Comp SINAPI MG 04-2025 Onerado'!E:E)+SUMIF('Ins SINAPI MG 04-2025 Onerado'!B:B,'São Gregório'!C61,'Ins SINAPI MG 04-2025 Onerado'!F:F)),2) -> 8.32 | H61: =TRUNC(G61*(1+$H$5),2) -> 10.25 | I61: =TRUNC(F61*H61,2) -> 123
A62: 9.1.2 | B62: PRÓPRIA | C62: CPU.31 | D62: =(VLOOKUP(C62,CPU!B37:C301,2,0)) -> Tratamento De Junta De Dilatação | E62: =(VLOOKUP(C62,CPU!B36:D396,3,0)) -> m | F62: 5 | G62: =TRUNC((1-$H$10)*(SUMIFS(CPU!$G:$G,CPU!$A:$A,'São Gregório'!$C62,CPU!$H:$H,"ss")+SUMIFS(CPU!$G:$G,CPU!$A:$A,'São Gregório'!$C62,CPU!$H:$H,"mdo")+SUMIF('Comp SINAPI MG 04-2025 Onerado'!B:B,'São Gregório'!C62,'Comp SINAPI MG 04-2025 Onerado'!E:E)+SUMIF('Ins SINAPI MG 04-2025 Onerado'!B:B,'São Gregório'!C62,'Ins SINAPI MG 04-2025 Onerado'!F:F)),2) -> 170.06 | H62: =TRUNC(G62*(1+$H$5),2) -> 209.53 | I62: =TRUNC(F62*H62,2) -> 1047.65
A64: 10 | D64: RESTAURAÇÃO DA SOLEIRA DO VERTEDOURO | I64: =SUM(I65) -> 1886
A65: 10.1 | D65: Restauração da soleira do vertedouro | I65: =SUM(I66:I66) -> 1886
A66: 10.1.1 | B66: PRÓPRIA | C66: CPU.24 | D66: =(VLOOKUP(C66,CPU!B31:C295,2,0)) -> Limpeza da superfície | E66: =(VLOOKUP(C66,CPU!B32:D392,3,0)) -> m2 | F66: 184 | G66: =TRUNC((1-$H$10)*(SUMIFS(CPU!$G:$G,CPU!$A:$A,'São Gregório'!$C66,CPU!$H:$H,"ss")+SUMIFS(CPU!$G:$G,CPU!$A:$A,'São Gregório'!$C66,CPU!$H:$H,"mdo")+SUMIF('Comp SINAPI MG 04-2025 Onerado'!B:B,'São Gregório'!C66,'Comp SINAPI MG 04-2025 Onerado'!E:E)+SUMIF('Ins SINAPI MG 04-2025 Onerado'!B:B,'São Gregório'!C66,'Ins SINAPI MG 04-2025 Onerado'!F:F)),2) -> 8.32 | H66: =TRUNC(G66*(1+$H$5),2) -> 10.25 | I66: =TRUNC(F66*H66,2) -> 1886
A68: 11 | D68: SERVIÇOS COMPLEMENTARES | I68: =SUM(I69,I71) -> 16476.87
A69: 11.1 | D69: Instalação de placas de aviso | I69: =SUM(I70:I70) -> 2490.6
A70: 11.1.1 | B70: SINAPI | C70: 103689 | D70: =IF(J70="ca",VLOOKUP(C70,'Comp SINAPI MG 04-2025 Onerado'!$B$11:$C$9004,2,0),VLOOKUP(C70,'Ins SINAPI MG 04-2025 Onerado'!$B$10:$C$9004,2,0)) -> FORNECIMENTO E INSTALAÇÃO DE PLACA DE OBRA COM CHAPA GALVANIZADA E ESTRUTURA DE MADEIRA. AF_03/2022_PS | E70: =IF(J70="ca",VLOOKUP(C70,'Comp SINAPI MG 04-2025 Onerado'!$B$11:$D$9004,3,0),VLOOKUP(C70,'Ins SINAPI MG 04-2025 Onerado'!$B$11:$D$9004,3,0)) -> M2 | F70: 4 | G70: =TRUNC((1-$H$10)*(SUMIFS(CPU!$G:$G,CPU!$A:$A,'São Gregório'!$C70,CPU!$H:$H,"ss")+SUMIFS(CPU!$G:$G,CPU!$A:$A,'São Gregório'!$C70,CPU!$H:$H,"mdo")+SUMIF('Comp SINAPI MG 04-2025 Onerado'!B:B,'São Gregório'!C70,'Comp SINAPI MG 04-2025 Onerado'!E:E)+SUMIF('Ins SINAPI MG 04-2025 Onerado'!B:B,'São Gregório'!C70,'Ins SINAPI MG 04-2025 Onerado'!F:F)),2) -> 505.36 | H70: =TRUNC(G70*(1+$H$5),2) -> 622.65 | I70: =TRUNC(F70*H70,2) -> 2490.6 | J70: ca
A71: 11.2 | D71: Régua Linimétrica Padrão “ANA”, Aço Carbono - 2 X 70 X 1000 mm (Fornecimento e Instalação) | I71: =SUM(I72:I72) -> 13986.27
A72: 11.2.1 | B72: PRÓPRIA | C72: CPU.18 | D72: =(VLOOKUP(C72,CPU!B39:C303,2,0)) -> Régua Linimétrica Padrão “ANA”, Aço Carbono - 2 X 70 X 1000 mm (Fornecimento e Instalação) | E72: =(VLOOKUP(C72,CPU!B38:D398,3,0)) -> un | F72: 27 | G72: =TRUNC((1-$H$10)*(SUMIFS(CPU!$G:$G,CPU!$A:$A,'São Gregório'!$C72,CPU!$H:$H,"ss")+SUMIFS(CPU!$G:$G,CPU!$A:$A,'São Gregório'!$C72,CPU!$H:$H,"mdo")+SUMIF('Comp SINAPI MG 04-2025 Onerado'!B:B,'São Gregório'!C72,'Comp SINAPI MG 04-2025 Onerado'!E:E)+SUMIF('Ins SINAPI MG 04-2025 Onerado'!B:B,'São Gregório'!C72,'Ins SINAPI MG 04-2025 Onerado'!F:F)),2) -> 420.43 | H72: =TRUNC(G72*(1+$H$5),2) -> 518.01 | I72: =TRUNC(F72*H72,2) -> 13986.27
A74: 12 | D74: PROJETO "AS IS" | I74: =SUM(I75) -> 22408.45
A75: 12.1 | D75: Levantamento topógrafico e "AS IS" | I75: =SUM(I76:I77) -> 22408.45
A76: 12.1.1 | B76: ORSE | C76: 9346 | D76: Levantamento topográfico planimétrico cadastral | E76: m2 | F76: =F27 -> 22838 | G76: =TRUNC((1-$H$10)*0.35,2) -> 0.35 | H76: =TRUNC(G76*(1+$H$5),2) -> 0.43 | I76: =TRUNC(F76*H76,2) -> 9820.34
A77: 12.1.2 | B77: PRÓPRIA | C77: CPU.25 | D77: =(VLOOKUP(C77,CPU!B44:C308,2,0)) -> Projeto geométrico | E77: =(VLOOKUP(C77,CPU!B43:D403,3,0)) -> un | F77: 1 | G77: =TRUNC((1-$H$10)*(SUMIFS(CPU!$G:$G,CPU!$A:$A,'São Gregório'!$C77,CPU!$H:$H,"ss")+SUMIFS(CPU!$G:$G,CPU!$A:$A,'São Gregório'!$C77,CPU!$H:$H,"mdo")+SUMIF('Comp SINAPI MG 04-2025 Onerado'!B:B,'São Gregório'!C77,'Comp SINAPI MG 04-2025 Onerado'!E:E)+SUMIF('Ins SINAPI MG 04-2025 Onerado'!B:B,'São Gregório'!C77,'Ins SINAPI MG 04-2025 Onerado'!F:F)),2) -> 10216.8 | H77: =TRUNC(G77*(1+$H$5),2) -> 12588.11 | I77: =TRUNC(F77*H77,2) -> 12588.11
A79: 13 | D79: FISCALIZAÇÃO E ACOMPANHAMENTO | I79: =SUM(I80) -> 2706.12
A80: 13.1 | D80: Disponibilidade de velículo para apoio a fiscalização | I80: =SUM(I81) -> 2706.12
A81: 13.1.1 | B81: PRÓPRIA | C81: CPU.30 | D81: =(VLOOKUP(C81,CPU!B48:C312,2,0)) -> Disponibilidade de veículo para apoio a fiscalização, inclusive combustível | E81: =(VLOOKUP(C81,CPU!B47:D407,3,0)) -> un | F81: =F15+2 -> 6 | G81: =TRUNC((1-$H$10)*(SUMIFS(CPU!$G:$G,CPU!$A:$A,'São Gregório'!$C81,CPU!$H:$H,"ss")+SUMIFS(CPU!$G:$G,CPU!$A:$A,'São Gregório'!$C81,CPU!$H:$H,"mdo")+SUMIF('Comp SINAPI MG 04-2025 Onerado'!B:B,'São Gregório'!C81,'Comp SINAPI MG 04-2025 Onerado'!E:E)+SUMIF('Ins SINAPI MG 04-2025 Onerado'!B:B,'São Gregório'!C81,'Ins SINAPI MG 04-2025 Onerado'!F:F)),2) -> 366.06 | H81: =TRUNC(G81*(1+$H$5),2) -> 451.02 | I81: =TRUNC(F81*H81,2) -> 2706.12
D83: TOTAL (Custo): | I83: =TRUNC(SUMPRODUCT(F14:F81,G14:G81),2) -> 843612.85
D84: BDI e Encargos Sociais: | I84: =I85-I83 -> 195604.59
D85: TOTAL GERAL COM BDI: | I85: =SUM(I13,I17,I25,I30,I40,I36,I49,I55,I64,I59,I68,I74,I79) -> 1039217.44 | L85: =TRUNC(SUMPRODUCT(F14:F81,H14:H81),2) -> 1039217.44

Sheet CPU
A1: Ministério da Integração e do Desenvolvimento Regional
A2: Companhia de Desenvolvimento dos Vales do São Francisco e do Parnaíba
A4: COMPOSIÇÕES DE PREÇOS UNITÁRIOS - ORÇAMENTO NÃO DESONERADO
A5: ='São Gregório'!A5 -> OBRA: | B5: ='São Gregório'!B5:F5 -> Execução de manutenção e obras civis na barragem de São Gregório, localizada em Campo Azul no estado de Minas Gerais.
A6: ='São Gregório'!A6 -> LOCAL: | B6: ='São Gregório'!B6 -> Campo Azul - MG
A7: ='São Gregório'!A7 -> DATA BASE: | B7: ='São Gregório'!B7 -> 2025-06-01
A8: ='São Gregório'!A8 -> PRAZO: | B8: ='São Gregório'!B8 -> 120 dias
A9: REFERÊNCIA | B9: CÓDIGO | C9: DESCRIÇÃO | D9: UNIDADE | E9: ÍNDICE | F9: CUSTO UNITÁRIO | G9: CUSTO TOTAL
B10: CPU.01 | C10: Administração Local | D10: mês | E10: 1 | G10: =SUM(G14,G13,G12,G11) -> 31263.2 | H10: S | I10: COMENTÁRIOS
A11: =B10 -> CPU.01 | C11: MATERIAL | G11: 0 | H11: ss
A12: =B10 -> CPU.01 | C12: EQUIPAMENTOS | G12: 0 | H12: ss
A13: =B10 -> CPU.01 | C13: SERVIÇOS | G13: 0 | H13: ss
A14: =B10 -> CPU.01 | C14: MÃO DE OBRA | G14: =SUM(G15:G17) -> 31263.2 | H14: mdo
A15: SINAPI | B15: 90778 | C15: =PROPER(IF(H15="i",VLOOKUP(B15,'Ins SINAPI MG 04-2025 Onerado'!$B$11:$F$50003,2,0),VLOOKUP(B15,'Comp SINAPI MG 04-2025 Onerado'!$B$11:$C$50004,2,0))) -> Engenheiro Civil De Obra Pleno Com Encargos Complementares | D15: =IF(H15="i",VLOOKUP(B15,'Ins SINAPI MG 04-2025 Onerado'!$B$11:$F$50003,2,0),VLOOKUP(B15,'Comp SINAPI MG 04-2025 Onerado'!$B$11:$H$50004,3,0)) -> H | E15: =1.5*5*4 -> 30 | F15: =IF(H15="i",VLOOKUP(B15,'Ins SINAPI MG 04-2025 Onerado'!$B$11:$F$50003,5,0),VLOOKUP(B15,'Comp SINAPI MG 04-2025 Onerado'!$B$11:$E$50004,4,0)) -> 135.75 | G15: =TRUNC(E15*F15,2) -> 4072.5 | H15: ca
A16: SINAPI | B16: 93572 | C16: =PROPER(IF(H16="i",VLOOKUP(B16,'Ins SINAPI MG 04-2025 Onerado'!$B$11:$F$50003,2,0),VLOOKUP(B16,'Comp SINAPI MG 04-2025 Onerado'!$B$11:$C$50004,2,0))) -> Encarregado Geral De Obras Com Encargos Complementares | D16: =IF(H16="i",VLOOKUP(B16,'Ins SINAPI MG 04-2025 Onerado'!$B$11:$F$50003,2,0),VLOOKUP(B16,'Comp SINAPI MG 04-2025 Onerado'!$B$11:$H$50004,3,0)) -> MES | E16: 0.8 | F16: =IF(H16="i",VLOOKUP(B16,'Ins SINAPI MG 04-2025 Onerado'!$B$11:$F$50003,5,0),VLOOKUP(B16,'Comp SINAPI MG 04-2025 Onerado'!$B$11:$E$50004,4,0)) -> 10604.43 | G16: =TRUNC(E16*F16,2) -> 8483.54 | H16: ca
A17: EMBASA | B17: 74.13.43 | C17: VIGIA - AN | D17: MES | E17: 4 | F17: 4676.79 | G17: 18707.16 | H17: ca | I17: considerando 4 vigias intercalando em dupla na jornada de 12/36
B19: CPU.02 | C19: Mobilização e desmobilização de instalação do canteiro | D19: un | E19: 1 | G19: =SUM(G27,G26,G21,G20) -> 3510.24 | H19: S | I19: mobilização e desmobilização da SR a barragem | M19: 2 dias
A20: =B19 -> CPU.02 | C20: MATERIAL | G20: 0 | H20: ss
A21: =B19 -> CPU.02 | C21: EQUIPAMENTOS | G21: =SUM(G22:G25) -> 3510.24 | H21: ss
A22: PRÓPRIA | B22: CODE | C22: Veículo tipo pick-up, cabine dupla - 2.0 16V 4x4 diesel Aut. | D22: dia | E22: 2 | F22: ='CPU-VEICULO_PickUp'!$C$11 -> 366.0630977 | G22: =TRUNC(E22*F22,2) -> 732.12 | H22: ca
A23: SINAPI | B23: 100946 | C23: =PROPER(IF(H23="i",VLOOKUP(B23,'Ins SINAPI MG 04-2025 Onerado'!$B$11:$F$50003,2,0),VLOOKUP(B23,'Comp SINAPI MG 04-2025 Onerado'!$B$11:$C$50004,2,0))) -> Transporte Com Caminhão Carroceria 9T, Em Via Urbana Em Revestimento Primário (Unidade: Txkm). Af_07/2020 | D23: =IF(H23="i",VLOOKUP(B23,'Ins SINAPI MG 04-2025 Onerado'!$B$11:$F$50003,2,0),VLOOKUP(B23,'Comp SINAPI MG 04-2025 Onerado'!$B$11:$H$50004,3,0)) -> TXKM | E23: ='Memorial de cálculo'!H18 -> 502 | F23: =IF(H23="i",VLOOKUP(B23,'Ins SINAPI MG 04-2025 Onerado'!$B$11:$F$50003,5,0),VLOOKUP(B23,'Comp SINAPI MG 04-2025 Onerado'!$B$11:$E$50004,4,0)) -> 2.46 | G23: =TRUNC(E23*F23,2) -> 1234.92 | H23: ca | I23: considerando 5 toneladas de carga
A24: SINAPI | B24: 100947 | C24: =PROPER(IF(H24="i",VLOOKUP(B24,'Ins SINAPI MG 04-2025 Onerado'!$B$11:$F$50003,2,0),VLOOKUP(B24,'Comp SINAPI MG 04-2025 Onerado'!$B$11:$C$50004,2,0))) -> Transporte Com Caminhão Carroceria 9T, Em Via Urbana Pavimentada, Dmt Até 30Km (Unidade: Txkm). Af_07/2020 | D24: =IF(H24="i",VLOOKUP(B24,'Ins SINAPI MG 04-2025 Onerado'!$B$11:$F$50003,2,0),VLOOKUP(B24,'Comp SINAPI MG 04-2025 Onerado'!$B$11:$H$50004,3,0)) -> TXKM | E24: ='Memorial de cálculo'!H21 -> 300 | F24: =IF(H24="i",VLOOKUP(B24,'Ins SINAPI MG 04-2025 Onerado'!$B$11:$F$50003,5,0),VLOOKUP(B24,'Comp SINAPI MG 04-2025 Onerado'!$B$11:$E$50004,4,0)) -> 2.27 | G24: 681 | H24: ca
A25: SINAPI | B25: 100948 | C25: =PROPER(IF(H25="i",VLOOKUP(B25,'Ins SINAPI MG 04-2025 Onerado'!$B$11:$F$50003,2,0),VLOOKUP(B25,'Comp SINAPI MG 04-2025 Onerado'!$B$11:$C$50004,2,0))) -> Transporte Com Caminhão Carroceria 9T, Em Via Urbana Pavimentada, Adicional Para Dmt Excedente A 30 Km (Unidade: Txkm). Af_07/2020 | D25: =IF(H25="i",VLOOKUP(B25,'Ins SINAPI MG 04-2025 Onerado'!$B$11:$F$50003,2,0),VLOOKUP(B25,'Comp SINAPI MG 04-2025 Onerado'!$B$11:$H$50004,3,0)) -> TXKM | E25: ='Memorial de cálculo'!H24 -> 958 | F25: =IF(H25="i",VLOOKUP(B25,'Ins SINAPI MG 04-2025 Onerado'!$B$11:$F$50003,5,0),VLOOKUP(B25,'Comp SINAPI MG 04-2025 Onerado'!$B$11:$E$50004,4,0)) -> 0.9 | G25: 862.2 | H25: ca
A26: =B19 -> CPU.02 | C26: SERVIÇOS | G26: 0 | H26: ss
A27: =B19 -> CPU.02 | C27: MÃO DE OBRA | G27: 0 | H27: mdo
B29: CPU.03 | C29: Execução de canteiro de obras, inclusive, limpeza, refeitório, sanitários e central de formas | D29: m2 | E29: 1 | G29: =SUM(G38,G32,G31,G30) -> 716.16 | H29: S
A30: =B29 -> CPU.03 | C30: MATERIAL | G30: 0 | H30: ss
A31: =B29 -> CPU.03 | C31: EQUIPAMENTOS | G31: 0 | H31: ss
A32: =B29 -> CPU.03 | C32: SERVIÇOS | G32: =SUM(G33:G37) -> 716.16 | H32: ss
A33: SINAPI | B33: 98524 | C33: =PROPER(IF(H33="i",VLOOKUP(B33,'Ins SINAPI MG 04-2025 Onerado'!$B$11:$F$50003,2,0),VLOOKUP(B33,'Comp SINAPI MG 04-2025 Onerado'!$B$11:$C$50004,2,0))) -> Limpeza Manual De Vegetação Em Terreno Com Enxada. Af_03/2024 | D33: =IF(H33="i",VLOOKUP(B33,'Ins SINAPI MG 04-2025 Onerado'!$B$11:$F$50003,2,0),VLOOKUP(B33,'Comp SINAPI MG 04-2025 Onerado'!$B$11:$H$50004,3,0)) -> M2 | E33: 1 | F33: =IF(H33="i",VLOOKUP(B33,'Ins SINAPI MG 04-2025 Onerado'!$B$11:$F$50003,5,0),VLOOKUP(B33,'Comp SINAPI MG 04-2025 Onerado'!$B$11:$E$50004,4,0)) -> 4.82 | G33: =TRUNC(E33*F33,2) -> 4.82 | H33: ca
A34: PRÓPRIA | B34: 93210-ADAPTADO | C34: ='COMPOSICÕES MODIFICADAS'!D149 -> EXECUÇÃO DE REFEITÓRIO EM CANTEIRO DE OBRA EM CHAPA DE MADEIRA COMPENSADA, NÃO INCLUSO MOBILIÁRIO E EQUIPAMENTOS. AF_02/2016 | D34: m2 | E34: ='Memorial de cálculo'!H29/'Memorial de cálculo'!H28 -> 0.2631578947 | F34: ='COMPOSICÕES MODIFICADAS'!D154 -> 589.38603 | G34: 155.1 | H34: ca
A35: PRÓPRIA | B35: 93212-ADAPTADO | C35: EXECUÇÃO DE SANITÁRIO E VESTIÁRIO EM CANTEIRO DE OBRA EM CHAPA DE MADEIRA COMPENSADA, NÃO INCLUSO MOBILIÁRIO. AF_02/2016 | D35: m2 | E35: ='Memorial de cálculo'!H30/'Memorial de cálculo'!H28 -> 0.3157894737 | F35: ='COMPOSICÕES MODIFICADAS'!D9 -> 975.8 | G35: 308.14 | H35: ca
A36: PRÓPRIA | B36: 93583-ADAPTADO | C36: ='COMPOSICÕES MODIFICADAS'!D109 -> EXECUÇÃO DE CENTRAL DE FÔRMAS, PRODUÇÃO DE ARGAMASSA OU CONCRETO EM CANTEIRO DE OBRA, NÃO INCLUSO MOBILIÁRIO E EQUIPAMENTOS. AF_04/2016 | D36: m2 | E36: ='Memorial de cálculo'!H31/'Memorial de cálculo'!H28 -> 0.4210526316 | F36: ='COMPOSICÕES MODIFICADAS'!D114 -> 524.52 | G36: 220.85 | H36: ca
A37: PRÓPRIA | B37: CODE | C37: Hospedagem | D37: un | E37: ='Memorial de cálculo'!D33*'Memorial de cálculo'!H33 -> 0.1394375 | F37: ='CPU HOSPEDAGEM'!C19 -> 195.4389394 | G37: 27.25 | H37: ca
A38: =B29 -> CPU.03 | C38: MÃO DE OBRA | G38: 0 | H38: mdo
B40: CPU.04 | C40: Limpeza de vegetação | D40: m2 | E40: 1 | G40: =SUM(G48,G43,G42,G41) -> 7.55 | H40: S
A41: =B40 -> CPU.04 | C41: MATERIAL | G41: 0 | H41: ss
A42: =B40 -> CPU.04 | C42: EQUIPAMENTOS | G42: 0 | H42: ss
A43: =B40 -> CPU.04 | C43: SERVIÇOS | G43: =SUM(G44:G47) -> 7.55 | H43: ss
A44: SINAPI | B44: 98524 | C44: =PROPER(IF(H44="i",VLOOKUP(B44,'Ins SINAPI MG 04-2025 Onerado'!$B$11:$F$50003,2,0),VLOOKUP(B44,'Comp SINAPI MG 04-2025 Onerado'!$B$11:$C$50004,2,0))) -> Limpeza Manual De Vegetação Em Terreno Com Enxada. Af_03/2024 | D44: =IF(H44="i",VLOOKUP(B44,'Ins SINAPI MG 04-2025 Onerado'!$B$11:$F$50003,2,0),VLOOKUP(B44,'Comp SINAPI MG 04-2025 Onerado'!$B$11:$H$50004,3,0)) -> M2 | E44: 1 | F44: =IF(H44="i",VLOOKUP(B44,'Ins SINAPI MG 04-2025 Onerado'!$B$11:$F$50003,5,0),VLOOKUP(B44,'Comp SINAPI MG 04-2025 Onerado'!$B$11:$E$50004,4,0)) -> 4.82 | G44: =TRUNC(E44*F44,2) -> 4.82 | H44: ca
A45: PRÓPRIA | B45: CODE | C45: Hospedagem | D45: un | E45: ='Memorial de cálculo'!D37*'Memorial de cálculo'!H37 -> 0.0025 | F45: ='CPU HOSPEDAGEM'!C19 -> 195.4389394 | G45: 0.48 | H45: ca
A46: PRÓPRIA | B46: CODE | C46: Veículo tipo pick-up, cabine dupla - 2.0 16V 4x4 diesel Aut. | D46: dia | E46: ='Memorial de cálculo'!H37 -> 0.000625 | F46: ='CPU-VEICULO_PickUp'!$C$11 -> 366.0630977 | G46: 0.22 | H46: ca
A47: SINAPI | B47: 93589 | C47: =PROPER(IF(H47="i",VLOOKUP(B47,'Ins SINAPI MG 04-2025 Onerado'!$B$11:$F$50003,2,0),VLOOKUP(B47,'Comp SINAPI MG 04-2025 Onerado'!$B$11:$C$50004,2,0))) -> Transporte Com Caminhão Basculante De 10 M³, Em Via Urbana Em Revestimento Primário (Unidade: M3Xkm). Af_07/2020 | D47: =IF(H47="i",VLOOKUP(B47,'Ins SINAPI MG 04-2025 Onerado'!$B$11:$F$50003,2,0),VLOOKUP(B47,'Comp SINAPI MG 04-2025 Onerado'!$B$11:$H$50004,3,0)) -> M3XKM | E47: =15*0.05 -> 0.75 | F47: =IF(H47="i",VLOOKUP(B47,'Ins SINAPI MG 04-2025 Onerado'!$B$11:$F$50003,5,0),VLOOKUP(B47,'Comp SINAPI MG 04-2025 Onerado'!$B$11:$E$50004,4,0)) -> 2.71 | G47: 2.03 | H47: ca | I47: considerando 5 cm de altura da vegetação e 15 km para bota-fora
A48: =B40 -> CPU.04 | C48: MÃO DE OBRA | G48: 0 | H48: mdo
B50: CPU.05 | C50: Corte de tronco e remoção de raiz | D50: un | E50: 1 | G50: =SUM(G61,G53,G52,G51) -> 418.74 | H50: S
A51: =B50 -> CPU.05 | C51: MATERIAL | G51: 0 | H51: ss
A52: =B50 -> CPU.05 | C52: EQUIPAMENTOS | G52: 0 | H52: ss
A53: =B50 -> CPU.05 | C53: SERVIÇOS | G53: =SUM(G54:G60) -> 418.74 | H53: ss
A54: SINAPI | B54: 98529 | C54: =PROPER(IF(H54="i",VLOOKUP(B54,'Ins SINAPI MG 04-2025 Onerado'!$B$11:$F$50003,2,0),VLOOKUP(B54,'Comp SINAPI MG 04-2025 Onerado'!$B$11:$C$50004,2,0))) -> Corte Raso E Recorte De Árvore Com Diâmetro De Tronco Maior Ou Igual A 0,20 M E Menor Que 0,40 M. Af_03/2024 | D54: =IF(H54="i",VLOOKUP(B54,'Ins SINAPI MG 04-2025 Onerado'!$B$11:$F$50003,2,0),VLOOKUP(B54,'Comp SINAPI MG 04-2025 Onerado'!$B$11:$H$50004,3,0)) -> UN | E54: 1 | F54: =IF(H54="i",VLOOKUP(B54,'Ins SINAPI MG 04-2025 Onerado'!$B$11:$F$50003,5,0),VLOOKUP(B54,'Comp SINAPI MG 04-2025 Onerado'!$B$11:$E$50004,4,0)) -> 79.62 | G54: =TRUNC(E54*F54,2) -> 79.62 | H54: ca
A55: SINAPI | B55: 98526 | C55: =PROPER(IF(H55="i",VLOOKUP(B55,'Ins SINAPI MG 04-2025 Onerado'!$B$11:$F$50003,2,0),VLOOKUP(B55,'Comp SINAPI MG 04-2025 Onerado'!$B$11:$C$50004,2,0))) -> Remoção De Raízes Remanescentes De Tronco De Árvore Com Diâmetro Maior Ou Igual A 0,20 M E Menor Que 0,40 M. Af_03/2024 | D55: =IF(H55="i",VLOOKUP(B55,'Ins SINAPI MG 04-2025 Onerado'!$B$11:$F$50003,2,0),VLOOKUP(B55,'Comp SINAPI MG 04-2025 Onerado'!$B$11:$H$50004,3,0)) -> UN | E55: 1 | F55: =IF(H55="i",VLOOKUP(B55,'Ins SINAPI MG 04-2025 Onerado'!$B$11:$F$50003,5,0),VLOOKUP(B55,'Comp SINAPI MG 04-2025 Onerado'!$B$11:$E$50004,4,0)) -> 143.6 | G55: 143.6 | H55: ca
A56: SINAPI | B56: 6081 | C56: =PROPER(IF(H56="i",VLOOKUP(B56,'Ins SINAPI MG 04-2025 Onerado'!$B$11:$F$50003,2,0),VLOOKUP(B56,'Comp SINAPI MG 04-2025 Onerado'!$G$11:$H$50004,2,0))) -> Argila Ou Barro Para Aterro/Reaterro (Com Transporte Ate 10 Km) | D56: =IF(H56="i",VLOOKUP(B56,'Ins SINAPI MG 04-2025 Onerado'!$B$11:$F$50003,3,0),VLOOKUP(B56,'Comp SINAPI MG 04-2025 Onerado'!$G$11:$H$50004,3,0)) -> M3 | E56: 0.5 | F56: 54.26 | G56: 27.13 | H56: i | I56: considerando 0,5 m3 por árvore
A57: SINAPI | B57: 93382 | C57: =PROPER(IF(H57="i",VLOOKUP(B57,'Ins SINAPI MG 04-2025 Onerado'!$B$11:$F$50003,2,0),VLOOKUP(B57,'Comp SINAPI MG 04-2025 Onerado'!$B$11:$C$50004,2,0))) -> Reaterro Manual De Valas, Com Compactador De Solos De Percussão. Af_08/2023 | D57: =IF(H57="i",VLOOKUP(B57,'Ins SINAPI MG 04-2025 Onerado'!$B$11:$F$50003,2,0),VLOOKUP(B57,'Comp SINAPI MG 04-2025 Onerado'!$B$11:$H$50004,3,0)) -> M3 | E57: 0.5 | F57: =IF(H57="i",VLOOKUP(B57,'Ins SINAPI MG 04-2025 Onerado'!$B$11:$F$50003,5,0),VLOOKUP(B57,'Comp SINAPI MG 04-2025 Onerado'!$B$11:$E$50004,4,0)) -> 28.28 | G57: 14.14 | H57: ca
A58: PRÓPRIA | B58: CODE | C58: Hospedagem | D58: un | E58: ='Memorial de cálculo'!D41*'Memorial de cálculo'!H41+'Memorial de cálculo'!D42*'Memorial de cálculo'!H42 -> 0.41525 | F58: ='CPU HOSPEDAGEM'!C19 -> 195.4389394 | G58: 81.15 | H58: ca
A59: PRÓPRIA | B59: CODE | C59: Veículo tipo pick-up, cabine dupla - 2.0 16V 4x4 diesel Aut. | D59: dia | E59: =LARGE('Memorial de cálculo'!H41:H42,1) -> 0.1441875 | F59: ='CPU-VEICULO_PickUp'!$C$11 -> 366.0630977 | G59: 52.78 | H59: ca
A60: SINAPI | B60: 93589 | C60: =PROPER(IF(H60="i",VLOOKUP(B60,'Ins SINAPI MG 04-2025 Onerado'!$B$11:$F$50003,2,0),VLOOKUP(B60,'Comp SINAPI MG 04-2025 Onerado'!$B$11:$C$50004,2,0))) -> Transporte Com Caminhão Basculante De 10 M³, Em Via Urbana Em Revestimento Primário (Unidade: M3Xkm). Af_07/2020 | D60: =IF(H60="i",VLOOKUP(B60,'Ins SINAPI MG 04-2025 Onerado'!$B$11:$F$50003,2,0),VLOOKUP(B60,'Comp SINAPI MG 04-2025 Onerado'!$B$11:$H$50004,3,0)) -> M3XKM | E60: =15*0.5 -> 7.5 | F60: =IF(H60="i",VLOOKUP(B60,'Ins SINAPI MG 04-2025 Onerado'!$B$11:$F$50003,5,0),VLOOKUP(B60,'Comp SINAPI MG 04-2025 Onerado'!$B$11:$E$50004,4,0)) -> 2.71 | G60: 20.32 | H60: ca | I60: considerando 0,5 m3 por árvore e 15 km para bota-fora
A61: =B50 -> CPU.05 | C61: MÃO DE OBRA | G61: 0 | H61: mdo
B64: CPU.07 | C64: Enrocamento c/ pedra de mão c/ fornecimento e assentamento | D64: m3 | E64: 1 | G64: =SUM(G75,G68,G67,G65) -> 430.02 | H64: S
A65: =B64 -> CPU.07 | C65: MATERIAL | G65: =SUM(G66) -> 123.66 | H65: ss
A66: SINAPI | B66: 4730 | C66: =PROPER(IF(H66="i",VLOOKUP(B66,'Ins SINAPI MG 04-2025 Onerado'!$B$11:$F$50003,2,0),VLOOKUP(B66,'Comp SINAPI MG 04-2025 Onerado'!$G$11:$H$50004,2,0))) -> Pedra De Mao Ou Pedra Rachao Para Arrimo/Fundacao (Posto Pedreira/Fornecedor, Sem Frete) | D66: =IF(H66="i",VLOOKUP(B66,'Ins SINAPI MG 04-2025 Onerado'!$B$11:$F$50003,3,0),VLOOKUP(B66,'Comp SINAPI MG 04-2025 Onerado'!$G$11:$H$50004,3,0)) -> M3 | E66: 1 | F66: =IF(H66="i",VLOOKUP(B66,'Ins SINAPI MG 04-2025 Onerado'!$B$11:$F$50003,5,0),VLOOKUP(B66,'Comp SINAPI MG 04-2025 Onerado'!$G$11:$H$50004,5,0)) -> 123.66 | G66: =TRUNC(E66*F66,2) -> 123.66 | H66: i
A67: =B64 -> CPU.07 | C67: EQUIPAMENTOS | G67: 0 | H67: ss
A68: =B64 -> CPU.07 | C68: SERVIÇOS | G68: =SUM(G69:G74) -> 295.6 | H68: ss
A69: SINAPI | B69: 93592 | C69: =PROPER(IF(H69="i",VLOOKUP(B69,'Ins SINAPI MG 04-2025 Onerado'!$B$11:$F$50003,2,0),VLOOKUP(B69,'Comp SINAPI MG 04-2025 Onerado'!$B$11:$C$50004,2,0))) -> Transporte Com Caminhão Basculante De 14 M³, Em Via Urbana Em Revestimento Primário (Unidade: M3Xkm). Af_07/2020 | D69: =IF(H69="i",VLOOKUP(B69,'Ins SINAPI MG 04-2025 Onerado'!$B$11:$F$50003,2,0),VLOOKUP(B69,'Comp SINAPI MG 04-2025 Onerado'!$B$11:$H$50004,3,0)) -> M3XKM | E69: ='Memorial de cálculo'!H8 -> 50.2 | F69: =IF(H69="i",VLOOKUP(B69,'Ins SINAPI MG 04-2025 Onerado'!$B$11:$F$50003,5,0),VLOOKUP(B69,'Comp SINAPI MG 04-2025 Onerado'!$B$11:$E$50004,4,0)) -> 2.4 | G69: =TRUNC(E69*F69,2) -> 120.48 | H69: ca
A70: SINAPI | B70: 95876 | C70: =PROPER(IF(H70="i",VLOOKUP(B70,'Ins SINAPI MG 04-2025 Onerado'!$B$11:$F$50003,2,0),VLOOKUP(B70,'Comp SINAPI MG 04-2025 Onerado'!$B$11:$C$50004,2,0))) -> Transporte Com Caminhão Basculante De 14 M³, Em Via Urbana Pavimentada, Dmt Até 30 Km (Unidade: M3Xkm). Af_07/2020 | D70: =IF(H70="i",VLOOKUP(B70,'Ins SINAPI MG 04-2025 Onerado'!$B$11:$F$50003,2,0),VLOOKUP(B70,'Comp SINAPI MG 04-2025 Onerado'!$B$11:$H$50004,3,0)) -> M3XKM | E70: =30 -> 30 | F70: =IF(H70="i",VLOOKUP(B70,'Ins SINAPI MG 04-2025 Onerado'!$B$11:$F$50003,5,0),VLOOKUP(B70,'Comp SINAPI MG 04-2025 Onerado'!$B$11:$E$50004,4,0)) -> 2.17 | G70: 65.1 | H70: ca
A71: SINAPI | B71: 93593 | C71: =PROPER(IF(H71="i",VLOOKUP(B71,'Ins SINAPI MG 04-2025 Onerado'!$B$11:$F$50003,2,0),VLOOKUP(B71,'Comp SINAPI MG 04-2025 Onerado'!$B$11:$C$50004,2,0))) -> Transporte Com Caminhão Basculante De 14 M³, Em Via Urbana Pavimentada, Adicional Para Dmt Excedente A 30 Km (Unidade: M3Xkm). Af_07/2020 | D71: =IF(H71="i",VLOOKUP(B71,'Ins SINAPI MG 04-2025 Onerado'!$B$11:$F$50003,2,0),VLOOKUP(B71,'Comp SINAPI MG 04-2025 Onerado'!$B$11:$H$50004,3,0)) -> M3XKM | E71: ='Memorial de cálculo'!H7-30 -> 95.8 | F71: =IF(H71="i",VLOOKUP(B71,'Ins SINAPI MG 04-2025 Onerado'!$B$11:$F$50003,5,0),VLOOKUP(B71,'Comp SINAPI MG 04-2025 Onerado'!$B$11:$E$50004,4,0)) -> 0.88 | G71: 84.3 | H71: ca
A72: SINAPI | B72: 100979 | C72: =PROPER(IF(H72="i",VLOOKUP(B72,'Ins SINAPI MG 04-2025 Onerado'!$B$11:$F$50003,2,0),VLOOKUP(B72,'Comp SINAPI MG 04-2025 Onerado'!$B$11:$C$50004,2,0))) -> Carga, Manobra E Descarga De Solos E Materiais Granulares Em Caminhão Basculante 14 M³ - Carga Com Escavadeira Hidráulica (Caçamba De 1,20 M³ / 155 Hp) E Descarga Livre (Unidade: M3). Af_07/2020 | D72: =IF(H72="i",VLOOKUP(B72,'Ins SINAPI MG 04-2025 Onerado'!$B$11:$F$50003,2,0),VLOOKUP(B72,'Comp SINAPI MG 04-2025 Onerado'!$B$11:$H$50004,3,0)) -> M3 | E72: 1 | F72: =IF(H72="i",VLOOKUP(B72,'Ins SINAPI MG 04-2025 Onerado'!$B$11:$F$50003,5,0),VLOOKUP(B72,'Comp SINAPI MG 04-2025 Onerado'!$B$11:$E$50004,4,0)) -> 6.8 | G72: 6.8 | H72: ca
A73: PRÓPRIA | B73: CODE | C73: Hospedagem | D73: un | E73: ='Memorial de cálculo'!D46*'Memorial de cálculo'!H46+'Memorial de cálculo'!D47*'Memorial de cálculo'!H47 -> 0.05 | F73: ='CPU HOSPEDAGEM'!C19 -> 195.4389394 | G73: 9.77 | H73: ca
A74: PRÓPRIA | B74: CODE | C74: Veículo tipo pick-up, cabine dupla - 2.0 16V 4x4 diesel Aut. | D74: dia | E74: =LARGE('Memorial de cálculo'!H46:H47,1) -> 0.025 | F74: ='CPU-VEICULO_PickUp'!$C$11 -> 366.0630977 | G74: 9.15 | H74: ca
A75: =B64 -> CPU.07 | C75: MÃO DE OBRA | G75: =SUM(G76:G77) -> 10.76 | H75: mdo
A76: SINAPI | B76: 88309 | C76: =PROPER(IF(H76="i",VLOOKUP(B76,'Ins SINAPI MG 04-2025 Onerado'!$B$11:$F$50003,2,0),VLOOKUP(B76,'Comp SINAPI MG 04-2025 Onerado'!$B$11:$C$50004,2,0))) -> Pedreiro Com Encargos Complementares | D76: =IF(H76="i",VLOOKUP(B76,'Ins SINAPI MG 04-2025 Onerado'!$B$11:$F$50003,2,0),VLOOKUP(B76,'Comp SINAPI MG 04-2025 Onerado'!$B$11:$H$50004,3,0)) -> H | E76: 0.2 | F76: =IF(H76="i",VLOOKUP(B76,'Ins SINAPI MG 04-2025 Onerado'!$B$11:$F$50003,5,0),VLOOKUP(B76,'Comp SINAPI MG 04-2025 Onerado'!$B$11:$E$50004,4,0)) -> 31.21 | G76: 6.24 | H76: ca
A77: SINAPI | B77: 88316 | C77: =PROPER(IF(H77="i",VLOOKUP(B77,'Ins SINAPI MG 04-2025 Onerado'!$B$11:$F$50003,2,0),VLOOKUP(B77,'Comp SINAPI MG 04-2025 Onerado'!$B$11:$C$50004,2,0))) -> Servente Com Encargos Complementares | D77: =IF(H77="i",VLOOKUP(B77,'Ins SINAPI MG 04-2025 Onerado'!$B$11:$F$50003,2,0),VLOOKUP(B77,'Comp SINAPI MG 04-2025 Onerado'!$B$11:$H$50004,3,0)) -> H | E77: 0.2 | F77: =IF(H77="i",VLOOKUP(B77,'Ins SINAPI MG 04-2025 Onerado'!$B$11:$F$50003,5,0),VLOOKUP(B77,'Comp SINAPI MG 04-2025 Onerado'!$B$11:$E$50004,4,0)) -> 22.64 | G77: 4.52 | H77: ca
B79: CPU.08 | C79: Canaleta meia cana de concreto (D=30cm) - Fornecimento e instalação | D79: m | E79: 1 | G79: =SUM(G91,G82,G81,G80) -> 168.52 | H79: S
A80: =B79 -> CPU.08 | C80: MATERIAL | G80: 0 | H80: ss
A81: =B79 -> CPU.08 | C81: EQUIPAMENTOS | G81: 0 | H81: ss
A82: =B79 -> CPU.08 | C82: SERVIÇOS | G82: =SUM(G83:G90) -> 168.52 | H82: ss
A83: SINAPI | B83: 93358 | C83: =PROPER(IF(H83="i",VLOOKUP(B83,'Ins SINAPI MG 04-2025 Onerado'!$B$11:$F$50003,2,0),VLOOKUP(B83,'Comp SINAPI MG 04-2025 Onerado'!$B$11:$C$50004,2,0))) -> Escavação Manual De Vala. Af_09/2024 | D83: =IF(H83="i",VLOOKUP(B83,'Ins SINAPI MG 04-2025 Onerado'!$B$11:$F$50003,2,0),VLOOKUP(B83,'Comp SINAPI MG 04-2025 Onerado'!$B$11:$H$50004,3,0)) -> M3 | E83: 0.1188 | F83: =IF(H83="i",VLOOKUP(B83,'Ins SINAPI MG 04-2025 Onerado'!$B$11:$F$50003,5,0),VLOOKUP(B83,'Comp SINAPI MG 04-2025 Onerado'!$B$11:$E$50004,4,0)) -> 89.55 | G83: =TRUNC(E83*F83,2) -> 10.63 | H83: ca | I83: Indice com base na composição ED-48552 - do SBC
A84: SETOP | B84: ED-51093 | C84: APILOAMENTO E REGULARIZACAO MANUAL DE FUNDO DE CAVAS | D84: M2 | E84: 0.36 | F84: 26.06 | G84: 9.38 | I84: Indice com base na composição ED-48552 - do SBC
A85: SINAPI | B85: 102990 | C85: =PROPER(IF(H85="i",VLOOKUP(B85,'Ins SINAPI MG 04-2025 Onerado'!$B$11:$F$50003,2,0),VLOOKUP(B85,'Comp SINAPI MG 04-2025 Onerado'!$B$11:$C$50004,2,0))) -> Canaleta Meia Cana Pré-Moldada De Concreto (D = 30 Cm) - Fornecimento E Instalação. Af_05/2025 | D85: =IF(H85="i",VLOOKUP(B85,'Ins SINAPI MG 04-2025 Onerado'!$B$11:$F$50003,2,0),VLOOKUP(B85,'Comp SINAPI MG 04-2025 Onerado'!$B$11:$H$50004,3,0)) -> M | E85: 1 | F85: =IF(H85="i",VLOOKUP(B85,'Ins SINAPI MG 04-2025 Onerado'!$B$11:$F$50003,5,0),VLOOKUP(B85,'Comp SINAPI MG 04-2025 Onerado'!$B$11:$E$50004,4,0)) -> 65.82 | G85: =TRUNC(E85*F85,2) -> 65.82 | H85: ca
A86: SINAPI | B86: 100946 | C86: =PROPER(IF(H86="i",VLOOKUP(B86,'Ins SINAPI MG 04-2025 Onerado'!$B$11:$F$50003,2,0),VLOOKUP(B86,'Comp SINAPI MG 04-2025 Onerado'!$B$11:$C$50004,2,0))) -> Transporte Com Caminhão Carroceria 9T, Em Via Urbana Em Revestimento Primário (Unidade: Txkm). Af_07/2020 | D86: =IF(H86="i",VLOOKUP(B86,'Ins SINAPI MG 04-2025 Onerado'!$B$11:$F$50003,2,0),VLOOKUP(B86,'Comp SINAPI MG 04-2025 Onerado'!$B$11:$H$50004,3,0)) -> TXKM | E86: =0.052*'Memorial de cálculo'!H8 -> 2.6104 | F86: =IF(H86="i",VLOOKUP(B86,'Ins SINAPI MG 04-2025 Onerado'!$B$11:$F$50003,5,0),VLOOKUP(B86,'Comp SINAPI MG 04-2025 Onerado'!$B$11:$E$50004,4,0)) -> 2.46 | G86: 6.42 | H86: ca | I86: considerando 52 kg por metro de canaleta
A87: SINAPI | B87: 100947 | C87: =PROPER(IF(H87="i",VLOOKUP(B87,'Ins SINAPI MG 04-2025 Onerado'!$B$11:$F$50003,2,0),VLOOKUP(B87,'Comp SINAPI MG 04-2025 Onerado'!$B$11:$C$50004,2,0))) -> Transporte Com Caminhão Carroceria 9T, Em Via Urbana Pavimentada, Dmt Até 30Km (Unidade: Txkm). Af_07/2020 | D87: =IF(H87="i",VLOOKUP(B87,'Ins SINAPI MG 04-2025 Onerado'!$B$11:$F$50003,2,0),VLOOKUP(B87,'Comp SINAPI MG 04-2025 Onerado'!$B$11:$H$50004,3,0)) -> TXKM | E87: =0.052*30 -> 1.56 | F87: =IF(H87="i",VLOOKUP(B87,'Ins SINAPI MG 04-2025 Onerado'!$B$11:$F$50003,5,0),VLOOKUP(B87,'Comp SINAPI MG 04-2025 Onerado'!$B$11:$E$50004,4,0)) -> 2.27 | G87: 3.54 | H87: ca
A88: SINAPI | B88: 100948 | C88: =PROPER(IF(H88="i",VLOOKUP(B88,'Ins SINAPI MG 04-2025 Onerado'!$B$11:$F$50003,2,0),VLOOKUP(B88,'Comp SINAPI MG 04-2025 Onerado'!$B$11:$C$50004,2,0))) -> Transporte Com Caminhão Carroceria 9T, Em Via Urbana Pavimentada, Adicional Para Dmt Excedente A 30 Km (Unidade: Txkm). Af_07/2020 | D88: =IF(H88="i",VLOOKUP(B88,'Ins SINAPI MG 04-2025 Onerado'!$B$11:$F$50003,2,0),VLOOKUP(B88,'Comp SINAPI MG 04-2025 Onerado'!$B$11:$H$50004,3,0)) -> TXKM | E88: =0.052*('Memorial de cálculo'!H7-30) -> 4.9816 | F88: =IF(H88="i",VLOOKUP(B88,'Ins SINAPI MG 04-2025 Onerado'!$B$11:$F$50003,5,0),VLOOKUP(B88,'Comp SINAPI MG 04-2025 Onerado'!$B$11:$E$50004,4,0)) -> 0.9 | G88: 4.48 | H88: ca
A89: PRÓPRIA | B89: CODE | C89: Hospedagem | D89: un | E89: ='Memorial de cálculo'!D51*'Memorial de cálculo'!G51+'Memorial de cálculo'!D52*'Memorial de cálculo'!H52 -> 0.31635 | F89: ='CPU HOSPEDAGEM'!C19 -> 195.4389394 | G89: 61.82 | H89: ca
A90: PRÓPRIA | B90: CODE | C90: Veículo tipo pick-up, cabine dupla - 2.0 16V 4x4 diesel Aut. | D90: dia | E90: =LARGE('Memorial de cálculo'!H51:H52,1) -> 0.017575 | F90: ='CPU-VEICULO_PickUp'!$C$11 -> 366.0630977 | G90: 6.43 | H90: ca
A91: =B79 -> CPU.08 | C91: MÃO DE OBRA | G91: 0 | H91: mdo
B93: CPU.09 | C93: Entrada para descida d'água | D93: un | E93: 1 | G93: =SUM(G101,G96,G95,G94) -> 161.79 | H93: S
A94: =B110 | C94: MATERIAL | G94: 0 | H94: ss
A95: =B93 -> CPU.09 | C95: EQUIPAMENTOS | G95: 0 | H95: ss
A96: =B93 -> CPU.09 | C96: SERVIÇOS | G96: =SUM(G97:G100) -> 161.79 | H96: ss
A97: SINAPI | B97: 94964 | C97: =PROPER(IF(H97="i",VLOOKUP(B97,'Ins SINAPI MG 04-2025 Onerado'!$B$11:$F$50003,2,0),VLOOKUP(B97,'Comp SINAPI MG 04-2025 Onerado'!$B$11:$C$50004,2,0))) -> Concreto Fck = 20Mpa, Traço 1:2,7:3 (Em Massa Seca De Cimento/ Areia Média/ Brita 1) - Preparo Mecânico Com Betoneira 400 L. Af_05/2021 | D97: =IF(H97="i",VLOOKUP(B97,'Ins SINAPI MG 04-2025 Onerado'!$B$11:$F$50003,2,0),VLOOKUP(B97,'Comp SINAPI MG 04-2025 Onerado'!$B$11:$H$50004,3,0)) -> M3 | E97: =2*1*0.3*0.1 -> 0.06 | F97: =IF(H97="i",VLOOKUP(B97,'Ins SINAPI MG 04-2025 Onerado'!$B$11:$F$50003,5,0),VLOOKUP(B97,'Comp SINAPI MG 04-2025 Onerado'!$B$11:$E$50004,4,0)) -> 546.24 | G97: =TRUNC(E97*F97,2) -> 32.77 | H97: ca | I97: comprimento 1 m, altura 0,30 m e espessura 0,10 m
A98: SINAPI | B98: 92268 | C98: =PROPER(IF(H98="i",VLOOKUP(B98,'Ins SINAPI MG 04-2025 Onerado'!$B$11:$F$50003,2,0),VLOOKUP(B98,'Comp SINAPI MG 04-2025 Onerado'!$B$11:$C$50004,2,0))) -> Fabricação De Fôrma Para Lajes, Em Chapa De Madeira Compensada Plastificada, E = 18 Mm. Af_09/2020 | D98: =IF(H98="i",VLOOKUP(B98,'Ins SINAPI MG 04-2025 Onerado'!$B$11:$F$50003,2,0),VLOOKUP(B98,'Comp SINAPI MG 04-2025 Onerado'!$B$11:$H$50004,3,0)) -> M2 | E98: =2*1*0.3 -> 0.6 | F98: =IF(H98="i",VLOOKUP(B98,'Ins SINAPI MG 04-2025 Onerado'!$B$11:$F$50003,5,0),VLOOKUP(B98,'Comp SINAPI MG 04-2025 Onerado'!$B$11:$E$50004,4,0)) -> 96.65 | G98: 57.99 | H98: ca | I98: comprimento 1 m, altura 0,30 m
A99: PRÓPRIA | B99: CODE | C99: Hospedagem | D99: un | E99: ='Memorial de cálculo'!D59*'Memorial de cálculo'!H59+'Memorial de cálculo'!D60*'Memorial de cálculo'!H60+'Memorial de cálculo'!D56*'Memorial de cálculo'!H56+'Memorial de cálculo'!D57*'Memorial de cálculo'!H57 -> 0.2330095 | F99: ='CPU HOSPEDAGEM'!C19 -> 195.4389394 | G99: 45.53 | H99: ca
A100: PRÓPRIA | B100: CODE | C100: Veículo tipo pick-up, cabine dupla - 2.0 16V 4x4 diesel Aut. | D100: dia | E100: =LARGE('Memorial de cálculo'!H56:H60,1) -> 0.06966575 | F100: ='CPU-VEICULO_PickUp'!$C$11 -> 366.0630977 | G100: 25.5 | H100: ca
A101: =B93 -> CPU.09 | C101: MÃO DE OBRA | G101: 0 | H101: mdo
B103: CPU.10 | C103: Plantio de vegetação para proteção de talude com hidrossemeadura, inclusive adubação e transporte | D103: m2 | E103: 1 | G103: =SUM(G113,G106,G105,G104) -> 13.01 | H103: S
A104: =B120 | C104: MATERIAL | G104: 0 | H104: ss
A105: =B103 -> CPU.10 | C105: EQUIPAMENTOS | G105: 0 | H105: ss
A106: =B103 -> CPU.10 | C106: SERVIÇOS | G106: =SUM(G107:G112) -> 13.01 | H106: ss
A107: SICRO | B107: 4413905 | C107: Hidrossemeadura | D107: M2 | E107: 1 | F107: 6.71 | G107: =TRUNC(E107*F107,2) -> 6.71 | H107: ca
A108: SINAPI | B108: 100946 | C108: =PROPER(IF(H108="i",VLOOKUP(B108,'Ins SINAPI MG 04-2025 Onerado'!$B$11:$F$50003,2,0),VLOOKUP(B108,'Comp SINAPI MG 04-2025 Onerado'!$B$11:$C$50004,2,0))) -> Transporte Com Caminhão Carroceria 9T, Em Via Urbana Em Revestimento Primário (Unidade: Txkm). Af_07/2020 | D108: =IF(H108="i",VLOOKUP(B108,'Ins SINAPI MG 04-2025 Onerado'!$B$11:$F$50003,2,0),VLOOKUP(B108,'Comp SINAPI MG 04-2025 Onerado'!$B$11:$H$50004,3,0)) -> TXKM | E108: ='Memorial de cálculo'!H8*0.02 -> 1.004 | F108: =IF(H108="i",VLOOKUP(B108,'Ins SINAPI MG 04-2025 Onerado'!$B$11:$F$50003,5,0),VLOOKUP(B108,'Comp SINAPI MG 04-2025 Onerado'!$B$11:$E$50004,4,0)) -> 2.46 | G108: 2.46 | H108: ca | I108: 1m² de tapete pesa 20 kg
A109: SINAPI | B109: 100947 | C109: =PROPER(IF(H109="i",VLOOKUP(B109,'Ins SINAPI MG 04-2025 Onerado'!$B$11:$F$50003,2,0),VLOOKUP(B109,'Comp SINAPI MG 04-2025 Onerado'!$B$11:$C$50004,2,0))) -> Transporte Com Caminhão Carroceria 9T, Em Via Urbana Pavimentada, Dmt Até 30Km (Unidade: Txkm). Af_07/2020 | D109: =IF(H109="i",VLOOKUP(B109,'Ins SINAPI MG 04-2025 Onerado'!$B$11:$F$50003,2,0),VLOOKUP(B109,'Comp SINAPI MG 04-2025 Onerado'!$B$11:$H$50004,3,0)) -> TXKM | E109: =30*0.02 -> 0.6 | F109: =IF(H109="i",VLOOKUP(B109,'Ins SINAPI MG 04-2025 Onerado'!$B$11:$F$50003,5,0),VLOOKUP(B109,'Comp SINAPI MG 04-2025 Onerado'!$B$11:$E$50004,4,0)) -> 2.27 | G109: 1.36 | H109: ca
A110: SINAPI | B110: 100948 | C110: =PROPER(IF(H110="i",VLOOKUP(B110,'Ins SINAPI MG 04-2025 Onerado'!$B$11:$F$50003,2,0),VLOOKUP(B110,'Comp SINAPI MG 04-2025 Onerado'!$B$11:$C$50004,2,0))) -> Transporte Com Caminhão Carroceria 9T, Em Via Urbana Pavimentada, Adicional Para Dmt Excedente A 30 Km (Unidade: Txkm). Af_07/2020 | D110: =IF(H110="i",VLOOKUP(B110,'Ins SINAPI MG 04-2025 Onerado'!$B$11:$F$50003,2,0),VLOOKUP(B110,'Comp SINAPI MG 04-2025 Onerado'!$B$11:$H$50004,3,0)) -> TXKM | E110: =('Memorial de cálculo'!H7-30)*0.02 -> 1.916 | F110: =IF(H110="i",VLOOKUP(B110,'Ins SINAPI MG 04-2025 Onerado'!$B$11:$F$50003,5,0),VLOOKUP(B110,'Comp SINAPI MG 04-2025 Onerado'!$B$11:$E$50004,4,0)) -> 0.9 | G110: 1.72 | H110: ca
A111: PRÓPRIA | B111: CODE | C111: Hospedagem | D111: un | E111: ='Memorial de cálculo'!D64*'Memorial de cálculo'!H64 -> 0.002409638554 | F111: ='CPU HOSPEDAGEM'!C19 -> 195.4389394 | G111: 0.47 | H111: ca
A112: PRÓPRIA | B112: CODE | C112: Veículo tipo pick-up, cabine dupla - 2.0 16V 4x4 diesel Aut. | D112: dia | E112: =LARGE('Memorial de cálculo'!H64:H64,1) -> 0.0008032128514 | F112: ='CPU-VEICULO_PickUp'!$C$11 -> 366.0630977 | G112: 0.29 | H112: ca
A113: =B103 -> CPU.10 | C113: MÃO DE OBRA | G113: 0 | H113: mdo
B116: CPU.13 | C116: Recomposição das erosões, inclusive, regularização da superfície e reaterro | D116: m3 | E116: 1 | G116: =SUM(G132,G120,G119,G117) -> 370.51 | H116: S
A117: =B116 -> CPU.13 | C117: MATERIAL | G117: =SUM(G118) -> 54.26 | H117: ss
A118: SINAPI | B118: 6081 | C118: =PROPER(IF(H118="i",VLOOKUP(B118,'Ins SINAPI MG 04-2025 Onerado'!$B$11:$F$50003,2,0),VLOOKUP(B118,'Comp SINAPI MG 04-2025 Onerado'!$G$11:$H$50004,2,0))) -> Argila Ou Barro Para Aterro/Reaterro (Com Transporte Ate 10 Km) | D118: =IF(H118="i",VLOOKUP(B118,'Ins SINAPI MG 04-2025 Onerado'!$B$11:$F$50003,3,0),VLOOKUP(B118,'Comp SINAPI MG 04-2025 Onerado'!$G$11:$H$50004,3,0)) -> M3 | E118: 1 | F118: 54.26 | G118: =TRUNC(E118*F118,2) -> 54.26 | H118: i
A119: =B116 -> CPU.13 | C119: EQUIPAMENTOS | G119: 0 | H119: ss
A120: =B116 -> CPU.13 | C120: SERVIÇOS | G120: =SUM(G121:G131) -> 316.25 | H120: ss
A121: SINAPI | B121: 101230 | C121: =PROPER(IF(H121="i",VLOOKUP(B121,'Ins SINAPI MG 04-2025 Onerado'!$B$11:$F$50003,2,0),VLOOKUP(B121,'Comp SINAPI MG 04-2025 Onerado'!$B$11:$C$50004,2,0))) -> Escavação Vertical Para Infraestrutura, Com Carga, Descarga E Transporte De Solo De 1ª Categoria, Com Escavadeira Hidráulica (Caçamba: 0,8 M³ / 111 Hp), Frota De 3 Caminhões Basculantes De 14 M³, Dmt Até 1 Km E Velocidade Média14 Km/H. Af_05/2020 | D121: =IF(H121="i",VLOOKUP(B121,'Ins SINAPI MG 04-2025 Onerado'!$B$11:$F$50003,2,0),VLOOKUP(B121,'Comp SINAPI MG 04-2025 Onerado'!$B$11:$H$50004,3,0)) -> M3 | E121: 0.1 | F121: =IF(H121="i",VLOOKUP(B121,'Ins SINAPI MG 04-2025 Onerado'!$B$11:$F$50003,5,0),VLOOKUP(B121,'Comp SINAPI MG 04-2025 Onerado'!$B$11:$E$50004,4,0)) -> 11.29 | G121: =TRUNC(E121*F121,2) -> 1.12 | H121: ca | I121: Preparação da superfície 10%
A122: SINAPI | B122: 93589 | C122: =PROPER(IF(H122="i",VLOOKUP(B122,'Ins SINAPI MG 04-2025 Onerado'!$B$11:$F$50003,2,0),VLOOKUP(B122,'Comp SINAPI MG 04-2025 Onerado'!$B$11:$C$50004,2,0))) -> Transporte Com Caminhão Basculante De 10 M³, Em Via Urbana Em Revestimento Primário (Unidade: M3Xkm). Af_07/2020 | D122: =IF(H122="i",VLOOKUP(B122,'Ins SINAPI MG 04-2025 Onerado'!$B$11:$F$50003,2,0),VLOOKUP(B122,'Comp SINAPI MG 04-2025 Onerado'!$B$11:$H$50004,3,0)) -> M3XKM | E122: ='Memorial de cálculo'!$H$8-10 -> 40.2 | F122: =IF(H122="i",VLOOKUP(B122,'Ins SINAPI MG 04-2025 Onerado'!$B$11:$F$50003,5,0),VLOOKUP(B122,'Comp SINAPI MG 04-2025 Onerado'!$B$11:$E$50004,4,0)) -> 2.71 | G122: 108.94 | H122: ca | I122: Transporte da argila
A123: SINAPI | B123: 95875 | C123: =PROPER(IF(H123="i",VLOOKUP(B123,'Ins SINAPI MG 04-2025 Onerado'!$B$11:$F$50003,2,0),VLOOKUP(B123,'Comp SINAPI MG 04-2025 Onerado'!$B$11:$C$50004,2,0))) -> Transporte Com Caminhão Basculante De 10 M³, Em Via Urbana Pavimentada, Dmt Até 30 Km (Unidade: M3Xkm). Af_07/2020 | D123: =IF(H123="i",VLOOKUP(B123,'Ins SINAPI MG 04-2025 Onerado'!$B$11:$F$50003,2,0),VLOOKUP(B123,'Comp SINAPI MG 04-2025 Onerado'!$B$11:$H$50004,3,0)) -> M3XKM | E123: =30 -> 30 | F123: =IF(H123="i",VLOOKUP(B123,'Ins SINAPI MG 04-2025 Onerado'!$B$11:$F$50003,5,0),VLOOKUP(B123,'Comp SINAPI MG 04-2025 Onerado'!$B$11:$E$50004,4,0)) -> 2.51 | G123: 75.3 | H123: ca
A124: SINAPI | B124: 93590 | C124: =PROPER(IF(H124="i",VLOOKUP(B124,'Ins SINAPI MG 04-2025 Onerado'!$B$11:$F$50003,2,0),VLOOKUP(B124,'Comp SINAPI MG 04-2025 Onerado'!$B$11:$C$50004,2,0))) -> Transporte Com Caminhão Basculante De 10 M³, Em Via Urbana Pavimentada, Adicional Para Dmt Excedente A 30 Km (Unidade: M3Xkm). Af_07/2020 | D124: =IF(H124="i",VLOOKUP(B124,'Ins SINAPI MG 04-2025 Onerado'!$B$11:$F$50003,2,0),VLOOKUP(B124,'Comp SINAPI MG 04-2025 Onerado'!$B$11:$H$50004,3,0)) -> M3XKM | E124: ='Memorial de cálculo'!$H$7-30 -> 95.8 | F124: =IF(H124="i",VLOOKUP(B124,'Ins SINAPI MG 04-2025 Onerado'!$B$11:$F$50003,5,0),VLOOKUP(B124,'Comp SINAPI MG 04-2025 Onerado'!$B$11:$E$50004,4,0)) -> 0.98 | G124: 93.88 | H124: ca
A125: SINAPI | B125: 100976 | C125: =PROPER(IF(H125="i",VLOOKUP(B125,'Ins SINAPI MG 04-2025 Onerado'!$B$11:$F$50003,2,0),VLOOKUP(B125,'Comp SINAPI MG 04-2025 Onerado'!$B$11:$C$50004,2,0))) -> Carga, Manobra E Descarga De Solos E Materiais Granulares Em Caminhão Basculante 18 M³ - Carga Com Pá Carregadeira (Caçamba De 1,7 A 2,8 M³ / 128 Hp) E Descarga Livre (Unidade: M3). Af_07/2020 | D125: =IF(H125="i",VLOOKUP(B125,'Ins SINAPI MG 04-2025 Onerado'!$B$11:$F$50003,2,0),VLOOKUP(B125,'Comp SINAPI MG 04-2025 Onerado'!$B$11:$H$50004,3,0)) -> M3 | E125: 1 | F125: =IF(H125="i",VLOOKUP(B125,'Ins SINAPI MG 04-2025 Onerado'!$B$11:$F$50003,5,0),VLOOKUP(B125,'Comp SINAPI MG 04-2025 Onerado'!$B$11:$E$50004,4,0)) -> 8.67 | G125: 8.67 | H125: ca
A126: SINAPI | B126: 100951 | C126: =PROPER(IF(H126="i",VLOOKUP(B126,'Ins SINAPI MG 04-2025 Onerado'!$B$11:$F$50003,2,0),VLOOKUP(B126,'Comp SINAPI MG 04-2025 Onerado'!$B$11:$C$50004,2,0))) -> Transporte Com Caminhão Carroceria Com Guindauto (Munck), Momento Máximo De Carga 11,7 Tm, Em Via Urbana Em Revestimento Primário (Unidade: Txkm). Af_07/2020 | D126: =IF(H126="i",VLOOKUP(B126,'Ins SINAPI MG 04-2025 Onerado'!$B$11:$F$50003,2,0),VLOOKUP(B126,'Comp SINAPI MG 04-2025 Onerado'!$B$11:$H$50004,3,0)) -> TXKM | E126: =2*(1.5*'Memorial de cálculo'!$H$8)/'Memorial de cálculo'!$I$67 -> 1.536734694 | F126: =IF(H126="i",VLOOKUP(B126,'Ins SINAPI MG 04-2025 Onerado'!$B$11:$F$50003,5,0),VLOOKUP(B126,'Comp SINAPI MG 04-2025 Onerado'!$B$11:$E$50004,4,0)) -> 3.13 | G126: 4.8 | H126: ca | I126: Tonelada da máquina | K126: 1.5 | M126: (Ida e volta)
A127: SINAPI | B127: 100952 | C127: =PROPER(IF(H127="i",VLOOKUP(B127,'Ins SINAPI MG 04-2025 Onerado'!$B$11:$F$50003,2,0),VLOOKUP(B127,'Comp SINAPI MG 04-2025 Onerado'!$B$11:$C$50004,2,0))) -> Transporte Com Caminhão Carroceria Com Guindauto (Munck), Momento Máximo De Carga 11,7 Tm, Em Via Urbana Pavimentada, Dmt Até 30Km (Unidade: Txkm). Af_07/2020 | D127: =IF(H127="i",VLOOKUP(B127,'Ins SINAPI MG 04-2025 Onerado'!$B$11:$F$50003,2,0),VLOOKUP(B127,'Comp SINAPI MG 04-2025 Onerado'!$B$11:$H$50004,3,0)) -> TXKM | E127: =2*(1.5*30)/'Memorial de cálculo'!$I$67 -> 0.9183673469 | F127: =IF(H127="i",VLOOKUP(B127,'Ins SINAPI MG 04-2025 Onerado'!$B$11:$F$50003,5,0),VLOOKUP(B127,'Comp SINAPI MG 04-2025 Onerado'!$B$11:$E$50004,4,0)) -> 2.88 | G127: 2.64 | H127: ca | I127: Tonelada da máquina | K127: 1.5 | M127: (Ida e volta)
A128: SINAPI | B128: 100953 | C128: =PROPER(IF(H128="i",VLOOKUP(B128,'Ins SINAPI MG 04-2025 Onerado'!$B$11:$F$50003,2,0),VLOOKUP(B128,'Comp SINAPI MG 04-2025 Onerado'!$B$11:$C$50004,2,0))) -> Transporte Com Caminhão Carroceria Com Guindauto (Munck), Momento Máximo De Carga 11,7 Tm, Em Via Urbana Pavimentada, Adicional Para Dmt Excedente A 30 Km (Unidade: Txkm). Af_07/2020 | D128: =IF(H128="i",VLOOKUP(B128,'Ins SINAPI MG 04-2025 Onerado'!$B$11:$F$50003,2,0),VLOOKUP(B128,'Comp SINAPI MG 04-2025 Onerado'!$B$11:$H$50004,3,0)) -> TXKM | E128: =2*(1.5*('Memorial de cálculo'!$H$7-30))/'Memorial de cálculo'!$I$67 -> 2.932653061 | F128: =IF(H128="i",VLOOKUP(B128,'Ins SINAPI MG 04-2025 Onerado'!$B$11:$F$50003,5,0),VLOOKUP(B128,'Comp SINAPI MG 04-2025 Onerado'!$B$11:$E$50004,4,0)) -> 1.14 | G128: 3.34 | H128: ca | I128: Tonelada da máquina | K128: 1.5 | M128: (Ida e volta)
A129: SINAPI | B129: 96385 | C129: =PROPER(IF(H129="i",VLOOKUP(B129,'Ins SINAPI MG 04-2025 Onerado'!$B$11:$F$50003,2,0),VLOOKUP(B129,'Comp SINAPI MG 04-2025 Onerado'!$B$11:$C$50004,2,0))) -> Execução E Compactação De Corpo De Aterro De Aterro (95% De Energia Do Proctor Normal) Com Solo Predominantemente Argiloso Espessura 15 Cm - Exclusive Material, Escavação, Carga E Transporte. Af_09/2024 | D129: =IF(H129="i",VLOOKUP(B129,'Ins SINAPI MG 04-2025 Onerado'!$B$11:$F$50003,2,0),VLOOKUP(B129,'Comp SINAPI MG 04-2025 Onerado'!$B$11:$H$50004,3,0)) -> M3 | E129: 1 | F129: =IF(H129="i",VLOOKUP(B129,'Ins SINAPI MG 04-2025 Onerado'!$B$11:$F$50003,5,0),VLOOKUP(B129,'Comp SINAPI MG 04-2025 Onerado'!$B$11:$E$50004,4,0)) -> 12.38 | G129: 12.38 | H129: ca
A130: PRÓPRIA | B130: CODE | C130: Hospedagem | D130: un | E130: ='Memorial de cálculo'!D69*'Memorial de cálculo'!H69+'Memorial de cálculo'!D70*'Memorial de cálculo'!H70+'Memorial de cálculo'!D71*'Memorial de cálculo'!H71 -> 0.0153585375 | F130: ='CPU HOSPEDAGEM'!C19 -> 195.4389394 | G130: 3 | H130: ca
A131: PRÓPRIA | B131: CODE | C131: Veículo tipo pick-up, cabine dupla - 2.0 16V 4x4 diesel Aut. | D131: dia | E131: =LARGE('Memorial de cálculo'!H69:H71,1) -> 0.0059586125 | F131: ='CPU-VEICULO_PickUp'!$C$11 -> 366.0630977 | G131: 2.18 | H131: ca
A132: =B116 -> CPU.13 | C132: MÃO DE OBRA | G132: 0 | H132: mdo
B134: CPU.14 | C134: Regularização e compactação da crista | D134: m2 | E134: 1 | G134: =SUM(G141,G137,G136,G135) -> 2.67 | H134: S
A135: =B134 -> CPU.14 | C135: MATERIAL | G135: 0 | H135: ss
A136: =B134 -> CPU.14 | C136: EQUIPAMENTOS | G136: 0 | H136: ss
A137: =B134 -> CPU.14 | C137: SERVIÇOS | G137: =SUM(G138:G140) -> 2.67 | H137: ss
A138: SINAPI | B138: 100576 | C138: =PROPER(IF(H138="i",VLOOKUP(B138,'Ins SINAPI MG 04-2025 Onerado'!$B$11:$F$50003,2,0),VLOOKUP(B138,'Comp SINAPI MG 04-2025 Onerado'!$B$11:$C$50004,2,0))) -> Regularização E Compactação De Subleito De Solo Predominantemente Argiloso, Para Obras De Construção De Pavimentos. Af_09/2024 | D138: =IF(H138="i",VLOOKUP(B138,'Ins SINAPI MG 04-2025 Onerado'!$B$11:$F$50003,2,0),VLOOKUP(B138,'Comp SINAPI MG 04-2025 Onerado'!$B$11:$H$50004,3,0)) -> M2 | E138: 1 | F138: =IF(H138="i",VLOOKUP(B138,'Ins SINAPI MG 04-2025 Onerado'!$B$11:$F$50003,5,0),VLOOKUP(B138,'Comp SINAPI MG 04-2025 Onerado'!$B$11:$E$50004,4,0)) -> 2.07 | G138: =TRUNC(E138*F138,2) -> 2.07 | H138: ca
A139: PRÓPRIA | B139: CODE | C139: Hospedagem | D139: un | E139: ='Memorial de cálculo'!D75*'Memorial de cálculo'!H75 -> 0.0010769 | F139: ='CPU HOSPEDAGEM'!C19 -> 195.4389394 | G139: 0.21 | H139: ca
A140: PRÓPRIA | B140: CODE | C140: Veículo tipo pick-up, cabine dupla - 2.0 16V 4x4 diesel Aut. | D140: dia | E140: =LARGE('Memorial de cálculo'!H75,1) -> 0.0010769 | F140: ='CPU-VEICULO_PickUp'!$C$11 -> 366.0630977 | G140: 0.39 | H140: ca
A141: =B134 -> CPU.14 | C141: MÃO DE OBRA | G141: 0 | H141: mdo
B143: CPU.15 | C143: Execução de Revestimento com BGTC | D143: m3 | E143: 1 | G143: =SUM(G154,G146,G145,G144) -> 543.2 | H143: S
A144: =B143 -> CPU.15 | C144: MATERIAL | G144: 0 | H144: ss
A145: =B143 -> CPU.15 | C145: EQUIPAMENTOS | G145: 0 | H145: ss
A146: =B143 -> CPU.15 | C146: SERVIÇOS | G146: =SUM(G147:G153) -> 543.2 | H146: ss
A147: SINAPI | B147: 96397 | C147: =PROPER(IF(H147="i",VLOOKUP(B147,'Ins SINAPI MG 04-2025 Onerado'!$B$11:$F$50003,2,0),VLOOKUP(B147,'Comp SINAPI MG 04-2025 Onerado'!$B$11:$C$50004,2,0))) -> Construção De Base E Sub-Base Para Pavimentação De Brita Graduada Simples Tratada Com Cimento, Com Espessura De 15 Cm - Exclusive Carga E Transporte. Af_09/2024 | D147: =IF(H147="i",VLOOKUP(B147,'Ins SINAPI MG 04-2025 Onerado'!$B$11:$F$50003,2,0),VLOOKUP(B147,'Comp SINAPI MG 04-2025 Onerado'!$B$11:$H$50004,3,0)) -> M3 | E147: 1 | F147: =IF(H147="i",VLOOKUP(B147,'Ins SINAPI MG 04-2025 Onerado'!$B$11:$F$50003,5,0),VLOOKUP(B147,'Comp SINAPI MG 04-2025 Onerado'!$B$11:$E$50004,4,0)) -> 286.09 | G147: =TRUNC(E147*F147,2) -> 286.09 | H147: ca
A148: SINAPI | B148: 93592 | C148: =PROPER(IF(H148="i",VLOOKUP(B148,'Ins SINAPI MG 04-2025 Onerado'!$B$11:$F$50003,2,0),VLOOKUP(B148,'Comp SINAPI MG 04-2025 Onerado'!$B$11:$C$50004,2,0))) -> Transporte Com Caminhão Basculante De 14 M³, Em Via Urbana Em Revestimento Primário (Unidade: M3Xkm). Af_07/2020 | D148: =IF(H148="i",VLOOKUP(B148,'Ins SINAPI MG 04-2025 Onerado'!$B$11:$F$50003,2,0),VLOOKUP(B148,'Comp SINAPI MG 04-2025 Onerado'!$B$11:$H$50004,3,0)) -> M3XKM | E148: ='Memorial de cálculo'!$H$8-10 -> 40.2 | F148: =IF(H148="i",VLOOKUP(B148,'Ins SINAPI MG 04-2025 Onerado'!$B$11:$F$50003,5,0),VLOOKUP(B148,'Comp SINAPI MG 04-2025 Onerado'!$B$11:$E$50004,4,0)) -> 2.4 | G148: 96.48 | H148: ca
A149: SINAPI | B149: 95876 | C149: =PROPER(IF(H149="i",VLOOKUP(B149,'Ins SINAPI MG 04-2025 Onerado'!$B$11:$F$50003,2,0),VLOOKUP(B149,'Comp SINAPI MG 04-2025 Onerado'!$B$11:$C$50004,2,0))) -> Transporte Com Caminhão Basculante De 14 M³, Em Via Urbana Pavimentada, Dmt Até 30 Km (Unidade: M3Xkm). Af_07/2020 | D149: =IF(H149="i",VLOOKUP(B149,'Ins SINAPI MG 04-2025 Onerado'!$B$11:$F$50003,2,0),VLOOKUP(B149,'Comp SINAPI MG 04-2025 Onerado'!$B$11:$H$50004,3,0)) -> M3XKM | E149: =30 -> 30 | F149: =IF(H149="i",VLOOKUP(B149,'Ins SINAPI MG 04-2025 Onerado'!$B$11:$F$50003,5,0),VLOOKUP(B149,'Comp SINAPI MG 04-2025 Onerado'!$B$11:$E$50004,4,0)) -> 2.17 | G149: 65.1 | H149: ca
A150: SINAPI | B150: 93593 | C150: =PROPER(IF(H150="i",VLOOKUP(B150,'Ins SINAPI MG 04-2025 Onerado'!$B$11:$F$50003,2,0),VLOOKUP(B150,'Comp SINAPI MG 04-2025 Onerado'!$B$11:$C$50004,2,0))) -> Transporte Com Caminhão Basculante De 14 M³, Em Via Urbana Pavimentada, Adicional Para Dmt Excedente A 30 Km (Unidade: M3Xkm). Af_07/2020 | D150: =IF(H150="i",VLOOKUP(B150,'Ins SINAPI MG 04-2025 Onerado'!$B$11:$F$50003,2,0),VLOOKUP(B150,'Comp SINAPI MG 04-2025 Onerado'!$B$11:$H$50004,3,0)) -> M3XKM | E150: ='Memorial de cálculo'!$H$7-30 -> 95.8 | F150: =IF(H150="i",VLOOKUP(B150,'Ins SINAPI MG 04-2025 Onerado'!$B$11:$F$50003,5,0),VLOOKUP(B150,'Comp SINAPI MG 04-2025 Onerado'!$B$11:$E$50004,4,0)) -> 0.88 | G150: 84.3 | H150: ca
A151: SINAPI | B151: 100976 | C151: =PROPER(IF(H151="i",VLOOKUP(B151,'Ins SINAPI MG 04-2025 Onerado'!$B$11:$F$50003,2,0),VLOOKUP(B151,'Comp SINAPI MG 04-2025 Onerado'!$B$11:$C$50004,2,0))) -> Carga, Manobra E Descarga De Solos E Materiais Granulares Em Caminhão Basculante 18 M³ - Carga Com Pá Carregadeira (Caçamba De 1,7 A 2,8 M³ / 128 Hp) E Descarga Livre (Unidade: M3). Af_07/2020 | D151: =IF(H151="i",VLOOKUP(B151,'Ins SINAPI MG 04-2025 Onerado'!$B$11:$F$50003,2,0),VLOOKUP(B151,'Comp SINAPI MG 04-2025 Onerado'!$B$11:$H$50004,3,0)) -> M3 | E151: 1 | F151: =IF(H151="i",VLOOKUP(B151,'Ins SINAPI MG 04-2025 Onerado'!$B$11:$F$50003,5,0),VLOOKUP(B151,'Comp SINAPI MG 04-2025 Onerado'!$B$11:$E$50004,4,0)) -> 8.67 | G151: 8.67 | H151: ca
A152: PRÓPRIA | B152: CODE | C152: Hospedagem | D152: un | E152: ='Memorial de cálculo'!D79*'Memorial de cálculo'!H79 -> 0.004568675 | F152: ='CPU HOSPEDAGEM'!C19 -> 195.4389394 | G152: 0.89 | H152: ca
A153: PRÓPRIA | B153: CODE | C153: Veículo tipo pick-up, cabine dupla - 2.0 16V 4x4 diesel Aut. | D153: dia | E153: =LARGE('Memorial de cálculo'!H79,1) -> 0.004568675 | F153: ='CPU-VEICULO_PickUp'!$C$11 -> 366.0630977 | G153: 1.67 | H153: ca
A154: =B143 -> CPU.15 | C154: MÃO DE OBRA | G154: 0 | H154: mdo
B157: CPU.18 | C157: Régua Linimétrica Padrão “ANA”, Aço Carbono - 2 X 70 X 1000 mm (Fornecimento e Instalação) | D157: un | E157: 1 | G157: =SUM(G166,G162,G161,G158) -> 420.43 | H157: S
A158: =B157 -> CPU.18 | C158: MATERIAL | G158: =SUM(G159:G160) -> 208.66 | H158: ss
A159: 2025-04-09 | B159: cotação | C159: RÉGUA LINIMÉTRICA PADRÃO “ANA”, AÇO CARBONO - 2 X 70 X 1000MM | D159: un | E159: 1 | F159: =Cotação!O10 -> 165.9 | G159: =TRUNC(E159*F159,2) -> 165.9 | H159: ca
A160: SINAPI | B160: 2747 | C160: =PROPER(IF(H160="i",VLOOKUP(B160,'Ins SINAPI MG 04-2025 Onerado'!$B$11:$F$50003,2,0),VLOOKUP(B160,'Comp SINAPI MG 04-2025 Onerado'!$G$11:$H$50004,2,0))) -> Mourao Rolico De Madeira Tratada, D = 16 A 20 Cm, H = 2,20 M, Em Eucalipto Ou Equivalente Da Regiao (Para Cerca) | D160: =IF(H160="i",VLOOKUP(B160,'Ins SINAPI MG 04-2025 Onerado'!$B$11:$F$50003,3,0),VLOOKUP(B160,'Comp SINAPI MG 04-2025 Onerado'!$G$11:$H$50004,3,0)) -> M | E160: 1.5 | F160: =IF(H160="i",VLOOKUP(B160,'Ins SINAPI MG 04-2025 Onerado'!$B$11:$F$50003,5,0),VLOOKUP(B160,'Comp SINAPI MG 04-2025 Onerado'!$G$11:$H$50004,5,0)) -> 28.51 | G160: 42.76 | H160: i
A161: =B157 -> CPU.18 | C161: EQUIPAMENTOS | G161: 0 | H161: ss
A162: =B157 -> CPU.18 | C162: SERVIÇOS | G162: =SUM(G163:G165) -> 137.43 | H162: ss
A163: SINAPI | B163: 94975 | C163: =PROPER(IF(H163="i",VLOOKUP(B163,'Ins SINAPI MG 04-2025 Onerado'!$B$11:$F$50003,2,0),VLOOKUP(B163,'Comp SINAPI MG 04-2025 Onerado'!$B$11:$C$50004,2,0))) -> Concreto Fck = 15Mpa, Traço 1:3,4:3,5 (Em Massa Seca De Cimento/ Areia Média/ Brita 1) - Preparo Manual. Af_05/2021 | D163: =IF(H163="i",VLOOKUP(B163,'Ins SINAPI MG 04-2025 Onerado'!$B$11:$F$50003,2,0),VLOOKUP(B163,'Comp SINAPI MG 04-2025 Onerado'!$B$11:$H$50004,3,0)) -> M3 | E163: 0.01 | F163: =IF(H163="i",VLOOKUP(B163,'Ins SINAPI MG 04-2025 Onerado'!$B$11:$F$50003,5,0),VLOOKUP(B163,'Comp SINAPI MG 04-2025 Onerado'!$B$11:$E$50004,4,0)) -> 559.37 | G163: =TRUNC(E163*F163,2) -> 5.59 | H163: ca
A164: PRÓPRIA | B164: CODE | C164: Hospedagem | D164: un | E164: ='Memorial de cálculo'!D84*'Memorial de cálculo'!H84+'Memorial de cálculo'!D85*'Memorial de cálculo'!H85 -> 0.3 | F164: ='CPU HOSPEDAGEM'!C19 -> 195.4389394 | G164: 58.63 | H164: ca
A165: PRÓPRIA | B165: CODE | C165: Veículo tipo pick-up, cabine dupla - 2.0 16V 4x4 diesel Aut. | D165: dia | E165: =LARGE('Memorial de cálculo'!H84:H85,1) -> 0.2 | F165: ='CPU-VEICULO_PickUp'!$C$11 -> 366.0630977 | G165: 73.21 | H165: ca
A166: =B157 -> CPU.18 | C166: MÃO DE OBRA | G166: =SUM(G167:G168) -> 74.34 | H166: mdo
A167: SINAPI | B167: 90781 | C167: =PROPER(IF(H167="i",VLOOKUP(B167,'Ins SINAPI MG 04-2025 Onerado'!$B$11:$F$50003,2,0),VLOOKUP(B167,'Comp SINAPI MG 04-2025 Onerado'!$B$11:$C$50004,2,0))) -> Topografo Com Encargos Complementares | D167: =IF(H167="i",VLOOKUP(B167,'Ins SINAPI MG 04-2025 Onerado'!$B$11:$F$50003,2,0),VLOOKUP(B167,'Comp SINAPI MG 04-2025 Onerado'!$B$11:$H$50004,3,0)) -> H | E167: 0.8 | F167: =IF(H167="i",VLOOKUP(B167,'Ins SINAPI MG 04-2025 Onerado'!$B$11:$F$50003,5,0),VLOOKUP(B167,'Comp SINAPI MG 04-2025 Onerado'!$B$11:$E$50004,4,0)) -> 47.65 | G167: 38.12 | H167: ca
A168: SINAPI | B168: 88316 | C168: =PROPER(IF(H168="i",VLOOKUP(B168,'Ins SINAPI MG 04-2025 Onerado'!$B$11:$F$50003,2,0),VLOOKUP(B168,'Comp SINAPI MG 04-2025 Onerado'!$B$11:$C$50004,2,0))) -> Servente Com Encargos Complementares | D168: =IF(H168="i",VLOOKUP(B168,'Ins SINAPI MG 04-2025 Onerado'!$B$11:$F$50003,2,0),VLOOKUP(B168,'Comp SINAPI MG 04-2025 Onerado'!$B$11:$H$50004,3,0)) -> H | E168: 1.6 | F168: =IF(H168="i",VLOOKUP(B168,'Ins SINAPI MG 04-2025 Onerado'!$B$11:$F$50003,5,0),VLOOKUP(B168,'Comp SINAPI MG 04-2025 Onerado'!$B$11:$E$50004,4,0)) -> 22.64 | G168: 36.22 | H168: ca
B170: CPU.19 | C170: Demolição de guias e sarjetas e/ou canaletas | D170: m | E170: 1 | G170: =SUM(G178,G173,G172,G171) -> 36.76 | H170: S
A171: =B170 -> CPU.19 | C171: MATERIAL | G171: 0 | H171: ss
A172: =B170 -> CPU.19 | C172: EQUIPAMENTOS | G172: 0 | H172: ss
A173: =B170 -> CPU.19 | C173: SERVIÇOS | G173: =SUM(G174:G177) -> 36.76 | H173: ss
A174: SINAPI | B174: 104796 | C174: =PROPER(IF(H174="i",VLOOKUP(B174,'Ins SINAPI MG 04-2025 Onerado'!$B$11:$F$50003,2,0),VLOOKUP(B174,'Comp SINAPI MG 04-2025 Onerado'!$B$11:$C$50004,2,0))) -> Demolição De Guias, Sarjetas Ou Sarjetões, De Forma Mecanizada, Sem Reaproveitamento. Af_09/2023 | D174: =IF(H174="i",VLOOKUP(B174,'Ins SINAPI MG 04-2025 Onerado'!$B$11:$F$50003,2,0),VLOOKUP(B174,'Comp SINAPI MG 04-2025 Onerado'!$B$11:$H$50004,3,0)) -> M | E174: 1 | F174: =IF(H174="i",VLOOKUP(B174,'Ins SINAPI MG 04-2025 Onerado'!$B$11:$F$50003,5,0),VLOOKUP(B174,'Comp SINAPI MG 04-2025 Onerado'!$B$11:$E$50004,4,0)) -> 15.23 | G174: =TRUNC(E174*F174,2) -> 15.23 | H174: ca
A175: PRÓPRIA | B175: CODE | C175: Hospedagem | D175: un | E175: ='Memorial de cálculo'!D89*'Memorial de cálculo'!H89+'Memorial de cálculo'!D90*'Memorial de cálculo'!H90 -> 0.0316375 | F175: ='CPU HOSPEDAGEM'!C19 -> 195.4389394 | G175: 6.18 | H175: ca
A176: PRÓPRIA | B176: CODE | C176: Veículo tipo pick-up, cabine dupla - 2.0 16V 4x4 diesel Aut. | D176: dia | E176: =LARGE('Memorial de cálculo'!H89:H90,1) -> 0.0219875 | F176: ='CPU-VEICULO_PickUp'!$C$11 -> 366.0630977 | G176: 8.04 | H176: ca
A177: SINAPI | B177: 93589 | C177: =PROPER(IF(H177="i",VLOOKUP(B177,'Ins SINAPI MG 04-2025 Onerado'!$B$11:$F$50003,2,0),VLOOKUP(B177,'Comp SINAPI MG 04-2025 Onerado'!$B$11:$C$50004,2,0))) -> Transporte Com Caminhão Basculante De 10 M³, Em Via Urbana Em Revestimento Primário (Unidade: M3Xkm). Af_07/2020 | D177: =IF(H177="i",VLOOKUP(B177,'Ins SINAPI MG 04-2025 Onerado'!$B$11:$F$50003,2,0),VLOOKUP(B177,'Comp SINAPI MG 04-2025 Onerado'!$B$11:$H$50004,3,0)) -> M3XKM | E177: =30*(1*0.3*0.3) -> 2.7 | F177: =IF(H177="i",VLOOKUP(B177,'Ins SINAPI MG 04-2025 Onerado'!$B$11:$F$50003,5,0),VLOOKUP(B177,'Comp SINAPI MG 04-2025 Onerado'!$B$11:$E$50004,4,0)) -> 2.71 | G177: =TRUNC(E177*F177,2) -> 7.31 | H177: ca | K177: 30 km de raio para diposição do RCD
A178: =B170 -> CPU.19 | C178: MÃO DE OBRA | G178: 0 | H178: mdo
B181: CPU.24 | C181: Limpeza da superfície | D181: m2 | E181: 1 | G181: =SUM(G188,G184,G183,G182) -> 8.32 | H181: S
A182: =B181 -> CPU.24 | C182: MATERIAL | G182: 0 | H182: ss
A183: =B181 -> CPU.24 | C183: EQUIPAMENTOS | G183: 0 | H183: ss
A184: =B181 -> CPU.24 | C184: SERVIÇOS | G184: =SUM(G185:G187) -> 8.32 | H184: ss
A185: SINAPI | B185: 99814 | C185: =PROPER(IF(H185="i",VLOOKUP(B185,'Ins SINAPI MG 04-2025 Onerado'!$B$11:$F$50003,2,0),VLOOKUP(B185,'Comp SINAPI MG 04-2025 Onerado'!$B$11:$C$50004,2,0))) -> Limpeza De Superfície Com Jato De Alta Pressão. Af_04/2019 | D185: =IF(H185="i",VLOOKUP(B185,'Ins SINAPI MG 04-2025 Onerado'!$B$11:$F$50003,2,0),VLOOKUP(B185,'Comp SINAPI MG 04-2025 Onerado'!$B$11:$H$50004,3,0)) -> M2 | E185: 1 | F185: =IF(H185="i",VLOOKUP(B185,'Ins SINAPI MG 04-2025 Onerado'!$B$11:$F$50003,5,0),VLOOKUP(B185,'Comp SINAPI MG 04-2025 Onerado'!$B$11:$E$50004,4,0)) -> 2.08 | G185: =TRUNC(E185*F185,2) -> 2.08 | H185: ca
A186: PRÓPRIA | B186: CODE | C186: Hospedagem | D186: un | E186: ='Memorial de cálculo'!D95*'Memorial de cálculo'!H95 -> 0.011125 | F186: ='CPU HOSPEDAGEM'!C19 -> 195.4389394 | G186: 2.17 | H186: ca
A187: PRÓPRIA | B187: CODE | C187: Veículo tipo pick-up, cabine dupla - 2.0 16V 4x4 diesel Aut. | D187: dia | E187: =LARGE('Memorial de cálculo'!H95,1) -> 0.011125 | F187: ='CPU-VEICULO_PickUp'!$C$11 -> 366.0630977 | G187: 4.07 | H187: ca
A188: =B181 -> CPU.24 | C188: MÃO DE OBRA | G188: 0 | H188: mdo
B190: CPU.25 | C190: Projeto geométrico | D190: un | E190: 1 | G190: =SUM(G194,G193,G192,G191) -> 10216.8 | H190: S
A191: =B190 -> CPU.25 | C191: MATERIAL | G191: 0 | H191: ss
A192: =B190 -> CPU.25 | C192: EQUIPAMENTOS | G192: 0 | H192: ss
A193: =B190 -> CPU.25 | C193: SERVIÇOS | G193: 0 | H193: ss
A194: =B190 -> CPU.25 | C194: MÃO DE OBRA | G194: =SUM(G195:G197) -> 10216.8 | H194: mdo
A195: SINAPI | B195: 90777 | C195: =PROPER(IF(H195="i",VLOOKUP(B195,'Ins SINAPI MG 04-2025 Onerado'!$B$11:$F$50003,2,0),VLOOKUP(B195,'Comp SINAPI MG 04-2025 Onerado'!$B$11:$C$50004,2,0))) -> Engenheiro Civil De Obra Junior Com Encargos Complementares | D195: =IF(H195="i",VLOOKUP(B195,'Ins SINAPI MG 04-2025 Onerado'!$B$11:$F$50003,2,0),VLOOKUP(B195,'Comp SINAPI MG 04-2025 Onerado'!$B$11:$H$50004,3,0)) -> H | E195: 30 | F195: =IF(H195="i",VLOOKUP(B195,'Ins SINAPI MG 04-2025 Onerado'!$B$11:$F$50003,5,0),VLOOKUP(B195,'Comp SINAPI MG 04-2025 Onerado'!$B$11:$E$50004,4,0)) -> 131.3 | G195: =TRUNC(E195*F195,2) -> 3939 | H195: ca
A196: SINAPI | B196: 90779 | C196: =PROPER(IF(H196="i",VLOOKUP(B196,'Ins SINAPI MG 04-2025 Onerado'!$B$11:$F$50003,2,0),VLOOKUP(B196,'Comp SINAPI MG 04-2025 Onerado'!$B$11:$C$50004,2,0))) -> Engenheiro Civil De Obra Senior Com Encargos Complementares | D196: =IF(H196="i",VLOOKUP(B196,'Ins SINAPI MG 04-2025 Onerado'!$B$11:$F$50003,2,0),VLOOKUP(B196,'Comp SINAPI MG 04-2025 Onerado'!$B$11:$H$50004,3,0)) -> H | E196: 20 | F196: =IF(H196="i",VLOOKUP(B196,'Ins SINAPI MG 04-2025 Onerado'!$B$11:$F$50003,5,0),VLOOKUP(B196,'Comp SINAPI MG 04-2025 Onerado'!$B$11:$E$50004,4,0)) -> 169.23 | G196: 3384.6 | H196: ca
A197: SINAPI | B197: 90775 | C197: =PROPER(IF(H197="i",VLOOKUP(B197,'Ins SINAPI MG 04-2025 Onerado'!$B$11:$F$50003,2,0),VLOOKUP(B197,'Comp SINAPI MG 04-2025 Onerado'!$B$11:$C$50004,2,0))) -> Desenhista Projetista Com Encargos Complementares | D197: =IF(H197="i",VLOOKUP(B197,'Ins SINAPI MG 04-2025 Onerado'!$B$11:$F$50003,2,0),VLOOKUP(B197,'Comp SINAPI MG 04-2025 Onerado'!$B$11:$H$50004,3,0)) -> H | E197: 60 | F197: =IF(H197="i",VLOOKUP(B197,'Ins SINAPI MG 04-2025 Onerado'!$B$11:$F$50003,5,0),VLOOKUP(B197,'Comp SINAPI MG 04-2025 Onerado'!$B$11:$E$50004,4,0)) -> 48.22 | G197: 2893.2 | H197: ca
B199: CPU.26 | C199: Injeção de nata de cimento em buracos | D199: m3 | E199: 1 | G199: =SUM(G203,G202,G201,G200) -> 1023.48 | H199: S
A200: =B199 -> CPU.26 | C200: MATERIAL | G200: 0 | H200: ss
A201: =B199 -> CPU.26 | C201: EQUIPAMENTOS | G201: 0 | H201: ss
A202: =B199 -> CPU.26 | C202: SERVIÇOS | G202: 0 | H202: ss
A203: =B199 -> CPU.26 | C203: MÃO DE OBRA | G203: =SUM(G204:G206) -> 1023.48 | H203: mdo
A204: SICRO | B204: 3816196 | C204: Injeção de nata de cimento | D204: m3 | E204: 1 | F204: 953.31 | G204: =TRUNC(E204*F204,2) -> 953.31 | H204: ca
A205: PRÓPRIA | B205: CODE | C205: Hospedagem | D205: un | E205: ='Memorial de cálculo'!D105*'Memorial de cálculo'!H105 -> 0.125 | F205: ='CPU HOSPEDAGEM'!C19 -> 195.4389394 | G205: 24.42 | H205: ca
A206: PRÓPRIA | B206: CODE | C206: Veículo tipo pick-up, cabine dupla - 2.0 16V 4x4 diesel Aut. | D206: dia | E206: =LARGE('Memorial de cálculo'!H105,1) -> 0.125 | F206: ='CPU-VEICULO_PickUp'!$C$11 -> 366.0630977 | G206: 45.75 | H206: ca
B209: CPU.28 | C209: Recuperação do meio-fio com reaproveitamento | D209: m | E209: 1 | G209: =SUM(G217,G212,G211,G210) -> 51.19 | H209: S
A210: =B209 -> CPU.28 | C210: MATERIAL | G210: 0 | H210: ss
A211: =B209 -> CPU.28 | C211: EQUIPAMENTOS | G211: 0 | H211: ss
A212: =B209 -> CPU.28 | C212: SERVIÇOS | G212: =SUM(G213:G216) -> 51.19 | H212: ss
A213: SINAPI | B213: 104797 | C213: =PROPER(IF(H213="i",VLOOKUP(B213,'Ins SINAPI MG 04-2025 Onerado'!$B$11:$F$50003,2,0),VLOOKUP(B213,'Comp SINAPI MG 04-2025 Onerado'!$B$11:$C$50004,2,0))) -> Remoçao De Guias Pré-Fabricadas De Concreto, De Forma Mecanizada, Com Reaproveitamento. Af_09/2023 | D213: =IF(H213="i",VLOOKUP(B213,'Ins SINAPI MG 04-2025 Onerado'!$B$11:$F$50003,2,0),VLOOKUP(B213,'Comp SINAPI MG 04-2025 Onerado'!$B$11:$H$50004,3,0)) -> M | E213: 1 | F213: =IF(H213="i",VLOOKUP(B213,'Ins SINAPI MG 04-2025 Onerado'!$B$11:$F$50003,5,0),VLOOKUP(B213,'Comp SINAPI MG 04-2025 Onerado'!$B$11:$E$50004,4,0)) -> 19.05 | G213: =TRUNC(E213*F213,2) -> 19.05 | H213: ca
A214: ORSE | B214: 2625 | C214: Reassentamento de meio fio | D214: M | E214: 1 | F214: 10.73 | G214: 10.73 | H214: ca
A215: PRÓPRIA | B215: CODE | C215: Hospedagem | D215: un | E215: ='Memorial de cálculo'!D109*'Memorial de cálculo'!H109+'Memorial de cálculo'!D110*'Memorial de cálculo'!H110 -> 0.0733 | F215: ='CPU HOSPEDAGEM'!C19 -> 195.4389394 | G215: 14.32 | H215: ca
A216: PRÓPRIA | B216: CODE | C216: Veículo tipo pick-up, cabine dupla - 2.0 16V 4x4 diesel Aut. | D216: dia | E216: =LARGE('Memorial de cálculo'!H109:H110,1) -> 0.01936875 | F216: ='CPU-VEICULO_PickUp'!$C$11 -> 366.0630977 | G216: =TRUNC(E216*F216,2) -> 7.09 | H216: ca
A217: =B209 -> CPU.28 | C217: MÃO DE OBRA | G217: 0 | H217: mdo
B219: CPU.29 | C219: Fornecimento e Assentamento de Guia (meio-fio) Pré-fabricado, dimensões 100x15x20 cm (comprimento x base x altura) | D219: m | E219: 1 | G219: =SUM(G229,G222,G221,G220) -> 86.42 | H219: S
A220: =B219 -> CPU.29 | C220: MATERIAL | G220: 0 | H220: ss
A221: =B219 -> CPU.29 | C221: EQUIPAMENTOS | G221: 0 | H221: ss
A222: =B219 -> CPU.29 | C222: SERVIÇOS | G222: =SUM(G223:G228) -> 86.42 | H222: ss
A223: SINAPI | B223: 94275 | C223: =PROPER(IF(H223="i",VLOOKUP(B223,'Ins SINAPI MG 04-2025 Onerado'!$B$11:$F$50003,2,0),VLOOKUP(B223,'Comp SINAPI MG 04-2025 Onerado'!$B$11:$C$50004,2,0))) -> Assentamento De Guia (Meio-Fio) Em Trecho Reto, Confeccionada Em Concreto Pré-Fabricado, Dimensões 100X15X13X20 Cm (Comprimento X Base Inferior X Base Superior X Altura). Af_01/2024 | D223: =IF(H223="i",VLOOKUP(B223,'Ins SINAPI MG 04-2025 Onerado'!$B$11:$F$50003,2,0),VLOOKUP(B223,'Comp SINAPI MG 04-2025 Onerado'!$B$11:$H$50004,3,0)) -> M | E223: 1 | F223: =IF(H223="i",VLOOKUP(B223,'Ins SINAPI MG 04-2025 Onerado'!$B$11:$F$50003,5,0),VLOOKUP(B223,'Comp SINAPI MG 04-2025 Onerado'!$B$11:$E$50004,4,0)) -> 58.45 | G223: =TRUNC(E223*F223,2) -> 58.45 | H223: ca
A224: SINAPI | B224: 93595 | C224: =PROPER(IF(H224="i",VLOOKUP(B224,'Ins SINAPI MG 04-2025 Onerado'!$B$11:$F$50003,2,0),VLOOKUP(B224,'Comp SINAPI MG 04-2025 Onerado'!$B$11:$C$50004,2,0))) -> Transporte Com Caminhão Basculante De 10 M³, Em Via Urbana Em Revestimento Primário (Unidade: Txkm). Af_07/2020 | D224: =IF(H224="i",VLOOKUP(B224,'Ins SINAPI MG 04-2025 Onerado'!$B$11:$F$50003,2,0),VLOOKUP(B224,'Comp SINAPI MG 04-2025 Onerado'!$B$11:$H$50004,3,0)) -> TXKM | E224: =('Memorial de cálculo'!$H$8-10)*0.067 -> 2.6934 | F224: =IF(H224="i",VLOOKUP(B224,'Ins SINAPI MG 04-2025 Onerado'!$B$11:$F$50003,5,0),VLOOKUP(B224,'Comp SINAPI MG 04-2025 Onerado'!$B$11:$E$50004,4,0)) -> 1.84 | G224: =TRUNC(E224*F224,2) -> 4.95 | H224: ca | I224: Transporte do meio-fio pré fabricado (PESO = 67 KG)
... 19 more rows

Sheet COMPOSICÕES MODIFICADAS
A3: Código | D3: 93212 ADAPTADO
A4: Descrição | D4: EXECUÇÃO DE SANITÁRIO E VESTIÁRIO EM CANTEIRO DE OBRA EM CHAPA DE MADEIRA COMPENSADA, NÃO INCLUSO MOBILIÁRIO. AF_02/2016
A5: Data | D5: 2024-05-01
A6: Estado | D6: Minas Gerais
A7: Tipo | D7: CANT - CANTEIRO DE OBRAS
A8: Unidade | D8: m²
A9: Valor sem Desoneração | D9: =SUM(I12,I16,I20:I54,I58:I61,I65:I78,I85:I105) -> 975.8
A11: Natureza | B11: Fonte | C11: codigo | D11: Descrição | E11: Tipo | F11: Unidade | G11: Valor sem Desoneração | H11: Coeficiente | I11: Preço sem Desoneração
A12: C | B12: SINAPI | C12: 89173 | D12: (COMPOSIÇÃO REPRESENTATIVA) DO SERVIÇO DE EMBOÇO/MASSA ÚNICA, APLICADO MANUALMENTE, TRAÇO 1:2:8, EM BETONEIRA DE 400L, PAREDES INTERNAS, COM EXECUÇÃO DE TALISCAS, EDIFICAÇÃO HABITACIONAL UNIFAMILIAR (CASAS) E EDIFICAÇÃO PÚBLICA PADRÃO. AF_12/2014 - ADAPTADO | E12: REVE - REVESTIMENTO E TRATAMENTO DE SUPERFÍCIES | F12: m² | G12: =SUM(I13:I15) -> 40.63 | H12: 0.7679 | I12: =ROUND(G12*H12,2) -> 31.2
A13: C | B13: SINAPI | C13: 87531 | D13: =VLOOKUP(C13,'Comp SINAPI MG 04-2025 Onerado'!$B$11:$F$9696,2,FALSE) -> EMBOÇO, EM ARGAMASSA TRAÇO 1:2:8, PREPARO MECÂNICO, APLICADO MANUALMENTE EM PAREDES INTERNAS DE AMBIENTES COM ÁREA ENTRE 5M² E 10M², E = 17,5MM, COM TALISCAS. AF_03/2024 | E13: REVE - REVESTIMENTO E TRATAMENTO DE SUPERFÍCIES | F13: m² | G13: =VLOOKUP(C13,'Comp SINAPI MG 04-2025 Onerado'!$B$11:$F$9696,4,FALSE) -> 39.1 | H13: 0.154 | I13: =ROUND(G13*H13,2) -> 6.02
A14: C | B14: SINAPI | C14: 87527 | D14: =VLOOKUP(C14,'Comp SINAPI MG 04-2025 Onerado'!$B$11:$F$9696,2,FALSE) -> EMBOÇO, EM ARGAMASSA TRAÇO 1:2:8, PREPARO MECÂNICO, APLICADO MANUALMENTE EM PAREDES INTERNAS DE AMBIENTES COM ÁREA MENOR QUE 5M², E =17,5MM, COM TALISCAS. AF_03/2024 | E14: REVE - REVESTIMENTO E TRATAMENTO DE SUPERFÍCIES | F14: m² | G14: =VLOOKUP(C14,'Comp SINAPI MG 04-2025 Onerado'!$B$11:$F$9696,4,FALSE) -> 43.83 | H14: 0.1121 | I14: =ROUND(G14*H14,2) -> 4.91
A15: C | B15: SINAPI | C15: 87529 | D15: =VLOOKUP(C15,'Comp SINAPI MG 04-2025 Onerado'!$B$11:$F$9696,2,FALSE) -> MASSA ÚNICA, EM ARGAMASSA TRAÇO 1:2:8, PREPARO MECÂNICO, APLICADA MANUALMENTE EM PAREDES INTERNAS DE AMBIENTES COM ÁREA ENTRE 5M² E 10M², E = 17,5MM, COM TALISCAS. AF_03/2024 | E15: REVE - REVESTIMENTO E TRATAMENTO DE SUPERFÍCIES | F15: m² | G15: =VLOOKUP(C15,'Comp SINAPI MG 04-2025 Onerado'!$B$11:$F$9696,4,FALSE) -> 40.47 | H15: 0.7339 | I15: 29.7
A16: C | B16: SINAPI | C16: 89171 | D16: (COMPOSIÇÃO REPRESENTATIVA) DO SERVIÇO DE REVESTIMENTO CERÂMICO PARA PISO COM PLACAS TIPO ESMALTADA EXTRA DE DIMENSÕES 35X35 CM, PARA EDIFICAÇÃO HABITACIONAL UNIFAMILIAR (CASA) E EDIFICAÇÃO PÚBLICA PADRÃO. AF_11/2014 - ADAPTADO | E16: PISO - PISOS | F16: m² | G16: =SUM(I17:I19) -> 55.38 | H16: 0.4628 | I16: 25.63
A17: C | B17: SINAPI | C17: 87247 | D17: =VLOOKUP(C17,'Comp SINAPI MG 04-2025 Onerado'!$B$11:$F$9696,2,FALSE) -> REVESTIMENTO CERÂMICO PARA PISO COM PLACAS TIPO ESMALTADA DE DIMENSÕES 35X35 CM APLICADA EM AMBIENTES DE ÁREA ENTRE 5 M2 E 10 M2. AF_02/2023_PE | E17: PISO - PISOS | F17: m² | G17: =VLOOKUP(C17,'Comp SINAPI MG 04-2025 Onerado'!$B$11:$F$9696,4,FALSE) -> 60.15 | H17: 0.3365 | I17: =ROUND(G17*H17,2) -> 20.24
A18: C | B18: SINAPI | C18: 87248 | D18: =VLOOKUP(C18,'Comp SINAPI MG 04-2025 Onerado'!$B$11:$F$9696,2,FALSE) -> REVESTIMENTO CERÂMICO PARA PISO COM PLACAS TIPO ESMALTADA DE DIMENSÕES 35X35 CM APLICADA EM AMBIENTES DE ÁREA MAIOR QUE 10 M2. AF_02/2023_PE | E18: PISO - PISOS | F18: m² | G18: =VLOOKUP(C18,'Comp SINAPI MG 04-2025 Onerado'!$B$11:$F$9696,4,FALSE) -> 51.58 | H18: 0.6087 | I18: =ROUND(G18*H18,2) -> 31.4
A19: C | B19: SINAPI | C19: 87246 | D19: =VLOOKUP(C19,'Comp SINAPI MG 04-2025 Onerado'!$B$11:$F$9696,2,FALSE) -> REVESTIMENTO CERÂMICO PARA PISO COM PLACAS TIPO ESMALTADA DE DIMENSÕES 35X35 CM APLICADA EM AMBIENTES DE ÁREA MENOR QUE 5 M2. AF_02/2023_PE | E19: PISO - PISOS | F19: m² | G19: =VLOOKUP(C19,'Comp SINAPI MG 04-2025 Onerado'!$B$11:$F$9696,4,FALSE) -> 68.21 | H19: 0.0548 | I19: 3.74
A20: C | B20: SINAPI | C20: 101165 | D20: =VLOOKUP(C20,'Comp SINAPI MG 04-2025 Onerado'!$B$11:$F$9696,2,FALSE) -> ALVENARIA DE EMBASAMENTO COM BLOCO ESTRUTURAL DE CONCRETO, DE 14X19X29CM E ARGAMASSA DE ASSENTAMENTO COM PREPARO EM BETONEIRA. AF_05/2020 | E20: FUES - FUNDAÇÕES E ESTRUTURAS | F20: m³ | G20: =VLOOKUP(C20,'Comp SINAPI MG 04-2025 Onerado'!$B$11:$F$9696,4,FALSE) -> 1083.67 | H20: 0.0286 | I20: 30.99
A21: C | B21: SINAPI | C21: 103328 | D21: =VLOOKUP(C21,'Comp SINAPI MG 04-2025 Onerado'!$B$11:$F$9696,2,FALSE) -> ALVENARIA DE VEDAÇÃO DE BLOCOS CERÂMICOS FURADOS NA HORIZONTAL DE 9X19X19 CM (ESPESSURA 9 CM) E ARGAMASSA DE ASSENTAMENTO COM PREPARO EM BETONEIRA. AF_12/2021 | E21: PARE - PAREDES/PAINEIS | F21: m² | G21: =VLOOKUP(C21,'Comp SINAPI MG 04-2025 Onerado'!$B$11:$F$9696,4,FALSE) -> 98.43 | H21: 0.4675 | I21: 46.02
A22: C | B22: SINAPI | C22: 91924 | D22: =VLOOKUP(C22,'Comp SINAPI MG 04-2025 Onerado'!$B$11:$F$9696,2,FALSE) -> CABO DE COBRE FLEXÍVEL ISOLADO, 1,5 MM², ANTI-CHAMA 450/750 V, PARA CIRCUITOS TERMINAIS - FORNECIMENTO E INSTALAÇÃO. AF_03/2023 | E22: INEL - INSTALAÇÃO ELÉTRICA/ELETRIFICAÇÃO E ILUMINAÇÃO EXTERNA | F22: M | G22: =VLOOKUP(C22,'Comp SINAPI MG 04-2025 Onerado'!$B$11:$F$9696,4,FALSE) -> 3.09 | H22: 1.253 | I22: 3.87
A23: C | B23: SINAPI | C23: 92981 | D23: =VLOOKUP(C23,'Comp SINAPI MG 04-2025 Onerado'!$B$11:$F$9696,2,FALSE) -> CABO DE COBRE FLEXÍVEL ISOLADO, 16 MM², ANTI-CHAMA 450/750 V, PARA DISTRIBUIÇÃO - FORNECIMENTO E INSTALAÇÃO. AF_10/2020 | E23: INEL - INSTALAÇÃO ELÉTRICA/ELETRIFICAÇÃO E ILUMINAÇÃO EXTERNA | F23: M | G23: =VLOOKUP(C23,'Comp SINAPI MG 04-2025 Onerado'!$B$11:$F$9696,4,FALSE) -> 15.84 | H23: 0.2611 | I23: 4.14
A24: C | B24: SINAPI | C24: 91926 | D24: =VLOOKUP(C24,'Comp SINAPI MG 04-2025 Onerado'!$B$11:$F$9696,2,FALSE) -> CABO DE COBRE FLEXÍVEL ISOLADO, 2,5 MM², ANTI-CHAMA 450/750 V, PARA CIRCUITOS TERMINAIS - FORNECIMENTO E INSTALAÇÃO. AF_03/2023 | E24: INEL - INSTALAÇÃO ELÉTRICA/ELETRIFICAÇÃO E ILUMINAÇÃO EXTERNA | F24: M | G24: =VLOOKUP(C24,'Comp SINAPI MG 04-2025 Onerado'!$B$11:$F$9696,4,FALSE) -> 4.47 | H24: 0.4699 | I24: 2.1
A25: C | B25: SINAPI | C25: 91928 | D25: =VLOOKUP(C25,'Comp SINAPI MG 04-2025 Onerado'!$B$11:$F$9696,2,FALSE) -> CABO DE COBRE FLEXÍVEL ISOLADO, 4 MM², ANTI-CHAMA 450/750 V, PARA CIRCUITOS TERMINAIS - FORNECIMENTO E INSTALAÇÃO. AF_03/2023 | E25: INEL - INSTALAÇÃO ELÉTRICA/ELETRIFICAÇÃO E ILUMINAÇÃO EXTERNA | F25: M | G25: =VLOOKUP(C25,'Comp SINAPI MG 04-2025 Onerado'!$B$11:$F$9696,4,FALSE) -> 6.9 | H25: 1.0442 | I25: 7.2
A26: C | B26: SINAPI | C26: 97886 | D26: =VLOOKUP(C26,'Comp SINAPI MG 04-2025 Onerado'!$B$11:$F$9696,2,FALSE) -> CAIXA ENTERRADA ELÉTRICA RETANGULAR, EM ALVENARIA COM TIJOLOS CERÂMICOS MACIÇOS, FUNDO COM BRITA, DIMENSÕES INTERNAS: 0,3X0,3X0,3 M. AF_12/2020 | E26: INEL - INSTALAÇÃO ELÉTRICA/ELETRIFICAÇÃO E ILUMINAÇÃO EXTERNA | F26: UN | G26: =VLOOKUP(C26,'Comp SINAPI MG 04-2025 Onerado'!$B$11:$F$9696,4,FALSE) -> 174.93 | H26: 0.0522 | I26: 9.13
A27: C | B27: SINAPI | C27: 97906 | D27: =VLOOKUP(C27,'Comp SINAPI MG 04-2025 Onerado'!$B$11:$F$9696,2,FALSE) -> CAIXA ENTERRADA HIDRÁULICA RETANGULAR, EM ALVENARIA COM BLOCOS DE CONCRETO, DIMENSÕES INTERNAS: 0,6X0,6X0,6 M PARA REDE DE ESGOTO. AF_12/2020 | E27: INHI - INSTALAÇÕES HIDROS SANITÁRIAS | F27: UN | G27: =VLOOKUP(C27,'Comp SINAPI MG 04-2025 Onerado'!$B$11:$F$9696,4,FALSE) -> 487.41 | H27: 0.0348 | I27: 16.96
A28: C | B28: SINAPI | C28: 91937 | D28: =VLOOKUP(C28,'Comp SINAPI MG 04-2025 Onerado'!$B$11:$F$9696,2,FALSE) -> CAIXA OCTOGONAL 3" X 3", PVC, INSTALADA EM LAJE - FORNECIMENTO E INSTALAÇÃO. AF_03/2023 | E28: INEL - INSTALAÇÃO ELÉTRICA/ELETRIFICAÇÃO E ILUMINAÇÃO EXTERNA | F28: UN | G28: =VLOOKUP(C28,'Comp SINAPI MG 04-2025 Onerado'!$B$11:$F$9696,4,FALSE) -> 17.86 | H28: 0.1392 | I28: 2.49
A29: C | B29: SINAPI | C29: 87903 | D29: =VLOOKUP(C29,'Comp SINAPI MG 04-2025 Onerado'!$B$11:$F$9696,2,FALSE) -> CHAPISCO APLICADO EM ALVENARIA (COM PRESENÇA DE VÃOS) E ESTRUTURAS DE CONCRETO DE FACHADA, COM ROLO PARA TEXTURA ACRÍLICA. ARGAMASSA INDUSTRIALIZADA COM PREPARO EM MISTURADOR 300 KG. AF_10/2022 | E29: REVE - REVESTIMENTO E TRATAMENTO DE SUPERFÍCIES | F29: m² | G29: =VLOOKUP(C29,'Comp SINAPI MG 04-2025 Onerado'!$B$11:$F$9696,4,FALSE) -> 11.2 | H29: 0.1681 | I29: 1.88
A30: C | B30: SINAPI | C30: 87885 | D30: =VLOOKUP(C30,'Comp SINAPI MG 04-2025 Onerado'!$B$11:$F$9696,2,FALSE) -> CHAPISCO APLICADO NO TETO OU EM ALVENARIA E ESTRUTURA, COM ROLO PARA TEXTURA ACRÍLICA. ARGAMASSA INDUSTRIALIZADA COM PREPARO EM MISTURADOR 300 KG. AF_10/2022 | E30: REVE - REVESTIMENTO E TRATAMENTO DE SUPERFÍCIES | F30: m² | G30: =VLOOKUP(C30,'Comp SINAPI MG 04-2025 Onerado'!$B$11:$F$9696,4,FALSE) -> 8.58 | H30: 0.7679 | I30: 6.59
A31: C | B31: SINAPI | C31: 90466 | D31: =VLOOKUP(C31,'Comp SINAPI MG 04-2025 Onerado'!$B$11:$F$9696,2,FALSE) -> CHUMBAMENTO LINEAR EM ALVENARIA PARA RAMAIS/DISTRIBUIÇÃO DE INSTALAÇÕES HIDRÁULICAS COM DIÂMETROS MENORES OU IGUAIS A 40 MM. AF_09/2023 | E31: INHI - INSTALAÇÕES HIDROS SANITÁRIAS | F31: M | G31: =VLOOKUP(C31,'Comp SINAPI MG 04-2025 Onerado'!$B$11:$F$9696,4,FALSE) -> 16.87 | H31: 0.0722 | I31: 1.22
A32: C | B32: SINAPI | C32: 100860 | D32: =VLOOKUP(C32,'Comp SINAPI MG 04-2025 Onerado'!$B$11:$F$9696,2,FALSE) -> CHUVEIRO ELÉTRICO COMUM CORPO PLÁSTICO, TIPO DUCHA - FORNECIMENTO E INSTALAÇÃO. AF_01/2020 | E32: INHI - INSTALAÇÕES HIDROS SANITÁRIAS | F32: UN | G32: =VLOOKUP(C32,'Comp SINAPI MG 04-2025 Onerado'!$B$11:$F$9696,4,FALSE) -> 103.37 | H32: 0.0696 | I32: 7.19
A33: C | B33: SINAPI | C33: 95805 | D33: =VLOOKUP(C33,'Comp SINAPI MG 04-2025 Onerado'!$B$11:$F$9696,2,FALSE) -> CONDULETE DE PVC, TIPO B, PARA ELETRODUTO DE PVC SOLDÁVEL DN 25 MM (3/4''), APARENTE - FORNECIMENTO E INSTALAÇÃO. AF_10/2022 | E33: INEL - INSTALAÇÃO ELÉTRICA/ELETRIFICAÇÃO E ILUMINAÇÃO EXTERNA | F33: UN | G33: =VLOOKUP(C33,'Comp SINAPI MG 04-2025 Onerado'!$B$11:$F$9696,4,FALSE) -> 26.41 | H33: 0.0174 | I33: 0.46
A34: C | B34: SINAPI | C34: 95811 | D34: =VLOOKUP(C34,'Comp SINAPI MG 04-2025 Onerado'!$B$11:$F$9696,2,FALSE) -> CONDULETE DE PVC, TIPO LB, PARA ELETRODUTO DE PVC SOLDÁVEL DN 25 MM (3/4''), APARENTE - FORNECIMENTO E INSTALAÇÃO. AF_10/2022 | E34: INEL - INSTALAÇÃO ELÉTRICA/ELETRIFICAÇÃO E ILUMINAÇÃO EXTERNA | F34: UN | G34: =VLOOKUP(C34,'Comp SINAPI MG 04-2025 Onerado'!$B$11:$F$9696,4,FALSE) -> 22.36 | H34: 0.0522 | I34: 1.17
A35: C | B35: SINAPI | C35: 91911 | D35: =VLOOKUP(C35,'Comp SINAPI MG 04-2025 Onerado'!$B$11:$F$9696,2,FALSE) -> CURVA 90 GRAUS PARA ELETRODUTO, PVC, ROSCÁVEL, DN 20 MM (1/2"), PARA CIRCUITOS TERMINAIS, INSTALADA EM PAREDE - FORNECIMENTO E INSTALAÇÃO. AF_03/2023 | E35: INEL - INSTALAÇÃO ELÉTRICA/ELETRIFICAÇÃO E ILUMINAÇÃO EXTERNA | F35: UN | G35: =VLOOKUP(C35,'Comp SINAPI MG 04-2025 Onerado'!$B$11:$F$9696,4,FALSE) -> 18.85 | H35: 0.0696 | I35: 1.31
A36: C | B36: SINAPI | C36: 91890 | D36: =VLOOKUP(C36,'Comp SINAPI MG 04-2025 Onerado'!$B$11:$F$9696,2,FALSE) -> CURVA 90 GRAUS PARA ELETRODUTO, PVC, ROSCÁVEL, DN 25 MM (3/4"), PARA CIRCUITOS TERMINAIS, INSTALADA EM FORRO - FORNECIMENTO E INSTALAÇÃO. AF_03/2023 | E36: INEL - INSTALAÇÃO ELÉTRICA/ELETRIFICAÇÃO E ILUMINAÇÃO EXTERNA | F36: UN | G36: =VLOOKUP(C36,'Comp SINAPI MG 04-2025 Onerado'!$B$11:$F$9696,4,FALSE) -> 15.11 | H36: 0.0174 | I36: 0.26
A37: C | B37: SINAPI | C37: 89748 | D37: =VLOOKUP(C37,'Comp SINAPI MG 04-2025 Onerado'!$B$11:$F$9696,2,FALSE) -> CURVA CURTA 90 GRAUS, PVC, SERIE NORMAL, ESGOTO PREDIAL, DN 100 MM, JUNTA ELÁSTICA, FORNECIDO E INSTALADO EM RAMAL DE DESCARGA OU RAMAL DE ESGOTO SANITÁRIO. AF_08/2022 | E37: INHI - INSTALAÇÕES HIDROS SANITÁRIAS | F37: UN | G37: =VLOOKUP(C37,'Comp SINAPI MG 04-2025 Onerado'!$B$11:$F$9696,4,FALSE) -> 41.85 | H37: 0.0522 | I37: 2.18
A38: C | B38: SINAPI | C38: 101891 | D38: =VLOOKUP(C38,'Comp SINAPI MG 04-2025 Onerado'!$B$11:$F$9696,2,FALSE) -> DISJUNTOR MONOPOLAR TIPO NEMA, CORRENTE NOMINAL DE 35 ATÉ 50A - FORNECIMENTO E INSTALAÇÃO. AF_10/2020 | E38: INEL - INSTALAÇÃO ELÉTRICA/ELETRIFICAÇÃO E ILUMINAÇÃO EXTERNA | F38: UN | G38: =VLOOKUP(C38,'Comp SINAPI MG 04-2025 Onerado'!$B$11:$F$9696,4,FALSE) -> 34.39 | H38: 0.1044 | I38: 3.59
A39: C | B39: SINAPI | C39: 91862 | D39: =VLOOKUP(C39,'Comp SINAPI MG 04-2025 Onerado'!$B$11:$F$9696,2,FALSE) -> ELETRODUTO RÍGIDO ROSCÁVEL, PVC, DN 20 MM (1/2"), PARA CIRCUITOS TERMINAIS, INSTALADO EM FORRO - FORNECIMENTO E INSTALAÇÃO. AF_03/2023 | E39: INEL - INSTALAÇÃO ELÉTRICA/ELETRIFICAÇÃO E ILUMINAÇÃO EXTERNA | F39: M | G39: =VLOOKUP(C39,'Comp SINAPI MG 04-2025 Onerado'!$B$11:$F$9696,4,FALSE) -> 10.64 | H39: 0.3307 | I39: 3.52
A40: C | B40: SINAPI | C40: 91870 | D40: =VLOOKUP(C40,'Comp SINAPI MG 04-2025 Onerado'!$B$11:$F$9696,2,FALSE) -> ELETRODUTO RÍGIDO ROSCÁVEL, PVC, DN 20 MM (1/2"), PARA CIRCUITOS TERMINAIS, INSTALADO EM PAREDE - FORNECIMENTO E INSTALAÇÃO. AF_03/2023 | E40: INEL - INSTALAÇÃO ELÉTRICA/ELETRIFICAÇÃO E ILUMINAÇÃO EXTERNA | F40: M | G40: =VLOOKUP(C40,'Comp SINAPI MG 04-2025 Onerado'!$B$11:$F$9696,4,FALSE) -> 13.95 | H40: 0.1566 | I40: 2.18
A41: C | B41: SINAPI | C41: 91863 | D41: =VLOOKUP(C41,'Comp SINAPI MG 04-2025 Onerado'!$B$11:$F$9696,2,FALSE) -> ELETRODUTO RÍGIDO ROSCÁVEL, PVC, DN 25 MM (3/4"), PARA CIRCUITOS TERMINAIS, INSTALADO EM FORRO - FORNECIMENTO E INSTALAÇÃO. AF_03/2023 | E41: INEL - INSTALAÇÃO ELÉTRICA/ELETRIFICAÇÃO E ILUMINAÇÃO EXTERNA | F41: M | G41: =VLOOKUP(C41,'Comp SINAPI MG 04-2025 Onerado'!$B$11:$F$9696,4,FALSE) -> 12.58 | H41: 0.1305 | I41: 1.64
A42: C | B42: SINAPI | C42: 91871 | D42: =VLOOKUP(C42,'Comp SINAPI MG 04-2025 Onerado'!$B$11:$F$9696,2,FALSE) -> ELETRODUTO RÍGIDO ROSCÁVEL, PVC, DN 25 MM (3/4"), PARA CIRCUITOS TERMINAIS, INSTALADO EM PAREDE - FORNECIMENTO E INSTALAÇÃO. AF_03/2023 | E42: INEL - INSTALAÇÃO ELÉTRICA/ELETRIFICAÇÃO E ILUMINAÇÃO EXTERNA | F42: M | G42: =VLOOKUP(C42,'Comp SINAPI MG 04-2025 Onerado'!$B$11:$F$9696,4,FALSE) -> 15.89 | H42: 0.0261 | I42: 0.41
A43: C | B43: SINAPI | C43: 87777 | D43: =VLOOKUP(C43,'Comp SINAPI MG 04-2025 Onerado'!$B$11:$F$9696,2,FALSE) -> EMBOÇO OU MASSA ÚNICA EM ARGAMASSA TRAÇO 1:2:8, PREPARO MANUAL, APLICADA MANUALMENTE EM PANOS DE FACHADA COM PRESENÇA DE VÃOS, ESPESSURA DE 25 MM. AF_08/2022 | E43: REVE - REVESTIMENTO E TRATAMENTO DE SUPERFÍCIES | F43: m² | G43: =VLOOKUP(C43,'Comp SINAPI MG 04-2025 Onerado'!$B$11:$F$9696,4,FALSE) -> 63.82 | H43: 0.1681 | I43: 10.73
A44: C | B44: SINAPI | C44: 93358 | D44: =VLOOKUP(C44,'Comp SINAPI MG 04-2025 Onerado'!$B$11:$F$9696,2,FALSE) -> ESCAVAÇÃO MANUAL DE VALA. AF_09/2024 | E44: MOVT - MOVIMENTO DE TERRA | F44: m³ | G44: =VLOOKUP(C44,'Comp SINAPI MG 04-2025 Onerado'!$B$11:$F$9696,4,FALSE) -> 89.55 | H44: 0.0279 | I44: 2.5
A45: C | B45: SINAPI | C45: 91305 | D45: =VLOOKUP(C45,'Comp SINAPI MG 04-2025 Onerado'!$B$11:$F$9696,2,FALSE) -> FECHADURA DE EMBUTIR PARA PORTA DE BANHEIRO, COMPLETA, ACABAMENTO PADRÃO POPULAR, INCLUSO EXECUÇÃO DE FURO - FORNECIMENTO E INSTALAÇÃO. AF_12/2019 | E45: ESQV - ESQUADRIAS/FERRAGENS/VIDROS | F45: UN | G45: =VLOOKUP(C45,'Comp SINAPI MG 04-2025 Onerado'!$B$11:$F$9696,4,FALSE) -> 110.84 | H45: 0.0522 | I45: 5.79
A46: C | B46: SINAPI | C46: 91170 | D46: =VLOOKUP(C46,'Comp SINAPI MG 04-2025 Onerado'!$B$11:$F$9696,2,FALSE) -> FIXAÇÃO DE TUBOS HORIZONTAIS DE PVC ÁGUA, PVC ESGOTO, PVC ÁGUA PLUVIAL, CPVC, PPR, COBRE OU AÇO, DIÂMETROS MENORES OU IGUAIS A 40 MM, COM ABRAÇADEIRA METÁLICA RÍGIDA TIPO U PERFIL 1 1/4", FIXADA EM PERFILADO EM LAJE. AF_09/2023_PS | E46: INHI - INSTALAÇÕES HIDROS SANITÁRIAS | F46: M | G46: =VLOOKUP(C46,'Comp SINAPI MG 04-2025 Onerado'!$B$11:$F$9696,4,FALSE) -> 10.5 | H46: 0.4612 | I46: 4.84
A47: C | B47: SINAPI | C47: 91173 | D47: =VLOOKUP(C47,'Comp SINAPI MG 04-2025 Onerado'!$B$11:$F$9696,2,FALSE) -> FIXAÇÃO DE TUBOS VERTICAIS DE PVC ÁGUA, PVC ESGOTO, PVC ÁGUA PLUVIAL, CPVC, PPR, COBRE OU AÇO, DIÂMETROS MENORES OU IGUAIS A 40 MM, COM ABRAÇADEIRA METÁLICA RÍGIDA TIPO U PERFIL 1 1/4", FIXADA EM PERFILADO EM PAREDE. AF_09/2023_PS | E47: INHI - INSTALAÇÕES HIDROS SANITÁRIAS | F47: M | G47: =VLOOKUP(C47,'Comp SINAPI MG 04-2025 Onerado'!$B$11:$F$9696,4,FALSE) -> 3.91 | H47: 0.1827 | I47: 0.71
A48: C | B48: SINAPI | C48: 96985 | D48: =VLOOKUP(C48,'Comp SINAPI MG 04-2025 Onerado'!$B$11:$F$9696,2,FALSE) -> HASTE DE ATERRAMENTO, DIÂMETRO 5/8", COM 3 METROS - FORNECIMENTO E INSTALAÇÃO. AF_08/2023 | E48: INEL - INSTALAÇÃO ELÉTRICA/ELETRIFICAÇÃO E ILUMINAÇÃO EXTERNA | F48: UN | G48: =VLOOKUP(C48,'Comp SINAPI MG 04-2025 Onerado'!$B$11:$F$9696,4,FALSE) -> 116.95 | H48: 0.0522 | I48: 6.1
A49: C | B49: SINAPI | C49: 91959 | D49: =VLOOKUP(C49,'Comp SINAPI MG 04-2025 Onerado'!$B$11:$F$9696,2,FALSE) -> INTERRUPTOR SIMPLES (2 MÓDULOS), 10A/250V, INCLUINDO SUPORTE E PLACA - FORNECIMENTO E INSTALAÇÃO. AF_03/2023 | E49: INEL - INSTALAÇÃO ELÉTRICA/ELETRIFICAÇÃO E ILUMINAÇÃO EXTERNA | F49: UN | G49: =VLOOKUP(C49,'Comp SINAPI MG 04-2025 Onerado'!$B$11:$F$9696,4,FALSE) -> 47.99 | H49: 0.0174 | I49: 0.84
A50: C | B50: SINAPI | C50: 91967 | D50: =VLOOKUP(C50,'Comp SINAPI MG 04-2025 Onerado'!$B$11:$F$9696,2,FALSE) -> INTERRUPTOR SIMPLES (3 MÓDULOS), 10A/250V, INCLUINDO SUPORTE E PLACA - FORNECIMENTO E INSTALAÇÃO. AF_03/2023 | E50: INEL - INSTALAÇÃO ELÉTRICA/ELETRIFICAÇÃO E ILUMINAÇÃO EXTERNA | F50: UN | G50: =VLOOKUP(C50,'Comp SINAPI MG 04-2025 Onerado'!$B$11:$F$9696,4,FALSE) -> 64.42 | H50: 0.0174 | I50: 1.12
A51: C | B51: SINAPI | C51: 94559 | D51: =VLOOKUP(C51,'Comp SINAPI MG 04-2025 Onerado'!$B$11:$F$9696,2,FALSE) -> JANELA DE AÇO TIPO BASCULANTE, PARA VIDROS (VIDROS NÃO INCLUSOS), BATENTE/ REQUADRO INCLUSO (6,5 A 14 CM), DIMENSÕES 60X60 CM, COM COM PINTURA ANTICORROSIVA, SEM ACABAMENTO, COM FERRAGENS, FIXAÇÃO COM ARGAMASSA, EXCLUSIVE CONTRAMARCO - FORNECIMENTO E INSTALAÇÃO. AF_11/2024 | E51: ESQV - ESQUADRIAS/FERRAGENS/VIDROS | F51: m² | G51: =VLOOKUP(C51,'Comp SINAPI MG 04-2025 Onerado'!$B$11:$F$9696,4,FALSE) -> 752.16 | H51: 0.0905 | I51: 68.07
A52: C | B52: SINAPI | C52: 89724 | D52: =VLOOKUP(C52,'Comp SINAPI MG 04-2025 Onerado'!$B$11:$F$9696,2,FALSE) -> JOELHO 90 GRAUS, PVC, SERIE NORMAL, ESGOTO PREDIAL, DN 40 MM, JUNTA SOLDÁVEL, FORNECIDO E INSTALADO EM RAMAL DE DESCARGA OU RAMAL DE ESGOTO SANITÁRIO. AF_08/2022 | E52: INHI - INSTALAÇÕES HIDROS SANITÁRIAS | F52: UN | G52: =VLOOKUP(C52,'Comp SINAPI MG 04-2025 Onerado'!$B$11:$F$9696,4,FALSE) -> 10.71 | H52: 0.174 | I52: 1.86
A53: C | B53: SINAPI | C53: 89731 | D53: =VLOOKUP(C53,'Comp SINAPI MG 04-2025 Onerado'!$B$11:$F$9696,2,FALSE) -> JOELHO 90 GRAUS, PVC, SERIE NORMAL, ESGOTO PREDIAL, DN 50 MM, JUNTA ELÁSTICA, FORNECIDO E INSTALADO EM RAMAL DE DESCARGA OU RAMAL DE ESGOTO SANITÁRIO. AF_08/2022 | E53: INHI - INSTALAÇÕES HIDROS SANITÁRIAS | F53: UN | G53: =VLOOKUP(C53,'Comp SINAPI MG 04-2025 Onerado'!$B$11:$F$9696,4,FALSE) -> 15.11 | H53: 0.0174 | I53: 0.26
A54: C | B54: SINAPI | C54: 89970 | D54: KIT DE REGISTRO DE PRESSÃO BRUTO DE LATÃO ¾", INCLUSIVE CONEXÕES, ROSCÁVEL, INSTALADO EM RAMAL DE ÁGUA FRIA - FORNECIMENTO E INSTALAÇÃO. AF_12/2014 | E54: INHI - INSTALAÇÕES HIDROS SANITÁRIAS | F54: UN | G54: =SUM(I55:I57) -> 66.04 | H54: 0.0696 | I54: 4.6
A55: C | B55: SINAPI | C55: 89383 | D55: =VLOOKUP(C55,'Comp SINAPI MG 04-2025 Onerado'!$B$11:$F$9696,2,FALSE) -> ADAPTADOR CURTO COM BOLSA E ROSCA PARA REGISTRO, PVC, SOLDÁVEL, DN 25MM X 3/4, INSTALADO EM RAMAL OU SUB-RAMAL DE ÁGUA - FORNECIMENTO E INSTALAÇÃO. AF_06/2022 | E55: INHI - INSTALAÇÕES HIDROS SANITÁRIAS | F55: UN | G55: =VLOOKUP(C55,'Comp SINAPI MG 04-2025 Onerado'!$B$11:$F$9696,4,FALSE) -> 7.01 | H55: 1 | I55: =ROUND(G55*H55,2) -> 7.01
A56: C | B56: SINAPI | C56: 89385 | D56: =VLOOKUP(C56,'Comp SINAPI MG 04-2025 Onerado'!$B$11:$F$9696,2,FALSE) -> LUVA SOLDÁVEL E COM ROSCA, PVC, SOLDÁVEL, DN 25MM X 3/4, INSTALADO EM RAMAL OU SUB-RAMAL DE ÁGUA - FORNECIMENTO E INSTALAÇÃO. AF_06/2022 | E56: INHI - INSTALAÇÕES HIDROS SANITÁRIAS | F56: UN | G56: =VLOOKUP(C56,'Comp SINAPI MG 04-2025 Onerado'!$B$11:$F$9696,4,FALSE) -> 7.63 | H56: 1 | I56: =ROUND(G56*H56,2) -> 7.63
A57: C | B57: SINAPI | C57: 89351 | D57: =VLOOKUP(C57,'Comp SINAPI MG 04-2025 Onerado'!$B$11:$F$9696,2,FALSE) -> REGISTRO DE PRESSÃO BRUTO, LATÃO, ROSCÁVEL, 3/4'' - FORNECIMENTO E INSTALAÇÃO. AF_08/2021 | E57: INHI - INSTALAÇÕES HIDROS SANITÁRIAS | F57: UN | G57: =VLOOKUP(C57,'Comp SINAPI MG 04-2025 Onerado'!$B$11:$F$9696,4,FALSE) -> 51.4 | H57: 1 | I57: 51.4
A58: C | B58: SINAPI | C58: 95240 | D58: =VLOOKUP(C58,'Comp SINAPI MG 04-2025 Onerado'!$B$11:$F$9696,2,FALSE) -> LASTRO DE CONCRETO MAGRO, APLICADO EM PISOS, LAJES SOBRE SOLO OU RADIERS, ESPESSURA DE 3 CM. AF_01/2024 | E58: FUES - FUNDAÇÕES E ESTRUTURAS | F58: m² | G58: =VLOOKUP(C58,'Comp SINAPI MG 04-2025 Onerado'!$B$11:$F$9696,4,FALSE) -> 21.71 | H58: 0.0064 | I58: 0.14
A59: C | B59: SINAPI | C59: 95241 | D59: =VLOOKUP(C59,'Comp SINAPI MG 04-2025 Onerado'!$B$11:$F$9696,2,FALSE) -> LASTRO DE CONCRETO MAGRO, APLICADO EM PISOS, LAJES SOBRE SOLO OU RADIERS, ESPESSURA DE 5 CM. AF_01/2024 | E59: FUES - FUNDAÇÕES E ESTRUTURAS | F59: m² | G59: =VLOOKUP(C59,'Comp SINAPI MG 04-2025 Onerado'!$B$11:$F$9696,4,FALSE) -> 41.81 | H59: 1.3328 | I59: 55.72
A60: C | B60: SINAPI | C60: 86943 | D60: =VLOOKUP(C60,'Comp SINAPI MG 04-2025 Onerado'!$B$11:$F$9696,2,FALSE) -> LAVATÓRIO LOUÇA BRANCA SUSPENSO, 29,5 X 39CM OU EQUIVALENTE, PADRÃO POPULAR, INCLUSO SIFÃO FLEXÍVEL EM PVC, VÁLVULA E ENGATE FLEXÍVEL 30CM EM PLÁSTICO E TORNEIRA CROMADA DE MESA, PADRÃO POPULAR - FORNECIMENTO E INSTALAÇÃO. AF_01/2020 | E60: INHI - INSTALAÇÕES HIDROS SANITÁRIAS | F60: UN | G60: =VLOOKUP(C60,'Comp SINAPI MG 04-2025 Onerado'!$B$11:$F$9696,4,FALSE) -> 274.51 | H60: 0.0522 | I60: 14.33
A61: C | B61: SINAPI | C61: 97586 | D61: LUMINÁRIA TIPO CALHA, DE SOBREPOR, COM 2 LÂMPADAS TUBULARES FLUORESCENTES DE 36 W, COM REATOR DE PARTIDA RÁPIDA - FORNECIMENTO E INSTALAÇÃO. AF_02/2020 | E61: INEL - INSTALAÇÃO ELÉTRICA/ELETRIFICAÇÃO E ILUMINAÇÃO EXTERNA | F61: UN | G61: =SUM(I62:I64) -> 223.32 | H61: 0.1392 | I61: 31.09
A62: C | B62: SINAPI | C62: 88247 | D62: =VLOOKUP(C62,'Comp SINAPI MG 04-2025 Onerado'!$B$11:$F$9696,2,FALSE) -> AUXILIAR DE ELETRICISTA COM ENCARGOS COMPLEMENTARES | E62: SEDI - SERVIÇOS DIVERSOS | F62: H | G62: =VLOOKUP(C62,'Comp SINAPI MG 04-2025 Onerado'!$B$11:$F$9696,4,FALSE) -> 25.52 | H62: 0.1727 | I62: =ROUND(G62*H62,2) -> 4.41
A63: C | B63: SINAPI | C63: 88264 | D63: =VLOOKUP(C63,'Comp SINAPI MG 04-2025 Onerado'!$B$11:$F$9696,2,FALSE) -> ELETRICISTA COM ENCARGOS COMPLEMENTARES | E63: SEDI - SERVIÇOS DIVERSOS | F63: H | G63: =VLOOKUP(C63,'Comp SINAPI MG 04-2025 Onerado'!$B$11:$F$9696,4,FALSE) -> 31.63 | H63: 0.4144 | I63: =ROUND(G63*H63,2) -> 13.11
A64: I | B64: SINAPI | C64: 3780 | D64: =VLOOKUP(C64,'Ins SINAPI MG 04-2025 Onerado'!$B$11:$F$9696,2,FALSE) -> LUMINARIA DE SOBREPOR EM CHAPA DE ACO PARA 1 LAMPADA FLUORESCENTE DE *36* W, ALETADA, COMPLETA (LAMPADA E REATOR INCLUSOS) | E64: Material | F64: UN | G64: 102.9 | H64: 2 | I64: =ROUND(G64*H64,2) -> 205.8
A65: C | B65: SINAPI | C65: 91882 | D65: =VLOOKUP(C65,'Comp SINAPI MG 04-2025 Onerado'!$B$11:$F$9696,2,FALSE) -> LUVA PARA ELETRODUTO, PVC, ROSCÁVEL, DN 20 MM (1/2"), PARA CIRCUITOS TERMINAIS, INSTALADA EM PAREDE - FORNECIMENTO E INSTALAÇÃO. AF_03/2023 | E65: INEL - INSTALAÇÃO ELÉTRICA/ELETRIFICAÇÃO E ILUMINAÇÃO EXTERNA | F65: UN | G65: =VLOOKUP(C65,'Comp SINAPI MG 04-2025 Onerado'!$B$11:$F$9696,4,FALSE) -> 11.31 | H65: 0.0348 | I65: 0.39
A66: C | B66: SINAPI | C66: 91875 | D66: =VLOOKUP(C66,'Comp SINAPI MG 04-2025 Onerado'!$B$11:$F$9696,2,FALSE) -> LUVA PARA ELETRODUTO, PVC, ROSCÁVEL, DN 25 MM (3/4"), PARA CIRCUITOS TERMINAIS, INSTALADA EM FORRO - FORNECIMENTO E INSTALAÇÃO. AF_03/2023 | E66: INEL - INSTALAÇÃO ELÉTRICA/ELETRIFICAÇÃO E ILUMINAÇÃO EXTERNA | F66: UN | G66: =VLOOKUP(C66,'Comp SINAPI MG 04-2025 Onerado'!$B$11:$F$9696,4,FALSE) -> 9.27 | H66: 0.0348 | I66: 0.32
A67: C | B67: SINAPI | C67: 87548 | D67: =VLOOKUP(C67,'Comp SINAPI MG 04-2025 Onerado'!$B$11:$F$9696,2,FALSE) -> MASSA ÚNICA, EM ARGAMASSA TRAÇO 1:2:8, PREPARO MANUAL, APLICADA MANUALMENTE EM PAREDES INTERNAS DE AMBIENTES COM ÁREA ENTRE 5M² E 10M², E = 10MM, COM TALISCAS. AF_03/2024 | E67: REVE - REVESTIMENTO E TRATAMENTO DE SUPERFÍCIES | F67: m² | G67: =VLOOKUP(C67,'Comp SINAPI MG 04-2025 Onerado'!$B$11:$F$9696,4,FALSE) -> 31.34 | H67: 0.1894 | I67: 5.94
A68: C | B68: SINAPI | C68: 98445 | D68: =VLOOKUP(C68,'Comp SINAPI MG 04-2025 Onerado'!$B$11:$F$9696,2,FALSE) -> PAREDE DE MADEIRA COMPENSADA PARA CONSTRUÇÃO TEMPORÁRIA EM CHAPA SIMPLES, EXTERNA, COM ÁREA LÍQUIDA MAIOR OU IGUAL A 6 M², COM VÃO. AF_03/2024 | E68: CANT - CANTEIRO DE OBRAS | F68: m² | G68: =VLOOKUP(C68,'Comp SINAPI MG 04-2025 Onerado'!$B$11:$F$9696,4,FALSE) -> 117.93 | H68: 0.4081 | I68: 48.13
A69: C | B69: SINAPI | C69: 98441 | D69: =VLOOKUP(C69,'Comp SINAPI MG 04-2025 Onerado'!$B$11:$F$9696,2,FALSE) -> PAREDE DE MADEIRA COMPENSADA PARA CONSTRUÇÃO TEMPORÁRIA EM CHAPA SIMPLES, EXTERNA, SEM VÃO. AF_03/2024 | E69: CANT - CANTEIRO DE OBRAS | F69: m² | G69: =VLOOKUP(C69,'Comp SINAPI MG 04-2025 Onerado'!$B$11:$F$9696,4,FALSE) -> 100.56 | H69: 0.2612 | I69: 26.27
A70: C | B70: SINAPI | C70: 98446 | D70: =VLOOKUP(C70,'Comp SINAPI MG 04-2025 Onerado'!$B$11:$F$9696,2,FALSE) -> PAREDE DE MADEIRA COMPENSADA PARA CONSTRUÇÃO TEMPORÁRIA EM CHAPA SIMPLES, EXTERNA, COM ÁREA LÍQUIDA MENOR QUE 6 M², COM VÃO. AF_03/2024 | E70: CANT - CANTEIRO DE OBRAS | F70: m² | G70: =VLOOKUP(C70,'Comp SINAPI MG 04-2025 Onerado'!$B$11:$F$9696,4,FALSE) -> 150.24 | H70: 0.3182 | I70: 47.81
A71: C | B71: SINAPI | C71: 98441 | D71: =VLOOKUP(C71,'Comp SINAPI MG 04-2025 Onerado'!$B$11:$F$9696,2,FALSE) -> PAREDE DE MADEIRA COMPENSADA PARA CONSTRUÇÃO TEMPORÁRIA EM CHAPA SIMPLES, EXTERNA, SEM VÃO. AF_03/2024 | E71: CANT - CANTEIRO DE OBRAS | F71: m² | G71: =VLOOKUP(C71,'Comp SINAPI MG 04-2025 Onerado'!$B$11:$F$9696,4,FALSE) -> 100.56 | H71: 0.3007 | I71: 30.24
A72: C | B72: SINAPI | C72: 98447 | D72: =VLOOKUP(C72,'Comp SINAPI MG 04-2025 Onerado'!$B$11:$F$9696,2,FALSE) -> PAREDE DE MADEIRA COMPENSADA PARA CONSTRUÇÃO TEMPORÁRIA EM CHAPA SIMPLES, INTERNA, COM ÁREA LÍQUIDA MAIOR OU IGUAL A 6 M², COM VÃO. AF_03/2024 | E72: CANT - CANTEIRO DE OBRAS | F72: m² | G72: =VLOOKUP(C72,'Comp SINAPI MG 04-2025 Onerado'!$B$11:$F$9696,4,FALSE) -> 91.95 | H72: 0.1297 | I72: 11.93
A73: C | B73: SINAPI | C73: 98443 | D73: =VLOOKUP(C73,'Comp SINAPI MG 04-2025 Onerado'!$B$11:$F$9696,2,FALSE) -> PAREDE DE MADEIRA COMPENSADA PARA CONSTRUÇÃO TEMPORÁRIA EM CHAPA SIMPLES, INTERNA, SEM VÃO. AF_03/2024 | E73: CANT - CANTEIRO DE OBRAS | F73: m² | G73: =VLOOKUP(C73,'Comp SINAPI MG 04-2025 Onerado'!$B$11:$F$9696,4,FALSE) -> 78.3 | H73: 0.083 | I73: 6.5
A74: C | B74: SINAPI | C74: 98448 | D74: =VLOOKUP(C74,'Comp SINAPI MG 04-2025 Onerado'!$B$11:$F$9696,2,FALSE) -> PAREDE DE MADEIRA COMPENSADA PARA CONSTRUÇÃO TEMPORÁRIA EM CHAPA SIMPLES, INTERNA, COM ÁREA LÍQUIDA MENOR QUE 6 M², COM VÃO. AF_03/2024 | E74: CANT - CANTEIRO DE OBRAS | F74: m² | G74: =VLOOKUP(C74,'Comp SINAPI MG 04-2025 Onerado'!$B$11:$F$9696,4,FALSE) -> 117.6 | H74: 0.1011 | I74: 11.89
A75: C | B75: SINAPI | C75: 98443 | D75: =VLOOKUP(C75,'Comp SINAPI MG 04-2025 Onerado'!$B$11:$F$9696,2,FALSE) -> PAREDE DE MADEIRA COMPENSADA PARA CONSTRUÇÃO TEMPORÁRIA EM CHAPA SIMPLES, INTERNA, SEM VÃO. AF_03/2024 | E75: CANT - CANTEIRO DE OBRAS | F75: m² | G75: =VLOOKUP(C75,'Comp SINAPI MG 04-2025 Onerado'!$B$11:$F$9696,4,FALSE) -> 78.3 | H75: 0.0956 | I75: 7.49
A76: C | B76: SINAPI | C76: 88489 | D76: =VLOOKUP(C76,'Comp SINAPI MG 04-2025 Onerado'!$B$11:$F$9696,2,FALSE) -> PINTURA LÁTEX ACRÍLICA PREMIUM, APLICAÇÃO MANUAL EM PAREDES, DUAS DEMÃOS. AF_04/2023 | E76: PINT - PINTURAS | F76: m² | G76: =VLOOKUP(C76,'Comp SINAPI MG 04-2025 Onerado'!$B$11:$F$9696,4,FALSE) -> 13.55 | H76: 2.4442 | I76: =ROUND(G76*H76,2) -> 33.12
A77: C | B77: SINAPI | C77: 98679 | D77: =VLOOKUP(C77,'Comp SINAPI MG 04-2025 Onerado'!$B$11:$F$9696,2,FALSE) -> PISO CIMENTADO, TRAÇO 1:3 (CIMENTO E AREIA), ACABAMENTO LISO, ESPESSURA 2,0 CM, PREPARO MECÂNICO DA ARGAMASSA. AF_09/2020 | E77: PISO - PISOS | F77: m² | G77: =VLOOKUP(C77,'Comp SINAPI MG 04-2025 Onerado'!$B$11:$F$9696,4,FALSE) -> 43.89 | H77: 0.5134 | I77: 22.53
A78: C | B78: SINAPI | C78: 89957 | D78: PONTO DE CONSUMO TERMINAL DE ÁGUA FRIA (SUBRAMAL) COM TUBULAÇÃO DE PVC, DN 25 MM, INSTALADO EM RAMAL DE ÁGUA, INCLUSOS RASGO E CHUMBAMENTO EM ALVENARIA. AF_12/2014 (ADAPTADO) | E78: INHI - INSTALAÇÕES HIDROS SANITÁRIAS | F78: UN | G78: =SUM(I79:I84) -> 150.35 | H78: 0.174 | I78: 26.16
A79: C | B79: SINAPI | C79: 90466 | D79: =VLOOKUP(C79,'Comp SINAPI MG 04-2025 Onerado'!$B$11:$F$9696,2,FALSE) -> CHUMBAMENTO LINEAR EM ALVENARIA PARA RAMAIS/DISTRIBUIÇÃO DE INSTALAÇÕES HIDRÁULICAS COM DIÂMETROS MENORES OU IGUAIS A 40 MM. AF_09/2023 | E79: Material | F79: M | G79: =VLOOKUP(C79,'Comp SINAPI MG 04-2025 Onerado'!$B$11:$F$9696,4,FALSE) -> 16.87 | H79: 2.14 | I79: 36.1
A80: C | B80: SINAPI | C80: 89366 | D80: =VLOOKUP(C80,'Comp SINAPI MG 04-2025 Onerado'!$B$11:$F$9696,2,FALSE) -> JOELHO 90 GRAUS COM BUCHA DE LATÃO, PVC, SOLDÁVEL, DN 25MM, X 3/4 INSTALADO EM RAMAL OU SUB-RAMAL DE ÁGUA - FORNECIMENTO E INSTALAÇÃO. AF_06/2022 | E80: Material | F80: UN | G80: =VLOOKUP(C80,'Comp SINAPI MG 04-2025 Onerado'!$B$11:$F$9696,4,FALSE) -> 16.66 | H80: 1 | I80: 16.66
A81: C | B81: SINAPI | C81: 89362 | D81: =VLOOKUP(C81,'Comp SINAPI MG 04-2025 Onerado'!$B$11:$F$9696,2,FALSE) -> JOELHO 90 GRAUS, PVC, SOLDÁVEL, DN 25MM, INSTALADO EM RAMAL OU SUB-RAMAL DE ÁGUA - FORNECIMENTO E INSTALAÇÃO. AF_06/2022 | E81: Material | F81: UN | G81: =VLOOKUP(C81,'Comp SINAPI MG 04-2025 Onerado'!$B$11:$F$9696,4,FALSE) -> 10.17 | H81: 1.18 | I81: 12
A82: C | B82: SINAPI | C82: 90443 | D82: =VLOOKUP(C82,'Comp SINAPI MG 04-2025 Onerado'!$B$11:$F$9696,2,FALSE) -> RASGO LINEAR MANUAL EM ALVENARIA, PARA RAMAIS/ DISTRIBUIÇÃO DE INSTALAÇÕES HIDRÁULICAS, DIÂMETROS MENORES OU IGUAIS A 40 MM. AF_09/2023 | E82: Material | F82: M | G82: =VLOOKUP(C82,'Comp SINAPI MG 04-2025 Onerado'!$B$11:$F$9696,4,FALSE) -> 8.76 | H82: 2.14 | I82: 18.75
A83: C | B83: SINAPI | C83: 89395 | D83: =VLOOKUP(C83,'Comp SINAPI MG 04-2025 Onerado'!$B$11:$F$9696,2,FALSE) -> TE, PVC, SOLDÁVEL, DN 25MM, INSTALADO EM RAMAL OU SUB-RAMAL DE ÁGUA - FORNECIMENTO E INSTALAÇÃO. AF_06/2022 | E83: Material | F83: UN | G83: =VLOOKUP(C83,'Comp SINAPI MG 04-2025 Onerado'!$B$11:$F$9696,4,FALSE) -> 13.96 | H83: 0.89 | I83: 12.42
A84: C | B84: SINAPI | C84: 89356 | D84: =VLOOKUP(C84,'Comp SINAPI MG 04-2025 Onerado'!$B$11:$F$9696,2,FALSE) -> TUBO, PVC, SOLDÁVEL, DE 25MM, INSTALADO EM RAMAL OU SUB-RAMAL DE ÁGUA - FORNECIMENTO E INSTALAÇÃO. AF_06/2022 | E84: Material | F84: M | G84: =VLOOKUP(C84,'Comp SINAPI MG 04-2025 Onerado'!$B$11:$F$9696,4,FALSE) -> 25.43 | H84: 2.14 | I84: 54.42
A85: C | B85: SINAPI | C85: 90822 | D85: =VLOOKUP(C85,'Comp SINAPI MG 04-2025 Onerado'!$B$11:$F$9696,2,FALSE) -> PORTA DE MADEIRA PARA PINTURA, SEMI-OCA (LEVE OU MÉDIA), 80X210CM, ESPESSURA DE 3,5CM, INCLUSO DOBRADIÇAS - FORNECIMENTO E INSTALAÇÃO. AF_12/2019 | E85: ESQV - ESQUADRIAS/FERRAGENS/VIDROS | F85: UN | G85: =VLOOKUP(C85,'Comp SINAPI MG 04-2025 Onerado'!$B$11:$F$9696,4,FALSE) -> 360.6 | H85: 0.0348 | I85: 12.55
A86: C | B86: SINAPI | C86: 101876 | D86: =VLOOKUP(C86,'Comp SINAPI MG 04-2025 Onerado'!$B$11:$F$9696,2,FALSE) -> QUADRO DE DISTRIBUIÇÃO DE ENERGIA EM PVC, DE EMBUTIR, SEM BARRAMENTO, PARA 6 DISJUNTORES - FORNECIMENTO E INSTALAÇÃO. AF_10/2020 | E86: INEL - INSTALAÇÃO ELÉTRICA/ELETRIFICAÇÃO E ILUMINAÇÃO EXTERNA | F86: UN | G86: =VLOOKUP(C86,'Comp SINAPI MG 04-2025 Onerado'!$B$11:$F$9696,4,FALSE) -> 88.79 | H86: 0.0174 | I86: 1.54
A87: C | B87: SINAPI | C87: 89709 | D87: =VLOOKUP(C87,'Comp SINAPI MG 04-2025 Onerado'!$B$11:$F$9696,2,FALSE) -> RALO SIFONADO, PVC, DN 100 X 40 MM, JUNTA SOLDÁVEL, FORNECIDO E INSTALADO EM RAMAL DE DESCARGA OU EM RAMAL DE ESGOTO SANITÁRIO. AF_08/2022 | E87: INHI - INSTALAÇÕES HIDROS SANITÁRIAS | F87: UN | G87: =VLOOKUP(C87,'Comp SINAPI MG 04-2025 Onerado'!$B$11:$F$9696,4,FALSE) -> 21.33 | H87: 0.0696 | I87: 1.48
A88: C | B88: SINAPI | C88: 90443 | D88: =VLOOKUP(C88,'Comp SINAPI MG 04-2025 Onerado'!$B$11:$F$9696,2,FALSE) -> RASGO LINEAR MANUAL EM ALVENARIA, PARA RAMAIS/ DISTRIBUIÇÃO DE INSTALAÇÕES HIDRÁULICAS, DIÂMETROS MENORES OU IGUAIS A 40 MM. AF_09/2023 | E88: INHI - INSTALAÇÕES HIDROS SANITÁRIAS | F88: M | G88: =VLOOKUP(C88,'Comp SINAPI MG 04-2025 Onerado'!$B$11:$F$9696,4,FALSE) -> 8.76 | H88: 0.0722 | I88: 0.63
A89: C | B89: SINAPI | C89: 93382 | D89: =VLOOKUP(C89,'Comp SINAPI MG 04-2025 Onerado'!$B$11:$F$9696,2,FALSE) -> REATERRO MANUAL DE VALAS, COM COMPACTADOR DE SOLOS DE PERCUSSÃO. AF_08/2023 | E89: MOVT - MOVIMENTO DE TERRA | F89: m³ | G89: =VLOOKUP(C89,'Comp SINAPI MG 04-2025 Onerado'!$B$11:$F$9696,4,FALSE) -> 28.28 | H89: 0.0072 | I89: 0.2
A90: C | B90: SINAPI | C90: 89784 | D90: =VLOOKUP(C90,'Comp SINAPI MG 04-2025 Onerado'!$B$11:$F$9696,2,FALSE) -> TE, PVC, SERIE NORMAL, ESGOTO PREDIAL, DN 50 X 50 MM, JUNTA ELÁSTICA, FORNECIDO E INSTALADO EM RAMAL DE DESCARGA OU RAMAL DE ESGOTO SANITÁRIO. AF_08/2022 | E90: INHI - INSTALAÇÕES HIDROS SANITÁRIAS | F90: UN | G90: =VLOOKUP(C90,'Comp SINAPI MG 04-2025 Onerado'!$B$11:$F$9696,4,FALSE) -> 24.23 | H90: 0.0174 | I90: 0.42
A91: C | B91: SINAPI | C91: 94210 | D91: =VLOOKUP(C91,'Comp SINAPI MG 04-2025 Onerado'!$B$11:$F$9696,2,FALSE) -> TELHAMENTO COM TELHA ONDULADA DE FIBROCIMENTO E = 6 MM, COM RECOBRIMENTO LATERAL DE 1 1/4 DE ONDA PARA TELHADO COM INCLINAÇÃO MÁXIMA DE 10°, COM ATÉ 2 ÁGUAS, INCLUSO IÇAMENTO. AF_07/2019 | E91: COBE - COBERTURA | F91: m² | G91: =VLOOKUP(C91,'Comp SINAPI MG 04-2025 Onerado'!$B$11:$F$9696,4,FALSE) -> 47.86 | H91: 1.3566 | I91: 64.93
A92: C | B92: SINAPI | C92: 92000 | D92: =VLOOKUP(C92,'Comp SINAPI MG 04-2025 Onerado'!$B$11:$F$9696,2,FALSE) -> TOMADA BAIXA DE EMBUTIR (1 MÓDULO), 2P+T 10 A, INCLUINDO SUPORTE E PLACA - FORNECIMENTO E INSTALAÇÃO. AF_03/2023 | E92: INEL - INSTALAÇÃO ELÉTRICA/ELETRIFICAÇÃO E ILUMINAÇÃO EXTERNA | F92: UN | G92: =VLOOKUP(C92,'Comp SINAPI MG 04-2025 Onerado'!$B$11:$F$9696,4,FALSE) -> 33.06 | H92: 0.0348 | I92: 1.15
A93: C | B93: SINAPI | C93: 92543 | D93: =VLOOKUP(C93,'Comp SINAPI MG 04-2025 Onerado'!$B$11:$F$9696,2,FALSE) -> TRAMA DE MADEIRA COMPOSTA POR TERÇAS PARA TELHADOS DE ATÉ 2 ÁGUAS PARA TELHA ONDULADA DE FIBROCIMENTO, METÁLICA, PLÁSTICA OU TERMOACÚSTICA, INCLUSO TRANSPORTE VERTICAL. AF_07/2019 | E93: COBE - COBERTURA | F93: m² | G93: =VLOOKUP(C93,'Comp SINAPI MG 04-2025 Onerado'!$B$11:$F$9696,4,FALSE) -> 30.17 | H93: 1.3566 | I93: 40.93
A94: C | B94: SINAPI | C94: 89714 | D94: =VLOOKUP(C94,'Comp SINAPI MG 04-2025 Onerado'!$B$11:$F$9696,2,FALSE) -> TUBO PVC, SERIE NORMAL, ESGOTO PREDIAL, DN 100 MM, FORNECIDO E INSTALADO EM RAMAL DE DESCARGA OU RAMAL DE ESGOTO SANITÁRIO. AF_08/2022 | E94: INHI - INSTALAÇÕES HIDROS SANITÁRIAS | F94: M | G94: =VLOOKUP(C94,'Comp SINAPI MG 04-2025 Onerado'!$B$11:$F$9696,4,FALSE) -> 39.6 | H94: 0.047 | I94: 1.86
A95: C | B95: SINAPI | C95: 89711 | D95: =VLOOKUP(C95,'Comp SINAPI MG 04-2025 Onerado'!$B$11:$F$9696,2,FALSE) -> TUBO PVC, SERIE NORMAL, ESGOTO PREDIAL, DN 40 MM, FORNECIDO E INSTALADO EM RAMAL DE DESCARGA OU RAMAL DE ESGOTO SANITÁRIO. AF_08/2022 | E95: INHI - INSTALAÇÕES HIDROS SANITÁRIAS | F95: M | G95: =VLOOKUP(C95,'Comp SINAPI MG 04-2025 Onerado'!$B$11:$F$9696,4,FALSE) -> 22.75 | H95: 0.1631 | I95: 3.71
A96: C | B96: SINAPI | C96: 89712 | D96: =VLOOKUP(C96,'Comp SINAPI MG 04-2025 Onerado'!$B$11:$F$9696,2,FALSE) -> TUBO PVC, SERIE NORMAL, ESGOTO PREDIAL, DN 50 MM, FORNECIDO E INSTALADO EM RAMAL DE DESCARGA OU RAMAL DE ESGOTO SANITÁRIO. AF_08/2022 | E96: INHI - INSTALAÇÕES HIDROS SANITÁRIAS | F96: M | G96: =VLOOKUP(C96,'Comp SINAPI MG 04-2025 Onerado'!$B$11:$F$9696,4,FALSE) -> 28.43 | H96: 0.2235 | I96: 6.35
A97: C | B97: SINAPI | C97: 86888 | D97: =VLOOKUP(C97,'Comp SINAPI MG 04-2025 Onerado'!$B$11:$F$9696,2,FALSE) -> VASO SANITÁRIO SIFONADO COM CAIXA ACOPLADA LOUÇA BRANCA - FORNECIMENTO E INSTALAÇÃO. AF_01/2020 | E97: INHI - INSTALAÇÕES HIDROS SANITÁRIAS | F97: UN | G97: =VLOOKUP(C97,'Comp SINAPI MG 04-2025 Onerado'!$B$11:$F$9696,4,FALSE) -> 545.42 | H97: 0.0522 | I97: 28.47
A98: I | B98: SINAPI | C98: 11712 | D98: =VLOOKUP(C98,'Ins SINAPI MG 04-2025 Onerado'!$B$11:$F$9696,2,FALSE) -> CAIXA SIFONADA, PVC, 150 X 150 X 50 MM, COM GRELHA QUADRADA, BRANCA (NBR 5688) | E98: Material | F98: UN | G98: =VLOOKUP(C98,'Ins SINAPI MG 04-2025 Onerado'!$B$11:$F$9696,5,FALSE) -> 42.24 | H98: 0.0348 | I98: 1.47
A99: I | B99: SINAPI | C99: 3080 | D99: =VLOOKUP(C99,'Ins SINAPI MG 04-2025 Onerado'!$B$11:$F$9696,2,FALSE) -> FECHADURA ESPELHO PARA PORTA EXTERNA, EM ACO INOX (MAQUINA, TESTA E CONTRA-TESTA) E EM ZAMAC (MACANETA, LINGUETA E TRINCOS) COM ACABAMENTO CROMADO, MAQUINA DE 40 MM, INCLUINDO CHAVE TIPO CILINDRO | E99: Material | F99: CJ | G99: =VLOOKUP(C99,'Ins SINAPI MG 04-2025 Onerado'!$B$11:$F$9696,5,FALSE) -> 67.45 | H99: 0.0348 | I99: 2.35
A100: I | B100: SINAPI | C100: 11587 | D100: =VLOOKUP(C100,'Ins SINAPI MG 04-2025 Onerado'!$B$11:$F$9696,2,FALSE) -> FORRO DE PVC LISO, BRANCO, REGUA DE 10 CM, ESPESSURA APROXIMADA DE 8 MM (COM COLOCACAO / SEM ESTRUTURA METALICA) | E100: Material | F100: m² | G100: =VLOOKUP(C100,'Ins SINAPI MG 04-2025 Onerado'!$B$11:$F$9696,5,FALSE) -> 78.74 | H100: 0.9762 | I100: 76.87
A101: I | B101: SINAPI | C101: 3659 | D101: =VLOOKUP(C101,'Ins SINAPI MG 04-2025 Onerado'!$B$11:$F$9696,2,FALSE) -> JUNCAO SIMPLES DE REDUCAO, PVC, DN 100 X 50 MM, SERIE NORMAL PARA ESGOTO PREDIAL | E101: Material | F101: UN | G101: =VLOOKUP(C101,'Ins SINAPI MG 04-2025 Onerado'!$B$11:$F$9696,5,FALSE) -> 18 | H101: 0.0174 | I101: 0.31
A102: I | B102: SINAPI | C102: 3670 | D102: =VLOOKUP(C102,'Ins SINAPI MG 04-2025 Onerado'!$B$11:$F$9696,2,FALSE) -> JUNCAO SIMPLES, PVC, 45 GRAUS, DN 100 X 100 MM, SERIE NORMAL PARA ESGOTO PREDIAL | E102: Material | F102: UN | G102: =VLOOKUP(C102,'Ins SINAPI MG 04-2025 Onerado'!$B$11:$F$9696,5,FALSE) -> 23.11 | H102: 0.0348 | I102: 0.8
A103: I | B103: SINAPI | C103: 11697 | D103: =VLOOKUP(C103,'Ins SINAPI MG 04-2025 Onerado'!$B$11:$F$9696,2,FALSE) -> MICTORIO COLETIVO ACO INOX (AISI 304), E = 0,8 MM, DE *100 X 40 X 30* CM (C X A X P) | E103: Material | F103: UN | G103: =VLOOKUP(C103,'Ins SINAPI MG 04-2025 Onerado'!$B$11:$F$9696,5,FALSE) -> 758.04 | H103: 0.0174 | I103: 13.19
A104: I | B104: SINAPI | C104: 43777 | D104: =VLOOKUP(C104,'Ins SINAPI MG 04-2025 Onerado'!$B$11:$F$9696,2,FALSE) -> PORTA DE MADEIRA, FOLHA LEVE (NBR 15930), DE 600 X 2100 MM, E = 35 MM, NUCLEO COLMEIA, CAPA LISA EM HDF, ACABAMENTO MELAMINICO EM PADRAO MADEIRA | E104: Material | F104: UN | G104: =VLOOKUP(C104,'Ins SINAPI MG 04-2025 Onerado'!$B$11:$F$9696,5,FALSE) -> 237 | H104: 0.0447618 | I104: 10.61
A105: I | B105: SINAPI | C105: 21112 | D105: =VLOOKUP(C105,'Ins SINAPI MG 04-2025 Onerado'!$B$11:$F$9696,2,FALSE) -> VALVULA DE DESCARGA EM METAL CROMADO PARA MICTORIO COM ACIONAMENTO POR PRESSAO E FECHAMENTO AUTOMATICO | E105: Material | F105: UN | G105: =VLOOKUP(C105,'Ins SINAPI MG 04-2025 Onerado'!$B$11:$F$9696,5,FALSE) -> 300.51 | H105: 0.0174 | I105: 5.23
A108: Código | D108: 93583 ADAPTADO
A109: Descrição | D109: EXECUÇÃO DE CENTRAL DE FÔRMAS, PRODUÇÃO DE ARGAMASSA OU CONCRETO EM CANTEIRO DE OBRA, NÃO INCLUSO MOBILIÁRIO E EQUIPAMENTOS. AF_04/2016
A110: Data | D110: 2024-05-01
A111: Estado | D111: Minas Gerais
A112: Tipo | D112: CANT - CANTEIRO DE OBRAS
A113: Unidade | D113: m²
A114: Valor sem Desoneração | D114: =SUM(I117:I131,I135:I145) -> 524.52
A116: Natureza | B116: Fonte | C116: codigo | D116: Descrição | E116: Tipo | F116: Unidade | G116: Valor sem Desoneração | H116: Coeficiente | I116: Valor sem Desoneração
A117: C | B117: SINAPI | C117: 91924 | D117: =VLOOKUP(C117,'Comp SINAPI MG 04-2025 Onerado'!$B$11:$F$9696,2,FALSE) -> CABO DE COBRE FLEXÍVEL ISOLADO, 1,5 MM², ANTI-CHAMA 450/750 V, PARA CIRCUITOS TERMINAIS - FORNECIMENTO E INSTALAÇÃO. AF_03/2023 | E117: INEL - INSTALAÇÃO ELÉTRICA/ELETRIFICAÇÃO E ILUMINAÇÃO EXTERNA | F117: M | G117: =VLOOKUP(C117,'Comp SINAPI MG 04-2025 Onerado'!$B$11:$F$9696,4,FALSE) -> 3.09 | H117: 1,0821 | I117: 2.91
A118: C | B118: SINAPI | C118: 92981 | D118: =VLOOKUP(C118,'Comp SINAPI MG 04-2025 Onerado'!$B$11:$F$9696,2,FALSE) -> CABO DE COBRE FLEXÍVEL ISOLADO, 16 MM², ANTI-CHAMA 450/750 V, PARA DISTRIBUIÇÃO - FORNECIMENTO E INSTALAÇÃO. AF_10/2020 | E118: INEL - INSTALAÇÃO ELÉTRICA/ELETRIFICAÇÃO E ILUMINAÇÃO EXTERNA | F118: M | G118: =VLOOKUP(C118,'Comp SINAPI MG 04-2025 Onerado'!$B$11:$F$9696,4,FALSE) -> 15.84 | H118: 0,4831 | I118: 6.66
A119: C | B119: SINAPI | C119: 91926 | D119: =VLOOKUP(C119,'Comp SINAPI MG 04-2025 Onerado'!$B$11:$F$9696,2,FALSE) -> CABO DE COBRE FLEXÍVEL ISOLADO, 2,5 MM², ANTI-CHAMA 450/750 V, PARA CIRCUITOS TERMINAIS - FORNECIMENTO E INSTALAÇÃO. AF_03/2023 | E119: INEL - INSTALAÇÃO ELÉTRICA/ELETRIFICAÇÃO E ILUMINAÇÃO EXTERNA | F119: M | G119: =VLOOKUP(C119,'Comp SINAPI MG 04-2025 Onerado'!$B$11:$F$9696,4,FALSE) -> 4.47 | H119: 2,087 | I119: 8.05
A120: C | B120: SINAPI | C120: 97886 | D120: =VLOOKUP(C120,'Comp SINAPI MG 04-2025 Onerado'!$B$11:$F$9696,2,FALSE) -> CAIXA ENTERRADA ELÉTRICA RETANGULAR, EM ALVENARIA COM TIJOLOS CERÂMICOS MACIÇOS, FUNDO COM BRITA, DIMENSÕES INTERNAS: 0,3X0,3X0,3 M. AF_12/2020 | E120: INEL - INSTALAÇÃO ELÉTRICA/ELETRIFICAÇÃO E ILUMINAÇÃO EXTERNA | F120: UN | G120: =VLOOKUP(C120,'Comp SINAPI MG 04-2025 Onerado'!$B$11:$F$9696,4,FALSE) -> 174.93 | H120: 0,0966 | I120: 14.63
A121: C | B121: SINAPI | C121: 95805 | D121: =VLOOKUP(C121,'Comp SINAPI MG 04-2025 Onerado'!$B$11:$F$9696,2,FALSE) -> CONDULETE DE PVC, TIPO B, PARA ELETRODUTO DE PVC SOLDÁVEL DN 25 MM (3/4''), APARENTE - FORNECIMENTO E INSTALAÇÃO. AF_10/2022 | E121: INEL - INSTALAÇÃO ELÉTRICA/ELETRIFICAÇÃO E ILUMINAÇÃO EXTERNA | F121: UN | G121: =VLOOKUP(C121,'Comp SINAPI MG 04-2025 Onerado'!$B$11:$F$9696,4,FALSE) -> 26.41 | H121: 0,3865 | I121: 9.89
A122: C | B122: SINAPI | C122: 101891 | D122: =VLOOKUP(C122,'Comp SINAPI MG 04-2025 Onerado'!$B$11:$F$9696,2,FALSE) -> DISJUNTOR MONOPOLAR TIPO NEMA, CORRENTE NOMINAL DE 35 ATÉ 50A - FORNECIMENTO E INSTALAÇÃO. AF_10/2020 | E122: INEL - INSTALAÇÃO ELÉTRICA/ELETRIFICAÇÃO E ILUMINAÇÃO EXTERNA | F122: UN | G122: =VLOOKUP(C122,'Comp SINAPI MG 04-2025 Onerado'!$B$11:$F$9696,4,FALSE) -> 34.39 | H122: 0,2899 | I122: 9.01
A123: C | B123: SINAPI | C123: 91862 | D123: =VLOOKUP(C123,'Comp SINAPI MG 04-2025 Onerado'!$B$11:$F$9696,2,FALSE) -> ELETRODUTO RÍGIDO ROSCÁVEL, PVC, DN 20 MM (1/2"), PARA CIRCUITOS TERMINAIS, INSTALADO EM FORRO - FORNECIMENTO E INSTALAÇÃO. AF_03/2023 | E123: INEL - INSTALAÇÃO ELÉTRICA/ELETRIFICAÇÃO E ILUMINAÇÃO EXTERNA | F123: M | G123: =VLOOKUP(C123,'Comp SINAPI MG 04-2025 Onerado'!$B$11:$F$9696,4,FALSE) -> 10.64 | H123: 0,4251 | I123: 3.91
A124: C | B124: SINAPI | C124: 91870 | D124: =VLOOKUP(C124,'Comp SINAPI MG 04-2025 Onerado'!$B$11:$F$9696,2,FALSE) -> ELETRODUTO RÍGIDO ROSCÁVEL, PVC, DN 20 MM (1/2"), PARA CIRCUITOS TERMINAIS, INSTALADO EM PAREDE - FORNECIMENTO E INSTALAÇÃO. AF_03/2023 | E124: INEL - INSTALAÇÃO ELÉTRICA/ELETRIFICAÇÃO E ILUMINAÇÃO EXTERNA | F124: M | G124: =VLOOKUP(C124,'Comp SINAPI MG 04-2025 Onerado'!$B$11:$F$9696,4,FALSE) -> 13.95 | H124: 0,4638 | I124: 5.53
A125: C | B125: SINAPI | C125: 93358 | D125: =VLOOKUP(C125,'Comp SINAPI MG 04-2025 Onerado'!$B$11:$F$9696,2,FALSE) -> ESCAVAÇÃO MANUAL DE VALA. AF_09/2024 | E125: MOVT - MOVIMENTO DE TERRA | F125: m³ | G125: =VLOOKUP(C125,'Comp SINAPI MG 04-2025 Onerado'!$B$11:$F$9696,4,FALSE) -> 89.55 | H125: 0,0078 | I125: 0.62
A126: C | B126: SINAPI | C126: 91170 | D126: =VLOOKUP(C126,'Comp SINAPI MG 04-2025 Onerado'!$B$11:$F$9696,2,FALSE) -> FIXAÇÃO DE TUBOS HORIZONTAIS DE PVC ÁGUA, PVC ESGOTO, PVC ÁGUA PLUVIAL, CPVC, PPR, COBRE OU AÇO, DIÂMETROS MENORES OU IGUAIS A 40 MM, COM ABRAÇADEIRA METÁLICA RÍGIDA TIPO U PERFIL 1 1/4", FIXADA EM PERFILADO EM LAJE. AF_09/2023_PS | E126: INHI - INSTALAÇÕES HIDROS SANITÁRIAS | F126: M | G126: =VLOOKUP(C126,'Comp SINAPI MG 04-2025 Onerado'!$B$11:$F$9696,4,FALSE) -> 10.5 | H126: 0,4251 | I126: 4.54
A127: C | B127: SINAPI | C127: 91173 | D127: =VLOOKUP(C127,'Comp SINAPI MG 04-2025 Onerado'!$B$11:$F$9696,2,FALSE) -> FIXAÇÃO DE TUBOS VERTICAIS DE PVC ÁGUA, PVC ESGOTO, PVC ÁGUA PLUVIAL, CPVC, PPR, COBRE OU AÇO, DIÂMETROS MENORES OU IGUAIS A 40 MM, COM ABRAÇADEIRA METÁLICA RÍGIDA TIPO U PERFIL 1 1/4", FIXADA EM PERFILADO EM PAREDE. AF_09/2023_PS | E127: INHI - INSTALAÇÕES HIDROS SANITÁRIAS | F127: M | G127: =VLOOKUP(C127,'Comp SINAPI MG 04-2025 Onerado'!$B$11:$F$9696,4,FALSE) -> 3.91 | H127: 0,4638 | I127: 1.84
A128: C | B128: SINAPI | C128: 96985 | D128: =VLOOKUP(C128,'Comp SINAPI MG 04-2025 Onerado'!$B$11:$F$9696,2,FALSE) -> HASTE DE ATERRAMENTO, DIÂMETRO 5/8", COM 3 METROS - FORNECIMENTO E INSTALAÇÃO. AF_08/2023 | E128: INEL - INSTALAÇÃO ELÉTRICA/ELETRIFICAÇÃO E ILUMINAÇÃO EXTERNA | F128: UN | G128: =VLOOKUP(C128,'Comp SINAPI MG 04-2025 Onerado'!$B$11:$F$9696,4,FALSE) -> 116.95 | H128: 0,0966 | I128: 10.39
A129: C | B129: SINAPI | C129: 92023 | D129: =VLOOKUP(C129,'Comp SINAPI MG 04-2025 Onerado'!$B$11:$F$9696,2,FALSE) -> INTERRUPTOR SIMPLES (1 MÓDULO) COM 1 TOMADA DE EMBUTIR 2P+T 10 A, INCLUINDO SUPORTE E PLACA - FORNECIMENTO E INSTALAÇÃO. AF_03/2023 | E129: INEL - INSTALAÇÃO ELÉTRICA/ELETRIFICAÇÃO E ILUMINAÇÃO EXTERNA | F129: UN | G129: =VLOOKUP(C129,'Comp SINAPI MG 04-2025 Onerado'!$B$11:$F$9696,4,FALSE) -> 53.72 | H129: 0,0966 | I129: 4.67
A130: C | B130: SINAPI | C130: 95241 | D130: =VLOOKUP(C130,'Comp SINAPI MG 04-2025 Onerado'!$B$11:$F$9696,2,FALSE) -> LASTRO DE CONCRETO MAGRO, APLICADO EM PISOS, LAJES SOBRE SOLO OU RADIERS, ESPESSURA DE 5 CM. AF_01/2024 | E130: FUES - FUNDAÇÕES E ESTRUTURAS | F130: m² | G130: =VLOOKUP(C130,'Comp SINAPI MG 04-2025 Onerado'!$B$11:$F$9696,4,FALSE) -> 41.81 | H130: 1,9256 | I130: 59.65
A131: C | B131: SINAPI | C131: 97586 | D131: LUMINÁRIA TIPO CALHA, DE SOBREPOR, COM 2 LÂMPADAS TUBULARES FLUORESCENTES DE 36 W, COM REATOR DE PARTIDA RÁPIDA - FORNECIMENTO E INSTALAÇÃO. AF_02/2020 | E131: INEL - INSTALAÇÃO ELÉTRICA/ELETRIFICAÇÃO E ILUMINAÇÃO EXTERNA | F131: UN | G131: =SUM(I132:I134) -> 223.32 | H131: 0.1392 | I131: =ROUND(G131*H131,2) -> 31.09
A132: C | B132: SINAPI | C132: 88247 | D132: =VLOOKUP(C132,'Comp SINAPI MG 04-2025 Onerado'!$B$11:$F$9696,2,FALSE) -> AUXILIAR DE ELETRICISTA COM ENCARGOS COMPLEMENTARES | E132: SEDI - SERVIÇOS DIVERSOS | F132: H | G132: =VLOOKUP(C132,'Comp SINAPI MG 04-2025 Onerado'!$B$11:$F$9696,4,FALSE) -> 25.52 | H132: 0.1727 | I132: =ROUND(G132*H132,2) -> 4.41
A133: C | B133: SINAPI | C133: 88264 | D133: =VLOOKUP(C133,'Comp SINAPI MG 04-2025 Onerado'!$B$11:$F$9696,2,FALSE) -> ELETRICISTA COM ENCARGOS COMPLEMENTARES | E133: SEDI - SERVIÇOS DIVERSOS | F133: H | G133: =VLOOKUP(C133,'Comp SINAPI MG 04-2025 Onerado'!$B$11:$F$9696,4,FALSE) -> 31.63 | H133: 0.4144 | I133: =ROUND(G133*H133,2) -> 13.11
A134: C | B134: SINAPI | C134: 3780 | D134: =VLOOKUP(C134,'Ins SINAPI MG 04-2025 Onerado'!$B$11:$F$9696,2,FALSE) -> LUMINARIA DE SOBREPOR EM CHAPA DE ACO PARA 1 LAMPADA FLUORESCENTE DE *36* W, ALETADA, COMPLETA (LAMPADA E REATOR INCLUSOS) | E134: Material | F134: UN | G134: =G64 -> 102.9 | H134: 2 | I134: =ROUND(G134*H134,2) -> 205.8
A135: C | B135: SINAPI | C135: 98445 | D135: =VLOOKUP(C135,'Comp SINAPI MG 04-2025 Onerado'!$B$11:$F$9696,2,FALSE) -> PAREDE DE MADEIRA COMPENSADA PARA CONSTRUÇÃO TEMPORÁRIA EM CHAPA SIMPLES, EXTERNA, COM ÁREA LÍQUIDA MAIOR OU IGUAL A 6 M², COM VÃO. AF_03/2024 | E135: CANT - CANTEIRO DE OBRAS | F135: m² | G135: =VLOOKUP(C135,'Comp SINAPI MG 04-2025 Onerado'!$B$11:$F$9696,4,FALSE) -> 117.93 | H135: 0,1508 | I135: 28.43
A136: C | B136: SINAPI | C136: 98441 | D136: =VLOOKUP(C136,'Comp SINAPI MG 04-2025 Onerado'!$B$11:$F$9696,2,FALSE) -> PAREDE DE MADEIRA COMPENSADA PARA CONSTRUÇÃO TEMPORÁRIA EM CHAPA SIMPLES, EXTERNA, SEM VÃO. AF_03/2024 | E136: CANT - CANTEIRO DE OBRAS | F136: m² | G136: =VLOOKUP(C136,'Comp SINAPI MG 04-2025 Onerado'!$B$11:$F$9696,4,FALSE) -> 100.56 | H136: 0,0966 | I136: 15.02
A137: C | B137: SINAPI | C137: 98446 | D137: =VLOOKUP(C137,'Comp SINAPI MG 04-2025 Onerado'!$B$11:$F$9696,2,FALSE) -> PAREDE DE MADEIRA COMPENSADA PARA CONSTRUÇÃO TEMPORÁRIA EM CHAPA SIMPLES, EXTERNA, COM ÁREA LÍQUIDA MENOR QUE 6 M², COM VÃO. AF_03/2024 | E137: CANT - CANTEIRO DE OBRAS | F137: m² | G137: =VLOOKUP(C137,'Comp SINAPI MG 04-2025 Onerado'!$B$11:$F$9696,4,FALSE) -> 150.24 | H137: 0,1176 | I137: 28.54
A138: C | B138: SINAPI | C138: 98441 | D138: =VLOOKUP(C138,'Comp SINAPI MG 04-2025 Onerado'!$B$11:$F$9696,2,FALSE) -> PAREDE DE MADEIRA COMPENSADA PARA CONSTRUÇÃO TEMPORÁRIA EM CHAPA SIMPLES, EXTERNA, SEM VÃO. AF_03/2024 | E138: CANT - CANTEIRO DE OBRAS | F138: m² | G138: =VLOOKUP(C138,'Comp SINAPI MG 04-2025 Onerado'!$B$11:$F$9696,4,FALSE) -> 100.56 | H138: 0.3007 | I138: =ROUND(G138*H138,2) -> 30.24
A139: C | B139: SINAPI | C139: 88489 | D139: =VLOOKUP(C139,'Comp SINAPI MG 04-2025 Onerado'!$B$11:$F$9696,2,FALSE) -> PINTURA LÁTEX ACRÍLICA PREMIUM, APLICAÇÃO MANUAL EM PAREDES, DUAS DEMÃOS. AF_04/2023 | E139: PINT - PINTURAS | F139: m² | G139: =VLOOKUP(C139,'Comp SINAPI MG 04-2025 Onerado'!$B$11:$F$9696,4,FALSE) -> 13.55 | H139: 0,4761 | I139: 6.35
A140: C | B140: SINAPI | C140: 101876 | D140: =VLOOKUP(C140,'Comp SINAPI MG 04-2025 Onerado'!$B$11:$F$9696,2,FALSE) -> QUADRO DE DISTRIBUIÇÃO DE ENERGIA EM PVC, DE EMBUTIR, SEM BARRAMENTO, PARA 6 DISJUNTORES - FORNECIMENTO E INSTALAÇÃO. AF_10/2020 | E140: INEL - INSTALAÇÃO ELÉTRICA/ELETRIFICAÇÃO E ILUMINAÇÃO EXTERNA | F140: UN | G140: =VLOOKUP(C140,'Comp SINAPI MG 04-2025 Onerado'!$B$11:$F$9696,4,FALSE) -> 88.79 | H140: 0,0966 | I140: 10.05
A141: C | B141: SINAPI | C141: 94210 | D141: =VLOOKUP(C141,'Comp SINAPI MG 04-2025 Onerado'!$B$11:$F$9696,2,FALSE) -> TELHAMENTO COM TELHA ONDULADA DE FIBROCIMENTO E = 6 MM, COM RECOBRIMENTO LATERAL DE 1 1/4 DE ONDA PARA TELHADO COM INCLINAÇÃO MÁXIMA DE 10°, COM ATÉ 2 ÁGUAS, INCLUSO IÇAMENTO. AF_07/2019 | E141: COBE - COBERTURA | F141: m² | G141: =VLOOKUP(C141,'Comp SINAPI MG 04-2025 Onerado'!$B$11:$F$9696,4,FALSE) -> 47.86 | H141: 1,9256 | I141: 125
A142: C | B142: SINAPI | C142: 92008 | D142: =VLOOKUP(C142,'Comp SINAPI MG 04-2025 Onerado'!$B$11:$F$9696,2,FALSE) -> TOMADA BAIXA DE EMBUTIR (2 MÓDULOS), 2P+T 10 A, INCLUINDO SUPORTE E PLACA - FORNECIMENTO E INSTALAÇÃO. AF_03/2023 | E142: INEL - INSTALAÇÃO ELÉTRICA/ELETRIFICAÇÃO E ILUMINAÇÃO EXTERNA | F142: UN | G142: =VLOOKUP(C142,'Comp SINAPI MG 04-2025 Onerado'!$B$11:$F$9696,4,FALSE) -> 50.92 | H142: 0,2899 | I142: 13.41
A143: C | B143: SINAPI | C143: 92543 | D143: =VLOOKUP(C143,'Comp SINAPI MG 04-2025 Onerado'!$B$11:$F$9696,2,FALSE) -> TRAMA DE MADEIRA COMPOSTA POR TERÇAS PARA TELHADOS DE ATÉ 2 ÁGUAS PARA TELHA ONDULADA DE FIBROCIMENTO, METÁLICA, PLÁSTICA OU TERMOACÚSTICA, INCLUSO TRANSPORTE VERTICAL. AF_07/2019 | E143: COBE - COBERTURA | F143: m² | G143: =VLOOKUP(C143,'Comp SINAPI MG 04-2025 Onerado'!$B$11:$F$9696,4,FALSE) -> 30.17 | H143: 1,9256 | I143: 49.21
A144: I | B144: SINAPI | C144: 10886 | D144: =VLOOKUP(C144,'Ins SINAPI MG 04-2025 Onerado'!$B$11:$F$9696,2,FALSE) -> EXTINTOR DE INCENDIO PORTATIL COM CARGA DE AGUA PRESSURIZADA DE 10 L, CLASSE A | E144: Material | F144: UN | G144: =VLOOKUP(C144,'Ins SINAPI MG 04-2025 Onerado'!$B$11:$F$9696,5,FALSE) -> 154.87 | H144: 0,0966 | I144: 22.82
A145: I | B145: SINAPI | C145: 10891 | D145: =VLOOKUP(C145,'Ins SINAPI MG 04-2025 Onerado'!$B$11:$F$9696,2,FALSE) -> EXTINTOR DE INCENDIO PORTATIL COM CARGA DE PO QUIMICO SECO (PQS) DE 4 KG, CLASSE BC | E145: Material | F145: UN | G145: =VLOOKUP(C145,'Ins SINAPI MG 04-2025 Onerado'!$B$11:$F$9696,5,FALSE) -> 149.76 | H145: 0,0966 | I145: 22.06
A148: Código | D148: 93210 ADAPTADO
A149: Descrição | D149: EXECUÇÃO DE REFEITÓRIO EM CANTEIRO DE OBRA EM CHAPA DE MADEIRA COMPENSADA, NÃO INCLUSO MOBILIÁRIO E EQUIPAMENTOS. AF_02/2016
A150: Data | D150: 2024-05-01
A151: Estado | D151: Minas Gerais
A152: Tipo | D152: CANT - CANTEIRO DE OBRAS
A153: Unidade | D153: m²
A154: Valor sem Desoneração | D154: =SUM(I157:I179,I183:I188,I195:I208) -> 589.38603
A156: Natureza | B156: Fonte | C156: codigo | D156: Descrição | E156: Tipo | F156: Unidade | G156: Valor sem Desoneração | H156: Coeficiente | I156: Valor sem Desoneração
A157: C | B157: SINAPI | C157: 101165 | D157: =VLOOKUP(C157,'Comp SINAPI MG 04-2025 Onerado'!$B$11:$F$9696,2,FALSE) -> ALVENARIA DE EMBASAMENTO COM BLOCO ESTRUTURAL DE CONCRETO, DE 14X19X29CM E ARGAMASSA DE ASSENTAMENTO COM PREPARO EM BETONEIRA. AF_05/2020 | E157: FUES - FUNDAÇÕES E ESTRUTURAS | F157: m³ | G157: =VLOOKUP(C157,'Comp SINAPI MG 04-2025 Onerado'!$B$11:$F$9696,4,FALSE) -> 1083.67 | H157: 0.04 | I157: =G157*H157 -> 43.3468
A158: C | B158: SINAPI | C158: 86934 | D158: =VLOOKUP(C158,'Comp SINAPI MG 04-2025 Onerado'!$B$11:$F$9696,2,FALSE) -> BANCADA DE MÁRMORE SINTÉTICO 120 X 60CM, COM CUBA INTEGRADA, INCLUSO SIFÃO TIPO FLEXÍVEL EM PVC, VÁLVULA EM PLÁSTICO CROMADO TIPO AMERICANA E TORNEIRA CROMADA LONGA, DE PAREDE, PADRÃO POPULAR - FORNECIMENTO E INSTALAÇÃO. AF_01/2020 | E158: INHI - INSTALAÇÕES HIDROS SANITÁRIAS | F158: UN | G158: =VLOOKUP(C158,'Comp SINAPI MG 04-2025 Onerado'!$B$11:$F$9696,4,FALSE) -> 434.91 | H158: 0.0268 | I158: =G158*H158 -> 11.655588
A159: C | B159: SINAPI | C159: 91924 | D159: =VLOOKUP(C159,'Comp SINAPI MG 04-2025 Onerado'!$B$11:$F$9696,2,FALSE) -> CABO DE COBRE FLEXÍVEL ISOLADO, 1,5 MM², ANTI-CHAMA 450/750 V, PARA CIRCUITOS TERMINAIS - FORNECIMENTO E INSTALAÇÃO. AF_03/2023 | E159: INEL - INSTALAÇÃO ELÉTRICA/ELETRIFICAÇÃO E ILUMINAÇÃO EXTERNA | F159: M | G159: =VLOOKUP(C159,'Comp SINAPI MG 04-2025 Onerado'!$B$11:$F$9696,4,FALSE) -> 3.09 | H159: 0.8591 | I159: 2.654619
A160: C | B160: SINAPI | C160: 91926 | D160: =VLOOKUP(C160,'Comp SINAPI MG 04-2025 Onerado'!$B$11:$F$9696,2,FALSE) -> CABO DE COBRE FLEXÍVEL ISOLADO, 2,5 MM², ANTI-CHAMA 450/750 V, PARA CIRCUITOS TERMINAIS - FORNECIMENTO E INSTALAÇÃO. AF_03/2023 | E160: INEL - INSTALAÇÃO ELÉTRICA/ELETRIFICAÇÃO E ILUMINAÇÃO EXTERNA | F160: M | G160: =VLOOKUP(C160,'Comp SINAPI MG 04-2025 Onerado'!$B$11:$F$9696,4,FALSE) -> 4.47 | H160: 2.5503 | I160: 11.399841
A161: C | B161: SINAPI | C161: 98102 | D161: =VLOOKUP(C161,'Comp SINAPI MG 04-2025 Onerado'!$B$11:$F$9696,2,FALSE) -> CAIXA DE GORDURA SIMPLES, CIRCULAR, EM CONCRETO PRÉ-MOLDADO, DIÂMETRO INTERNO = 0,4 M, ALTURA INTERNA = 0,4 M. AF_12/2020 | E161: INHI - INSTALAÇÕES HIDROS SANITÁRIAS | F161: UN | G161: =VLOOKUP(C161,'Comp SINAPI MG 04-2025 Onerado'!$B$11:$F$9696,4,FALSE) -> 159.17 | H161: 0.0268 | I161: 4.265756
A162: C | B162: SINAPI | C162: 97906 | D162: =VLOOKUP(C162,'Comp SINAPI MG 04-2025 Onerado'!$B$11:$F$9696,2,FALSE) -> CAIXA ENTERRADA HIDRÁULICA RETANGULAR, EM ALVENARIA COM BLOCOS DE CONCRETO, DIMENSÕES INTERNAS: 0,6X0,6X0,6 M PARA REDE DE ESGOTO. AF_12/2020 | E162: INHI - INSTALAÇÕES HIDROS SANITÁRIAS | F162: UN | G162: =VLOOKUP(C162,'Comp SINAPI MG 04-2025 Onerado'!$B$11:$F$9696,4,FALSE) -> 487.41 | H162: 0.0268 | I162: 13.062588
A163: C | B163: SINAPI | C163: 91937 | D163: =VLOOKUP(C163,'Comp SINAPI MG 04-2025 Onerado'!$B$11:$F$9696,2,FALSE) -> CAIXA OCTOGONAL 3" X 3", PVC, INSTALADA EM LAJE - FORNECIMENTO E INSTALAÇÃO. AF_03/2023 | E163: INEL - INSTALAÇÃO ELÉTRICA/ELETRIFICAÇÃO E ILUMINAÇÃO EXTERNA | F163: UN | G163: =VLOOKUP(C163,'Comp SINAPI MG 04-2025 Onerado'!$B$11:$F$9696,4,FALSE) -> 17.86 | H163: 0.1611 | I163: 2.877246
A164: C | B164: SINAPI | C164: 88262 | D164: =VLOOKUP(C164,'Comp SINAPI MG 04-2025 Onerado'!$B$11:$F$9696,2,FALSE) -> CARPINTEIRO DE FORMAS COM ENCARGOS COMPLEMENTARES | E164: SEDI - SERVIÇOS DIVERSOS | F164: H | G164: =VLOOKUP(C164,'Comp SINAPI MG 04-2025 Onerado'!$B$11:$F$9696,4,FALSE) -> 30.75 | H164: 1.1155 | I164: 34.301625
A165: C | B165: SINAPI | C165: 95805 | D165: =VLOOKUP(C165,'Comp SINAPI MG 04-2025 Onerado'!$B$11:$F$9696,2,FALSE) -> CONDULETE DE PVC, TIPO B, PARA ELETRODUTO DE PVC SOLDÁVEL DN 25 MM (3/4''), APARENTE - FORNECIMENTO E INSTALAÇÃO. AF_10/2022 | E165: INEL - INSTALAÇÃO ELÉTRICA/ELETRIFICAÇÃO E ILUMINAÇÃO EXTERNA | F165: UN | G165: =VLOOKUP(C165,'Comp SINAPI MG 04-2025 Onerado'!$B$11:$F$9696,4,FALSE) -> 26.41 | H165: 0.1879 | I165: 4.962439
A166: C | B166: SINAPI | C166: 95811 | D166: =VLOOKUP(C166,'Comp SINAPI MG 04-2025 Onerado'!$B$11:$F$9696,2,FALSE) -> CONDULETE DE PVC, TIPO LB, PARA ELETRODUTO DE PVC SOLDÁVEL DN 25 MM (3/4''), APARENTE - FORNECIMENTO E INSTALAÇÃO. AF_10/2022 | E166: INEL - INSTALAÇÃO ELÉTRICA/ELETRIFICAÇÃO E ILUMINAÇÃO EXTERNA | F166: UN | G166: =VLOOKUP(C166,'Comp SINAPI MG 04-2025 Onerado'!$B$11:$F$9696,4,FALSE) -> 22.36 | H166: 0.0268 | I166: 0.599248
A167: C | B167: SINAPI | C167: 91911 | D167: =VLOOKUP(C167,'Comp SINAPI MG 04-2025 Onerado'!$B$11:$F$9696,2,FALSE) -> CURVA 90 GRAUS PARA ELETRODUTO, PVC, ROSCÁVEL, DN 20 MM (1/2"), PARA CIRCUITOS TERMINAIS, INSTALADA EM PAREDE - FORNECIMENTO E INSTALAÇÃO. AF_03/2023 | E167: INEL - INSTALAÇÃO ELÉTRICA/ELETRIFICAÇÃO E ILUMINAÇÃO EXTERNA | F167: UN | G167: =VLOOKUP(C167,'Comp SINAPI MG 04-2025 Onerado'!$B$11:$F$9696,4,FALSE) -> 18.85 | H167: 0.1074 | I167: 2.02449
A168: C | B168: SINAPI | C168: 101891 | D168: =VLOOKUP(C168,'Comp SINAPI MG 04-2025 Onerado'!$B$11:$F$9696,2,FALSE) -> DISJUNTOR MONOPOLAR TIPO NEMA, CORRENTE NOMINAL DE 35 ATÉ 50A - FORNECIMENTO E INSTALAÇÃO. AF_10/2020 | E168: INEL - INSTALAÇÃO ELÉTRICA/ELETRIFICAÇÃO E ILUMINAÇÃO EXTERNA | F168: UN | G168: =VLOOKUP(C168,'Comp SINAPI MG 04-2025 Onerado'!$B$11:$F$9696,4,FALSE) -> 34.39 | H168: 0.1074 | I168: 3.693486
A169: C | B169: SINAPI | C169: 91862 | D169: =VLOOKUP(C169,'Comp SINAPI MG 04-2025 Onerado'!$B$11:$F$9696,2,FALSE) -> ELETRODUTO RÍGIDO ROSCÁVEL, PVC, DN 20 MM (1/2"), PARA CIRCUITOS TERMINAIS, INSTALADO EM FORRO - FORNECIMENTO E INSTALAÇÃO. AF_03/2023 | E169: INEL - INSTALAÇÃO ELÉTRICA/ELETRIFICAÇÃO E ILUMINAÇÃO EXTERNA | F169: M | G169: =VLOOKUP(C169,'Comp SINAPI MG 04-2025 Onerado'!$B$11:$F$9696,4,FALSE) -> 10.64 | H169: 0.3221 | I169: 3.427144
A170: C | B170: SINAPI | C170: 91870 | D170: =VLOOKUP(C170,'Comp SINAPI MG 04-2025 Onerado'!$B$11:$F$9696,2,FALSE) -> ELETRODUTO RÍGIDO ROSCÁVEL, PVC, DN 20 MM (1/2"), PARA CIRCUITOS TERMINAIS, INSTALADO EM PAREDE - FORNECIMENTO E INSTALAÇÃO. AF_03/2023 | E170: INEL - INSTALAÇÃO ELÉTRICA/ELETRIFICAÇÃO E ILUMINAÇÃO EXTERNA | F170: M | G170: =VLOOKUP(C170,'Comp SINAPI MG 04-2025 Onerado'!$B$11:$F$9696,4,FALSE) -> 13.95 | H170: 0.5369 | I170: 7.489755
A171: C | B171: SINAPI | C171: 93358 | D171: =VLOOKUP(C171,'Comp SINAPI MG 04-2025 Onerado'!$B$11:$F$9696,2,FALSE) -> ESCAVAÇÃO MANUAL DE VALA. AF_09/2024 | E171: MOVT - MOVIMENTO DE TERRA | F171: m³ | G171: =VLOOKUP(C171,'Comp SINAPI MG 04-2025 Onerado'!$B$11:$F$9696,4,FALSE) -> 89.55 | H171: 0.039 | I171: 3.49245
A172: C | B172: SINAPI | C172: 91170 | D172: =VLOOKUP(C172,'Comp SINAPI MG 04-2025 Onerado'!$B$11:$F$9696,2,FALSE) -> FIXAÇÃO DE TUBOS HORIZONTAIS DE PVC ÁGUA, PVC ESGOTO, PVC ÁGUA PLUVIAL, CPVC, PPR, COBRE OU AÇO, DIÂMETROS MENORES OU IGUAIS A 40 MM, COM ABRAÇADEIRA METÁLICA RÍGIDA TIPO U PERFIL 1 1/4", FIXADA EM PERFILADO EM LAJE. AF_09/2023_PS | E172: INHI - INSTALAÇÕES HIDROS SANITÁRIAS | F172: M | G172: =VLOOKUP(C172,'Comp SINAPI MG 04-2025 Onerado'!$B$11:$F$9696,4,FALSE) -> 10.5 | H172: 0.3221 | I172: 3.38205
A173: C | B173: SINAPI | C173: 91173 | D173: =VLOOKUP(C173,'Comp SINAPI MG 04-2025 Onerado'!$B$11:$F$9696,2,FALSE) -> FIXAÇÃO DE TUBOS VERTICAIS DE PVC ÁGUA, PVC ESGOTO, PVC ÁGUA PLUVIAL, CPVC, PPR, COBRE OU AÇO, DIÂMETROS MENORES OU IGUAIS A 40 MM, COM ABRAÇADEIRA METÁLICA RÍGIDA TIPO U PERFIL 1 1/4", FIXADA EM PERFILADO EM PAREDE. AF_09/2023_PS | E173: INHI - INSTALAÇÕES HIDROS SANITÁRIAS | F173: M | G173: =VLOOKUP(C173,'Comp SINAPI MG 04-2025 Onerado'!$B$11:$F$9696,4,FALSE) -> 3.91 | H173: 0.5369 | I173: 2.099279
A174: C | B174: SINAPI | C174: 92023 | D174: =VLOOKUP(C174,'Comp SINAPI MG 04-2025 Onerado'!$B$11:$F$9696,2,FALSE) -> INTERRUPTOR SIMPLES (1 MÓDULO) COM 1 TOMADA DE EMBUTIR 2P+T 10 A, INCLUINDO SUPORTE E PLACA - FORNECIMENTO E INSTALAÇÃO. AF_03/2023 | E174: INEL - INSTALAÇÃO ELÉTRICA/ELETRIFICAÇÃO E ILUMINAÇÃO EXTERNA | F174: UN | G174: =VLOOKUP(C174,'Comp SINAPI MG 04-2025 Onerado'!$B$11:$F$9696,4,FALSE) -> 53.72 | H174: 0.0268 | I174: 1.439696
A175: C | B175: SINAPI | C175: 89724 | D175: =VLOOKUP(C175,'Comp SINAPI MG 04-2025 Onerado'!$B$11:$F$9696,2,FALSE) -> JOELHO 90 GRAUS, PVC, SERIE NORMAL, ESGOTO PREDIAL, DN 40 MM, JUNTA SOLDÁVEL, FORNECIDO E INSTALADO EM RAMAL DE DESCARGA OU RAMAL DE ESGOTO SANITÁRIO. AF_08/2022 | E175: INHI - INSTALAÇÕES HIDROS SANITÁRIAS | F175: UN | G175: =VLOOKUP(C175,'Comp SINAPI MG 04-2025 Onerado'!$B$11:$F$9696,4,FALSE) -> 10.71 | H175: 0.0537 | I175: 0.575127
A176: C | B176: SINAPI | C176: 95240 | D176: =VLOOKUP(C176,'Comp SINAPI MG 04-2025 Onerado'!$B$11:$F$9696,2,FALSE) -> LASTRO DE CONCRETO MAGRO, APLICADO EM PISOS, LAJES SOBRE SOLO OU RADIERS, ESPESSURA DE 3 CM. AF_01/2024 | E176: FUES - FUNDAÇÕES E ESTRUTURAS | F176: m² | G176: =VLOOKUP(C176,'Comp SINAPI MG 04-2025 Onerado'!$B$11:$F$9696,4,FALSE) -> 21.71 | H176: 0.009 | I176: 0.19539
A177: C | B177: SINAPI | C177: 95241 | D177: =VLOOKUP(C177,'Comp SINAPI MG 04-2025 Onerado'!$B$11:$F$9696,2,FALSE) -> LASTRO DE CONCRETO MAGRO, APLICADO EM PISOS, LAJES SOBRE SOLO OU RADIERS, ESPESSURA DE 5 CM. AF_01/2024 | E177: FUES - FUNDAÇÕES E ESTRUTURAS | F177: m² | G177: =VLOOKUP(C177,'Comp SINAPI MG 04-2025 Onerado'!$B$11:$F$9696,4,FALSE) -> 41.81 | H177: 1.451 | I177: 60.66631
A178: C | B178: SINAPI | C178: 86943 | D178: =VLOOKUP(C178,'Comp SINAPI MG 04-2025 Onerado'!$B$11:$F$9696,2,FALSE) -> LAVATÓRIO LOUÇA BRANCA SUSPENSO, 29,5 X 39CM OU EQUIVALENTE, PADRÃO POPULAR, INCLUSO SIFÃO FLEXÍVEL EM PVC, VÁLVULA E ENGATE FLEXÍVEL 30CM EM PLÁSTICO E TORNEIRA CROMADA DE MESA, PADRÃO POPULAR - FORNECIMENTO E INSTALAÇÃO. AF_01/2020 | E178: INHI - INSTALAÇÕES HIDROS SANITÁRIAS | F178: UN | G178: =VLOOKUP(C178,'Comp SINAPI MG 04-2025 Onerado'!$B$11:$F$9696,4,FALSE) -> 274.51 | H178: 0.0268 | I178: 7.356868
A179: C | B179: SINAPI | C179: 97586 | D179: LUMINÁRIA TIPO CALHA, DE SOBREPOR, COM 2 LÂMPADAS TUBULARES FLUORESCENTES DE 36 W, COM REATOR DE PARTIDA RÁPIDA - FORNECIMENTO E INSTALAÇÃO. AF_02/2020 ADAPTADA | E179: INEL - INSTALAÇÃO ELÉTRICA/ELETRIFICAÇÃO E ILUMINAÇÃO EXTERNA | F179: UN | G179: =SUM(I180:I182) -> 120.414776 | H179: 0.1611 | I179: 19.39882041
A180: C | B180: SINAPI | C180: 88247 | D180: =VLOOKUP(C180,'Comp SINAPI MG 04-2025 Onerado'!$B$11:$F$9696,2,FALSE) -> AUXILIAR DE ELETRICISTA COM ENCARGOS COMPLEMENTARES | E180: SEDI - SERVIÇOS DIVERSOS | F180: H | G180: =VLOOKUP(C180,'Comp SINAPI MG 04-2025 Onerado'!$B$11:$F$9696,4,FALSE) -> 25.52 | H180: 0.1727 | I180: 4.407304
A181: C | B181: SINAPI | C181: 88264 | D181: =VLOOKUP(C181,'Comp SINAPI MG 04-2025 Onerado'!$B$11:$F$9696,2,FALSE) -> ELETRICISTA COM ENCARGOS COMPLEMENTARES | E181: SEDI - SERVIÇOS DIVERSOS | F181: H | G181: =VLOOKUP(C181,'Comp SINAPI MG 04-2025 Onerado'!$B$11:$F$9696,4,FALSE) -> 31.63 | H181: 0.4144 | I181: 13.107472
A182: C | B182: SINAPI | C182: 3780 | D182: =VLOOKUP(C182,'Ins SINAPI MG 04-2025 Onerado'!$B$11:$F$9696,2,FALSE) -> LUMINARIA DE SOBREPOR EM CHAPA DE ACO PARA 1 LAMPADA FLUORESCENTE DE *36* W, ALETADA, COMPLETA (LAMPADA E REATOR INCLUSOS) | E182: Material | F182: UN | G182: =G134 -> 102.9 | H182: 1 | I182: 102.9
A183: C | B183: SINAPI | C183: 98445 | D183: =VLOOKUP(C183,'Comp SINAPI MG 04-2025 Onerado'!$B$11:$F$9696,2,FALSE) -> PAREDE DE MADEIRA COMPENSADA PARA CONSTRUÇÃO TEMPORÁRIA EM CHAPA SIMPLES, EXTERNA, COM ÁREA LÍQUIDA MAIOR OU IGUAL A 6 M², COM VÃO. AF_03/2024 | E183: CANT - CANTEIRO DE OBRAS | F183: m² | G183: =VLOOKUP(C183,'Comp SINAPI MG 04-2025 Onerado'!$B$11:$F$9696,4,FALSE) -> 117.93 | H183: 0.2264 | I183: 26.699352
A184: C | B184: SINAPI | C184: 98441 | D184: =VLOOKUP(C184,'Comp SINAPI MG 04-2025 Onerado'!$B$11:$F$9696,2,FALSE) -> PAREDE DE MADEIRA COMPENSADA PARA CONSTRUÇÃO TEMPORÁRIA EM CHAPA SIMPLES, EXTERNA, SEM VÃO. AF_03/2024 | E184: CANT - CANTEIRO DE OBRAS | F184: m² | G184: =VLOOKUP(C184,'Comp SINAPI MG 04-2025 Onerado'!$B$11:$F$9696,4,FALSE) -> 100.56 | H184: 0.1449 | I184: 14.571144
A185: C | B185: SINAPI | C185: 98446 | D185: =VLOOKUP(C185,'Comp SINAPI MG 04-2025 Onerado'!$B$11:$F$9696,2,FALSE) -> PAREDE DE MADEIRA COMPENSADA PARA CONSTRUÇÃO TEMPORÁRIA EM CHAPA SIMPLES, EXTERNA, COM ÁREA LÍQUIDA MENOR QUE 6 M², COM VÃO. AF_03/2024 | E185: CANT - CANTEIRO DE OBRAS | F185: m² | G185: =VLOOKUP(C185,'Comp SINAPI MG 04-2025 Onerado'!$B$11:$F$9696,4,FALSE) -> 150.24 | H185: 0.1765 | I185: 26.51736
A186: C | B186: SINAPI | C186: 98441 | D186: =VLOOKUP(C186,'Comp SINAPI MG 04-2025 Onerado'!$B$11:$F$9696,2,FALSE) -> PAREDE DE MADEIRA COMPENSADA PARA CONSTRUÇÃO TEMPORÁRIA EM CHAPA SIMPLES, EXTERNA, SEM VÃO. AF_03/2024 | E186: CANT - CANTEIRO DE OBRAS | F186: m² | G186: =VLOOKUP(C186,'Comp SINAPI MG 04-2025 Onerado'!$B$11:$F$9696,4,FALSE) -> 100.56 | H186: 0.1668 | I186: 16.773408
A187: C | B187: SINAPI | C187: 88489 | D187: =VLOOKUP(C187,'Comp SINAPI MG 04-2025 Onerado'!$B$11:$F$9696,2,FALSE) -> PINTURA LÁTEX ACRÍLICA PREMIUM, APLICAÇÃO MANUAL EM PAREDES, DUAS DEMÃOS. AF_04/2023 | E187: PINT - PINTURAS | F187: m² | G187: =VLOOKUP(C187,'Comp SINAPI MG 04-2025 Onerado'!$B$11:$F$9696,4,FALSE) -> 13.55 | H187: 1.4293 | I187: 19.367015
A188: C | B188: SINAPI | C188: 89957 | D188: PONTO DE CONSUMO TERMINAL DE ÁGUA FRIA (SUBRAMAL) COM TUBULAÇÃO DE PVC, DN 25 MM, INSTALADO EM RAMAL DE ÁGUA, INCLUSOS RASGO E CHUMBAMENTO EM ALVENARIA. AF_12/2014 ATUALIZADA | E188: INHI - INSTALAÇÕES HIDROS SANITÁRIAS | F188: UN | G188: =SUM(I189:I194) -> 150.3534 | H188: 0.0537 | I188: 8.07397758
A189: C | B189: SINAPI | C189: 90466 | D189: =VLOOKUP(C189,'Comp SINAPI MG 04-2025 Onerado'!$B$11:$F$9696,2,FALSE) -> CHUMBAMENTO LINEAR EM ALVENARIA PARA RAMAIS/DISTRIBUIÇÃO DE INSTALAÇÕES HIDRÁULICAS COM DIÂMETROS MENORES OU IGUAIS A 40 MM. AF_09/2023 | E189: INHI - INSTALAÇÕES HIDROS SANITÁRIAS | F189: M | G189: =VLOOKUP(C189,'Comp SINAPI MG 04-2025 Onerado'!$B$11:$F$9696,4,FALSE) -> 16.87 | H189: 2.14 | I189: 36.1018
A190: C | B190: SINAPI | C190: 89366 | D190: =VLOOKUP(C190,'Comp SINAPI MG 04-2025 Onerado'!$B$11:$F$9696,2,FALSE) -> JOELHO 90 GRAUS COM BUCHA DE LATÃO, PVC, SOLDÁVEL, DN 25MM, X 3/4 INSTALADO EM RAMAL OU SUB-RAMAL DE ÁGUA - FORNECIMENTO E INSTALAÇÃO. AF_06/2022 | E190: INHI - INSTALAÇÕES HIDROS SANITÁRIAS | F190: UN | G190: =VLOOKUP(C190,'Comp SINAPI MG 04-2025 Onerado'!$B$11:$F$9696,4,FALSE) -> 16.66 | H190: 1 | I190: 16.66
A191: C | B191: SINAPI | C191: 89362 | D191: =VLOOKUP(C191,'Comp SINAPI MG 04-2025 Onerado'!$B$11:$F$9696,2,FALSE) -> JOELHO 90 GRAUS, PVC, SOLDÁVEL, DN 25MM, INSTALADO EM RAMAL OU SUB-RAMAL DE ÁGUA - FORNECIMENTO E INSTALAÇÃO. AF_06/2022 | E191: INHI - INSTALAÇÕES HIDROS SANITÁRIAS | F191: UN | G191: =VLOOKUP(C191,'Comp SINAPI MG 04-2025 Onerado'!$B$11:$F$9696,4,FALSE) -> 10.17 | H191: 1.18 | I191: 12.0006
A192: C | B192: SINAPI | C192: 90443 | D192: =VLOOKUP(C192,'Comp SINAPI MG 04-2025 Onerado'!$B$11:$F$9696,2,FALSE) -> RASGO LINEAR MANUAL EM ALVENARIA, PARA RAMAIS/ DISTRIBUIÇÃO DE INSTALAÇÕES HIDRÁULICAS, DIÂMETROS MENORES OU IGUAIS A 40 MM. AF_09/2023 | E192: INHI - INSTALAÇÕES HIDROS SANITÁRIAS | F192: M | G192: =VLOOKUP(C192,'Comp SINAPI MG 04-2025 Onerado'!$B$11:$F$9696,4,FALSE) -> 8.76 | H192: 2.14 | I192: 18.7464
A193: C | B193: SINAPI | C193: 89395 | D193: =VLOOKUP(C193,'Comp SINAPI MG 04-2025 Onerado'!$B$11:$F$9696,2,FALSE) -> TE, PVC, SOLDÁVEL, DN 25MM, INSTALADO EM RAMAL OU SUB-RAMAL DE ÁGUA - FORNECIMENTO E INSTALAÇÃO. AF_06/2022 | E193: INHI - INSTALAÇÕES HIDROS SANITÁRIAS | F193: UN | G193: =VLOOKUP(C193,'Comp SINAPI MG 04-2025 Onerado'!$B$11:$F$9696,4,FALSE) -> 13.96 | H193: 0.89 | I193: 12.4244
A194: C | B194: SINAPI | C194: 89356 | D194: =VLOOKUP(C194,'Comp SINAPI MG 04-2025 Onerado'!$B$11:$F$9696,2,FALSE) -> TUBO, PVC, SOLDÁVEL, DE 25MM, INSTALADO EM RAMAL OU SUB-RAMAL DE ÁGUA - FORNECIMENTO E INSTALAÇÃO. AF_06/2022 | E194: INHI - INSTALAÇÕES HIDROS SANITÁRIAS | F194: M | G194: =VLOOKUP(C194,'Comp SINAPI MG 04-2025 Onerado'!$B$11:$F$9696,4,FALSE) -> 25.43 | H194: 2.14 | I194: 54.4202
A195: C | B195: SINAPI | C195: 90822 | D195: =VLOOKUP(C195,'Comp SINAPI MG 04-2025 Onerado'!$B$11:$F$9696,2,FALSE) -> PORTA DE MADEIRA PARA PINTURA, SEMI-OCA (LEVE OU MÉDIA), 80X210CM, ESPESSURA DE 3,5CM, INCLUSO DOBRADIÇAS - FORNECIMENTO E INSTALAÇÃO. AF_12/2019 | E195: ESQV - ESQUADRIAS/FERRAGENS/VIDROS | F195: UN | G195: =VLOOKUP(C195,'Comp SINAPI MG 04-2025 Onerado'!$B$11:$F$9696,4,FALSE) -> 360.6 | H195: 0.0268 | I195: 9.66408
A196: C | B196: SINAPI | C196: 101876 | D196: =VLOOKUP(C196,'Comp SINAPI MG 04-2025 Onerado'!$B$11:$F$9696,2,FALSE) -> QUADRO DE DISTRIBUIÇÃO DE ENERGIA EM PVC, DE EMBUTIR, SEM BARRAMENTO, PARA 6 DISJUNTORES - FORNECIMENTO E INSTALAÇÃO. AF_10/2020 | E196: INEL - INSTALAÇÃO ELÉTRICA/ELETRIFICAÇÃO E ILUMINAÇÃO EXTERNA | F196: UN | G196: =VLOOKUP(C196,'Comp SINAPI MG 04-2025 Onerado'!$B$11:$F$9696,4,FALSE) -> 88.79 | H196: 0.0268 | I196: 2.379572
A197: C | B197: SINAPI | C197: 93382 | D197: =VLOOKUP(C197,'Comp SINAPI MG 04-2025 Onerado'!$B$11:$F$9696,2,FALSE) -> REATERRO MANUAL DE VALAS, COM COMPACTADOR DE SOLOS DE PERCUSSÃO. AF_08/2023 | E197: MOVT - MOVIMENTO DE TERRA | F197: m³ | G197: =VLOOKUP(C197,'Comp SINAPI MG 04-2025 Onerado'!$B$11:$F$9696,4,FALSE) -> 28.28 | H197: 0.01 | I197: 0.2828
A198: C | B198: SINAPI | C198: 94210 | D198: =VLOOKUP(C198,'Comp SINAPI MG 04-2025 Onerado'!$B$11:$F$9696,2,FALSE) -> TELHAMENTO COM TELHA ONDULADA DE FIBROCIMENTO E = 6 MM, COM RECOBRIMENTO LATERAL DE 1 1/4 DE ONDA PARA TELHADO COM INCLINAÇÃO MÁXIMA DE 10°, COM ATÉ 2 ÁGUAS, INCLUSO IÇAMENTO. AF_07/2019 | E198: COBE - COBERTURA | F198: m² | G198: =VLOOKUP(C198,'Comp SINAPI MG 04-2025 Onerado'!$B$11:$F$9696,4,FALSE) -> 47.86 | H198: 1.451 | I198: 69.44486
A199: C | B199: SINAPI | C199: 92000 | D199: =VLOOKUP(C199,'Comp SINAPI MG 04-2025 Onerado'!$B$11:$F$9696,2,FALSE) -> TOMADA BAIXA DE EMBUTIR (1 MÓDULO), 2P+T 10 A, INCLUINDO SUPORTE E PLACA - FORNECIMENTO E INSTALAÇÃO. AF_03/2023 | E199: INEL - INSTALAÇÃO ELÉTRICA/ELETRIFICAÇÃO E ILUMINAÇÃO EXTERNA | F199: UN | G199: =VLOOKUP(C199,'Comp SINAPI MG 04-2025 Onerado'!$B$11:$F$9696,4,FALSE) -> 33.06 | H199: 0.0268 | I199: 0.886008
A200: C | B200: SINAPI | C200: 92008 | D200: =VLOOKUP(C200,'Comp SINAPI MG 04-2025 Onerado'!$B$11:$F$9696,2,FALSE) -> TOMADA BAIXA DE EMBUTIR (2 MÓDULOS), 2P+T 10 A, INCLUINDO SUPORTE E PLACA - FORNECIMENTO E INSTALAÇÃO. AF_03/2023 | E200: INEL - INSTALAÇÃO ELÉTRICA/ELETRIFICAÇÃO E ILUMINAÇÃO EXTERNA | F200: UN | G200: =VLOOKUP(C200,'Comp SINAPI MG 04-2025 Onerado'!$B$11:$F$9696,4,FALSE) -> 50.92 | H200: 0.1342 | I200: 6.833464
A201: C | B201: SINAPI | C201: 92543 | D201: =VLOOKUP(C201,'Comp SINAPI MG 04-2025 Onerado'!$B$11:$F$9696,2,FALSE) -> TRAMA DE MADEIRA COMPOSTA POR TERÇAS PARA TELHADOS DE ATÉ 2 ÁGUAS PARA TELHA ONDULADA DE FIBROCIMENTO, METÁLICA, PLÁSTICA OU TERMOACÚSTICA, INCLUSO TRANSPORTE VERTICAL. AF_07/2019 | E201: COBE - COBERTURA | F201: m² | G201: =VLOOKUP(C201,'Comp SINAPI MG 04-2025 Onerado'!$B$11:$F$9696,4,FALSE) -> 30.17 | H201: 1.451 | I201: 43.77667
A202: C | B202: SINAPI | C202: 89714 | D202: =VLOOKUP(C202,'Comp SINAPI MG 04-2025 Onerado'!$B$11:$F$9696,2,FALSE) -> TUBO PVC, SERIE NORMAL, ESGOTO PREDIAL, DN 100 MM, FORNECIDO E INSTALADO EM RAMAL DE DESCARGA OU RAMAL DE ESGOTO SANITÁRIO. AF_08/2022 | E202: INHI - INSTALAÇÕES HIDROS SANITÁRIAS | F202: M | G202: =VLOOKUP(C202,'Comp SINAPI MG 04-2025 Onerado'!$B$11:$F$9696,4,FALSE) -> 39.6 | H202: 0.1423 | I202: 5.63508
A203: C | B203: SINAPI | C203: 89711 | D203: =VLOOKUP(C203,'Comp SINAPI MG 04-2025 Onerado'!$B$11:$F$9696,2,FALSE) -> TUBO PVC, SERIE NORMAL, ESGOTO PREDIAL, DN 40 MM, FORNECIDO E INSTALADO EM RAMAL DE DESCARGA OU RAMAL DE ESGOTO SANITÁRIO. AF_08/2022 | E203: INHI - INSTALAÇÕES HIDROS SANITÁRIAS | F203: M | G203: =VLOOKUP(C203,'Comp SINAPI MG 04-2025 Onerado'!$B$11:$F$9696,4,FALSE) -> 22.75 | H203: 0.0886 | I203: 2.01565
A204: I | B204: SINAPI | C204: 10886 | D204: =VLOOKUP(C204,'Ins SINAPI MG 04-2025 Onerado'!$B$11:$F$9696,2,FALSE) -> EXTINTOR DE INCENDIO PORTATIL COM CARGA DE AGUA PRESSURIZADA DE 10 L, CLASSE A | E204: Material | F204: UN | G204: =VLOOKUP(C204,'Ins SINAPI MG 04-2025 Onerado'!$B$11:$F$9696,5,FALSE) -> 154.87 | H204: 0.0268 | I204: 4.150516
A205: I | B205: SINAPI | C205: 10891 | D205: =VLOOKUP(C205,'Ins SINAPI MG 04-2025 Onerado'!$B$11:$F$9696,2,FALSE) -> EXTINTOR DE INCENDIO PORTATIL COM CARGA DE PO QUIMICO SECO (PQS) DE 4 KG, CLASSE BC | E205: Material | F205: UN | G205: =VLOOKUP(C205,'Ins SINAPI MG 04-2025 Onerado'!$B$11:$F$9696,5,FALSE) -> 149.76 | H205: 0.0268 | I205: 4.013568
A206: I | B206: SINAPI | C206: 3080 | D206: =VLOOKUP(C206,'Ins SINAPI MG 04-2025 Onerado'!$B$11:$F$9696,2,FALSE) -> FECHADURA ESPELHO PARA PORTA EXTERNA, EM ACO INOX (MAQUINA, TESTA E CONTRA-TESTA) E EM ZAMAC (MACANETA, LINGUETA E TRINCOS) COM ACABAMENTO CROMADO, MAQUINA DE 40 MM, INCLUINDO CHAVE TIPO CILINDRO | E206: Material | F206: CJ | G206: =VLOOKUP(C206,'Ins SINAPI MG 04-2025 Onerado'!$B$11:$F$9696,5,FALSE) -> 67.45 | H206: 0.0268 | I206: 1.80766
A207: I | B207: SINAPI | C207: 11587 | D207: =VLOOKUP(C207,'Ins SINAPI MG 04-2025 Onerado'!$B$11:$F$9696,2,FALSE) -> FORRO DE PVC LISO, BRANCO, REGUA DE 10 CM, ESPESSURA APROXIMADA DE 8 MM (COM COLOCACAO / SEM ESTRUTURA METALICA) | E207: Material | F207: m² | G207: =VLOOKUP(C207,'Ins SINAPI MG 04-2025 Onerado'!$B$11:$F$9696,5,FALSE) -> 78.74 | H207: 1 | I207: 78.74
A208: I | B208: SINAPI | C208: 37525 | D208: =VLOOKUP(C208,'Ins SINAPI MG 04-2025 Onerado'!$B$11:$F$9696,2,FALSE) -> TELA PLASTICA TECIDA LISTRADA BRANCA E LARANJA, TIPO GUARDA CORPO, EM POLIETILENO MONOFILADO, ROLO 1,20 X 50 M (L X C) | E208: Equipamento | F208: M | G208: =VLOOKUP(C208,'Ins SINAPI MG 04-2025 Onerado'!$B$11:$F$9696,5,FALSE) -> 2.65 | H208: 1.2782 | I208: 3.38723

Sheet CPU HOSPEDAGEM
B2: Engenharia Consultiva da Codevasf
B3: CPU - HOSPEDAGEM EQUIPE DE CAMPO (4 PESSOAS/MÊS) | D3: Código/Referencia
B4: ALUGUEL | C4: 3074.56 | D4: F020003334/EMBASA insumo
B5: Aquisição de Mobiliário | C5: =41.81*C16 -> 167.24 | D5: B8954/DNIT
B6: Material de limpeza e diarista | C6: =129.46+(123*8) -> 1113.46 | D6: 10563/ORSE - E200300131/EMBASA
B7: manutenção da casa alugada - Serviços Gerais/Vigia | C7: 3044.36 | D7: 41096/SINAPI
B8: Energia | C8: 180 | D8: 10555/ORSE
B9: Água | C9: 394.99 | D9: 10554/ORSE
B10: telefone/Internet | C10: =154.99+89 -> 243.99 | D10: 10557/10558/ORSE
B11: IPTU (mês) | C11: =(C4*0.5)/12 -> 128.1066667
B13: Custo Mensal: | C13: =SUM(C4:C12) -> 8346.706667
B14: Custo Mensal por pessoa: | C14: =C13/C16 -> 2086.676667
B15: Custo diário por pessoa: | C15: =C14/22 -> 94.84893939
B16: número de pessoas: | C16: 4
B17: Alimentação: | C17: 100.59 | D17: Tabela Diária Codevasf 2025
B19: Diária Total (alimentação + hospedagem): | C19: =C15+C17 -> 195.4389394

Sheet CPU-VEICULO_PickUp
A5: Composição de Preços de Locação de Veículo tipo pick-up
B6: Data de atualização: | C6: 2025-01-22 | E6: CV | F6: Média | G6: Mediana | K6: CV | L6: Média | M6: Mediana | V6: CV | W6: Média | X6: Mediana
A7: CODEVASF | E7: =_xlfn.STDEV.S(E10:H10)/AVERAGE(E10:H10) -> 0.09461804749 | F7: =AVERAGE(E10:H10) -> 200477 | G7: =MEDIAN(E10:H10) -> 205565.5 | K7: =_xlfn.STDEV.S(L9:S9)/AVERAGE(L9:S9) -> 0.2049193683 | L7: =AVERAGE(L9:S9) -> 34.54857143 | M7: =MEDIAN(L9:S9) -> 30.91 | V7: =_xlfn.STDEV.S(W9:AD9)/AVERAGE(W9:AD9) -> 0.1241023561 | W7: =AVERAGE(W9:AD9) -> 499.0190625 | X7: =MEDIAN(W9:AD9) -> 499.45
A8: OBS: Preço sem BDI e sem motorista BDI= | E8: Preço FIPE | J8: PRODUTO | K8: MENOR (MÉDIA, MEDIANA) | L8: COT. 1 | M8: COT. 2 | N8: COT. 3 | O8: COT. 4 | P8: COT. 5 | Q8: COT. 6 | R8: COT. 7 | S8: COT. 8 | U8: PRODUTO | V8: MENOR (MÉDIA, MEDIANA) | W8: COT. 1 | X8: COT. 2 | Y8: COT. 3 | Z8: COT. 4 | AA8: COT. 5 | AB8: COT. 6 | AC8: COT. 7 | AD8: COT. 8
A9: Veículo tipo pick-up, cabine dupla - 2.0 16V 4x4 diesel Aut. | E9: Toro Ultra 2.0 16V 4x4 TB Diesel Aut. | F9: Toro Freedom 2.0 16V 4x4 TB Diesel Aut. | G9: Toro Volcano 2.0 16V 4x4 TB Diesel Aut. | H9: Toro Ranch 2.0 16V 4x4 TB Diesel Aut. | J9: LUBRIFICANTE 5W30 | K9: =SMALL(L7:M7,1) -> 30.91 | L9: 33.33 | M9: 26.9 | N9: 30.9 | O9: 30.9 | P9: 30.91 | Q9: 46 | R9: 42.9 | U9: Pneu 225/65 R17 | V9: =SMALL(W7:X7,1) -> 499.0190625 | W9: 499 | X9: 479.9 | Y9: 565.25 | Z9: 393.38 | AA9: 449.9 | AB9: =2059.44/4 -> 514.86 | AC9: =2359.85/4 -> 589.9625 | AD9: 499.9
B10: Custo Mensal (R$): | C10: =C51 -> 8053.388148 | E10: 215525 | F10: 175252 | G10: 196485 | H10: 214646
B11: Custo Diária (R$): | C11: =C10/22 -> 366.0630977
B12: Custo Horário (R$): | C12: =C10/176 -> 45.75788721
A13: A | B13: Depreciação mensal do equipamento
A14: A1 | B14: Preço de Aquisição | C14: =SMALL(F7:G7,1) -> 200477
A15: A2 | B15: Tempo previsto de vida útil (meses) | C15: 36
A16: A3 | B16: Previsão de recup. Na venda do bem usado | C16: 0.7
A17: A4 | B17: Custo mensal [A1-(A3xA1)]/A2 | C17: =(C14-(C16*C14))/C15 -> 1670.641667
A18: B | B18: Juros pelo Capital empregado
A19: B1 | B19: Taxa mensal de Juros * | C19: =POWER(1+C56,1/12)-1 -> 0.01153145236
A20: B2 | B20: Juros s/depreciação/aluguel (B1xA4) | C20: =C19*C17 -> 19.26492479
A21: C | B21: Conservação e manutenção ** | C21: 0.75
A22: C1 | B22: Taxa de gastos s/a deprec. Inc. seguros (%) | C22: =C21 -> 0.75 | AF22: PREÇO DO DIESEL | AG22: 5.9
A23: C2 | B23: Incidência mensal (C1xA4) | C23: =C22*C17 -> 1252.98125 | AF23: https://precos.petrobras.com.br/w/diesel/mg
A24: D | B24: Combustível
A25: D1 | B25: Média mensal de quilômetro por veículo | C25: ='Memorial de cálculo'!H5*2*22 -> 7744
A26: D2 | B26: Preço do litro de combustível | C26: =AG22 -> 5.9
A27: D3 | B27: Quilômetros rodados com um litro combustivel | C27: 10
A28: D4 | B28: Combustivel (D1/D3)*D2 | C28: =(C25/C27)*C26 -> 4568.96
A29: E | B29: Lubrificantes
A30: E1 | B30: Quilometragem do Contrato (D1*12) | C30: =C25*36 -> 278784
A31: E2 | B31: Franquia por troca de óleo (km) | C31: 10000
A32: E3 | B32: Preço do litro de óleo | C32: =K9 -> 30.91
A33: E4 | B33: Quantidade de litros de óleo por troca | C33: 5
A34: E5 | B34: Quantidade de dias do Contrato | C34: =365*3 -> 1095
A35: E6 | B35: Lubrificantes E = (E1*E3*E4*30)/E2*E5 | C35: =(C30*C32*C33*30)/(C31*C34) -> 118.0440197
A36: F | B36: Pneus
A37: F1 | B37: Quilometragem do Contrato | C37: =C30 -> 278784
A38: F2 | B38: Vida do Pneu em quilômetros | C38: 45000
A39: F3 | B39: Quantidade de pneus | C39: 5
A40: F4 | B40: Preço do Pneu | C40: =V9 -> 499.0190625
A41: F5 | B41: Quantidade de dias do contrato | C41: =C34 -> 1095
A42: F6 | B42: Pneus = (F1*F3*F4*30)/(F2*F5) | C42: =(C37*C39*C40*30)/(C38*C41) -> 423.4962871
A43: G | B43: Motorista
A44: G1 | B44: Salário com encargos sociais | C44: 0
A45: H | B45: Custo Mensal
B46: Sem Motorista (A4+B2+C2+D4+E6+F6) | C46: =C17+C20+C23+C28+C35+C42 -> 8053.388148
B47: Com Motorista (A4+B2+C2+D4+E6+F6+G1) | C47: =C17+C20+C23+C28+C35+C42+C44 -> 8053.388148
A48: I | B48: Custo Direto p/ km Rodado
B49: Sem Motorista | C49: =C46/C25 -> 1.039951982
B50: Com Motorista | C50: =C47/C25 -> 1.039951982
A51: J | B51: Preço cobrado sem BDI | C51: =C46*(1+C8) -> 8053.388148
A52: J1 | B52: Sem Motorista | C52: =C51 -> 8053.388148
A53: J2 | B53: Com Motorista | C53: =C47 -> 8053.388148 | I53: https://www.google.com/search?q=lubrificante+5w30+1l&sa=X&sca_esv=c77f5342bf7e367a&tbm=shop&ei=e0uKZ-DcDNKp5OUPkOKj6QY&ved=0ahUKEwighoOy3_yKAxXSFLkGHRDxKG0Q4dUDCAg&uact=5&oq=lubrificante+5w30+1l&gs_lp=Egtwcm9kdWN0cy1jYyIUbHVicmlmaWNhbnRlIDV3MzAgMWxIgQ9Q4AlY8Q1wAHgAkAEAmAFroAGgA6oBAzEuM7gBA8gBAPgBAZgCAqAC0gHCAgUQABiABMICBhAAGAcYHsICBhAAGAgYHsICBhAAGBYYHpgDAIgGAZIHAzEuMaAHxQU&sclient=products-cc | T53: https://www.google.com/search?q=pneu+225%2F65+R17&sa=X&biw=1600&bih=757&tbm=shop&sxsrf=AJOqlzWsb-d4PS1_OUOEhKmRc2RbtSg3RQ%3A1677092596279&ei=9Gb2Y9K5ENTa5OUPvLykGA&ved=0ahUKEwjSg9Pj6Kn9AhVULbkGHTweCQMQ4dUDCAg&uact=5&oq=pneu+225%2F65+R17&gs_lcp=Cgtwcm9kdWN0cy1jYxADMgsIABCABBCxAxCDATIFCAAQgAQyBwgAEIAEEAoyBwgAEIAEEAoyBwgAEIAEEAoyBwgAEIAEEAoyBwgAEIAEEAoyBQgAEIAEMgcIABCABBAKMgcIABCABBAKOgQIIxAnOgQIABBDSgQIQRgAUABYoTJgqUBoAHAAeACAAdIFiAGUKZIBDTAuMi42LjIuMi4yLjGYAQCgAQHAAQE&sclient=products-cc
B55: OBSERVAÇÕES:
A56: * | B56: Calculado com base na taxa SELIC JANEIRO/2025: | C56: 0.1475
B57: Taxa de Juros Selic — Português (Brasil) (www.gov.br)
A58: ** | B58: Conservação e manutenção - é calculado com o uso de um coeficiente multiplicador "k", conforme tabela abaixo, sobre a
B59: depreciação mensal do equipamento (Item A da planilha de composição de preços). Os valores de K são fornecidos por
B60: fabricantes.
B61: Metodologia conforme a bibliografia "Como Preparar Orçamentos de Obras", 3 edição, Aldo Dórea Mattos, 2019.

Sheet Cotação
A1: ='São Gregório'!A1:I1 -> Ministério da Integração e do Desenvolvimento Regional
A2: ='São Gregório'!A2:I2 -> Companhia de Desenvolvimento dos Vales do São Francisco e do Parnaíba
A3: ITEM | B3: EMPRESA | G3: ORÇADO POR | H3: DESCRIÇÃO / OBSERVAÇÃO | I3: UNID | J3: QUANT | K3: LINK OU LOCAL DO ARQUIVO | L3: VALOR
B4: DATA | C4: EMPRESA / CNPJ | D4: RESPONSÁVEL | E4: ENDEREÇO | F4: CONTATO | L4: MAT | M4: MDO | N4: TRANSPORTE | O4: TOTAL
A5: 1 | B5: 2024-04-09 | C5: POLIMEDIÇÃO COMERCIAL | D5: Preço na loja online | E5: R. Arlete, 151 - Jardim Penha - São Paulo - SP | F5: Tel: (11) 4328-3003 WhatsApp: (11) 98575-6343 polimedicao@gmail.com | G5: Murilo | H5: Régua linimétrica em alumínio 2 X 70 X 1000MM | I5: un | J5: 1 | K5: https://www.polimedicao.com.br/product-page/r%C3%A9gua-linim%C3%A9trica-em-chapa-de-aluminio-2-x-70-x-1000mm | L5: 160 | O5: =SUM(L5:N5) -> 160
A6: 2 | B6: 2024-04-09 | C6: Gravametal | D6: Preço na loja online | E6: Rua Uniflor, 1012 - Emiliano Perneta Pinhais - Paraná - CEP: 83324-227 | F6: ☎ (41) 3403-0144 ✆ (41) 99672-9692 ✉ gravametal@gmail.com | G6: Murilo | H6: Régua linimétrica em alumínio 2 X 70 X 1000MM | I6: un | J6: 1 | K6: https://www.gravametal.com.br/product-page/r%C3%A9gua-linim%C3%A9trica-fluviom%C3%A9trica-1000x70x2mm | L6: 209.9 | O6: =SUM(L6:N6) -> 209.9
A7: 3 | B7: 2024-04-09 | C7: Dualbase | D7: Consulta via email | E7: Av. Gentil Reinaldo Cordioli, 157 - CEP 88133-500 - Palhoça/SC | F7: Tel: (48) 3342 5202 adriano@dualbase.com.br | G7: Murilo | H7: Régua linimétrica em alumínio 2 X 70 X 1000MM | I7: un | J7: 1 | K7: www.dualbase.com.br | L7: 165.9 | O7: 165.9
N8: Média | O8: =AVERAGE(O5:O7) -> 178.6
N9: Mediana | O9: =MEDIAN(O5:O7) -> 165.9
N10: Menor | O10: =SMALL(O8:O9,1) -> 165.9

Sheet Memorial de cálculo
A1: Ministério da Integração e do Desenvolvimento Regional
A2: Companhia de desenvolvimento dos Vales do São Francisco e do Parnaíba | I2: Quantitativos por Barragem
A4: MEMORIAL DE CÁLCULO | I4: São Gregório
A5: ='São Gregório'!A5 -> OBRA: | B5: ='São Gregório'!B5:F5 -> Execução de manutenção e obras civis na barragem de São Gregório, localizada em Campo Azul no estado de Minas Gerais. | D5: DESLOCAMENTO - SR para Barragem (km): | H5: 176 | I5: =H5 -> 176
A6: ='São Gregório'!A6 -> LOCAL: | B6: ='São Gregório'!B6 -> Campo Azul - MG
A7: ='São Gregório'!A7 -> DATA BASE: | B7: ='São Gregório'!B7 -> 2025-06-01 | D7: VIA URBANA PAVIMENTADA - SR para Barragem (km) | H7: =H5-H8 -> 125.8 | I7: =I5-I8 -> 125.8
A8: ='São Gregório'!A8 -> PRAZO: | B8: ='São Gregório'!B8 -> 120 dias | D8: REVESTIMENTO PRIMÁRIO - SR para Barragem (km) | H8: 50.2 | I8: =H8 -> 50.2
A9: ITEM | B9: DESCRIÇÃO | C9: UNID. | D9: PARÂMETRO 1 | E9: PARÂMETRO 2 | F9: PARÂMETRO 3 | G9: PARÂMETRO 4 | H9: TOTAL
A11: =CPU!B10 -> CPU.01 | B11: =VLOOKUP(A11,CPU!$B$10:$G$5077,2,0) -> Administração Local | C11: =VLOOKUP(A11,CPU!$B$10:$G$5077,3,0) -> mês | D11: QUANT.PESSOAS | E11: HORAS DIÁRIA | F11: DIAS TRABALHADOS NO MÊS | G11: MESES | H11: 3
B12: =CPU!C15 -> Engenheiro Civil De Obra Pleno Com Encargos Complementares | C12: h | D12: 1 | E12: 1.5 | F12: =4*5 -> 20 | H12: =D12*E12*F12 -> 30
B13: =CPU!C16 -> Encarregado Geral De Obras Com Encargos Complementares | C13: mês | D13: 1 | G13: 0.8 | H13: =D13*G13 -> 0.8
B14: =CPU!C17 -> VIGIA - AN | C14: h | D14: 4 | E14: 12 | F14: 15 | H14: =D14*E14*F14 -> 720
B15: A escala de trabalho 12x36 para vigias noturnos consiste em trabalhar 12 horas seguidas e folgar 36 horas
A17: =CPU!B19 -> CPU.02 | B17: =VLOOKUP(A17,CPU!$B$10:$G$5077,2,0) -> Mobilização e desmobilização de instalação do canteiro | C17: =VLOOKUP(A17,CPU!$B$10:$G$5077,3,0) -> un | H17: 1
A18: 100946 | B18: =IF(I18="ca",VLOOKUP(A18,'Comp SINAPI MG 04-2025 Onerado'!B:C,2,0),VLOOKUP(A18,'Ins SINAPI MG 04-2025 Onerado'!B:C,2,0)) -> TRANSPORTE COM CAMINHÃO CARROCERIA 9T, EM VIA URBANA EM REVESTIMENTO PRIMÁRIO (UNIDADE: TXKM). AF_07/2020 | C18: =IF(I18="ca",VLOOKUP(A18,'Comp SINAPI MG 04-2025 Onerado'!B:D,3,0),VLOOKUP(A18,'Ins SINAPI MG 04-2025 Onerado'!B:D,3,0)) -> TXKM | H18: =$C$20*$D$20*$E$20 -> 502 | I18: ca
C19: T | D19: km | E19: N. viagens
C20: 5 | D20: =H8 -> 50.2 | E20: 2
A21: 100947 | B21: =IF(I21="ca",VLOOKUP(A21,'Comp SINAPI MG 04-2025 Onerado'!B:C,2,0),VLOOKUP(A21,'Ins SINAPI MG 04-2025 Onerado'!B:C,2,0)) -> TRANSPORTE COM CAMINHÃO CARROCERIA 9T, EM VIA URBANA PAVIMENTADA, DMT ATÉ 30KM (UNIDADE: TXKM). AF_07/2020 | C21: =IF(I21="ca",VLOOKUP(A21,'Comp SINAPI MG 04-2025 Onerado'!B:D,3,0),VLOOKUP(A21,'Ins SINAPI MG 04-2025 Onerado'!B:D,3,0)) -> TXKM | H21: =$C$23*$D$23*$E$23 -> 300 | I21: ca
C22: T | D22: km | E22: N. viagens
C23: 5 | D23: 30 | E23: 2
A24: 100948 | B24: =IF(I24="ca",VLOOKUP(A24,'Comp SINAPI MG 04-2025 Onerado'!B:C,2,0),VLOOKUP(A24,'Ins SINAPI MG 04-2025 Onerado'!B:C,2,0)) -> TRANSPORTE COM CAMINHÃO CARROCERIA 9T, EM VIA URBANA PAVIMENTADA, ADICIONAL PARA DMT EXCEDENTE A 30 KM (UNIDADE: TXKM). AF_07/2020 | C24: =IF(I24="ca",VLOOKUP(A24,'Comp SINAPI MG 04-2025 Onerado'!B:D,3,0),VLOOKUP(A24,'Ins SINAPI MG 04-2025 Onerado'!B:D,3,0)) -> TXKM | H24: =$C$26*$D$26*$E$26 -> 958 | I24: ca
C25: T | D25: km | E25: N. viagens
C26: 5 | D26: =H5-D23-D20 -> 95.8 | E26: 2
A28: =CPU!B29 -> CPU.03 | B28: =VLOOKUP(A28,CPU!$B$10:$G$5077,2,0) -> Execução de canteiro de obras, inclusive, limpeza, refeitório, sanitários e central de formas | C28: =VLOOKUP(A28,CPU!$B$10:$G$5077,3,0) -> m2 | H28: =SUM(H29:H31) -> 28.5
B29: Área do Refeitório Em Canteiro De Obra | C29: m2 | D29: 1 | E29: 3 | F29: 2.5 | H29: =D29*E29*F29 -> 7.5
B30: Área do Sanitário Em Canteiro De Obra | C30: m2 | D30: 1 | E30: 4.5 | F30: 2 | H30: =D30*E30*F30 -> 9
B31: Área da Central de Fôrmas Em Canteiro De Obra | C31: m2 | D31: 1 | E31: 4 | F31: 3 | H31: =D31*E31*F31 -> 12
B32: Mao de obra | C32: m2 | D32: QUANT.PESSOAS | E32: RENDIMENTO (H/M2) | F32: m2 | G32: HORAS | H32: DIAS | I32: DIAS
B33: Carpinteiro | C33: h | D33: 2 | E33: =1.1155/D33 -> 0.55775 | F33: 1 | G33: =F33*(E33) -> 0.55775 | H33: =G33/8 -> 0.06971875 | I33: =$H$28*$E$33/8 -> 1.986984375
A35: =CPU!B40 -> CPU.04 | B35: =VLOOKUP(A35,CPU!$B$10:$G$5077,2,0) -> Limpeza de vegetação | C35: =VLOOKUP(A35,CPU!$B$10:$G$5077,3,0) -> m2 | I35: ='São Gregório'!F27 -> 22838
B36: Mao de obra | C36: m2 | D36: QUANT.PESSOAS | E36: RENDIMENTO (H/M2) | F36: m2 | G36: HORAS | H36: DIAS | I36: DIAS
B37: Servente | C37: h | D37: 4 | E37: =20/1000/D37 -> 0.005 | F37: 1 | G37: =F37*(E37) -> 0.005 | H37: =G37/8 -> 0.000625 | I37: =I35*$E$37/8 -> 14.27375
B38: Rendimento 400 m² por dia por servente
A39: =CPU!B50 -> CPU.05 | B39: =VLOOKUP(A39,CPU!$B$10:$G$5077,2,0) -> Corte de tronco e remoção de raiz | C39: =VLOOKUP(A39,CPU!$B$10:$G$5077,3,0) -> un | I39: ='São Gregório'!F28 -> 60
B40: Mão de obra | D40: QUANT.PESSOAS | E40: RENDIMENTO (H/un) | F40: un | G40: HORAS | H40: DIAS | I40: DIAS
B41: Servente | C41: h | D41: 2 | E41: =2.1685/D41 -> 1.08425 | F41: 1 | G41: =F41*(E41) -> 1.08425 | H41: =G41/8 -> 0.13553125 | I41: =I39*$E$41/8 -> 8.131875
B42: Jardineiro | C42: h | D42: 1 | E42: =1.1535/D42 -> 1.1535 | F42: 1 | G42: =F42*(E42) -> 1.1535 | H42: =G42/8 -> 0.1441875 | I42: =I39*$E$42/8 -> 8.65125
A44: CPU.07 | B44: =VLOOKUP(A44,CPU!$B$10:$G$5077,2,0) -> Enrocamento c/ pedra de mão c/ fornecimento e assentamento | C44: =VLOOKUP(A44,CPU!$B$10:$G$5077,3,0) -> m3 | I44: ='São Gregório'!F38 -> 247
B45: Mao de obra | D45: QUANT.PESSOAS | E45: RENDIMENTO (H/M3) | F45: m3 | G45: HORAS | H45: DIAS | I45: DIAS
B46: Pedreiro | D46: 1 | E46: =0.2/D46 -> 0.2 | F46: 1 | G46: =F46*(E46) -> 0.2 | H46: =G46/8 -> 0.025 | I46: =I44*$E$46/8 -> 6.175
B47: Servente | D47: 1 | E47: =0.2/D47 -> 0.2 | F47: 1 | G47: =F47*(E47) -> 0.2 | H47: =G47/8 -> 0.025 | I47: =I44*$E$47/8 -> 6.175
A49: =CPU!B79 -> CPU.08 | B49: =VLOOKUP(A49,CPU!$B$10:$G$5077,2,0) -> Canaleta meia cana de concreto (D=30cm) - Fornecimento e instalação | C49: =VLOOKUP(A49,CPU!$B$10:$G$5077,3,0) -> m | I49: ='São Gregório'!F51 -> 264
B50: Mao de obra | D50: QUANT.PESSOAS | E50: RENDIMENTO (H/m) | F50: m | G50: HORAS | H50: DIAS | I50: DIAS
B51: Pedreiro | D51: 2 | E51: =0.2812/D51 -> 0.1406 | F51: 1 | G51: =F51*(E51) -> 0.1406 | H51: =G51/8 -> 0.017575 | I51: =I49*$E$51/8 -> 4.6398
B52: Servente | D52: 2 | E52: =0.2812/D52 -> 0.1406 | F52: 1 | G52: =F52*(E52) -> 0.1406 | H52: =G52/8 -> 0.017575 | I52: =I49*$E$52/8 -> 4.6398
A54: =CPU!B93 -> CPU.09 | B54: =VLOOKUP(A54,CPU!$B$10:$G$5077,2,0) -> Entrada para descida d'água | C54: =VLOOKUP(A54,CPU!$B$10:$G$5077,3,0) -> un | I54: ='São Gregório'!F53 -> 24
B55: Mao de obra | D55: QUANT.PESSOAS | E55: RENDIMENTO (H/m3) | F55: m3 | G55: HORAS | H55: DIAS | I55: DIAS
B56: Servente | D56: 2 | E56: =2.5333/D56 -> 1.26665 | F56: 0.44 | G56: =F56*(E56) -> 0.557326 | H56: =G56/8 -> 0.06966575 | I56: =I54*$E$56/8 -> 3.79995
B57: Operador de betoneira | D57: 2 | E57: =1.6046/D57 -> 0.8023 | F57: 0.44 | G57: =F57*(E57) -> 0.353012 | H57: =G57/8 -> 0.0441265 | I57: =I54*$E$57/8 -> 2.4069
B58: Mao de obra | D58: QUANT.PESSOAS | E58: RENDIMENTO (H/m2) | F58: m2 | G58: HORAS | H58: DIAS | I58: DIAS
B59: Ajudante de carpinteiro | D59: 1 | E59: =0.005/D59 -> 0.005 | F59: 4.34 | G59: =F59*(E59) -> 0.0217 | H59: =G59/8 -> 0.0027125 | I59: =I54*$E$59/8 -> 0.015
B60: Carpinteiro | D60: 1 | E60: =0.005/D60 -> 0.005 | F60: 4.34 | G60: =F60*(E60) -> 0.0217 | H60: =G60/8 -> 0.0027125 | I60: =I54*$E$60/8 -> 0.015
A62: =CPU!B103 -> CPU.10 | B62: =VLOOKUP(A62,CPU!$B$10:$G$5077,2,0) -> Plantio de vegetação para proteção de talude com hidrossemeadura, inclusive adubação e transporte | C62: =VLOOKUP(A62,CPU!$B$10:$G$5077,3,0) -> m2 | I62: ='São Gregório'!F57 -> 9455
B63: Mao de obra | D63: QUANT.PESSOAS | E63: RENDIMENTO (H/m2) | F63: m2 | G63: HORAS | H63: DIAS | I63: DIAS
B64: Servente | D64: 3 | E64: =(8/415)/D64 -> 0.006425702811 | F64: 1 | G64: =F64*(E64) -> 0.006425702811 | H64: =G64/8 -> 0.0008032128514 | I64: =I62*$E$64/8 -> 7.59437751
A67: =CPU!B116 -> CPU.13 | B67: =VLOOKUP(A67,CPU!$B$10:$G$5077,2,0) -> Recomposição das erosões, inclusive, regularização da superfície e reaterro | C67: =VLOOKUP(A67,CPU!$B$10:$G$5077,3,0) -> m3 | I67: ='São Gregório'!F32 -> 98
B68: Mao de obra | D68: QUANT.PESSOAS | E68: RENDIMENTO (H/M3) | F68: m3 | G68: HORAS | H68: DIAS | I68: DIAS
B69: Servente | D69: 1 | E69: =(0.012+0.0356689)/D69 -> 0.0476689 | F69: 1 | G69: =F69*(E69) -> 0.0476689 | H69: =G69/8 -> 0.0059586125 | I69: =I67*$E$69/8 -> 0.583944025
B70: Motorista | D70: 1 | E70: =(0.0228+0.0153+0.004257)/D70 -> 0.042357 | F70: 1 | G70: =F70*(E70) -> 0.042357 | H70: =G70/8 -> 0.005294625 | I70: =I67*$E$70/8 -> 0.51887325
B71: Operador de máquina | D71: 1 | E71: =(0.0096+0.0083+0.0045112+0.0104312)/D71 -> 0.0328424 | F71: 1 | G71: =F71*(E71) -> 0.0328424 | H71: =G71/8 -> 0.0041053 | I71: =I67*$E$71/8 -> 0.4023194
B72: rolo compactador + motoniveladora
A73: =CPU!B134 -> CPU.14 | B73: =VLOOKUP(A73,CPU!$B$10:$G$5077,2,0) -> Regularização e compactação da crista | C73: =VLOOKUP(A73,CPU!$B$10:$G$5077,3,0) -> m2 | I73: ='São Gregório'!F42 -> 1861.31
B74: Mao de obra | C74: m2 | D74: QUANT.PESSOAS | E74: RENDIMENTO (H/M2) | F74: m2 | G74: HORAS | H74: DIAS | I74: DIAS
B75: Servente | C75: h | D75: 1 | E75: =0.0086152/D75 -> 0.0086152 | F75: 1 | G75: =F75*(E75) -> 0.0086152 | H75: =G75/8 -> 0.0010769 | I75: =I73*$E$75/8 -> 2.004444739
A77: =CPU!B143 -> CPU.15 | B77: =VLOOKUP(A77,CPU!$B$10:$G$5077,2,0) -> Execução de Revestimento com BGTC | C77: =VLOOKUP(A77,CPU!$B$10:$G$5077,3,0) -> m3 | I77: ='São Gregório'!F47 -> 186
B78: Mao de obra | C78: m3 | D78: QUANT.PESSOAS | E78: RENDIMENTO (H/M3) | F78: m3 | G78: HORAS | H78: DIAS | I78: DIAS
B79: Servente | C79: h | D79: 1 | E79: =0.0365494/D79 -> 0.0365494 | F79: 1 | G79: =F79*(E79) -> 0.0365494 | H79: =G79/8 -> 0.004568675 | I79: =I77*$E$79/8 -> 0.84977355
A82: =CPU!B157 -> CPU.18 | B82: =VLOOKUP(A82,CPU!$B$10:$G$5077,2,0) -> Régua Linimétrica Padrão “ANA”, Aço Carbono - 2 X 70 X 1000 mm (Fornecimento e Instalação) | C82: =VLOOKUP(A82,CPU!$B$10:$G$5077,3,0) -> un | I82: ='São Gregório'!F72 -> 27
B83: Mao de obra | D83: QUANT.PESSOAS | E83: RENDIMENTO (H/UN) | F83: un | G83: HORAS | H83: DIAS
B84: Topógrafo | D84: 1 | E84: =0.8/D84 -> 0.8 | F84: 1 | G84: =F84*(E84) -> 0.8 | H84: =G84/8 -> 0.1 | I84: =I82*$E$84/8 -> 2.7
B85: Servente | D85: 1 | E85: =1.6/D85 -> 1.6 | F85: 1 | G85: =F85*(E85) -> 1.6 | H85: =G85/8 -> 0.2 | I85: =I82*$E$85/8 -> 5.4
A87: =CPU!B170 -> CPU.19 | B87: =VLOOKUP(A87,CPU!$B$10:$G$5077,2,0) -> Demolição de guias e sarjetas e/ou canaletas | C87: =VLOOKUP(A87,CPU!$B$10:$G$5077,3,0) -> m
B88: Mao de obra | C88: m | D88: QUANT.PESSOAS | E88: RENDIMENTO (H/M) | F88: m | G88: HORAS | H88: DIAS | I88: DIAS
B89: Pedreiro | C89: h | D89: 1 | E89: =0.1759/D89 -> 0.1759 | F89: 1 | G89: =F89*(E89) -> 0.1759 | H89: =G89/8 -> 0.0219875 | I89: =I87*$E$89/8 -> 0
B90: Servente | C90: h | D90: 1 | E90: =0.0772/D90 -> 0.0772 | F90: 1 | G90: =F90*(E90) -> 0.0772 | H90: =G90/8 -> 0.00965 | I90: =I87*$E$90/8 -> 0
A93: =CPU!B181 -> CPU.24 | B93: =VLOOKUP(A93,CPU!$B$10:$G$5077,2,0) -> Limpeza da superfície | C93: =VLOOKUP(A93,CPU!$B$10:$G$5077,3,0) -> m2 | I93: ='São Gregório'!F61+'São Gregório'!F66 -> 196
B94: Mao de obra | D94: QUANT.PESSOAS | E94: RENDIMENTO (H/m2) | F94: m2 | G94: HORAS | H94: DIAS
B95: Servente | D95: 1 | E95: =0.089/D95 -> 0.089 | F95: 1 | G95: =F95*(E95) -> 0.089 | H95: =G95/8 -> 0.011125 | I95: =I93*$E$95/8 -> 2.1805
A97: =CPU!B190 -> CPU.25 | B97: =VLOOKUP(A97,CPU!$B$10:$G$5077,2,0) -> Projeto geométrico | C97: =VLOOKUP(A97,CPU!$B$10:$G$5077,3,0) -> un | I97: ='São Gregório'!F77 -> 1
B98: Mao de obra | D98: QUANT.PESSOAS | E98: RENDIMENTO (H/un) | F98: un | G98: HORAS | H98: DIAS
B99: Engenheiro Civil De Obra Junior Com Encargos Complementares | D99: 1 | E99: =CPU!E195/D99 -> 30 | F99: 1 | G99: =F99*(E99) -> 30 | H99: =G99/8 -> 3.75 | I99: =I97*$E$99/8 -> 3.75
B100: Engenheiro Civil De Obra Senior Com Encargos Complementares | D100: 1 | E100: =CPU!E196/D100 -> 20 | F100: 1 | G100: =F100*(E100) -> 20 | H100: =G100/8 -> 2.5 | I100: =I97*$E$100/8 -> 2.5
B101: Desenhista Projetista Com Encargos Complementares | D101: 1 | E101: =CPU!E197/D101 -> 60 | F101: 1 | G101: =F101*(E101) -> 60 | H101: =G101/8 -> 7.5 | I101: =I97*$E$101/8 -> 7.5
A103: =CPU!B199 -> CPU.26 | B103: =VLOOKUP(A103,CPU!$B$10:$G$5077,2,0) -> Injeção de nata de cimento em buracos | C103: =VLOOKUP(A103,CPU!$B$10:$G$5077,3,0) -> m3 | I103: ='São Gregório'!F34 -> 0.5
B104: Mao de obra | D104: QUANT.PESSOAS | E104: RENDIMENTO (H/m3) | F104: m3 | G104: HORAS | H104: DIAS
B105: Servente | D105: 1 | E105: =1/D105 -> 1 | F105: 1 | G105: =F105*(E105) -> 1 | H105: =G105/8 -> 0.125 | I105: =I103*$E$105/8 -> 0.0625
A107: =CPU!B209 -> CPU.28 | B107: =VLOOKUP(A107,CPU!$B$10:$G$5077,2,0) -> Recuperação do meio-fio com reaproveitamento | C107: =VLOOKUP(A107,CPU!$B$10:$G$5077,3,0) -> m | I107: ='São Gregório'!F44 -> 648
B108: Mao de obra | D108: QUANT.PESSOAS | E108: RENDIMENTO (H/M) | F108: m | G108: HORAS | H108: DIAS | I108: DIAS
B109: Servente | D109: 2 | E109: =(0.0965+0.36/2)/D109 -> 0.13825 | F109: 1 | G109: =F109*(E109) -> 0.13825 | H109: =G109/8 -> 0.01728125 | I109: =$I$107*E109/8 -> 11.19825
B110: Pedreiro | D110: 2 | E110: =(0.2199+0.18/2)/D110 -> 0.15495 | F110: 1 | G110: =F110*(E110) -> 0.15495 | H110: =G110/8 -> 0.01936875 | I110: =$I$107*E110/8 -> 12.55095
A112: =CPU!B219 -> CPU.29 | B112: =VLOOKUP(A112,CPU!$B$10:$G$5077,2,0) -> Fornecimento e Assentamento de Guia (meio-fio) Pré-fabricado, dimensões 100x15x20 cm (comprimento x base x altura) | C112: =VLOOKUP(A112,CPU!$B$10:$G$5077,3,0) -> m | I112: ='São Gregório'!F45 -> 72
B113: Mao de obra | D113: QUANT.PESSOAS | E113: RENDIMENTO (H/M) | F113: m | G113: HORAS | H113: DIAS | I113: DIAS
B114: Servente | D114: 2 | E114: =(0.2151)/D114 -> 0.10755 | F114: 1 | G114: =F114*(E114) -> 0.10755 | H114: =G114/8 -> 0.01344375 | I114: =$I$112*E114/8 -> 0.96795
B115: Pedreiro | D115: 2 | E115: =(0.2151)/D115 -> 0.10755 | F115: 1 | G115: =F115*(E115) -> 0.10755 | H115: =G115/8 -> 0.01344375 | I115: =$I$112*E115/8 -> 0.96795
A117: =CPU!B238 -> CPU.31 | B117: =VLOOKUP(A117,CPU!$B$10:$G$5077,2,0) -> Tratamento De Junta De Dilatação | C117: =VLOOKUP(A117,CPU!$B$10:$G$5077,3,0) -> m | I117: ='São Gregório'!F62 -> 5
B118: Mao de obra | D118: QUANT.PESSOAS | E118: RENDIMENTO (H/M) | F118: m | G118: HORAS | H118: DIAS | I118: DIAS
B119: Servente | D119: 1 | E119: =1.3276/D119 -> 1.3276 | F119: 1 | G119: =F119*(E119) -> 1.3276 | H119: =G119/8 -> 0.16595 | I119: =$I$117*E119/8 -> 0.82975
B120: Pedreiro | D120: 1 | E120: =0.2687/D120 -> 0.2687 | F120: 1 | G120: =F120*(E120) -> 0.2687 | H120: =G120/8 -> 0.0335875 | I120: =$I$117*E120/8 -> 0.1679375

Sheet Cronograma São Gregório
A1: Ministério da Integração e do Desenvolvimento Regional
A2: Companhia de Desenvolvimento dos Vales do São Francisco e do Parnaíba
A4: CRONOGRAMA FÍSICO-FINANCEIRO NÃO DESONERADO
A5: ='São Gregório'!A5 -> OBRA: | B5: ='São Gregório'!B5:F5 -> Execução de manutenção e obras civis na barragem de São Gregório, localizada em Campo Azul no estado de Minas Gerais.
A6: ='São Gregório'!A6 -> LOCAL: | B6: ='São Gregório'!B6 -> Campo Azul - MG
A7: ='São Gregório'!A7 -> DATA BASE: | B7: ='São Gregório'!B7 -> 2025-06-01
A8: ='São Gregório'!A8 -> PRAZO: | B8: ='São Gregório'!B8 -> 120 dias
B9: ='São Gregório'!B10 -> São Gregório
A10: ITEM | B10: DESCRIÇÃO | C10: TOTAL POR ETAPA | D10: MESES | H10: TOTAL
D11: 1 | E11: 2 | F11: 3 | G11: 4
A12: 1 | B12: =VLOOKUP(A12,'São Gregório'!A:I,4) -> ADMINISTRAÇÃO DA OBRA | C12: =VLOOKUP(A12,'São Gregório'!A$11:I$1035,9) -> 154077.52 | D12: =$C12*D13 -> 40767.69535 | E12: =$C12*E13 -> 58797.59774 | F12: =$C12*F13 -> 34486.74324 | G12: =$C12*G13 -> 20025.48368 | H12: =SUM(D12:G12) -> 154077.52 | I12: R$
C13: =C12/C12 -> 1 | D13: =SUMIF($I$14:$I$37,"R$",D$14:D$37)/$C$38 -> 0.264592105 | E13: =SUMIF($I$14:$I$37,"R$",E$14:E$37)/$C$38+D40-D13 -> 0.3816104889 | F13: =SUMIF($I$14:$I$37,"R$",F$14:F$37)/$C$38+E40-E13 -> 0.2238272217 | G13: =1-SUM(D13:F13) -> 0.1299701844 | H13: =SUM(D13:G13) -> 1 | I13: %
A14: 2 | B14: =VLOOKUP(A14,'São Gregório'!A:I,4) -> SERVIÇOS PRELIMINARES | C14: =VLOOKUP(A14,'São Gregório'!A$11:I$1035,9) -> 30718.09 | D14: =$C14*D15 -> 30718.09 | H14: 30718.09 | I14: R$
C15: =C14/C14 -> 1 | D15: 1 | H15: 1 | I15: %
A16: 3 | B16: =VLOOKUP(A16,'São Gregório'!A:I,4) -> CORTE DA VEGETAÇÃO E REMOÇÃO DAS RAIZES | C16: =VLOOKUP(A16,'São Gregório'!A$11:I$1035,9) -> 243348.6 | D16: =$C16*D17 -> 243348.6 | H16: 243348.6 | I16: R$
C17: =C16/C16 -> 1 | D17: 1 | H17: 1 | I17: %
A18: 4 | B18: =VLOOKUP(A18,'São Gregório'!A:I,4) -> RECUPERAÇÃO DO MACIÇO | C18: =VLOOKUP(A18,'São Gregório'!A$11:I$1035,9) -> 45367.51 | E18: =$C18*E19 -> 45367.51 | H18: 45367.51 | I18: R$
C19: =C18/C18 -> 1 | E19: 1 | H19: 1 | I19: %
A20: 5 | B20: =VLOOKUP(A20,'São Gregório'!A:I,4) -> MANUTENÇÃO NO TALUDE DE MONTANTE | C20: =VLOOKUP(A20,'São Gregório'!A$11:I$1035,9) -> 130865.54 | E20: =$C20*E21 -> 130865.54 | H20: 130865.54 | I20: R$
C21: =C20/C20 -> 1 | E21: 1 | H21: 1 | I21: %
A22: 6 | B22: =VLOOKUP(A22,'São Gregório'!A:I,4) -> REGULARIZAÇÃO E PAVIMENTAÇÃO DA CRISTA | C22: =VLOOKUP(A22,'São Gregório'!A$11:I$1035,9) -> 179124.51 | E22: =$C22*E23 -> 179124.51 | H22: 179124.51 | I22: R$
C23: =C22/C22 -> 1 | E23: 1 | H23: 1 | I23: %
A24: 7 | B24: =VLOOKUP(A24,'São Gregório'!A:I,4) -> DRENAGEM SUPERFICIAL DO TALUDE DE JUSANTE | C24: =VLOOKUP(A24,'São Gregório'!A$11:I$1035,9) -> 59598.48 | F24: =$C24*F25 -> 59598.48 | H24: 59598.48 | I24: R$
C25: =C24/C24 -> 1 | F25: 1 | H25: 1 | I25: %
A26: 8 | B26: =VLOOKUP(A26,'São Gregório'!A:I,4) -> PROTEÇÃO SUPERFICIAL DO TALUDE DE JUSANTE | C26: =VLOOKUP(A26,'São Gregório'!A$11:I$1035,9) -> 151469.1 | F26: =$C26*F27 -> 151469.1 | H26: =SUM(D26:G26) -> 151469.1 | I26: R$
C27: =C26/C26 -> 1 | F27: 1 | H27: 1 | I27: %
A28: 9 | B28: =VLOOKUP(A28,'São Gregório'!A:I,4) -> RESTAURAÇÃO DO MURO LATERAL | C28: =VLOOKUP(A28,'São Gregório'!A$11:I$1035,9) -> 1170.65 | F28: =$C28*F29 -> 1170.65 | H28: 1170.65 | I28: R$
C29: =C28/C28 -> 1 | F29: 1 | H29: 1 | I29: %
A30: 10 | B30: =VLOOKUP(A30,'São Gregório'!A:I,4) -> RESTAURAÇÃO DA SOLEIRA DO VERTEDOURO | C30: =VLOOKUP(A30,'São Gregório'!A$11:I$1035,9) -> 1886 | F30: =$C30*F31 -> 1886 | H30: =SUM(D30:G30) -> 1886 | I30: R$
C31: =C30/C30 -> 1 | F31: 1 | H31: 1 | I31: %
A32: 11 | B32: =VLOOKUP(A32,'São Gregório'!A:I,4) -> SERVIÇOS COMPLEMENTARES | C32: =VLOOKUP(A32,'São Gregório'!A$11:I$1035,9) -> 16476.87 | G32: =$C32*G33 -> 16476.87 | H32: 16476.87 | I32: R$
C33: =C32/C32 -> 1 | G33: 1 | H33: 1 | I33: %
A34: 12 | B34: =VLOOKUP(A34,'São Gregório'!A:I,4) -> PROJETO "AS IS" | C34: =VLOOKUP(A34,'São Gregório'!A$11:I$1035,9) -> 22408.45 | G34: =$C34*G35 -> 22408.45 | H34: =SUM(D34:G34) -> 22408.45 | I34: R$
C35: =C34/C34 -> 1 | G35: 1 | H35: 1 | I35: %
A36: 13 | B36: =VLOOKUP(A36,'São Gregório'!A:I,4) -> FISCALIZAÇÃO E ACOMPANHAMENTO | C36: =VLOOKUP(A36,'São Gregório'!A$11:I$1035,9) -> 2706.12 | D36: =$C36*D37 -> 902.04 | E36: =$C36*E37 -> 451.02 | F36: =$C36*F37 -> 451.02 | G36: =$C36*G37 -> 902.04 | H36: =SUM(D36:G36) -> 2706.12 | I36: R$
C37: 1 | D37: =2/6 -> 0.3333333333 | E37: =1/6 -> 0.1666666667 | F37: =1/6 -> 0.1666666667 | G37: =2/6 -> 0.3333333333 | H37: 1 | I37: %
B38: VALOR TOTAL: | C38: =SUMIF($I$12:$I$37,"R$",C$12:C$37) -> 1039217.44 | D38: =SUMIF($I$12:$I$37,"R$",D$12:D$37) -> 315736.4253 | E38: 414606.1777 | F38: 249061.9932 | G38: 59812.84368 | H38: =SUMIF($I$12:$I$37,"R$",H$12:H$37) -> 1039217.44
B39: VALOR ACUMULADO: | D39: =D38 -> 315736.4253 | E39: =E38+D39 -> 730342.6031 | F39: =F38+E39 -> 979404.5963 | G39: =G38+F39 -> 1039217.44 | H39: =H38 -> 1039217.44 | M39: =IF(H39='São Gregório'!I85,"ok","verificar") -> ok
B40: FÍSICO PARCIAL: | D40: =SUMIF($I$12:$I$37,"R$",D$12:D$37)/$C$38 -> 0.3038213305 | E40: =SUMIF($I$12:$I$37,"R$",E$12:E$37)/$C$38 -> 0.3989599883 | F40: 0.239663023 | G40: =SUMIF($I$12:$I$37,"R$",G$12:G$37)/$C$38 -> 0.05755565811 | H40: =SUMIF($I$12:$I$37,"R$",H$12:H$37)/$C$38 -> 1
B41: AVANÇO FÍSICO: | D41: =D40 -> 0.3038213305 | E41: =E40+D41 -> 0.7027813189 | F41: =F40+E41 -> 0.9424443419 | G41: 1

Sheet BDI serv
A1: ='São Gregório'!A1:I1 -> Ministério da Integração e do Desenvolvimento Regional
A2: ='São Gregório'!A2:I2 -> Companhia de Desenvolvimento dos Vales do São Francisco e do Parnaíba
A4: COMPOSIÇÃO DE BDI - SERVIÇOS - NÃO DESONERADO
A5: ='São Gregório'!A5 -> OBRA: | B5: ='São Gregório'!B5 -> Execução de manutenção e obras civis na barragem de São Gregório, localizada em Campo Azul no estado de Minas Gerais. | D5: BDI (serv.): | E5: =D23 -> 0.2321
A6: ='São Gregório'!A6 -> LOCAL: | B6: ='São Gregório'!B6 -> Campo Azul - MG | D6: BDI (forn.): | E6: ='BDI forn'!E6 -> 0.1469
A7: ='São Gregório'!A7 -> DATA BASE: | B7: ='São Gregório'!B7 -> 2025-06-01
A8: ='São Gregório'!A8 -> PRAZO: | B8: ='São Gregório'!B8 -> 120 dias
A9: ITEM | B9: DESCRIÇÃO | C9: SIGLA | D9: % APLICADO | E9: REFERÊNCIA TCU (ACÓRDÃO Nº 2622/2013)
E10: 1º QUARTIL | F10: 2º QUARTIL | G10: 3º QUARTIL
A11: 1 | B11: ADMINISTRAÇÃO CENTRAL | C11: AC | D11: =E11 -> 0.04 | E11: 0.04 | F11: 0.0552 | G11: 0.0785
A12: 2 | B12: IMPOSTOS | C12: T | D12: =SUM(D13:D16) -> 0.0665
A13: 2.1 | B13: ISS (*) | D13: 0.03 | E13: - | F13: - | G13: -
A14: 2.2 | B14: PIS | D14: 0.0065 | E14: - | F14: - | G14: -
A15: 2.3 | B15: Cofins | D15: 0.03 | E15: - | F15: - | G15: -
A16: 2.4 | B16: Contribuição previdênciária sobre a receita bruta (CPRB) | E16: - | F16: - | G16: -
A17: 3 | B17: SEGURO, GARANTIA E RISCO | D17: =SUM(D18:D20) -> 0.0227
A18: 3.1 | B18: Seguro | C18: S | D18: =E18 -> 0.0081 | E18: 0.0081 | F18: 0.0122 | G18: 0.0199
A19: 3.2 | B19: Garantia | C19: G
A20: 3.3 | B20: Risco | C20: R | D20: =E20 -> 0.0146 | E20: 0.0146 | F20: 0.0232 | G20: 0.0316
A21: 4 | B21: DESPESAS FINANCEIRAS | C21: DF | D21: =F21 -> 0.0102 | E21: 0.0094 | F21: 0.0102 | G21: 0.01363
A22: 5 | B22: LUCRO | C22: L | D22: =E22 -> 0.0714 | E22: 0.0714 | F22: 0.084 | G22: 0.1043
B23: BDI ADOTADO: | D23: =ROUND(((((1+D11+D17)*(1+D21)*(1+D22))/(1-D12))-1),4) -> 0.2321
A24: Considerações: O BDI foi calculado através da seguinte fórmula, regulamentada pelo Acórdão Nº 2622/2013 – TCU.
H173: =SUM(H174:H177) -> 0
D177: mec | F177: 2 | G177: 128

Sheet BDI forn
A1: ='São Gregório'!A1:I1 -> Ministério da Integração e do Desenvolvimento Regional
A2: ='São Gregório'!A2:I2 -> Companhia de Desenvolvimento dos Vales do São Francisco e do Parnaíba
A4: COMPOSIÇÃO DE BDI - FORNECIMENTO - NÃO DESONERADO
A5: ='São Gregório'!A5 -> OBRA: | B5: ='São Gregório'!B5 -> Execução de manutenção e obras civis na barragem de São Gregório, localizada em Campo Azul no estado de Minas Gerais. | D5: BDI (serv.): | E5: ='BDI serv'!E5 -> 0.2321
A6: ='São Gregório'!A6 -> LOCAL: | B6: ='São Gregório'!B6 -> Campo Azul - MG | D6: BDI (forn.): | E6: =D23 -> 0.1469
A7: ='São Gregório'!A7 -> DATA BASE: | B7: ='São Gregório'!B7 -> 2025-06-01
A8: ='São Gregório'!A8 -> PRAZO: | B8: ='São Gregório'!B8 -> 120 dias
A9: ITEM | B9: DESCRIÇÃO | C9: SIGLA | D9: % APLICADO | E9: REFERÊNCIA TCU (ACÓRDÃO Nº 2622/2013)
E10: 1º QUARTIL | F10: 2º QUARTIL | G10: 3º QUARTIL
A11: 1 | B11: ADMINISTRAÇÃO CENTRAL | C11: AC | D11: 0.03 | E11: 0.015 | F11: 0.0345 | G11: 0.0449
A12: 2 | B12: IMPOSTOS | C12: T | D12: =SUM(D13:D16) -> 0.0365
A13: 2.1 | B13: ISS (*) | E13: - | F13: - | G13: -
A14: 2.2 | B14: PIS | D14: 0.0065 | E14: - | F14: - | G14: -
A15: 2.3 | B15: Cofins | D15: 0.03 | E15: - | F15: - | G15: -
A16: 2.4 | B16: Contribuição previdênciária sobre a receita bruta (CPRB) | E16: - | F16: - | G16: -
A17: 3 | B17: SEGURO, GARANTIA E RISCO | D17: =SUM(D18:D20) -> 0.0086
A18: 3.1 | B18: Seguro | C18: S | D18: =E18 -> 0.003 | E18: 0.003 | F18: 0.0048 | G18: 0.0082
A19: 3.2 | B19: Garantia | C19: G
A20: 3.3 | B20: Risco | C20: R | D20: =E20 -> 0.0056 | E20: 0.0056 | F20: 0.0085 | G20: 0.0089
A21: 4 | B21: DESPESAS FINANCEIRAS | C21: DF | D21: =F21 -> 0.0085 | E21: 0.0085 | F21: 0.0085 | G21: 0.0111
A22: 5 | B22: LUCRO | C22: L | D22: 0.055 | E22: 0.035 | F22: 0.0511 | G22: 0.0622
B23: BDI ADOTADO: | D23: =ROUND(((((1+D11+D17)*(1+D21)*(1+D22))/(1-D12))-1),4) -> 0.1469
A24: Considerações: O BDI foi calculado através da seguinte fórmula, regulamentada pelo Acórdão Nº 2622/2013 – TCU.
H173: =SUM(H174:H177) -> 0
D177: mec | F177: 2 | G177: 128

Sheet Encargos Sociais
A1: Ministério da Integração e do Desenvolvimento Regional
A2: Companhia de Desenvolvimento dos Vales do São Francisco e do Parnaíba
A4: COMPOSIÇÃO DE ENCARGOS SOCIAIS SOBRE A MÃO DE OBRA
A5: ='São Gregório'!A5 -> OBRA: | B5: ='São Gregório'!B5:F5 -> Execução de manutenção e obras civis na barragem de São Gregório, localizada em Campo Azul no estado de Minas Gerais.
A6: ='São Gregório'!A6 -> LOCAL: | B6: ='São Gregório'!B6 -> Campo Azul - MG
A7: ='São Gregório'!A7 -> DATA BASE: | B7: ='São Gregório'!B7 -> 2025-06-01
A8: ='São Gregório'!A8 -> PRAZO: | B8: ='São Gregório'!B8 -> 120 dias
A10: MINAS GERAIS
A11: Encargos Sociais – Minas Gerais VIGÊNCIA A PARTIR DE 01/2025
A12: ENCARGOS SOCIAIS SOBRE A MÃO DE OBRA
A13: CÓDIGO | B13: DESCRIÇÃO | C13: COM DESONERAÇÃO | E13: SEM DESONERAÇÃO
C14: HORISTA % | D14: MENSALISTA % | E14: HORISTA % | F14: MENSALISTA %
A15: GRUPO A
A16: A1 | B16: INSS | C16: 0.05 | D16: 0.05 | E16: 0.2 | F16: 0.2
A17: A2 | B17: SESI | C17: 0.015 | D17: 0.015 | E17: 0.015 | F17: 0.015
A18: A3 | B18: SENAI | C18: 0.01 | D18: 0.01 | E18: 0.01 | F18: 0.01
A19: A4 | B19: INCRA | C19: 0.002 | D19: 0.002 | E19: 0.002 | F19: 0.002
A20: A5 | B20: SEBRAE | C20: 0.006 | D20: 0.006 | E20: 0.006 | F20: 0.006
A21: A6 | B21: Salário Educação | C21: 0.025 | D21: 0.025 | E21: 0.025 | F21: 0.025
A22: A7 | B22: Seguro Contra Acidentes de Trabalho | C22: 0.03 | D22: 0.03 | E22: 0.03 | F22: 0.03
A23: A8 | B23: FGTS | C23: 0.08 | D23: 0.08 | E23: 0.08 | F23: 0.08
A24: A9 | B24: SECONCI | C24: 0.012 | D24: 0.012 | E24: 0.012 | F24: 0.012
A25: A | B25: Total | C25: =SUM(C16:C24) -> 0.23 | D25: =SUM(D16:D24) -> 0.23 | E25: =SUM(E16:E24) -> 0.38 | F25: =SUM(F16:F24) -> 0.38
A26: GRUPO B
A27: B1 | B27: Repouso Semanal Remunerado | C27: 0.1776 | D27: Não incide | E27: 0.1776 | F27: Não incide
A28: B2 | B28: Feriados | C28: 0.0368 | D28: Não incide | E28: 0.0368 | F28: Não incide
A29: B3 | B29: Auxílio - Enfermidade | C29: 0.0086 | D29: 0.0065 | E29: 0.0086 | F29: 0.0065
A30: B4 | B30: 13º Salário | C30: 0.1106 | D30: 0.0833 | E30: 0.1106 | F30: 0.0833
A31: B5 | B31: Licença Paternidade | C31: 0.0007 | D31: 0.0005 | E31: 0.0007 | F31: 0.0005
A32: B6 | B32: Faltas Justificadas | C32: 0.0074 | D32: 0.0056 | E32: 0.0074 | F32: 0.0056
A33: B7 | B33: Dias de Chuvas | C33: 0.0109 | D33: Não incide | E33: 0.0109 | F33: Não incide
A34: B8 | B34: Auxílio Acidente de Trabalho | C34: 0.001 | D34: 0.0007 | E34: 0.001 | F34: 0.0007
A35: B9 | B35: Férias Gozadas | C35: 0.1384 | D35: 0.1042 | E35: 0.1384 | F35: 0.1042
A36: B10 | B36: Salário Maternidade | C36: 0.0003 | D36: 0.0003 | E36: 0.0003 | F36: 0.0003
A37: B | B37: Total | C37: =SUM(C27:C36) -> 0.4923 | D37: =SUM(D27:D36) -> 0.2011 | E37: =SUM(E27:E36) -> 0.4923 | F37: =SUM(F27:F36) -> 0.2011
A38: GRUPO C
A39: C1 | B39: Aviso Prévio Indenizado | C39: 0.0597 | D39: 0.045 | E39: 0.0597 | F39: 0.045
A40: C2 | B40: Aviso Prévio Trabalhado | C40: 0.0014 | D40: 0.0011 | E40: 0.0014 | F40: 0.0011
A41: C3 | B41: Férias Indenizadas | C41: 0.0093 | D41: 0.007 | E41: 0.0093 | F41: 0.007
A42: C4 | B42: Depósito Rescisão Sem Justa Causa | C42: 0.0278 | D42: 0.0209 | E42: 0.0278 | F42: 0.0209
A43: C5 | B43: Indenização Adicional | C43: 0.005 | D43: 0.0038 | E43: 0.005 | F43: 0.0038
A44: C | B44: Total | C44: =SUM(C39:C43) -> 0.1032 | D44: =SUM(D39:D43) -> 0.0778 | E44: =SUM(E39:E43) -> 0.1032 | F44: =SUM(F39:F43) -> 0.0778
A45: GRUPO D
A46: D1 | B46: Reincidência de Grupo A sobre Grupo B | C46: 0.1077 | D46: 0.0421 | E46: 0.1871 | F46: 0.0764
A47: D2 | B47: Reincidência de Grupo A sobre Aviso Prévio Trabalhado e Reincidência do FGTS sobre Aviso Prévio Indenizado | C47: 0.0051 | D47: 0.0039 | E47: 0.0053 | F47: 0.004
A48: D | B48: Total | C48: =SUM(C46:C47) -> 0.1128 | D48: =SUM(D46:D47) -> 0.046 | E48: =SUM(E46:E47) -> 0.1924 | F48: =SUM(F46:F47) -> 0.0804
A49: TOTAL(A+B+C+D) | C49: =C25+C37+C44+C48 -> 0.9383 | D49: =D25+D37+D44+D48 -> 0.5549 | E49: =E25+E37+E44+E48 -> 1.1679 | F49: =F25+F37+F44+F48 -> 0.7393
A50: Fonte: Informação Dias de Chuva – INMET

Sheet Comp SINAPI MG 04-2025 Onerado (hidden)
A1: SINAPI - Sistema Nacional de Pesquisa de Custos e Índices da Construção Civil
A2: RELATÓRIO DE CUSTOS DE COMPOSIÇÕES - ENCARGOS SOCIAIS SEM DESONERAÇÃO
A3: Mês de Referência: | B3: 05/2025 | D3: Encargos sociais sobre a mão de obra:
A4: Data de emissão: | B4: 10/06/2025 | D4: (SEM DESONERAÇÃO) | E4: MG
D5: Localidade | E5: BELO HORIZONTE
A6: Observação: | B6: %AS (porcentagem Atribuído São Paulo) corresponde a porcentagem do custo total da | D6: Horista | E6: 1.1679
B7: composição que foi obtida utilizando preços de insumos de São Paulo por indisponibilidade | D7: Mensalista | E7: 0.7393
B8: dos preços de insumos necessários à composição no estado em questão. Custo zerado (hífen)
B9: indica que pelo menos um dos itens da composição não tem custo/preço. | E9: MG
A10: Grupo | B10: Código da Composição | C10: Descrição | D10: Unidade | E10: Custo (R$) | F10: %AS
A11: Acessibilidade | B11: 104658 | C11: PISO PODOTÁTIL DE ALERTA OU DIRECIONAL, DE CONCRETO, ASSENTADO SOBRE ARGAMASSA. AF_03/2024 | D11: M2 | E11: 159.75 | F11: 0
A12: Acessibilidade | B12: 105002 | C12: RAMPA DE ACESSIBILIDADE EM CONCRETO MOLDADO IN LOCO, EM CALÇADA NOVA COM LARGURA MAIOR OU IGUAL À 3,00 M, FCK 25MPA, COM PISO PODOTÁTIL. AF_03/2024 | D12: UN | E12: 762.6 | F12: 0
A13: Acessibilidade | B13: 105004 | C13: RAMPA DE ACESSIBILIDADE EM CONCRETO MOLDADO IN LOCO, EM CALÇADA NOVA COM LARGURA MENOR À 3,00 M, FCK 25MPA, COM PISO PODOTÁTIL. AF_03/2024 | D13: M2 | E13: 130.59 | F13: 0
A14: Acessibilidade | B14: 105003 | C14: RAMPA DE ACESSIBILIDADE EM CONCRETO MOLDADO IN LOCO, EM CALÇADA PRÉ EXISTENTE COM LARGURA MAIOR OU IGUAL À 3,00 M, FCK 25MPA, COM PISO PODOTÁTIL. AF_03/2024 | D14: UN | E14: 1223.13 | F14: 0.049
A15: Acessibilidade | B15: 105005 | C15: RAMPA DE ACESSIBILIDADE EM CONCRETO MOLDADO IN LOCO, EM CALÇADA PRÉ EXISTENTE COM LARGURA MENOR À 3,00 M, FCK 25MPA, COM PISO PODOTÁTIL. AF_03/2024 | D15: M2 | E15: 215.86 | F15: 0.0514
A16: Acessibilidade | B16: 105006 | C16: RAMPA DE ACESSIBILIDADE EM CONCRETO PRÉ MOLDADO, EM CALÇADA NOVA COM LARGURA MAIOR OU IGUAL À 3,00 M, FCK 25MPA, COM PISO PODOTÁTIL. AF_03/2024 | D16: UN | E16: 0
A17: Acessibilidade | B17: 104999 | C17: RAMPA DE ACESSIBILIDADE EM CONCRETO PRÉ MOLDADO, EM CALÇADA PRÉ EXISTENTE COM LARGURA MAIOR OU IGUAL À 3,00 M, FCK 25MPA, COM PISO PODOTÁTIL. AF_03/2024 | D17: UN | E17: 0
A18: Acessibilidade | B18: 105000 | C18: RAMPA DE ACESSIBILIDADE PARA ACESSO A EDIFICAÇÕES COM INCLINAÇÃO DE 8,33% EM CONCRETO MOLDADO IN LOCO, COM LARGURA DE 1,20M, FCK 25MPA, NÃO ARMADA, COM JUNTA A CADA 2M COM CORTE À SECO. AF_03/2024 | D18: M | E18: 1513.63 | F18: 0
A19: Acessibilidade | B19: 105001 | C19: RAMPA DE ACESSIBILIDADE PARA ACESSO A EDIFICAÇÕES COM INCLINAÇÃO DE 8,33% EM CONCRETO MOLDADO IN LOCO, COM LARGURA DE 1,50M, FCK 25MPA, NÃO ARMADA, COM JUNTA A CADA 2M COM CORTE À SECO. AF_03/2024 | D19: M | E19: 1547.64 | F19: 0
A20: Alvenaria Estrutural - Blocos Cerâmicos | B20: 89306 | C20: ALVENARIA ESTRUTURAL DE BLOCOS CERÂMICOS 14X19X29, (ESPESSURA DE 14 CM), UTILIZANDO COLHER DE PEDREIRO E ARGAMASSA DE ASSENTAMENTO COM PREPARO EM BETONEIRA. AF_03/2023 | D20: M2 | E20: 98.9 | F20: 0
A21: Alvenaria Estrutural - Blocos Cerâmicos | B21: 89307 | C21: ALVENARIA ESTRUTURAL DE BLOCOS CERÂMICOS 14X19X29, (ESPESSURA DE 14 CM), UTILIZANDO COLHER DE PEDREIRO E ARGAMASSA DE ASSENTAMENTO COM PREPARO MANUAL. AF_03/2023 | D21: M2 | E21: 100.91 | F21: 0
A22: Alvenaria Estrutural - Blocos Cerâmicos | B22: 89290 | C22: ALVENARIA ESTRUTURAL DE BLOCOS CERÂMICOS 14X19X29, (ESPESSURA DE 14 CM), UTILIZANDO PALHETA E ARGAMASSA DE ASSENTAMENTO COM PREPARO EM BETONEIRA. AF_03/2023 | D22: M2 | E22: 81.14 | F22: 0
A23: Alvenaria Estrutural - Blocos Cerâmicos | B23: 89291 | C23: ALVENARIA ESTRUTURAL DE BLOCOS CERÂMICOS 14X19X29, (ESPESSURA DE 14 CM), UTILIZANDO PALHETA E ARGAMASSA DE ASSENTAMENTO COM PREPARO MANUAL. AF_03/2023 | D23: M2 | E23: 82.64 | F23: 0
A24: Alvenaria Estrutural - Blocos Cerâmicos | B24: 89298 | C24: ALVENARIA ESTRUTURAL DE BLOCOS CERÂMICOS 14X19X39, (ESPESSURA DE 14 CM), UTILIZANDO COLHER DE PEDREIRO E ARGAMASSA DE ASSENTAMENTO COM PREPARO EM BETONEIRA. AF_03/2023 | D24: M2 | E24: 84.8 | F24: 0
A25: Alvenaria Estrutural - Blocos Cerâmicos | B25: 89299 | C25: ALVENARIA ESTRUTURAL DE BLOCOS CERÂMICOS 14X19X39, (ESPESSURA DE 14 CM), UTILIZANDO COLHER DE PEDREIRO E ARGAMASSA DE ASSENTAMENTO COM PREPARO MANUAL. AF_03/2023 | D25: M2 | E25: 86.61 | F25: 0
A26: Alvenaria Estrutural - Blocos Cerâmicos | B26: 89282 | C26: ALVENARIA ESTRUTURAL DE BLOCOS CERÂMICOS 14X19X39, (ESPESSURA DE 14 CM), UTILIZANDO PALHETA E ARGAMASSA DE ASSENTAMENTO COM PREPARO EM BETONEIRA. AF_03/2023 | D26: M2 | E26: 72.24 | F26: 0
A27: Alvenaria Estrutural - Blocos Cerâmicos | B27: 89283 | C27: ALVENARIA ESTRUTURAL DE BLOCOS CERÂMICOS 14X19X39, (ESPESSURA DE 14 CM), UTILIZANDO PALHETA E ARGAMASSA DE ASSENTAMENTO COM PREPARO MANUAL. AF_03/2023 | D27: M2 | E27: 73.59 | F27: 0
A28: Alvenaria Estrutural - Blocos de Concreto | B28: 89480 | C28: ALVENARIA DE BLOCOS DE CONCRETO ESTRUTURAL 14X19X29 CM (ESPESSURA 14 CM), FBK = 14 MPA, UTILIZANDO COLHER DE PEDREIRO. AF_10/2022 | D28: M2 | E28: 170.76 | F28: 0
A29: Alvenaria Estrutural - Blocos de Concreto | B29: 89464 | C29: ALVENARIA DE BLOCOS DE CONCRETO ESTRUTURAL 14X19X29 CM (ESPESSURA 14 CM), FBK = 14,0 MPA, UTILIZANDO PALHETA. AF_10/2022 | D29: M2 | E29: 149.04 | F29: 0
A30: Alvenaria Estrutural - Blocos de Concreto | B30: 89478 | C30: ALVENARIA DE BLOCOS DE CONCRETO ESTRUTURAL 14X19X29 CM (ESPESSURA 14 CM), FBK = 4,5 MPA, UTILIZANDO COLHER DE PEDREIRO. AF_10/2022 | D30: M2 | E30: 147.11 | F30: 0
A31: Alvenaria Estrutural - Blocos de Concreto | B31: 89462 | C31: ALVENARIA DE BLOCOS DE CONCRETO ESTRUTURAL 14X19X29 CM (ESPESSURA 14 CM), FBK = 4,5 MPA, UTILIZANDO PALHETA. AF_10/2022 | D31: M2 | E31: 126.45 | F31: 0
A32: Alvenaria Estrutural - Blocos de Concreto | B32: 104444 | C32: ALVENARIA DE BLOCOS DE CONCRETO ESTRUTURAL 14X19X29 CM (ESPESSURA 14 CM), FBK = 8 MPA, UTILIZANDO COLHER DE PEDREIRO. AF_10/2022 | D32: M2 | E32: 0
A33: Alvenaria Estrutural - Blocos de Concreto | B33: 104442 | C33: ALVENARIA DE BLOCOS DE CONCRETO ESTRUTURAL 14X19X29 CM (ESPESSURA 14 CM), FBK = 8 MPA, UTILIZANDO PALHETA. AF_10/2022 | D33: M2 | E33: 0
A34: Alvenaria Estrutural - Blocos de Concreto | B34: 89472 | C34: ALVENARIA DE BLOCOS DE CONCRETO ESTRUTURAL 14X19X39 CM (ESPESSURA 14 CM), FBK = 14 MPA, UTILIZANDO COLHER DE PEDREIRO. AF_10/2022 | D34: M2 | E34: 130.72 | F34: 0
A35: Alvenaria Estrutural - Blocos de Concreto | B35: 89455 | C35: ALVENARIA DE BLOCOS DE CONCRETO ESTRUTURAL 14X19X39 CM (ESPESSURA 14 CM), FBK = 14 MPA, UTILIZANDO PALHETA. AF_10/2022 | D35: M2 | E35: 116.98 | F35: 0
A36: Alvenaria Estrutural - Blocos de Concreto | B36: 89470 | C36: ALVENARIA DE BLOCOS DE CONCRETO ESTRUTURAL 14X19X39 CM (ESPESSURA 14 CM), FBK = 4,5 MPA, UTILIZANDO COLHER DE PEDREIRO. AF_10/2022 | D36: M2 | E36: 108.97 | F36: 0
A37: Alvenaria Estrutural - Blocos de Concreto | B37: 89453 | C37: ALVENARIA DE BLOCOS DE CONCRETO ESTRUTURAL 14X19X39 CM (ESPESSURA 14 CM), FBK = 4,5 MPA, UTILIZANDO PALHETA. AF_10/2022 | D37: M2 | E37: 96.3 | F37: 0
A38: Alvenaria Estrutural - Blocos de Concreto | B38: 104443 | C38: ALVENARIA DE BLOCOS DE CONCRETO ESTRUTURAL 14X19X39 CM (ESPESSURA 14 CM), FBK = 8 MPA, UTILIZANDO COLHER DE PEDREIRO. AF_10/2022 | D38: M2 | E38: 0
A39: Alvenaria Estrutural - Blocos de Concreto | B39: 104441 | C39: ALVENARIA DE BLOCOS DE CONCRETO ESTRUTURAL 14X19X39 CM (ESPESSURA 14 CM), FBK = 8 MPA, UTILIZANDO PALHETA. AF_10/2022 | D39: M2 | E39: 0
A40: Alvenaria de Vedação | B40: 103354 | C40: ALVENARIA DE VEDAÇÃO DE BLOCOS CERÂMICOS FURADOS NA HORIZONTAL DE 11,5X14X24 CM (ESPESSURA 11,5 CM) E ARGAMASSA DE ASSENTAMENTO COM PREPARO EM BETONEIRA. AF_12/2021 | D40: M2 | E40: 92.63 | F40: 0
A41: Alvenaria de Vedação | B41: 103355 | C41: ALVENARIA DE VEDAÇÃO DE BLOCOS CERÂMICOS FURADOS NA HORIZONTAL DE 11,5X14X24 CM (ESPESSURA 11,5 CM) E ARGAMASSA DE ASSENTAMENTO COM PREPARO MANUAL. AF_12/2021 | D41: M2 | E41: 93.83 | F41: 0
A42: Alvenaria de Vedação | B42: 103330 | C42: ALVENARIA DE VEDAÇÃO DE BLOCOS CERÂMICOS FURADOS NA HORIZONTAL DE 11,5X19X19 CM (ESPESSURA 11,5 CM) E ARGAMASSA DE ASSENTAMENTO COM PREPARO EM BETONEIRA. AF_12/2021 | D42: M2 | E42: 85.33 | F42: 0
A43: Alvenaria de Vedação | B43: 103331 | C43: ALVENARIA DE VEDAÇÃO DE BLOCOS CERÂMICOS FURADOS NA HORIZONTAL DE 11,5X19X19 CM (ESPESSURA 11,5 CM) E ARGAMASSA DE ASSENTAMENTO COM PREPARO MANUAL. AF_12/2021 | D43: M2 | E43: 86.46 | F43: 0
A44: Alvenaria de Vedação | B44: 103358 | C44: ALVENARIA DE VEDAÇÃO DE BLOCOS CERÂMICOS FURADOS NA HORIZONTAL DE 11,5X19X29 CM (ESPESSURA 11,5 CM) E ARGAMASSA DE ASSENTAMENTO COM PREPARO EM BETONEIRA. AF_12/2021 | D44: M2 | E44: 72.03 | F44: 0
A45: Alvenaria de Vedação | B45: 103359 | C45: ALVENARIA DE VEDAÇÃO DE BLOCOS CERÂMICOS FURADOS NA HORIZONTAL DE 11,5X19X29 CM (ESPESSURA 11,5 CM) E ARGAMASSA DE ASSENTAMENTO COM PREPARO MANUAL. AF_12/2021 | D45: M2 | E45: 72.99 | F45: 0
A46: Alvenaria de Vedação | B46: 103366 | C46: ALVENARIA DE VEDAÇÃO DE BLOCOS CERÂMICOS FURADOS NA HORIZONTAL DE 11,5X19X39 CM (ESPESSURA 11,5 CM) E ARGAMASSA DE ASSENTAMENTO COM PREPARO EM BETONEIRA. AF_12/2021 | D46: M2 | E46: 62.66 | F46: 0
A47: Alvenaria de Vedação | B47: 103367 | C47: ALVENARIA DE VEDAÇÃO DE BLOCOS CERÂMICOS FURADOS NA HORIZONTAL DE 11,5X19X39 CM (ESPESSURA 11,5 CM) E ARGAMASSA DE ASSENTAMENTO COM PREPARO MANUAL. AF_12/2021 | D47: M2 | E47: 63.52 | F47: 0
A48: Alvenaria de Vedação | B48: 103360 | C48: ALVENARIA DE VEDAÇÃO DE BLOCOS CERÂMICOS FURADOS NA HORIZONTAL DE 14X19X29 CM (ESPESSURA 14 CM) E ARGAMASSA DE ASSENTAMENTO COM PREPARO EM BETONEIRA. AF_12/2021 | D48: M2 | E48: 84.26 | F48: 0
A49: Alvenaria de Vedação | B49: 103361 | C49: ALVENARIA DE VEDAÇÃO DE BLOCOS CERÂMICOS FURADOS NA HORIZONTAL DE 14X19X29 CM (ESPESSURA 14 CM) E ARGAMASSA DE ASSENTAMENTO COM PREPARO MANUAL. AF_12/2021 | D49: M2 | E49: 85.47 | F49: 0
A50: Alvenaria de Vedação | B50: 103368 | C50: ALVENARIA DE VEDAÇÃO DE BLOCOS CERÂMICOS FURADOS NA HORIZONTAL DE 14X19X39 CM (ESPESSURA 14 CM) E ARGAMASSA DE ASSENTAMENTO COM PREPARO EM BETONEIRA. AF_12/2021 | D50: M2 | E50: 71.12 | F50: 0
A51: Alvenaria de Vedação | B51: 103369 | C51: ALVENARIA DE VEDAÇÃO DE BLOCOS CERÂMICOS FURADOS NA HORIZONTAL DE 14X19X39 CM (ESPESSURA 14 CM) E ARGAMASSA DE ASSENTAMENTO COM PREPARO MANUAL. AF_12/2021 | D51: M2 | E51: 72.21 | F51: 0
A52: Alvenaria de Vedação | B52: 103334 | C52: ALVENARIA DE VEDAÇÃO DE BLOCOS CERÂMICOS FURADOS NA HORIZONTAL DE 14X9X19 CM (ESPESSURA 14 CM, BLOCO DEITADO) E ARGAMASSA DE ASSENTAMENTO COM PREPARO EM BETONEIRA. AF_12/2021 | D52: M2 | E52: 150.98 | F52: 0
A53: Alvenaria de Vedação | B53: 103335 | C53: ALVENARIA DE VEDAÇÃO DE BLOCOS CERÂMICOS FURADOS NA HORIZONTAL DE 14X9X19 CM (ESPESSURA 14 CM, BLOCO DEITADO) E ARGAMASSA DE ASSENTAMENTO COM PREPARO MANUAL. AF_12/2021 | D53: M2 | E53: 153.09 | F53: 0
A54: Alvenaria de Vedação | B54: 103362 | C54: ALVENARIA DE VEDAÇÃO DE BLOCOS CERÂMICOS FURADOS NA HORIZONTAL DE 19X19X29 CM (ESPESSURA 19 CM) E ARGAMASSA DE ASSENTAMENTO COM PREPARO EM BETONEIRA. AF_12/2021 | D54: M2 | E54: 101.9 | F54: 0
A55: Alvenaria de Vedação | B55: 103363 | C55: ALVENARIA DE VEDAÇÃO DE BLOCOS CERÂMICOS FURADOS NA HORIZONTAL DE 19X19X29 CM (ESPESSURA 19 CM) E ARGAMASSA DE ASSENTAMENTO COM PREPARO MANUAL. AF_12/2021 | D55: M2 | E55: 103.26 | F55: 0
A56: Alvenaria de Vedação | B56: 103370 | C56: ALVENARIA DE VEDAÇÃO DE BLOCOS CERÂMICOS FURADOS NA HORIZONTAL DE 19X19X39 CM (ESPESSURA 19 CM) E ARGAMASSA DE ASSENTAMENTO COM PREPARO EM BETONEIRA. AF_12/2021 | D56: M2 | E56: 89.42 | F56: 0
A57: Alvenaria de Vedação | B57: 103371 | C57: ALVENARIA DE VEDAÇÃO DE BLOCOS CERÂMICOS FURADOS NA HORIZONTAL DE 19X19X39 CM (ESPESSURA 19 CM) E ARGAMASSA DE ASSENTAMENTO COM PREPARO MANUAL. AF_12/2021 | D57: M2 | E57: 90.65 | F57: 0
A58: Alvenaria de Vedação | B58: 103332 | C58: ALVENARIA DE VEDAÇÃO DE BLOCOS CERÂMICOS FURADOS NA HORIZONTAL DE 9X14X19 CM (ESPESSURA 9 CM) E ARGAMASSA DE ASSENTAMENTO COM PREPARO EM BETONEIRA. AF_12/2021 | D58: M2 | E58: 126.08 | F58: 0
A59: Alvenaria de Vedação | B59: 103333 | C59: ALVENARIA DE VEDAÇÃO DE BLOCOS CERÂMICOS FURADOS NA HORIZONTAL DE 9X14X19 CM (ESPESSURA 9 CM) E ARGAMASSA DE ASSENTAMENTO COM PREPARO MANUAL. AF_12/2021 | D59: M2 | E59: 127.29 | F59: 0
A60: Alvenaria de Vedação | B60: 103352 | C60: ALVENARIA DE VEDAÇÃO DE BLOCOS CERÂMICOS FURADOS NA HORIZONTAL DE 9X14X24 CM (ESPESSURA 9 CM) E ARGAMASSA DE ASSENTAMENTO COM PREPARO EM BETONEIRA. AF_12/2021 | D60: M2 | E60: 107.77 | F60: 0
A61: Alvenaria de Vedação | B61: 103353 | C61: ALVENARIA DE VEDAÇÃO DE BLOCOS CERÂMICOS FURADOS NA HORIZONTAL DE 9X14X24 CM (ESPESSURA 9 CM) E ARGAMASSA DE ASSENTAMENTO COM PREPARO MANUAL. AF_12/2021 | D61: M2 | E61: 108.89 | F61: 0
A62: Alvenaria de Vedação | B62: 103328 | C62: ALVENARIA DE VEDAÇÃO DE BLOCOS CERÂMICOS FURADOS NA HORIZONTAL DE 9X19X19 CM (ESPESSURA 9 CM) E ARGAMASSA DE ASSENTAMENTO COM PREPARO EM BETONEIRA. AF_12/2021 | D62: M2 | E62: 98.43 | F62: 0
A63: Alvenaria de Vedação | B63: 103329 | C63: ALVENARIA DE VEDAÇÃO DE BLOCOS CERÂMICOS FURADOS NA HORIZONTAL DE 9X19X19 CM (ESPESSURA 9 CM) E ARGAMASSA DE ASSENTAMENTO COM PREPARO MANUAL. AF_12/2021 | D63: M2 | E63: 99.48 | F63: 0
A64: Alvenaria de Vedação | B64: 103356 | C64: ALVENARIA DE VEDAÇÃO DE BLOCOS CERÂMICOS FURADOS NA HORIZONTAL DE 9X19X29 CM (ESPESSURA 9 CM) E ARGAMASSA DE ASSENTAMENTO COM PREPARO EM BETONEIRA. AF_12/2021 | D64: M2 | E64: 62.62 | F64: 0
A65: Alvenaria de Vedação | B65: 103357 | C65: ALVENARIA DE VEDAÇÃO DE BLOCOS CERÂMICOS FURADOS NA HORIZONTAL DE 9X19X29 CM (ESPESSURA 9 CM) E ARGAMASSA DE ASSENTAMENTO COM PREPARO MANUAL. AF_12/2021 | D65: M2 | E65: 63.51 | F65: 0
A66: Alvenaria de Vedação | B66: 103364 | C66: ALVENARIA DE VEDAÇÃO DE BLOCOS CERÂMICOS FURADOS NA HORIZONTAL DE 9X19X39 CM (ESPESSURA 9 CM) E ARGAMASSA DE ASSENTAMENTO COM PREPARO EM BETONEIRA. AF_12/2021 | D66: M2 | E66: 52.3 | F66: 0
A67: Alvenaria de Vedação | B67: 103365 | C67: ALVENARIA DE VEDAÇÃO DE BLOCOS CERÂMICOS FURADOS NA HORIZONTAL DE 9X19X39 CM (ESPESSURA 9 CM) E ARGAMASSA DE ASSENTAMENTO COM PREPARO MANUAL. AF_12/2021 | D67: M2 | E67: 52.66 | F67: 0
A68: Alvenaria de Vedação | B68: 103350 | C68: ALVENARIA DE VEDAÇÃO DE BLOCOS CERÂMICOS FURADOS NA HORIZONTAL DE 9X9X19 CM (ESPESSURA 9 CM) E ARGAMASSA DE ASSENTAMENTO COM PREPARO EM BETONEIRA. AF_12/2021 | D68: M2 | E68: 182.63 | F68: 0
A69: Alvenaria de Vedação | B69: 103351 | C69: ALVENARIA DE VEDAÇÃO DE BLOCOS CERÂMICOS FURADOS NA HORIZONTAL DE 9X9X19 CM (ESPESSURA 9 CM) E ARGAMASSA DE ASSENTAMENTO COM PREPARO MANUAL. AF_12/2021 | D69: M2 | E69: 184.18 | F69: 0
A70: Alvenaria de Vedação | B70: 103344 | C70: ALVENARIA DE VEDAÇÃO DE BLOCOS CERÂMICOS FURADOS NA VERTICAL DE 11,5X19X29 CM (ESPESSURA 11,5 CM) E ARGAMASSA DE ASSENTAMENTO COM PREPARO EM BETONEIRA. AF_12/2021 | D70: M2 | E70: 84.45 | F70: 0
A71: Alvenaria de Vedação | B71: 103345 | C71: ALVENARIA DE VEDAÇÃO DE BLOCOS CERÂMICOS FURADOS NA VERTICAL DE 11,5X19X29 CM (ESPESSURA 11,5 CM) E ARGAMASSA DE ASSENTAMENTO COM PREPARO MANUAL. AF_12/2021 | D71: M2 | E71: 85.85 | F71: 0
A72: Alvenaria de Vedação | B72: 103348 | C72: ALVENARIA DE VEDAÇÃO DE BLOCOS CERÂMICOS FURADOS NA VERTICAL DE 11,5X19X39 CM (ESPESSURA 11,5 CM) E ARGAMASSA DE ASSENTAMENTO COM PREPARO EM BETONEIRA. AF_12/2021 | D72: M2 | E72: 71.08 | F72: 0
A73: Alvenaria de Vedação | B73: 103349 | C73: ALVENARIA DE VEDAÇÃO DE BLOCOS CERÂMICOS FURADOS NA VERTICAL DE 11,5X19X39 CM (ESPESSURA 11,5 CM) E ARGAMASSA DE ASSENTAMENTO COM PREPARO MANUAL. AF_12/2021 | D73: M2 | E73: 72.36 | F73: 0
A74: Alvenaria de Vedação | B74: 103346 | C74: ALVENARIA DE VEDAÇÃO DE BLOCOS CERÂMICOS FURADOS NA VERTICAL DE 14X19X29 CM (ESPESSURA 14 CM) E ARGAMASSA DE ASSENTAMENTO COM PREPARO EM BETONEIRA. AF_12/2021 | D74: M2 | E74: 93.98 | F74: 0
A75: Alvenaria de Vedação | B75: 103347 | C75: ALVENARIA DE VEDAÇÃO DE BLOCOS CERÂMICOS FURADOS NA VERTICAL DE 14X19X29 CM (ESPESSURA 14 CM) E ARGAMASSA DE ASSENTAMENTO COM PREPARO MANUAL. AF_12/2021 | D75: M2 | E75: 95.47 | F75: 0
A76: Alvenaria de Vedação | B76: 103324 | C76: ALVENARIA DE VEDAÇÃO DE BLOCOS CERÂMICOS FURADOS NA VERTICAL DE 14X19X39 CM (ESPESSURA 14 CM) E ARGAMASSA DE ASSENTAMENTO COM PREPARO EM BETONEIRA. AF_12/2021 | D76: M2 | E76: 80.5 | F76: 0
A77: Alvenaria de Vedação | B77: 103325 | C77: ALVENARIA DE VEDAÇÃO DE BLOCOS CERÂMICOS FURADOS NA VERTICAL DE 14X19X39 CM (ESPESSURA 14 CM) E ARGAMASSA DE ASSENTAMENTO COM PREPARO MANUAL. AF_12/2021 | D77: M2 | E77: 81.86 | F77: 0
A78: Alvenaria de Vedação | B78: 103326 | C78: ALVENARIA DE VEDAÇÃO DE BLOCOS CERÂMICOS FURADOS NA VERTICAL DE 19X19X39 CM (ESPESSURA 19 CM) E ARGAMASSA DE ASSENTAMENTO COM PREPARO EM BETONEIRA. AF_12/2021 | D78: M2 | E78: 94.71 | F78: 0
A79: Alvenaria de Vedação | B79: 103327 | C79: ALVENARIA DE VEDAÇÃO DE BLOCOS CERÂMICOS FURADOS NA VERTICAL DE 19X19X39 CM (ESPESSURA 19 CM) E ARGAMASSA DE ASSENTAMENTO COM PREPARO MANUAL. AF_12/2021 | D79: M2 | E79: 96.3 | F79: 0
A80: Alvenaria de Vedação | B80: 103322 | C80: ALVENARIA DE VEDAÇÃO DE BLOCOS CERÂMICOS FURADOS NA VERTICAL DE 9X19X39 CM (ESPESSURA 9 CM) E ARGAMASSA DE ASSENTAMENTO COM PREPARO EM BETONEIRA. AF_12/2021 | D80: M2 | E80: 60.08 | F80: 0
A81: Alvenaria de Vedação | B81: 103323 | C81: ALVENARIA DE VEDAÇÃO DE BLOCOS CERÂMICOS FURADOS NA VERTICAL DE 9X19X39 CM (ESPESSURA 9 CM) E ARGAMASSA DE ASSENTAMENTO COM PREPARO MANUAL. AF_12/2021 | D81: M2 | E81: 61.28 | F81: 0
A82: Alvenaria de Vedação | B82: 103338 | C82: ALVENARIA DE VEDAÇÃO DE BLOCOS VAZADOS DE CONCRETO APARENTE DE 14X19X39 CM (ESPESSURA 14 CM) E ARGAMASSA DE ASSENTAMENTO COM PREPARO EM BETONEIRA. AF_12/2021 | D82: M2 | E82: 124.39 | F82: 0
A83: Alvenaria de Vedação | B83: 103339 | C83: ALVENARIA DE VEDAÇÃO DE BLOCOS VAZADOS DE CONCRETO APARENTE DE 14X19X39 CM (ESPESSURA 14 CM) E ARGAMASSA DE ASSENTAMENTO COM PREPARO MANUAL. AF_12/2021 | D83: M2 | E83: 125.56 | F83: 0
A84: Alvenaria de Vedação | B84: 103340 | C84: ALVENARIA DE VEDAÇÃO DE BLOCOS VAZADOS DE CONCRETO APARENTE DE 19X19X39 CM (ESPESSURA 19 CM) E ARGAMASSA DE ASSENTAMENTO COM PREPARO EM BETONEIRA. AF_12/2021 | D84: M2 | E84: 150.5 | F84: 0
A85: Alvenaria de Vedação | B85: 103341 | C85: ALVENARIA DE VEDAÇÃO DE BLOCOS VAZADOS DE CONCRETO APARENTE DE 19X19X39 CM (ESPESSURA 19 CM) E ARGAMASSA DE ASSENTAMENTO COM PREPARO MANUAL. AF_12/2021 | D85: M2 | E85: 151.97 | F85: 0
A86: Alvenaria de Vedação | B86: 103336 | C86: ALVENARIA DE VEDAÇÃO DE BLOCOS VAZADOS DE CONCRETO APARENTE DE 9X19X39 CM (ESPESSURA 9 CM) E ARGAMASSA DE ASSENTAMENTO COM PREPARO EM BETONEIRA. AF_12/2021 | D86: M2 | E86: 94.51 | F86: 0
A87: Alvenaria de Vedação | B87: 103337 | C87: ALVENARIA DE VEDAÇÃO DE BLOCOS VAZADOS DE CONCRETO APARENTE DE 9X19X39 CM (ESPESSURA 9 CM) E ARGAMASSA DE ASSENTAMENTO COM PREPARO MANUAL. AF_12/2021 | D87: M2 | E87: 95.51 | F87: 0
A88: Alvenaria de Vedação | B88: 103342 | C88: ALVENARIA DE VEDAÇÃO DE BLOCOS VAZADOS DE CONCRETO DE 14X19X29 CM (ESPESSURA 14 CM) E ARGAMASSA DE ASSENTAMENTO COM PREPARO EM BETONEIRA. AF_12/2021 | D88: M2 | E88: 127.67 | F88: 0
A89: Alvenaria de Vedação | B89: 103343 | C89: ALVENARIA DE VEDAÇÃO DE BLOCOS VAZADOS DE CONCRETO DE 14X19X29 CM (ESPESSURA 14 CM) E ARGAMASSA DE ASSENTAMENTO COM PREPARO MANUAL. AF_12/2021 | D89: M2 | E89: 128.97 | F89: 0
A90: Alvenaria de Vedação | B90: 103318 | C90: ALVENARIA DE VEDAÇÃO DE BLOCOS VAZADOS DE CONCRETO DE 14X19X39 CM (ESPESSURA 14 CM) E ARGAMASSA DE ASSENTAMENTO COM PREPARO EM BETONEIRA. AF_12/2021 | D90: M2 | E90: 109.46 | F90: 0
A91: Alvenaria de Vedação | B91: 103319 | C91: ALVENARIA DE VEDAÇÃO DE BLOCOS VAZADOS DE CONCRETO DE 14X19X39 CM (ESPESSURA 14 CM) E ARGAMASSA DE ASSENTAMENTO COM PREPARO MANUAL. AF_12/2021 | D91: M2 | E91: 110.63 | F91: 0
A92: Alvenaria de Vedação | B92: 103320 | C92: ALVENARIA DE VEDAÇÃO DE BLOCOS VAZADOS DE CONCRETO DE 19X19X39 CM (ESPESSURA 19 CM) E ARGAMASSA DE ASSENTAMENTO COM PREPARO EM BETONEIRA. AF_12/2021 | D92: M2 | E92: 131.55 | F92: 0
A93: Alvenaria de Vedação | B93: 103321 | C93: ALVENARIA DE VEDAÇÃO DE BLOCOS VAZADOS DE CONCRETO DE 19X19X39 CM (ESPESSURA 19 CM) E ARGAMASSA DE ASSENTAMENTO COM PREPARO MANUAL. AF_12/2021 | D93: M2 | E93: 133.02 | F93: 0
A94: Alvenaria de Vedação | B94: 103316 | C94: ALVENARIA DE VEDAÇÃO DE BLOCOS VAZADOS DE CONCRETO DE 9X19X39 CM (ESPESSURA 9 CM) E ARGAMASSA DE ASSENTAMENTO COM PREPARO EM BETONEIRA. AF_12/2021 | D94: M2 | E94: 84.34 | F94: 0
A95: Alvenaria de Vedação | B95: 103317 | C95: ALVENARIA DE VEDAÇÃO DE BLOCOS VAZADOS DE CONCRETO DE 9X19X39 CM (ESPESSURA 9 CM) E ARGAMASSA DE ASSENTAMENTO COM PREPARO MANUAL. AF_12/2021 | D95: M2 | E95: 85.34 | F95: 0
A96: Alvenarias Diversas | B96: 101166 | C96: ALVENARIA DE EMBASAMENTO COM BLOCO ESTRUTURAL DE CERÂMICA, DE 14X19X29CM E ARGAMASSA DE ASSENTAMENTO COM PREPARO EM BETONEIRA. AF_05/2020 | D96: M3 | E96: 680.48 | F96: 0
A97: Alvenarias Diversas | B97: 101165 | C97: ALVENARIA DE EMBASAMENTO COM BLOCO ESTRUTURAL DE CONCRETO, DE 14X19X29CM E ARGAMASSA DE ASSENTAMENTO COM PREPARO EM BETONEIRA. AF_05/2020 | D97: M3 | E97: 1083.67 | F97: 0
A98: Alvenarias Diversas | B98: 101163 | C98: ALVENARIA DE VEDAÇÃO COM BLOCO DE VIDRO VAZADO, TIPO VENEZIANA, DE 6X20X20CM E ARGAMASSA DE ASSENTAMENTO COM PREPARO EM BETONEIRA. AF_05/2020 | D98: M2 | E98: 640.63 | F98: 0
A99: Alvenarias Diversas | B99: 101164 | C99: ALVENARIA DE VEDAÇÃO COM BLOCO DE VIDRO, TIPO CANELADO, DE 8X19X19CM E ARGAMASSA DE ASSENTAMENTO COM PREPARO EM BETONEIRA. AF_05/2020 | D99: M2 | E99: 650.72 | F99: 0
A100: Alvenarias Diversas | B100: 101162 | C100: ALVENARIA DE VEDAÇÃO COM ELEMENTO VAZADO DE CERÂMICA (COBOGÓ) DE 7X20X20CM E ARGAMASSA DE ASSENTAMENTO COM PREPARO EM BETONEIRA. AF_05/2020 | D100: M2 | E100: 159.87 | F100: 0
A101: Alvenarias Diversas | B101: 101161 | C101: ALVENARIA DE VEDAÇÃO COM ELEMENTO VAZADO DE CONCRETO (COBOGÓ) DE 7X50X50CM E ARGAMASSA DE ASSENTAMENTO COM PREPARO EM BETONEIRA. AF_05/2020 | D101: M2 | E101: 250.33 | F101: 0
A102: Alvenarias Diversas | B102: 101160 | C102: ALVENARIA DE VEDAÇÃO DE BLOCO DE SOLO-CIMENTO (TIJOLO ECOLÓGICO) DE 7X15X30CM (ESPESSURA 15CM). AF_05/2020 | D102: M2 | E102: 0
A103: Alvenarias Diversas | B103: 101159 | C103: ALVENARIA DE VEDAÇÃO DE BLOCOS CERÂMICOS MACIÇOS DE 5X10X20CM (ESPESSURA 10CM) E ARGAMASSA DE ASSENTAMENTO COM PREPARO EM BETONEIRA. AF_05/2020 | D103: M2 | E103: 140.93 | F103: 0
A104: Alvenarias Diversas | B104: 101154 | C104: ALVENARIA DE VEDAÇÃO DE BLOCOS DE CONCRETO CELULAR DE 10X30X60CM (ESPESSURA 10CM) E ARGAMASSA DE ASSENTAMENTO COM PREPARO EM BETONEIRA. AF_05/2020 | D104: M2 | E104: 134.12 | F104: 0
A105: Alvenarias Diversas | B105: 101155 | C105: ALVENARIA DE VEDAÇÃO DE BLOCOS DE CONCRETO CELULAR DE 15X30X60CM (ESPESSURA 15CM) E ARGAMASSA DE ASSENTAMENTO COM PREPARO EM BETONEIRA. AF_05/2020 | D105: M2 | E105: 187.66 | F105: 0
A106: Alvenarias Diversas | B106: 101156 | C106: ALVENARIA DE VEDAÇÃO DE BLOCOS DE CONCRETO CELULAR DE 20X30X60CM (ESPESSURA 20CM) E ARGAMASSA DE ASSENTAMENTO COM PREPARO EM BETONEIRA. AF_05/2020 | D106: M2 | E106: 274.86 | F106: 0
A107: Alvenarias Diversas | B107: 101158 | C107: ALVENARIA DE VEDAÇÃO DE BLOCOS DE GESSO DE 10X50X66CM (ESPESSURA 10CM). AF_05/2020 | D107: M2 | E107: 85.81 | F107: 0
A108: Alvenarias Diversas | B108: 101157 | C108: ALVENARIA DE VEDAÇÃO DE BLOCOS DE GESSO DE 7X50X66CM (ESPESSURA 7CM). AF_05/2020 | D108: M2 | E108: 65.81 | F108: 0
A109: Argamassas | B109: 87382 | C109: ARGAMASSA INDUSTRIALIZADA MULTIUSO PARA REVESTIMENTOS E ASSENTAMENTO DA ALVENARIA, PREPARO COM MISTURADOR DE EIXO HORIZONTAL DE 160 KG. AF_08/2019 | D109: M3 | E109: 1528.64 | F109: 0
A110: Argamassas | B110: 87383 | C110: ARGAMASSA INDUSTRIALIZADA MULTIUSO PARA REVESTIMENTOS E ASSENTAMENTO DA ALVENARIA, PREPARO COM MISTURADOR DE EIXO HORIZONTAL DE 300 KG. AF_08/2019 | D110: M3 | E110: 1516.11 | F110: 0
A111: Argamassas | B111: 87384 | C111: ARGAMASSA INDUSTRIALIZADA MULTIUSO PARA REVESTIMENTOS E ASSENTAMENTO DA ALVENARIA, PREPARO COM MISTURADOR DE EIXO HORIZONTAL DE 600 KG. AF_08/2019 | D111: M3 | E111: 1498.86 | F111: 0
A112: Argamassas | B112: 87398 | C112: ARGAMASSA INDUSTRIALIZADA MULTIUSO PARA REVESTIMENTOS E ASSENTAMENTO DA ALVENARIA, PREPARO MANUAL. AF_08/2019 | D112: M3 | E112: 1721.43 | F112: 0
A113: Argamassas | B113: 87395 | C113: ARGAMASSA INDUSTRIALIZADA PARA CHAPISCO COLANTE, PREPARO COM MISTURADOR DE EIXO HORIZONTAL DE 160 KG. AF_08/2019 | D113: M3 | E113: 2965.93 | F113: 0
A114: Argamassas | B114: 87396 | C114: ARGAMASSA INDUSTRIALIZADA PARA CHAPISCO COLANTE, PREPARO COM MISTURADOR DE EIXO HORIZONTAL DE 300 KG. AF_08/2019 | D114: M3 | E114: 2973.13 | F114: 0
A115: Argamassas | B115: 87397 | C115: ARGAMASSA INDUSTRIALIZADA PARA CHAPISCO COLANTE, PREPARO COM MISTURADOR DE EIXO HORIZONTAL DE 600 KG. AF_08/2019 | D115: M3 | E115: 2979.18 | F115: 0
A116: Argamassas | B116: 87402 | C116: ARGAMASSA INDUSTRIALIZADA PARA CHAPISCO COLANTE, PREPARO MANUAL. AF_08/2019 | D116: M3 | E116: 3210.1 | F116: 0
A117: Argamassas | B117: 87391 | C117: ARGAMASSA INDUSTRIALIZADA PARA CHAPISCO ROLADO, PREPARO COM MISTURADOR DE EIXO HORIZONTAL DE 160 KG. AF_08/2019 | D117: M3 | E117: 4666.76 | F117: 0
A118: Argamassas | B118: 87393 | C118: ARGAMASSA INDUSTRIALIZADA PARA CHAPISCO ROLADO, PREPARO COM MISTURADOR DE EIXO HORIZONTAL DE 300 KG. AF_08/2019 | D118: M3 | E118: 4696.8 | F118: 0
A119: Argamassas | B119: 87394 | C119: ARGAMASSA INDUSTRIALIZADA PARA CHAPISCO ROLADO, PREPARO COM MISTURADOR DE EIXO HORIZONTAL DE 600 KG. AF_08/2019 | D119: M3 | E119: 4724.67 | F119: 0
A120: Argamassas | B120: 87401 | C120: ARGAMASSA INDUSTRIALIZADA PARA CHAPISCO ROLADO, PREPARO MANUAL. AF_08/2019 | D120: M3 | E120: 4945.75 | F120: 0
A121: Argamassas | B121: 87407 | C121: ARGAMASSA INDUSTRIALIZADA PARA REVESTIMENTOS, MISTURA E PROJEÇÃO DE 1,5 M³/H DE ARGAMASSA. AF_08/2019 | D121: M3 | E121: 1568.26 | F121: 0
A122: Argamassas | B122: 87408 | C122: ARGAMASSA INDUSTRIALIZADA PARA REVESTIMENTOS, MISTURA E PROJEÇÃO DE 2 M³/H DE ARGAMASSA. AF_08/2019 | D122: M3 | E122: 1547.75 | F122: 0
A123: Argamassas | B123: 87404 | C123: ARGAMASSA PARA REVESTIMENTO DECORATIVO MONOCAMADA (MONOCAPA), MISTURA E PROJEÇÃO DE 1,5 M3/H DE ARGAMASSA. AF_08/2019 | D123: M3 | E123: 4376.66 | F123: 0
A124: Argamassas | B124: 87405 | C124: ARGAMASSA PARA REVESTIMENTO DECORATIVO MONOCAMADA (MONOCAPA), MISTURA E PROJEÇÃO DE 2 M3/H DE ARGAMASSA. AF_08/2019 | D124: M3 | E124: 4371.31 | F124: 0
A125: Argamassas | B125: 87388 | C125: ARGAMASSA PARA REVESTIMENTO DECORATIVO MONOCAMADA (MONOCAPA), PREPARO COM MISTURADOR DE EIXO HORIZONTAL DE 160 KG. AF_08/2019 | D125: M3 | E125: 4179.64 | F125: 0
A126: Argamassas | B126: 87389 | C126: ARGAMASSA PARA REVESTIMENTO DECORATIVO MONOCAMADA (MONOCAPA), PREPARO COM MISTURADOR DE EIXO HORIZONTAL DE 300 KG. AF_08/2019 | D126: M3 | E126: 4185.33 | F126: 0
A127: Argamassas | B127: 87390 | C127: ARGAMASSA PARA REVESTIMENTO DECORATIVO MONOCAMADA (MONOCAPA), PREPARO COM MISTURADOR DE EIXO HORIZONTAL DE 600 KG. AF_08/2019 | D127: M3 | E127: 4195.77 | F127: 0
A128: Argamassas | B128: 87385 | C128: ARGAMASSA PRONTA PARA CONTRAPISO, PREPARO COM MISTURADOR DE EIXO HORIZONTAL DE 160 KG. AF_08/2019 | D128: M3 | E128: 1777.98 | F128: 0
A129: Argamassas | B129: 87386 | C129: ARGAMASSA PRONTA PARA CONTRAPISO, PREPARO COM MISTURADOR DE EIXO HORIZONTAL DE 300 KG. AF_08/2019 | D129: M3 | E129: 1757.94 | F129: 0
A130: Argamassas | B130: 87387 | C130: ARGAMASSA PRONTA PARA CONTRAPISO, PREPARO COM MISTURADOR DE EIXO HORIZONTAL DE 600 KG. AF_08/2019 | D130: M3 | E130: 1741.39 | F130: 0
A131: Argamassas | B131: 87399 | C131: ARGAMASSA PRONTA PARA CONTRAPISO, PREPARO MANUAL. AF_08/2019 | D131: M3 | E131: 1969.51 | F131: 0
A132: Argamassas | B132: 88627 | C132: ARGAMASSA TRAÇO 1:0,5:4,5 (EM VOLUME DE CIMENTO, CAL E AREIA MÉDIA ÚMIDA) PARA ASSENTAMENTO DE ALVENARIA, PREPARO MANUAL. AF_08/2019 | D132: M3 | E132: 727.86 | F132: 0
A133: Argamassas | B133: 100463 | C133: ARGAMASSA TRAÇO 1:0,5:4,5 (EM VOLUME DE CIMENTO, CAL E AREIA MÉDIA ÚMIDA), PREPARO MECÂNICO COM BETONEIRA 250 L. AF_08/2019 | D133: M3 | E133: 0
A134: Argamassas | B134: 88626 | C134: ARGAMASSA TRAÇO 1:0,5:4,5 (EM VOLUME DE CIMENTO, CAL E AREIA MÉDIA ÚMIDA), PREPARO MECÂNICO COM BETONEIRA 400 L. AF_08/2019 | D134: M3 | E134: 638.47 | F134: 0
A135: Argamassas | B135: 100488 | C135: ARGAMASSA TRAÇO 1:0,5:4,5 (EM VOLUME DE CIMENTO, CAL E AREIA MÉDIA ÚMIDA), PREPARO MECÂNICO COM BETONEIRA 600 L. AF_08/2019 | D135: M3 | E135: 624.73 | F135: 0
A136: Argamassas | B136: 100464 | C136: ARGAMASSA TRAÇO 1:0,5:4,5 (EM VOLUME DE CIMENTO, CAL E AREIA MÉDIA ÚMIDA), PREPARO MECÂNICO COM MISTURADOR DE EIXO HORIZONTAL DE 160 KG. AF_08/2019 | D136: M3 | E136: 670.96 | F136: 0
A137: Argamassas | B137: 100465 | C137: ARGAMASSA TRAÇO 1:0,5:4,5 (EM VOLUME DE CIMENTO, CAL E AREIA MÉDIA ÚMIDA), PREPARO MECÂNICO COM MISTURADOR DE EIXO HORIZONTAL DE 300 KG. AF_08/2019 | D137: M3 | E137: 623.37 | F137: 0
A138: Argamassas | B138: 100466 | C138: ARGAMASSA TRAÇO 1:0,5:4,5 (EM VOLUME DE CIMENTO, CAL E AREIA MÉDIA ÚMIDA), PREPARO MECÂNICO COM MISTURADOR DE EIXO HORIZONTAL DE 600 KG. AF_08/2019 | D138: M3 | E138: 597.53 | F138: 0
A139: Argamassas | B139: 87368 | C139: ARGAMASSA TRAÇO 1:1,5:7,5 (EM VOLUME DE CIMENTO, CAL E AREIA MÉDIA ÚMIDA) PARA EMBOÇO/MASSA ÚNICA/ASSENTAMENTO DE ALVENARIA DE VEDAÇÃO, PREPARO MANUAL. AF_08/2019 | D139: M3 | E139: 766.59 | F139: 0
A140: Argamassas | B140: 100450 | C140: ARGAMASSA TRAÇO 1:1,5:7,5 (EM VOLUME DE CIMENTO, CAL E AREIA MÉDIA ÚMIDA) PARA EMBOÇO/MASSA ÚNICA/ASSENTAMENTO DE ALVENARIA DE VEDAÇÃO, PREPARO MECÂNICO COM BETONEIRA 250 L. AF_08/2019 | D140: M3 | E140: 0
A141: Argamassas | B141: 87289 | C141: ARGAMASSA TRAÇO 1:1,5:7,5 (EM VOLUME DE CIMENTO, CAL E AREIA MÉDIA ÚMIDA) PARA EMBOÇO/MASSA ÚNICA/ASSENTAMENTO DE ALVENARIA DE VEDAÇÃO, PREPARO MECÂNICO COM BETONEIRA 400 L. AF_08/2019 | D141: M3 | E141: 656.43 | F141: 0
A142: Argamassas | B142: 87290 | C142: ARGAMASSA TRAÇO 1:1,5:7,5 (EM VOLUME DE CIMENTO, CAL E AREIA MÉDIA ÚMIDA) PARA EMBOÇO/MASSA ÚNICA/ASSENTAMENTO DE ALVENARIA DE VEDAÇÃO, PREPARO MECÂNICO COM BETONEIRA 600 L. AF_08/2019 | D142: M3 | E142: 641.23 | F142: 0
A143: Argamassas | B143: 87333 | C143: ARGAMASSA TRAÇO 1:1,5:7,5 (EM VOLUME DE CIMENTO, CAL E AREIA MÉDIA ÚMIDA) PARA EMBOÇO/MASSA ÚNICA/ASSENTAMENTO DE ALVENARIA DE VEDAÇÃO, PREPARO MECÂNICO COM MISTURADOR DE EIXO HORIZONTAL DE 300 KG. AF_08/2019 | D143: M3 | E143: 662.23 | F143: 0
A144: Argamassas | B144: 87334 | C144: ARGAMASSA TRAÇO 1:1,5:7,5 (EM VOLUME DE CIMENTO, CAL E AREIA MÉDIA ÚMIDA) PARA EMBOÇO/MASSA ÚNICA/ASSENTAMENTO DE ALVENARIA DE VEDAÇÃO, PREPARO MECÂNICO COM MISTURADOR DE EIXO HORIZONTAL DE 600 KG. AF_08/2019 | D144: M3 | E144: 613.55 | F144: 0
A145: Argamassas | B145: 105515 | C145: ARGAMASSA TRAÇO 1:1,93 (EM VOLUME DE CIMENTO E AREIA MÉDIA ÚMIDA), FCK 20MPA, PREPARO MECÂNICO COM MISTURADOR DUPLO HORIZONTAL DE ALTA TURBULÊNCIA. AF_03/2020 | D145: M3 | E145: 899.92 | F145: 0
A146: Argamassas | B146: 87367 | C146: ARGAMASSA TRAÇO 1:1:6 (EM VOLUME DE CIMENTO, CAL E AREIA MÉDIA ÚMIDA) PARA EMBOÇO/MASSA ÚNICA/ASSENTAMENTO DE ALVENARIA DE VEDAÇÃO, PREPARO MANUAL. AF_08/2019 | D146: M3 | E146: 778.55 | F146: 0
A147: Argamassas | B147: 100449 | C147: ARGAMASSA TRAÇO 1:1:6 (EM VOLUME DE CIMENTO, CAL E AREIA MÉDIA ÚMIDA) PARA EMBOÇO/MASSA ÚNICA/ASSENTAMENTO DE ALVENARIA DE VEDAÇÃO, PREPARO MECÂNICO COM BETONEIRA 250 L. AF_08/2019 | D147: M3 | E147: 0
A148: Argamassas | B148: 87286 | C148: ARGAMASSA TRAÇO 1:1:6 (EM VOLUME DE CIMENTO, CAL E AREIA MÉDIA ÚMIDA) PARA EMBOÇO/MASSA ÚNICA/ASSENTAMENTO DE ALVENARIA DE VEDAÇÃO, PREPARO MECÂNICO COM BETONEIRA 400 L. AF_08/2019 | D148: M3 | E148: 673.79 | F148: 0
A149: Argamassas | B149: 87287 | C149: ARGAMASSA TRAÇO 1:1:6 (EM VOLUME DE CIMENTO, CAL E AREIA MÉDIA ÚMIDA) PARA EMBOÇO/MASSA ÚNICA/ASSENTAMENTO DE ALVENARIA DE VEDAÇÃO, PREPARO MECÂNICO COM BETONEIRA 600 L. AF_08/2019 | D149: M3 | E149: 648.04 | F149: 0
A150: Argamassas | B150: 87331 | C150: ARGAMASSA TRAÇO 1:1:6 (EM VOLUME DE CIMENTO, CAL E AREIA MÉDIA ÚMIDA) PARA EMBOÇO/MASSA ÚNICA/ASSENTAMENTO DE ALVENARIA DE VEDAÇÃO, PREPARO MECÂNICO COM MISTURADOR DE EIXO HORIZONTAL DE 300 KG. AF_08/2019 | D150: M3 | E150: 701.61 | F150: 0
A151: Argamassas | B151: 87332 | C151: ARGAMASSA TRAÇO 1:1:6 (EM VOLUME DE CIMENTO, CAL E AREIA MÉDIA ÚMIDA) PARA EMBOÇO/MASSA ÚNICA/ASSENTAMENTO DE ALVENARIA DE VEDAÇÃO, PREPARO MECÂNICO COM MISTURADOR DE EIXO HORIZONTAL DE 600 KG. AF_08/2019 | D151: M3 | E151: 622.83 | F151: 0
A152: Argamassas | B152: 87369 | C152: ARGAMASSA TRAÇO 1:2:8 (EM VOLUME DE CIMENTO, CAL E AREIA MÉDIA ÚMIDA) PARA EMBOÇO/MASSA ÚNICA/ASSENTAMENTO DE ALVENARIA DE VEDAÇÃO, PREPARO MANUAL. AF_08/2019 | D152: M3 | E152: 785.93 | F152: 0
A153: Argamassas | B153: 100451 | C153: ARGAMASSA TRAÇO 1:2:8 (EM VOLUME DE CIMENTO, CAL E AREIA MÉDIA ÚMIDA) PARA EMBOÇO/MASSA ÚNICA/ASSENTAMENTO DE ALVENARIA DE VEDAÇÃO, PREPARO MECÂNICO COM BETONEIRA 250 L. AF_08/2019 | D153: M3 | E153: 0
A154: Argamassas | B154: 87292 | C154: ARGAMASSA TRAÇO 1:2:8 (EM VOLUME DE CIMENTO, CAL E AREIA MÉDIA ÚMIDA) PARA EMBOÇO/MASSA ÚNICA/ASSENTAMENTO DE ALVENARIA DE VEDAÇÃO, PREPARO MECÂNICO COM BETONEIRA 400 L. AF_08/2019 | D154: M3 | E154: 670.84 | F154: 0
A155: Argamassas | B155: 87335 | C155: ARGAMASSA TRAÇO 1:2:8 (EM VOLUME DE CIMENTO, CAL E AREIA MÉDIA ÚMIDA) PARA EMBOÇO/MASSA ÚNICA/ASSENTAMENTO DE ALVENARIA DE VEDAÇÃO, PREPARO MECÂNICO COM MISTURADOR DE EIXO HORIZONTAL DE 300 KG. AF_08/2019 | D155: M3 | E155: 653.33 | F155: 0
A156: Argamassas | B156: 87336 | C156: ARGAMASSA TRAÇO 1:2:8 (EM VOLUME DE CIMENTO, CAL E AREIA MÉDIA ÚMIDA) PARA EMBOÇO/MASSA ÚNICA/ASSENTAMENTO DE ALVENARIA DE VEDAÇÃO, PREPARO MECÂNICO COM MISTURADOR DE EIXO HORIZONTAL DE 600 KG. AF_08/2019 | D156: M3 | E156: 633.66 | F156: 0
A157: Argamassas | B157: 87370 | C157: ARGAMASSA TRAÇO 1:2:9 (EM VOLUME DE CIMENTO, CAL E AREIA MÉDIA ÚMIDA) PARA EMBOÇO/MASSA ÚNICA/ASSENTAMENTO DE ALVENARIA DE VEDAÇÃO, PREPARO MANUAL. AF_08/2019 | D157: M3 | E157: 760.75 | F157: 0
A158: Argamassas | B158: 100452 | C158: ARGAMASSA TRAÇO 1:2:9 (EM VOLUME DE CIMENTO, CAL E AREIA MÉDIA ÚMIDA) PARA EMBOÇO/MASSA ÚNICA/ASSENTAMENTO DE ALVENARIA DE VEDAÇÃO, PREPARO MECÂNICO COM BETONEIRA 250 L. AF_08/2019 | D158: M3 | E158: 0
A159: Argamassas | B159: 88715 | C159: ARGAMASSA TRAÇO 1:2:9 (EM VOLUME DE CIMENTO, CAL E AREIA MÉDIA ÚMIDA) PARA EMBOÇO/MASSA ÚNICA/ASSENTAMENTO DE ALVENARIA DE VEDAÇÃO, PREPARO MECÂNICO COM BETONEIRA 400 L. AF_08/2019 | D159: M3 | E159: 637.54 | F159: 0
A160: Argamassas | B160: 87294 | C160: ARGAMASSA TRAÇO 1:2:9 (EM VOLUME DE CIMENTO, CAL E AREIA MÉDIA ÚMIDA) PARA EMBOÇO/MASSA ÚNICA/ASSENTAMENTO DE ALVENARIA DE VEDAÇÃO, PREPARO MECÂNICO COM BETONEIRA 600 L. AF_08/2019 | D160: M3 | E160: 641.44 | F160: 0
A161: Argamassas | B161: 87337 | C161: ARGAMASSA TRAÇO 1:2:9 (EM VOLUME DE CIMENTO, CAL E AREIA MÉDIA ÚMIDA) PARA EMBOÇO/MASSA ÚNICA/ASSENTAMENTO DE ALVENARIA DE VEDAÇÃO, PREPARO MECÂNICO COM MISTURADOR DE EIXO HORIZONTAL DE 300 KG. AF_08/2019 | D161: M3 | E161: 648.12 | F161: 0
A162: Argamassas | B162: 100487 | C162: ARGAMASSA TRAÇO 1:2:9 (EM VOLUME DE CIMENTO, CAL E AREIA MÉDIA ÚMIDA) PARA EMBOÇO/MASSA ÚNICA/ASSENTAMENTO DE ALVENARIA DE VEDAÇÃO, PREPARO MECÂNICO COM MISTURADOR DE EIXO HORIZONTAL DE 600 KG. AF_08/2019 | D162: M3 | E162: 603.81 | F162: 0
A163: Argamassas | B163: 87380 | C163: ARGAMASSA TRAÇO 1:3 (EM VOLUME DE CIMENTO E AREIA GROSSA ÚMIDA) COM ADIÇÃO DE EMULSÃO POLIMÉRICA PARA CHAPISCO ROLADO, PREPARO MANUAL. AF_08/2019 | D163: M3 | E163: 3386.29 | F163: 0
A164: Argamassas | B164: 100461 | C164: ARGAMASSA TRAÇO 1:3 (EM VOLUME DE CIMENTO E AREIA GROSSA ÚMIDA) COM ADIÇÃO DE EMULSÃO POLIMÉRICA PARA CHAPISCO ROLADO, PREPARO MECÂNICO COM BETONEIRA 250 L. AF_08/2019 | D164: M3 | E164: 0
A165: Argamassas | B165: 87322 | C165: ARGAMASSA TRAÇO 1:3 (EM VOLUME DE CIMENTO E AREIA GROSSA ÚMIDA) COM ADIÇÃO DE EMULSÃO POLIMÉRICA PARA CHAPISCO ROLADO, PREPARO MECÂNICO COM BETONEIRA 400 L. AF_08/2019 | D165: M3 | E165: 3301.77 | F165: 0
A166: Argamassas | B166: 87323 | C166: ARGAMASSA TRAÇO 1:3 (EM VOLUME DE CIMENTO E AREIA GROSSA ÚMIDA) COM ADIÇÃO DE EMULSÃO POLIMÉRICA PARA CHAPISCO ROLADO, PREPARO MECÂNICO COM BETONEIRA 600 L. AF_08/2019 | D166: M3 | E166: 3291.71 | F166: 0
A167: Argamassas | B167: 87360 | C167: ARGAMASSA TRAÇO 1:3 (EM VOLUME DE CIMENTO E AREIA GROSSA ÚMIDA) COM ADIÇÃO DE EMULSÃO POLIMÉRICA PARA CHAPISCO ROLADO, PREPARO MECÂNICO COM MISTURADOR DE EIXO HORIZONTAL DE 160 KG. AF_08/2019 | D167: M3 | E167: 3283.01 | F167: 0
A168: Argamassas | B168: 87361 | C168: ARGAMASSA TRAÇO 1:3 (EM VOLUME DE CIMENTO E AREIA GROSSA ÚMIDA) COM ADIÇÃO DE EMULSÃO POLIMÉRICA PARA CHAPISCO ROLADO, PREPARO MECÂNICO COM MISTURADOR DE EIXO HORIZONTAL DE 300 KG. AF_08/2019 | D168: M3 | E168: 3222.53 | F168: 0
A169: Argamassas | B169: 87362 | C169: ARGAMASSA TRAÇO 1:3 (EM VOLUME DE CIMENTO E AREIA GROSSA ÚMIDA) COM ADIÇÃO DE EMULSÃO POLIMÉRICA PARA CHAPISCO ROLADO, PREPARO MECÂNICO COM MISTURADOR DE EIXO HORIZONTAL DE 600 KG. AF_08/2019 | D169: M3 | E169: 3210.46 | F169: 0
A170: Argamassas | B170: 87377 | C170: ARGAMASSA TRAÇO 1:3 (EM VOLUME DE CIMENTO E AREIA GROSSA ÚMIDA) PARA CHAPISCO CONVENCIONAL, PREPARO MANUAL. AF_08/2019 | D170: M3 | E170: 722.08 | F170: 0
A171: Argamassas | B171: 100458 | C171: ARGAMASSA TRAÇO 1:3 (EM VOLUME DE CIMENTO E AREIA GROSSA ÚMIDA) PARA CHAPISCO CONVENCIONAL, PREPARO MECÂNICO COM BETONEIRA 250 L. AF_08/2019 | D171: M3 | E171: 0
A172: Argamassas | B172: 87313 | C172: ARGAMASSA TRAÇO 1:3 (EM VOLUME DE CIMENTO E AREIA GROSSA ÚMIDA) PARA CHAPISCO CONVENCIONAL, PREPARO MECÂNICO COM BETONEIRA 400 L. AF_08/2019 | D172: M3 | E172: 598.95 | F172: 0
A173: Argamassas | B173: 87314 | C173: ARGAMASSA TRAÇO 1:3 (EM VOLUME DE CIMENTO E AREIA GROSSA ÚMIDA) PARA CHAPISCO CONVENCIONAL, PREPARO MECÂNICO COM BETONEIRA 600 L. AF_08/2019 | D173: M3 | E173: 585.53 | F173: 0
A174: Argamassas | B174: 87352 | C174: ARGAMASSA TRAÇO 1:3 (EM VOLUME DE CIMENTO E AREIA GROSSA ÚMIDA) PARA CHAPISCO CONVENCIONAL, PREPARO MECÂNICO COM MISTURADOR DE EIXO HORIZONTAL DE 160 KG. AF_08/2019 | D174: M3 | E174: 700.6 | F174: 0
A175: Argamassas | B175: 87353 | C175: ARGAMASSA TRAÇO 1:3 (EM VOLUME DE CIMENTO E AREIA GROSSA ÚMIDA) PARA CHAPISCO CONVENCIONAL, PREPARO MECÂNICO COM MISTURADOR DE EIXO HORIZONTAL DE 300 KG. AF_08/2019 | D175: M3 | E175: 605.27 | F175: 0
A176: Argamassas | B176: 87354 | C176: ARGAMASSA TRAÇO 1:3 (EM VOLUME DE CIMENTO E AREIA GROSSA ÚMIDA) PARA CHAPISCO CONVENCIONAL, PREPARO MECÂNICO COM MISTURADOR DE EIXO HORIZONTAL DE 600 KG. AF_08/2019 | D176: M3 | E176: 559.98 | F176: 0
A177: Argamassas | B177: 100480 | C177: ARGAMASSA TRAÇO 1:3 (EM VOLUME DE CIMENTO E AREIA MÉDIA ÚMIDA) COM ADIÇÃO DE IMPERMEABILIZANTE, PREPARO MANUAL. AF_08/2019 | D177: M3 | E177: 860.6 | F177: 0
A178: Argamassas | B178: 100476 | C178: ARGAMASSA TRAÇO 1:3 (EM VOLUME DE CIMENTO E AREIA MÉDIA ÚMIDA) COM ADIÇÃO DE IMPERMEABILIZANTE, PREPARO MECÂNICO COM BETONEIRA 250 L. AF_08/2019 | D178: M3 | E178: 0
A179: Argamassas | B179: 100475 | C179: ARGAMASSA TRAÇO 1:3 (EM VOLUME DE CIMENTO E AREIA MÉDIA ÚMIDA) COM ADIÇÃO DE IMPERMEABILIZANTE, PREPARO MECÂNICO COM BETONEIRA 400 L. AF_08/2019 | D179: M3 | E179: 766.17 | F179: 0
A180: Argamassas | B180: 100491 | C180: ARGAMASSA TRAÇO 1:3 (EM VOLUME DE CIMENTO E AREIA MÉDIA ÚMIDA) COM ADIÇÃO DE IMPERMEABILIZANTE, PREPARO MECÂNICO COM BETONEIRA 600 L. AF_08/2019 | D180: M3 | E180: 761.72 | F180: 0
A181: Argamassas | B181: 100477 | C181: ARGAMASSA TRAÇO 1:3 (EM VOLUME DE CIMENTO E AREIA MÉDIA ÚMIDA) COM ADIÇÃO DE IMPERMEABILIZANTE, PREPARO MECÂNICO COM MISTURADOR DE EIXO HORIZONTAL DE 160 KG. AF_08/2019 | D181: M3 | E181: 846.17 | F181: 0
A182: Argamassas | B182: 100478 | C182: ARGAMASSA TRAÇO 1:3 (EM VOLUME DE CIMENTO E AREIA MÉDIA ÚMIDA) COM ADIÇÃO DE IMPERMEABILIZANTE, PREPARO MECÂNICO COM MISTURADOR DE EIXO HORIZONTAL DE 300 KG. AF_08/2019 | D182: M3 | E182: 752.17 | F182: 0
A183: Argamassas | B183: 100479 | C183: ARGAMASSA TRAÇO 1:3 (EM VOLUME DE CIMENTO E AREIA MÉDIA ÚMIDA) COM ADIÇÃO DE IMPERMEABILIZANTE, PREPARO MECÂNICO COM MISTURADOR DE EIXO HORIZONTAL DE 600 KG. AF_08/2019 | D183: M3 | E183: 728.85 | F183: 0
A184: Argamassas | B184: 87372 | C184: ARGAMASSA TRAÇO 1:3 (EM VOLUME DE CIMENTO E AREIA MÉDIA ÚMIDA) PARA CONTRAPISO, PREPARO MANUAL. AF_08/2019 | D184: M3 | E184: 890.82 | F184: 0
A185: Argamassas | B185: 100453 | C185: ARGAMASSA TRAÇO 1:3 (EM VOLUME DE CIMENTO E AREIA MÉDIA ÚMIDA) PARA CONTRAPISO, PREPARO MECÂNICO COM BETONEIRA 250 L. AF_08/2019 | D185: M3 | E185: 0
A186: Argamassas | B186: 87298 | C186: ARGAMASSA TRAÇO 1:3 (EM VOLUME DE CIMENTO E AREIA MÉDIA ÚMIDA) PARA CONTRAPISO, PREPARO MECÂNICO COM BETONEIRA 400 L. AF_08/2019 | D186: M3 | E186: 762.5 | F186: 0
A187: Argamassas | B187: 87299 | C187: ARGAMASSA TRAÇO 1:3 (EM VOLUME DE CIMENTO E AREIA MÉDIA ÚMIDA) PARA CONTRAPISO, PREPARO MECÂNICO COM BETONEIRA 600 L. AF_08/2019 | D187: M3 | E187: 527.83 | F187: 0
A188: Argamassas | B188: 87339 | C188: ARGAMASSA TRAÇO 1:3 (EM VOLUME DE CIMENTO E AREIA MÉDIA ÚMIDA) PARA CONTRAPISO, PREPARO MECÂNICO COM MISTURADOR DE EIXO HORIZONTAL DE 160 KG. AF_08/2019 | D188: M3 | E188: 915.71 | F188: 0
A189: Argamassas | B189: 87340 | C189: ARGAMASSA TRAÇO 1:3 (EM VOLUME DE CIMENTO E AREIA MÉDIA ÚMIDA) PARA CONTRAPISO, PREPARO MECÂNICO COM MISTURADOR DE EIXO HORIZONTAL DE 300 KG. AF_08/2019 | D189: M3 | E189: 762.02 | F189: 0
A190: Argamassas | B190: 87341 | C190: ARGAMASSA TRAÇO 1:3 (EM VOLUME DE CIMENTO E AREIA MÉDIA ÚMIDA) PARA CONTRAPISO, PREPARO MECÂNICO COM MISTURADOR DE EIXO HORIZONTAL DE 600 KG. AF_08/2019 | D190: M3 | E190: 720.48 | F190: 0
A191: Argamassas | B191: 88629 | C191: ARGAMASSA TRAÇO 1:3 (EM VOLUME DE CIMENTO E AREIA MÉDIA ÚMIDA), PREPARO MANUAL. AF_08/2019 | D191: M3 | E191: 731.19 | F191: 0
A192: Argamassas | B192: 100467 | C192: ARGAMASSA TRAÇO 1:3 (EM VOLUME DE CIMENTO E AREIA MÉDIA ÚMIDA), PREPARO MECÂNICO COM BETONEIRA 250 L. AF_08/2019 | D192: M3 | E192: 0
A193: Argamassas | B193: 88628 | C193: ARGAMASSA TRAÇO 1:3 (EM VOLUME DE CIMENTO E AREIA MÉDIA ÚMIDA), PREPARO MECÂNICO COM BETONEIRA 400 L. AF_08/2019 | D193: M3 | E193: 634.18 | F193: 0
A194: Argamassas | B194: 100489 | C194: ARGAMASSA TRAÇO 1:3 (EM VOLUME DE CIMENTO E AREIA MÉDIA ÚMIDA), PREPARO MECÂNICO COM BETONEIRA 600 L. AF_08/2019 | D194: M3 | E194: 628.82 | F194: 0
A195: Argamassas | B195: 100468 | C195: ARGAMASSA TRAÇO 1:3 (EM VOLUME DE CIMENTO E AREIA MÉDIA ÚMIDA), PREPARO MECÂNICO COM MISTURADOR DE EIXO HORIZONTAL DE 160 KG. AF_08/2019 | D195: M3 | E195: 779.4 | F195: 0
A196: Argamassas | B196: 100469 | C196: ARGAMASSA TRAÇO 1:3 (EM VOLUME DE CIMENTO E AREIA MÉDIA ÚMIDA), PREPARO MECÂNICO COM MISTURADOR DE EIXO HORIZONTAL DE 300 KG. AF_08/2019 | D196: M3 | E196: 623.2 | F196: 0
A197: Argamassas | B197: 100470 | C197: ARGAMASSA TRAÇO 1:3 (EM VOLUME DE CIMENTO E AREIA MÉDIA ÚMIDA), PREPARO MECÂNICO COM MISTURADOR DE EIXO HORIZONTAL DE 600 KG. AF_08/2019 | D197: M3 | E197: 577.09 | F197: 0
A198: Argamassas | B198: 87371 | C198: ARGAMASSA TRAÇO 1:3:12 (EM VOLUME DE CIMENTO, CAL E AREIA MÉDIA ÚMIDA) PARA EMBOÇO/MASSA ÚNICA/ASSENTAMENTO DE ALVENARIA DE VEDAÇÃO, PREPARO MANUAL. AF_08/2019 | D198: M3 | E198: 752.22 | F198: 0
A199: Argamassas | B199: 87295 | C199: ARGAMASSA TRAÇO 1:3:12 (EM VOLUME DE CIMENTO, CAL E AREIA MÉDIA ÚMIDA) PARA EMBOÇO/MASSA ÚNICA/ASSENTAMENTO DE ALVENARIA DE VEDAÇÃO, PREPARO MECÂNICO COM BETONEIRA 400 L. AF_08/2019 | D199: M3 | E199: 666.56 | F199: 0
A200: Argamassas | B200: 87296 | C200: ARGAMASSA TRAÇO 1:3:12 (EM VOLUME DE CIMENTO, CAL E AREIA MÉDIA ÚMIDA) PARA EMBOÇO/MASSA ÚNICA/ASSENTAMENTO DE ALVENARIA DE VEDAÇÃO, PREPARO MECÂNICO COM BETONEIRA 600 L. AF_08/2019 | D200: M3 | E200: 628.35 | F200: 0
... 9533 more rows

Sheet Ins SINAPI MG 04-2025 Onerado (hidden)
A1: SINAPI - Sistema Nacional de Pesquisa de Custos e Índices da Construção Civil
A2: RELATÓRIO DE PREÇOS DE INSUMOS - ENGARGOS SOCIAIS SEM DESONERAÇÃO
A3: Mês de Referência: | B3: 05/2025 | E3: Encargos sociais sobre a mão de obra:
A4: Data de emissão: | B4: 10/06/2025 | E4: (SEM DESONERAÇÃO) | F4: MG
E5: Localidade | F5: BELO HORIZONTE
A6: Origem de preço: | B6: C = COLETADO | C6: CR = COEFICIENTE DE REPRESENTATIVIDADE | E6: Horista | F6: 1.1679
A7: Preço em branco para determinado estado significa que não houve coleta mínima de preços no mês de referência | E7: Mensalista | F7: 0.7393
A9: Acessar Fichas de Especificação Técnico dos Insumos | E9: Preços Medianos (R$):
A10: Classificação | B10: Código do Insumo | C10: Descrição do Insumo | D10: Unidade | E10: Origem de Preço | F10: MG
A11: SERVIÇOS | B11: 45333 | C11: ABERTURA PARA ENCAIXE DE CUBA OU LAVATORIO EM BANCADA DE MARMORE/ GRANITO OU OUTRO TIPO DE PEDRA NATURAL | D11: UN | E11: CR | F11: 120.65
A12: MATERIAL | B12: 11270 | C12: ABRACADEIRA DE LATAO PARA FIXACAO DE CABO PARA-RAIO, DIMENSOES 32 X 24 X 24 MM | D12: UN | E12: CR | F12: 3.12
A13: MATERIAL | B13: 412 | C13: ABRACADEIRA DE NYLON PARA AMARRACAO DE CABOS, COMPRIMENTO DE *230* X *7,6* MM | D13: UN | E13: CR | F13: 1.08
A14: MATERIAL | B14: 414 | C14: ABRACADEIRA DE NYLON PARA AMARRACAO DE CABOS, COMPRIMENTO DE 100 X 2,5 MM | D14: UN | E14: CR | F14: 0.06
A15: MATERIAL | B15: 410 | C15: ABRACADEIRA DE NYLON PARA AMARRACAO DE CABOS, COMPRIMENTO DE 150 X *3,6* MM | D15: UN | E15: CR | F15: 0.16
A16: MATERIAL | B16: 411 | C16: ABRACADEIRA DE NYLON PARA AMARRACAO DE CABOS, COMPRIMENTO DE 200 X *4,6* MM | D16: UN | E16: C | F16: 0.21
A17: MATERIAL | B17: 408 | C17: ABRACADEIRA DE NYLON PARA AMARRACAO DE CABOS, COMPRIMENTO DE 390 X *4,6* MM | D17: UN | E17: CR | F17: 1.04
A18: MATERIAL | B18: 39131 | C18: ABRACADEIRA EM ACO PARA AMARRACAO DE ELETRODUTOS, TIPO D, COM 1 1/2" E CUNHA DE FIXACAO | D18: UN | E18: CR | F18: 3.28
A19: MATERIAL | B19: 394 | C19: ABRACADEIRA EM ACO PARA AMARRACAO DE ELETRODUTOS, TIPO D, COM 1 1/2" E PARAFUSO DE FIXACAO | D19: UN | E19: CR | F19: 3.32
A20: MATERIAL | B20: 39130 | C20: ABRACADEIRA EM ACO PARA AMARRACAO DE ELETRODUTOS, TIPO D, COM 1 1/4" E CUNHA DE FIXACAO | D20: UN | E20: CR | F20: 2.99
A21: MATERIAL | B21: 395 | C21: ABRACADEIRA EM ACO PARA AMARRACAO DE ELETRODUTOS, TIPO D, COM 1 1/4" E PARAFUSO DE FIXACAO | D21: UN | E21: CR | F21: 3.2
A22: MATERIAL | B22: 39129 | C22: ABRACADEIRA EM ACO PARA AMARRACAO DE ELETRODUTOS, TIPO D, COM 1" E CUNHA DE FIXACAO | D22: UN | E22: CR | F22: 1.84
A23: MATERIAL | B23: 393 | C23: ABRACADEIRA EM ACO PARA AMARRACAO DE ELETRODUTOS, TIPO D, COM 1" E PARAFUSO DE FIXACAO | D23: UN | E23: C | F23: 1.93
A24: MATERIAL | B24: 39127 | C24: ABRACADEIRA EM ACO PARA AMARRACAO DE ELETRODUTOS, TIPO D, COM 1/2" E CUNHA DE FIXACAO | D24: UN | E24: CR | F24: 1.58
A25: MATERIAL | B25: 392 | C25: ABRACADEIRA EM ACO PARA AMARRACAO DE ELETRODUTOS, TIPO D, COM 1/2" E PARAFUSO DE FIXACAO | D25: UN | E25: CR | F25: 1.62
A26: MATERIAL | B26: 39133 | C26: ABRACADEIRA EM ACO PARA AMARRACAO DE ELETRODUTOS, TIPO D, COM 2 1/2" E CUNHA DE FIXACAO | D26: UN | E26: CR | F26: 4.31
A27: MATERIAL | B27: 397 | C27: ABRACADEIRA EM ACO PARA AMARRACAO DE ELETRODUTOS, TIPO D, COM 2 1/2" E PARAFUSO DE FIXACAO | D27: UN | E27: CR | F27: 4.76
A28: MATERIAL | B28: 39132 | C28: ABRACADEIRA EM ACO PARA AMARRACAO DE ELETRODUTOS, TIPO D, COM 2" E CUNHA DE FIXACAO | D28: UN | E28: CR | F28: 3.44
A29: MATERIAL | B29: 396 | C29: ABRACADEIRA EM ACO PARA AMARRACAO DE ELETRODUTOS, TIPO D, COM 2" E PARAFUSO DE FIXACAO | D29: UN | E29: CR | F29: 3.69
A30: MATERIAL | B30: 39135 | C30: ABRACADEIRA EM ACO PARA AMARRACAO DE ELETRODUTOS, TIPO D, COM 3 1/2" E CUNHA DE FIXACAO | D30: UN | E30: CR | F30: 6.89
A31: MATERIAL | B31: 39134 | C31: ABRACADEIRA EM ACO PARA AMARRACAO DE ELETRODUTOS, TIPO D, COM 3" E CUNHA DE FIXACAO | D31: UN | E31: CR | F31: 5.74
A32: MATERIAL | B32: 398 | C32: ABRACADEIRA EM ACO PARA AMARRACAO DE ELETRODUTOS, TIPO D, COM 3" E PARAFUSO DE FIXACAO | D32: UN | E32: CR | F32: 5.29
A33: MATERIAL | B33: 39128 | C33: ABRACADEIRA EM ACO PARA AMARRACAO DE ELETRODUTOS, TIPO D, COM 3/4" E CUNHA DE FIXACAO | D33: UN | E33: CR | F33: 1.72
A34: MATERIAL | B34: 400 | C34: ABRACADEIRA EM ACO PARA AMARRACAO DE ELETRODUTOS, TIPO D, COM 3/4" E PARAFUSO DE FIXACAO | D34: UN | E34: CR | F34: 1.68
A35: MATERIAL | B35: 39125 | C35: ABRACADEIRA EM ACO PARA AMARRACAO DE ELETRODUTOS, TIPO D, COM 3/8" E PARAFUSO DE FIXACAO | D35: UN | E35: CR | F35: 1.72
A36: MATERIAL | B36: 39126 | C36: ABRACADEIRA EM ACO PARA AMARRACAO DE ELETRODUTOS, TIPO D, COM 4" E CUNHA DE FIXACAO | D36: UN | E36: CR | F36: 7.76
A37: MATERIAL | B37: 399 | C37: ABRACADEIRA EM ACO PARA AMARRACAO DE ELETRODUTOS, TIPO D, COM 4" E PARAFUSO DE FIXACAO | D37: UN | E37: CR | F37: 6.83
A38: MATERIAL | B38: 39158 | C38: ABRACADEIRA EM ACO PARA AMARRACAO DE ELETRODUTOS, TIPO ECONOMICA (GOTA), COM 8" | D38: UN | E38: CR | F38: 18.35
A39: MATERIAL | B39: 39141 | C39: ABRACADEIRA EM ACO PARA AMARRACAO DE ELETRODUTOS, TIPO U SIMPLES, COM 1 1/2" | D39: UN | E39: CR | F39: 1.33
A40: MATERIAL | B40: 39140 | C40: ABRACADEIRA EM ACO PARA AMARRACAO DE ELETRODUTOS, TIPO U SIMPLES, COM 1 1/4" | D40: UN | E40: CR | F40: 1.21
A41: MATERIAL | B41: 39139 | C41: ABRACADEIRA EM ACO PARA AMARRACAO DE ELETRODUTOS, TIPO U SIMPLES, COM 1" | D41: UN | E41: CR | F41: 1
A42: MATERIAL | B42: 39137 | C42: ABRACADEIRA EM ACO PARA AMARRACAO DE ELETRODUTOS, TIPO U SIMPLES, COM 1/2" | D42: UN | E42: CR | F42: 0.69
A43: MATERIAL | B43: 39143 | C43: ABRACADEIRA EM ACO PARA AMARRACAO DE ELETRODUTOS, TIPO U SIMPLES, COM 2 1/2" | D43: UN | E43: CR | F43: 2.75
A44: MATERIAL | B44: 39142 | C44: ABRACADEIRA EM ACO PARA AMARRACAO DE ELETRODUTOS, TIPO U SIMPLES, COM 2" | D44: UN | E44: CR | F44: 1.97
A45: MATERIAL | B45: 39144 | C45: ABRACADEIRA EM ACO PARA AMARRACAO DE ELETRODUTOS, TIPO U SIMPLES, COM 3" | D45: UN | E45: CR | F45: 3.2
A46: MATERIAL | B46: 39138 | C46: ABRACADEIRA EM ACO PARA AMARRACAO DE ELETRODUTOS, TIPO U SIMPLES, COM 3/4" | D46: UN | E46: CR | F46: 0.73
A47: MATERIAL | B47: 39136 | C47: ABRACADEIRA EM ACO PARA AMARRACAO DE ELETRODUTOS, TIPO U SIMPLES, COM 3/8" | D47: UN | E47: CR | F47: 0.49
A48: MATERIAL | B48: 39145 | C48: ABRACADEIRA EM ACO PARA AMARRACAO DE ELETRODUTOS, TIPO U SIMPLES, COM 4" | D48: UN | E48: CR | F48: 5.27
A49: MATERIAL | B49: 12615 | C49: ABRACADEIRA PVC, PARA CALHA PLUVIAL, DIAMETRO ENTRE *80 E 100* MM, PARA DRENAGEM PLUVIAL PREDIAL | D49: UN | E49: CR | F49: 12.04
A50: MATERIAL | B50: 11927 | C50: ABRACADEIRA, GALVANIZADA/ZINCADA, ROSCA SEM FIM, PARAFUSO INOX, LARGURA FITA *12,6 A *14 MM, D = 2" A 2 1/2" | D50: UN | E50: CR | F50: 9.31
A51: MATERIAL | B51: 11928 | C51: ABRACADEIRA, GALVANIZADA/ZINCADA, ROSCA SEM FIM, PARAFUSO INOX, LARGURA FITA *12,6 A *14 MM, D = 3" A 3 3/4" | D51: UN | E51: CR | F51: 10.67
A52: MATERIAL | B52: 11929 | C52: ABRACADEIRA, GALVANIZADA/ZINCADA, ROSCA SEM FIM, PARAFUSO INOX, LARGURA FITA *12,6 A *14 MM, D = 4" A 4 3/4" | D52: UN | E52: CR | F52: 16.5
A53: MATERIAL | B53: 36801 | C53: ACABAMENTO DE METAL CROMADO PARA REGISTRO PEQUENO, DE PAREDE, 1/2" OU 3/4" | D53: UN | E53: CR | F53: 33.81
A54: MATERIAL | B54: 36246 | C54: ACABAMENTO SIMPLES/CONVENCIONAL PARA FORRO PVC, TIPO "U" OU "C", COR BRANCA, COMPRIMENTO 6 M | D54: M | E54: CR | F54: 3.85
A55: MATERIAL | B55: 37600 | C55: ACESSORIO DE LIGACAO NAO ELETRICO PARA CARGAS EXPLOSIVAS, TUBO DE 6 M | D55: UN | E55: CR
A56: MATERIAL | B56: 37599 | C56: ACESSORIO INICIADOR NAO ELETRICO, TUBO DE 6 M, TEMPO DE RETARDO DE *160* MS | D56: UN | E56: CR
A57: MATERIAL | B57: 1 | C57: ACETILENO - RECARGA DE GAS PARA CILINDRO (NAO INCLUI TROCA/MANUTENCAO DO CILINDRO) | D57: KG | E57: C | F57: 90
A58: MATERIAL | B58: 3 | C58: ACIDO CLORIDRICO / ACIDO MURIATICO, DILUICAO 10% A 12% PARA USO EM LIMPEZA | D58: L | E58: CR | F58: 20.99
A59: MATERIAL | B59: 43054 | C59: ACO CA-25, 10,0 MM, OU 12,5 MM, OU 16,0 MM, OU 20,0 MM, OU 25,0 MM, VERGALHAO | D59: KG | E59: CR | F59: 8.11
A60: MATERIAL | B60: 42402 | C60: ACO CA-25, 16,0 MM, BARRA DE TRANSFERENCIA | D60: KG | E60: CR | F60: 7.75
A61: MATERIAL | B61: 42403 | C61: ACO CA-25, 20,0 MM, BARRA DE TRANSFERENCIA | D61: KG | E61: CR | F61: 9.94
A62: MATERIAL | B62: 42404 | C62: ACO CA-25, 25,0 MM, BARRA DE TRANSFERENCIA | D62: KG | E62: CR | F62: 9.89
A63: MATERIAL | B63: 42405 | C63: ACO CA-25, 32,0 MM, BARRA DE TRANSFERENCIA | D63: KG | E63: CR | F63: 10.53
A64: MATERIAL | B64: 34341 | C64: ACO CA-25, 32,0 MM, VERGALHAO | D64: KG | E64: CR | F64: 9.14
A65: MATERIAL | B65: 43053 | C65: ACO CA-25, 6,3 MM OU 8,0 MM, VERGALHAO | D65: KG | E65: CR | F65: 7.24
A66: MATERIAL | B66: 43058 | C66: ACO CA-50, 10,0 MM, OU 12,5 MM, OU 16,0 MM, OU 20,0 MM, DOBRADO E CORTADO | D66: KG | E66: CR | F66: 7.51
A67: MATERIAL | B67: 34 | C67: ACO CA-50, 10,0 MM, VERGALHAO | D67: KG | E67: CR | F67: 7.55
A68: MATERIAL | B68: 43055 | C68: ACO CA-50, 12,5 MM OU 16,0 MM, VERGALHAO | D68: KG | E68: C | F68: 6.54
A69: MATERIAL | B69: 43056 | C69: ACO CA-50, 20,0 MM OU 25,0 MM, VERGALHAO | D69: KG | E69: CR | F69: 7.54
A70: MATERIAL | B70: 43057 | C70: ACO CA-50, 32,0 MM, VERGALHAO | D70: KG | E70: CR | F70: 8.29
A71: MATERIAL | B71: 34449 | C71: ACO CA-50, 6,3 MM, DOBRADO E CORTADO | D71: KG | E71: CR | F71: 8.86
A72: MATERIAL | B72: 32 | C72: ACO CA-50, 6,3 MM, VERGALHAO | D72: KG | E72: CR | F72: 7.96
A73: MATERIAL | B73: 33 | C73: ACO CA-50, 8,0 MM, VERGALHAO | D73: KG | E73: CR | F73: 8.01
A74: MATERIAL | B74: 43061 | C74: ACO CA-60, 4,2 MM OU 5,0 MM, DOBRADO E CORTADO | D74: KG | E74: CR | F74: 7.48
A75: MATERIAL | B75: 43059 | C75: ACO CA-60, 4,2 MM, OU 5,0 MM, OU 6,0 MM, OU 7,0 MM, VERGALHAO | D75: KG | E75: CR | F75: 7.14
A76: MATERIAL | B76: 43062 | C76: ACO CA-60, 6,0 MM OU 7,0 MM, DOBRADO E CORTADO | D76: KG | E76: CR | F76: 7.92
A77: MATERIAL | B77: 43060 | C77: ACO CA-60, 8,0 MM OU 9,5 MM, VERGALHAO | D77: KG | E77: CR | F77: 6.22
A78: MATERIAL | B78: 40410 | C78: ACOPLAMENTO RIGIDO EM FERRO FUNDIDO PARA SISTEMA DE TUBULACAO RANHURADA, DN 50 MM (2") | D78: UN | E78: C
A79: MATERIAL | B79: 40411 | C79: ACOPLAMENTO RIGIDO EM FERRO FUNDIDO PARA SISTEMA DE TUBULACAO RANHURADA, DN 65 MM (2 1/2") | D79: UN | E79: CR
A80: MATERIAL | B80: 40412 | C80: ACOPLAMENTO RIGIDO EM FERRO FUNDIDO PARA SISTEMA DE TUBULACAO RANHURADA, DN 80 MM (3") | D80: UN | E80: CR
A81: MATERIAL | B81: 44254 | C81: ADAPTADOR CPVC, ROSCAVEL, COM FLANGES E ANEL DE VEDACAO, 15 MM, CAIXA D'AGUA PARA AGUA QUENTE | D81: UN | E81: CR | F81: 33.52
A82: MATERIAL | B82: 44255 | C82: ADAPTADOR CPVC, ROSCAVEL, COM FLANGES E ANEL DE VEDACAO, 22 MM, CAIXA D'AGUA PARA AGUA QUENTE | D82: UN | E82: CR | F82: 37.15
A83: MATERIAL | B83: 44256 | C83: ADAPTADOR CPVC, ROSCAVEL, COM FLANGES E ANEL DE VEDACAO, 28 MM, CAIXA D'AGUA PARA AGUA QUENTE | D83: UN | E83: CR | F83: 41.96
A84: MATERIAL | B84: 44257 | C84: ADAPTADOR CPVC, ROSCAVEL, COM FLANGES E ANEL DE VEDACAO, 35 MM, CAIXA D'AGUA PARA AGUA QUENTE | D84: UN | E84: CR | F84: 66.39
A85: MATERIAL | B85: 44258 | C85: ADAPTADOR CPVC, ROSCAVEL, COM FLANGES E ANEL DE VEDACAO, 42 MM, CAIXA D'AGUA PARA AGUA QUENTE | D85: UN | E85: CR | F85: 75.87
A86: MATERIAL | B86: 44259 | C86: ADAPTADOR CPVC, ROSCAVEL, COM FLANGES E ANEL DE VEDACAO, 54 MM, CAIXA D'AGUA PARA AGUA QUENTE | D86: UN | E86: CR | F86: 104.14
A87: MATERIAL | B87: 37997 | C87: ADAPTADOR CPVC, SOLDAVEL, 15 MM, PARA AGUA QUENTE | D87: UN | E87: CR | F87: 19.97
A88: MATERIAL | B88: 37998 | C88: ADAPTADOR CPVC, SOLDAVEL, 22 MM, PARA AGUA QUENTE | D88: UN | E88: CR | F88: 26.73
A89: MATERIAL | B89: 55 | C89: ADAPTADOR DE COMPRESSAO EM POLIPROPILENO (PP), PARA TUBO EM PEAD, 20 MM X 1/2", PARA LIGACAO PREDIAL DE AGUA (NTS 179) | D89: UN | E89: C | F89: 4.5
A90: MATERIAL | B90: 61 | C90: ADAPTADOR DE COMPRESSAO EM POLIPROPILENO (PP), PARA TUBO EM PEAD, 20 MM X 3/4", PARA LIGACAO PREDIAL DE AGUA (NTS 179) | D90: UN | E90: CR | F90: 4.25
A91: MATERIAL | B91: 62 | C91: ADAPTADOR DE COMPRESSAO EM POLIPROPILENO (PP), PARA TUBO EM PEAD, 32 MM X 1", PARA LIGACAO PREDIAL DE AGUA (NTS 179) | D91: UN | E91: CR | F91: 8.82
A92: MATERIAL | B92: 10899 | C92: ADAPTADOR EM LATAO, ENGATE RAPIDO 2 1/2" X ROSCA INTERNA 5 FIOS 2 1/2", PARA INSTALACAO PREDIAL DE COMBATE A INCENDIO | D92: UN | E92: CR | F92: 67.9
A93: MATERIAL | B93: 10900 | C93: ADAPTADOR EM LATAO, ENGATE RAPIDO1 1/2" X ROSCA INTERNA 5 FIOS 2 1/2", PARA INSTALACAO PREDIAL DE COMBATE A INCENDIO | D93: UN | E93: CR | F93: 53.14
A94: MATERIAL | B94: 47 | C94: ADAPTADOR PVC PBA, BOLSA/ROSCA, JE, DN 100 / DE 110 MM | D94: UN | E94: CR | F94: 94.9
A95: MATERIAL | B95: 48 | C95: ADAPTADOR PVC PBA, BOLSA/ROSCA, JE, DN 50 / DE 60 MM | D95: UN | E95: CR | F95: 24.75
A96: MATERIAL | B96: 46 | C96: ADAPTADOR PVC PBA, BOLSA/ROSCA, JE, DN 75 / DE 85 MM | D96: UN | E96: CR | F96: 55.5
A97: MATERIAL | B97: 52 | C97: ADAPTADOR PVC PBA, PONTA/ROSCA, JE, DN 50 / DE 60 MM | D97: UN | E97: CR | F97: 18.8
A98: MATERIAL | B98: 43 | C98: ADAPTADOR PVC PBA, PONTA/ROSCA, JE, DN 75 / DE 85 MM | D98: UN | E98: CR | F98: 63.47
A99: MATERIAL | B99: 103 | C99: ADAPTADOR PVC SOLDAVEL CURTO COM BOLSA E ROSCA, 110 MM X 4", PARA AGUA FRIA | D99: UN | E99: CR | F99: 42.49
A100: MATERIAL | B100: 107 | C100: ADAPTADOR PVC SOLDAVEL CURTO COM BOLSA E ROSCA, 20 MM X 1/2", PARA AGUA FRIA | D100: UN | E100: CR | F100: 0.8
A101: MATERIAL | B101: 65 | C101: ADAPTADOR PVC SOLDAVEL CURTO COM BOLSA E ROSCA, 25 MM X 3/4", PARA AGUA FRIA | D101: UN | E101: CR | F101: 0.87
A102: MATERIAL | B102: 108 | C102: ADAPTADOR PVC SOLDAVEL CURTO COM BOLSA E ROSCA, 32 MM X 1", PARA AGUA FRIA | D102: UN | E102: CR | F102: 1.76
A103: MATERIAL | B103: 110 | C103: ADAPTADOR PVC SOLDAVEL CURTO COM BOLSA E ROSCA, 40 MM X 1 1/2", PARA AGUA FRIA | D103: UN | E103: CR | F103: 6.11
A104: MATERIAL | B104: 109 | C104: ADAPTADOR PVC SOLDAVEL CURTO COM BOLSA E ROSCA, 40 MM X 1 1/4", PARA AGUA FRIA | D104: UN | E104: CR | F104: 3.64
A105: MATERIAL | B105: 111 | C105: ADAPTADOR PVC SOLDAVEL CURTO COM BOLSA E ROSCA, 50 MM X 1 1/4", PARA AGUA FRIA | D105: UN | E105: CR | F105: 8.27
A106: MATERIAL | B106: 112 | C106: ADAPTADOR PVC SOLDAVEL CURTO COM BOLSA E ROSCA, 50 MM X1 1/2", PARA AGUA FRIA | D106: UN | E106: CR | F106: 4.38
A107: MATERIAL | B107: 113 | C107: ADAPTADOR PVC SOLDAVEL CURTO COM BOLSA E ROSCA, 60 MM X 2", PARA AGUA FRIA | D107: UN | E107: CR | F107: 10.97
A108: MATERIAL | B108: 104 | C108: ADAPTADOR PVC SOLDAVEL CURTO COM BOLSA E ROSCA, 75 MM X 2 1/2", PARA AGUA FRIA | D108: UN | E108: CR | F108: 19.1
A109: MATERIAL | B109: 102 | C109: ADAPTADOR PVC SOLDAVEL CURTO COM BOLSA E ROSCA, 85 MM X 3", PARA AGUA FRIA | D109: UN | E109: CR | F109: 26.33
A110: MATERIAL | B110: 95 | C110: ADAPTADOR PVC SOLDAVEL, COM FLANGE E ANEL DE VEDACAO, 20 MM X 1/2", PARA CAIXA D'AGUA | D110: UN | E110: CR | F110: 11.13
A111: MATERIAL | B111: 96 | C111: ADAPTADOR PVC SOLDAVEL, COM FLANGE E ANEL DE VEDACAO, 25 MM X 3/4", PARA CAIXA D'AGUA | D111: UN | E111: CR | F111: 12.1
A112: MATERIAL | B112: 97 | C112: ADAPTADOR PVC SOLDAVEL, COM FLANGE E ANEL DE VEDACAO, 32 MM X 1", PARA CAIXA D'AGUA | D112: UN | E112: CR | F112: 18.21
A113: MATERIAL | B113: 98 | C113: ADAPTADOR PVC SOLDAVEL, COM FLANGE E ANEL DE VEDACAO, 40 MM X 1 1/4", PARA CAIXA D'AGUA | D113: UN | E113: CR | F113: 27.26
A114: MATERIAL | B114: 99 | C114: ADAPTADOR PVC SOLDAVEL, COM FLANGE E ANEL DE VEDACAO, 50 MM X 1 1/2", PARA CAIXA D'AGUA | D114: UN | E114: CR | F114: 25.76
A115: MATERIAL | B115: 60 | C115: ADAPTADOR PVC, COM REGISTRO, PARA PEAD, 20 MM X 3/4", PARA LIGACAO PREDIAL DE AGUA | D115: UN | E115: CR | F115: 5.84
A116: MATERIAL | B116: 72 | C116: ADAPTADOR PVC, ROSCAVEL, COM FLANGES E ANEL DE VEDACAO, 1 1/2", PARA CAIXA D'AGUA | D116: UN | E116: CR | F116: 49.41
A117: MATERIAL | B117: 71 | C117: ADAPTADOR PVC, ROSCAVEL, COM FLANGES E ANEL DE VEDACAO, 1", PARA CAIXA D'AGUA | D117: UN | E117: CR | F117: 30.51
A118: MATERIAL | B118: 67 | C118: ADAPTADOR PVC, ROSCAVEL, COM FLANGES E ANEL DE VEDACAO, 1/2", PARA CAIXA D'AGUA | D118: UN | E118: CR | F118: 15.97
A119: MATERIAL | B119: 73 | C119: ADAPTADOR PVC, ROSCAVEL, COM FLANGES E ANEL DE VEDACAO, 3/4", PARA CAIXA D'AGUA | D119: UN | E119: CR | F119: 15.29
A120: MATERIAL | B120: 100 | C120: ADAPTADOR PVC, SOLDAVEL, COM FLANGES E ANEL DE VEDACAO, 60 MM X 2", PARA CAIXA D'AGUA | D120: UN | E120: CR | F120: 45.01
A121: MATERIAL | B121: 75 | C121: ADAPTADOR PVC, SOLDAVEL, COM FLANGES LIVRES, 110 MM X 4", PARA CAIXA D'AGUA | D121: UN | E121: CR | F121: 262.43
A122: MATERIAL | B122: 83 | C122: ADAPTADOR PVC, SOLDAVEL, COM FLANGES LIVRES, 75 MM X 2 1/2", PARA CAIXA D'AGUA | D122: UN | E122: CR | F122: 209.8
A123: MATERIAL | B123: 74 | C123: ADAPTADOR PVC, SOLDAVEL, COM FLANGES LIVRES, 85 MM X 3", PARA CAIXA D'AGUA | D123: UN | E123: CR | F123: 299.96
A124: MATERIAL | B124: 106 | C124: ADAPTADOR PVC, SOLDAVEL, LONGO, COM FLANGE LIVRE, 110 MM X 4", PARA CAIXA D'AGUA | D124: UN | E124: CR | F124: 379.31
A125: MATERIAL | B125: 88 | C125: ADAPTADOR PVC, SOLDAVEL, LONGO, COM FLANGE LIVRE, 32 MM X 1", PARA CAIXA D'AGUA | D125: UN | E125: CR | F125: 10.66
A126: MATERIAL | B126: 82 | C126: ADAPTADOR PVC, SOLDAVEL, LONGO, COM FLANGE LIVRE, 75 MM X 2 1/2", PARA CAIXA D'AGUA | D126: UN | E126: CR | F126: 199.61
A127: MATERIAL | B127: 105 | C127: ADAPTADOR PVC, SOLDAVEL, LONGO, COM FLANGE LIVRE, 85 MM X 3", PARA CAIXA D'AGUA | D127: UN | E127: CR | F127: 282.84
A128: MATERIAL | B128: 39719 | C128: ADESIVO / COLA DE CONTATO LIQUIDO, A BASE DE RESINAS, PARA COLAGEM DE ESPUMA PARA ISOLAMENTO TERMICO FLEXIVEL | D128: L | E128: CR | F128: 164.13
A129: MATERIAL | B129: 3410 | C129: ADESIVO / COLA PARA EPS (ISOPOR) E OUTROS MATERIAIS | D129: KG | E129: CR | F129: 36.92
A130: MATERIAL | B130: 4791 | C130: ADESIVO ACRILICO DE BASE AQUOSA / COLA DE CONTATO | D130: KG | E130: CR | F130: 51.96
A131: MATERIAL | B131: 157 | C131: ADESIVO ESTRUTURAL A BASE DE RESINA EPOXI PARA INJECAO EM TRINCAS, BICOMPONENTE, BAIXA VISCOSIDADE | D131: KG | E131: CR | F131: 127.81
A132: MATERIAL | B132: 156 | C132: ADESIVO ESTRUTURAL A BASE DE RESINA EPOXI, BICOMPONENTE, FLUIDO | D132: KG | E132: CR | F132: 45.5
A133: MATERIAL | B133: 131 | C133: ADESIVO ESTRUTURAL A BASE DE RESINA EPOXI, BICOMPONENTE, PASTOSO (TIXOTROPICO) | D133: KG | E133: CR | F133: 38.91
A134: MATERIAL | B134: 21114 | C134: ADESIVO PARA TUBOS CPVC, *75* G | D134: UN | E134: CR | F134: 32.35
A135: MATERIAL | B135: 119 | C135: ADESIVO PLASTICO PARA PVC, BISNAGA COM 75 GR | D135: UN | E135: C | F135: 8.2
A136: MATERIAL | B136: 122 | C136: ADESIVO PLASTICO PARA PVC, FRASCO COM *850* GR | D136: UN | E136: CR | F136: 63.09
A137: MATERIAL | B137: 20080 | C137: ADESIVO PLASTICO PARA PVC, FRASCO COM 175 GR | D137: UN | E137: CR | F137: 20.59
A138: MATERIAL | B138: 124 | C138: ADITIVO ACELERADOR DE PEGA E ENDURECIMENTO PARA ARGAMASSAS E CONCRETOS, LIQUIDO E ISENTO DE CLORETOS | D138: L | E138: CR | F138: 15.01
A139: MATERIAL | B139: 7334 | C139: ADITIVO ADESIVO LIQUIDO PARA ARGAMASSAS DE REVESTIMENTOS CIMENTICIOS | D139: L | E139: CR | F139: 14.62
A140: MATERIAL | B140: 45146 | C140: ADITIVO IMPERMEABILIZANTE CRISTALIZANTE PARA CONCRETO | D140: KG | E140: CR | F140: 28.77
A141: MATERIAL | B141: 123 | C141: ADITIVO IMPERMEABILIZANTE DE PEGA NORMAL PARA ARGAMASSAS E CONCRETOS SEM ARMACAO, LIQUIDO E ISENTO DE CLORETOS | D141: L | E141: C | F141: 6.14
A142: MATERIAL | B142: 127 | C142: ADITIVO IMPERMEABILIZANTE DE PEGA ULTRARRAPIDA, LIQUIDO E ISENTO DE CLORETOS | D142: L | E142: CR | F142: 14.66
A143: MATERIAL | B143: 133 | C143: ADITIVO LIQUIDO INCORPORADOR DE AR PARA CONCRETO E ARGAMASSA, LIQUIDO E ISENTO DE CLORETOS | D143: L | E143: CR | F143: 6.09
A144: MATERIAL | B144: 43617 | C144: ADITIVO PLASTIFICANTE E ESTABILIZADOR PARA ARGAMASSAS DE ASSENTAMENTO E REBOCO, LIQUIDO E ISENTO DE CLORETOS | D144: L | E144: CR | F144: 6.8
A145: MATERIAL | B145: 132 | C145: ADITIVO PLASTIFICANTE RETARDADOR DE PEGA E REDUTOR DE AGUA PARA CONCRETO, LIQUIDO E ISENTO DE CLORETOS | D145: L | E145: CR | F145: 6.31
A146: MATERIAL | B146: 43618 | C146: ADITIVO SUPERPLASTIFICANTE DE PEGA NORMAL PARA CONCRETO, LIQUIDO E ISENTO DE CLORETOS | D146: KG | E146: CR | F146: 15.89
A147: MATERIAL | B147: 37476 | C147: ADUELA/ GALERIA PRE-MOLDADA DE CONCRETO ARMADO, SECAO QUADRADA INTERNA DE 1,50 X 1,50 M (L X A), MISULA DE 20 X 20 CM, C = 1,00 M, ESPESSURA MIN = 15 CM, TB-45 E FCK DO CONCRETO = 30 MPA | D147: UN | E147: CR | F147: 3410.92
A148: MATERIAL | B148: 37478 | C148: ADUELA/ GALERIA PRE-MOLDADA DE CONCRETO ARMADO, SECAO RETANGULAR INTERNA DE 2,00 X 2,00 M (L X A), MISULA DE 20 X 20 CM, C = 1,00 M, ESPESSURA MIN = 15 CM, TB-45 E FCK DO CONCRETO = 30 MPA | D148: UN | E148: CR | F148: 4272.26
A149: MATERIAL | B149: 37477 | C149: ADUELA/ GALERIA PRE-MOLDADA DE CONCRETO ARMADO, SECAO RETANGULAR INTERNA DE 2,50 X 2,50 M (L X A), MISULA DE 20 X 20 CM, C = 1,00 M, ESPESSURA MIN = 15 CM, TB-45 E FCK DO CONCRETO = 30 MPA | D149: UN | E149: CR | F149: 5788.23
A150: MATERIAL | B150: 37479 | C150: ADUELA/ GALERIA PRE-MOLDADA DE CONCRETO ARMADO, SECAO RETANGULAR INTERNA DE 3,00 X 3,00 M (L X A), MISULA DE 20 X 20 CM, C = 1.00 M, ESPESSURA MIN = 20 CM, TB-45 E FCK DO CONCRETO = 30 MPA | D150: UN | E150: CR | F150: 6864.91
A151: MATERIAL | B151: 4319 | C151: AFASTADOR PARA TELHA DE FIBROCIMENTO CANALETE 90 OU KALHETAO | D151: UN | E151: CR | F151: 2.37
A152: MATERIAL | B152: 42409 | C152: AGENTE DE CURA, PROTETOR DA EVAPORACAO DA AGUA DE HIDRATACAO DO CONCRETO | D152: KG | E152: CR | F152: 10
A153: MATERIAL | B153: 40553 | C153: AGREGADO RECICLADO, TIPO RACHAO RECICLADO CINZA, CLASSE A | D153: M3 | E153: C
A154: MAO DE OBRA | B154: 6114 | C154: AJUDANTE DE ARMADOR (HORISTA) | D154: H | E154: CR | F154: 18.23
A155: MAO DE OBRA | B155: 40912 | C155: AJUDANTE DE ARMADOR (MENSALISTA) | D155: MES | E155: CR | F155: 3218.73
A156: MAO DE OBRA | B156: 247 | C156: AJUDANTE DE ELETRICISTA (HORISTA) | D156: H | E156: CR | F156: 18.23
A157: MAO DE OBRA | B157: 40919 | C157: AJUDANTE DE ELETRICISTA (MENSALISTA) | D157: MES | E157: CR | F157: 3218.73
A158: MAO DE OBRA | B158: 44499 | C158: AJUDANTE DE ESTRUTURAS METALICAS (HORISTA) | D158: H | E158: CR | F158: 18.23
A159: MAO DE OBRA | B159: 40984 | C159: AJUDANTE DE ESTRUTURAS METALICAS (MENSALISTA) | D159: MES | E159: CR | F159: 3218.73
A160: MAO DE OBRA | B160: 248 | C160: AJUDANTE DE OPERACAO EM GERAL (HORISTA) | D160: H | E160: CR | F160: 19.74
A161: MAO DE OBRA | B161: 41086 | C161: AJUDANTE DE OPERACAO EM GERAL (MENSALISTA) | D161: MES | E161: CR | F161: 3488.51
A162: MAO DE OBRA | B162: 34466 | C162: AJUDANTE DE PINTOR (HORISTA) | D162: H | E162: CR | F162: 18.23
A163: MAO DE OBRA | B163: 41083 | C163: AJUDANTE DE PINTOR (MENSALISTA) | D163: MES | E163: CR | F163: 3218.73
A164: MAO DE OBRA | B164: 252 | C164: AJUDANTE DE SERRALHEIRO (HORISTA) | D164: H | E164: CR | F164: 18.23
A165: MAO DE OBRA | B165: 40909 | C165: AJUDANTE DE SERRALHEIRO (MENSALISTA) | D165: MES | E165: CR | F165: 3218.73
A166: MAO DE OBRA | B166: 242 | C166: AJUDANTE ESPECIALIZADO (HORISTA) | D166: H | E166: CR | F166: 19.74
A167: MAO DE OBRA | B167: 41085 | C167: AJUDANTE ESPECIALIZADO (MENSALISTA) | D167: MES | E167: CR | F167: 3488.51
A168: MATERIAL | B168: 427 | C168: ALCA PREFORMADA DE CONTRA POSTE, EM ACO GALVANIZADO, PARA CABO 3/16", COMPRIMENTO *860* MM | D168: UN | E168: CR
A169: MATERIAL | B169: 417 | C169: ALCA PREFORMADA DE DISTRIBUICAO, EM ACO GALVANIZADO, PARA CABO DE ALUMINIO DIAMETRO 16 A 25 MM | D169: UN | E169: CR
A170: MATERIAL | B170: 11273 | C170: ALCA PREFORMADA DE DISTRIBUICAO, EM ACO GALVANIZADO, PARA CONDUTORES DE ALUMINIO AWG 1/0 (CAA 6/1 OU CA 7 FIOS) | D170: UN | E170: CR
A171: MATERIAL | B171: 11272 | C171: ALCA PREFORMADA DE DISTRIBUICAO, EM ACO GALVANIZADO, PARA CONDUTORES DE ALUMINIO AWG 2 (CAA 6/1 OU CA 7 FIOS) | D171: UN | E171: CR
A172: MATERIAL | B172: 11275 | C172: ALCA PREFORMADA DE SERVICO, EM ACO GALVANIZADO, PARA CONDUTORES DE ALUMINIO AWG 4 (CAA 6/1) | D172: UN | E172: CR
A173: MATERIAL | B173: 11274 | C173: ALCA PREFORMADA DE SERVICO, EM ACO GALVANIZADO, PARA CONDUTORES DE ALUMINIO AWG 6 (CAA 6/1) | D173: UN | E173: CR
A174: MATERIAL | B174: 45250 | C174: ALICATE BICO LONGO (MEIA CANA) 6", COM ISOLAMENTO ATE 1000 V | D174: UN | E174: CR | F174: 41.35
A175: MATERIAL | B175: 38470 | C175: ALICATE DE CORTE DIAGONAL 6" COM ISOLAMENTO | D175: UN | E175: C | F175: 35.88
A176: MATERIAL | B176: 38547 | C176: ALICATE DE CRIMPAR RJ11, RJ12 E RJ45, COM CATRACA | D176: UN | E176: CR | F176: 281.03
A177: MATERIAL | B177: 38467 | C177: ALICATE DE PRESSAO 11" PARA SOLDA, TIPO C | D177: UN | E177: CR | F177: 59.24
A178: MATERIAL | B178: 38468 | C178: ALICATE DE PRESSAO 11" PARA SOLDA, TIPO U | D178: UN | E178: CR | F178: 65.18
A179: MATERIAL | B179: 38469 | C179: ALICATE DE PRESSAO PARA SOLDA DE CHAPA 18" | D179: UN | E179: CR | F179: 268.34
A180: MATERIAL | B180: 45197 | C180: ALICATE DESENCAPADOR AUTOMATICO 8" | D180: UN | E180: CR | F180: 214.01
A181: MATERIAL | B181: 38471 | C181: ALICATE PARA ANEIS DE PISTAO, CAPACIDADE *50* A 100 MM | D181: UN | E181: CR | F181: 287
A182: MATERIAL | B182: 45206 | C182: ALICATE PROFISSIONAL 8", UNIVERSAL, COM ISOLAMENTO ATE 1000 V | D182: UN | E182: CR | F182: 56.7
A183: MATERIAL | B183: 37370 | C183: ALIMENTACAO - HORISTA (COLETADO CAIXA - ENCARGOS COMPLEMENTARES) | D183: H | E183: C | F183: 2.12
A184: MATERIAL | B184: 40862 | C184: ALIMENTACAO - MENSALISTA (COLETADO CAIXA - ENCARGOS COMPLEMENTARES) | D184: MES | E184: C | F184: 399.66
A185: EQUIPAMENTO (AQUISIÇÃO) | B185: 10658 | C185: ALISADORA DE CONCRETO COM MOTOR A GASOLINA DE 5,5 HP, PESO COM MOTOR DE 78 KG, 4 PAS | D185: UN | E185: C
A186: MAO DE OBRA | B186: 253 | C186: ALMOXARIFE (HORISTA) | D186: H | E186: C | F186: 24.12
A187: MAO DE OBRA | B187: 40809 | C187: ALMOXARIFE (MENSALISTA) | D187: MES | E187: CR | F187: 4258.84
A188: MATERIAL | B188: 42428 | C188: ALONGADOR COM TRES ALTURAS, EM TUBO DE ACO CARBONO, PINTURA NO PROCESSO ELETROSTATICO - EQUIPAMENTO DE GINASTICA PARA ACADEMIA AO AR LIVRE / ACADEMIA DA TERCEIRA IDADE - ATI | D188: UN | E188: C
A189: MATERIAL | B189: 301 | C189: ANEL BORRACHA PARA TUBO ESGOTO PREDIAL, DN 100 MM (NBR 5688) | D189: UN | E189: C | F189: 2.92
A190: MATERIAL | B190: 296 | C190: ANEL BORRACHA PARA TUBO ESGOTO PREDIAL, DN 50 MM (NBR 5688) | D190: UN | E190: CR | F190: 1.65
A191: MATERIAL | B191: 297 | C191: ANEL BORRACHA PARA TUBO ESGOTO PREDIAL, DN 75 MM (NBR 5688) | D191: UN | E191: CR | F191: 2.42
A192: MATERIAL | B192: 299 | C192: ANEL BORRACHA, DN 100 MM, PARA TUBO SERIE REFORCADA ESGOTO PREDIAL | D192: UN | E192: CR | F192: 3.42
A193: MATERIAL | B193: 300 | C193: ANEL BORRACHA, DN 150 MM, PARA TUBO SERIE REFORCADA ESGOTO PREDIAL | D193: UN | E193: CR | F193: 11.85
A194: MATERIAL | B194: 20085 | C194: ANEL BORRACHA, DN 50 MM, PARA TUBO SERIE REFORCADA ESGOTO PREDIAL | D194: UN | E194: CR | F194: 2.16
A195: MATERIAL | B195: 298 | C195: ANEL BORRACHA, DN 75 MM, PARA TUBO SERIE REFORCADA ESGOTO PREDIAL | D195: UN | E195: CR | F195: 2.63
A196: MATERIAL | B196: 311 | C196: ANEL BORRACHA, PARA TUBO PVC DEFOFO, DN 100 MM (NBR 7665) | D196: UN | E196: CR | F196: 9.77
A197: MATERIAL | B197: 318 | C197: ANEL BORRACHA, PARA TUBO PVC DEFOFO, DN 150 MM (NBR 7665) | D197: UN | E197: CR | F197: 19.68
A198: MATERIAL | B198: 319 | C198: ANEL BORRACHA, PARA TUBO PVC DEFOFO, DN 200 MM (NBR 7665) | D198: UN | E198: CR | F198: 30.86
A199: MATERIAL | B199: 303 | C199: ANEL BORRACHA, PARA TUBO PVC, REDE COLETOR ESGOTO, DN 100 MM (NBR 7362) | D199: UN | E199: CR | F199: 3.23
A200: MATERIAL | B200: 305 | C200: ANEL BORRACHA, PARA TUBO PVC, REDE COLETOR ESGOTO, DN 150 MM (NBR 7362) | D200: UN | E200: CR | F200: 10.17
A201: MATERIAL | B201: 306 | C201: ANEL BORRACHA, PARA TUBO PVC, REDE COLETOR ESGOTO, DN 200 MM (NBR 7362) | D201: UN | E201: CR | F201: 15.43
... 4681 more rows
